Workbook

Sheet Data
B2: xD Technologies GmbH
B3: Runsheet GT3 V4.1 free
B8: Event | E8: Engineer | F8: Engineer 1
E9: Data Engineer | F9: Data Eng. 1
E10: Techn. Leitung | F10: Mechanic 1
B11: Marke | E11: #1 Mechanic | F11: Mechanic 1
B12: Model
B13: Chassis # | E13: Driver ID 1 | F13: Driver1 | G13: DR1
B14: Start # | E14: Driver ID 2 | F14: Driver2 | G14: DR2
E15: Driver ID 3 | F15: Driver3 | G15: DR3
B16: Short Lap | C16: 3200 | E16: Driver ID 4 | F16: Driver4 | G16: DR4
B17: Regular Lap | C17: 3200 | E17: Driver ID 5 | F17: Driver5 | G17: DR5

Sheet Test Session
G2: xD Technologies GmbH Senckenberganlage 24 60325 Frankfurt / Main | J2: Circuit Layout
J3: Name: | M3: Comments:
J4: Length: | L4: =Data!C17 -> 3200
J5: Fuel / lap | L5: 13
B6: Event | D6: =Data!C8 -> 0 | E6: Drivers | F6: =Data!F13 -> Driver1 | J6: Fuel in | L6: 60
B7: Date | F7: =Data!F14 -> Driver2 | J7: Track Cond.
B8: Session | F8: =Data!F15 -> Driver3 | J8: Weather Cond.
F9: =Data!F16 -> Driver4
B10: Session duration [u:mm] | D10: 0.04166666667 | F10: =Data!F17 -> Driver5
B12: SESSION | P12: SETUP NR. | Q12: Tyre pressures | U12: Tyre temperatures | AG12: Brake temperatures
B13: Lap | C13: Laptime [m:ss.000] | D13: Driver | E13: Fuel | F13: Fuel IN | G13: Pit Stop | H13: Tyres | I13: Time left | J13: Comment | N13: Aantal KM | Q13: LF | R13: RF | S13: LR | T13: RR | U13: LF O | V13: LF M | W13: LF I | X13: RF 0 | Y13: RF M | Z13: RF I | AA13: LR O | AB13: LR M | AC13: LR I | AD13: RR 0 | AE13: RR M | AF13: RR I | AG13: LF | AH13: RF | AI13: LR | AJ13: RR
B14: 1 | E14: =L6-FuelLap -> 47 | I14: =$D$10-IF(C14=0,0,C14)-G14 -> 0.04166666667 | N14: =IF(C14>0,($L$4*B14)/1000,0) -> 0
B15: 2 | E15: =E14-FuelLap+F14 -> 34 | I15: =I14-C15-G15 -> 0.04166666667 | N15: =IF(C15>0,($L$4*B15)/1000,0) -> 0
B16: 3 | E16: 21 | I16: =I15-C16-G16 -> 0.04166666667 | N16: 0
B17: 4 | E17: 8 | I17: 0.04166666667 | N17: 0
B18: 5 | E18: -5 | I18: 0.04166666667 | N18: 0
B19: 6 | E19: -18 | I19: 0.04166666667 | N19: 0
B20: 7 | E20: -31 | I20: 0.04166666667 | N20: 0
B21: 8 | E21: -44 | I21: 0.04166666667 | N21: 0
B22: 9 | E22: -57 | I22: 0.04166666667 | N22: 0
B23: 10 | E23: -70 | I23: 0.04166666667 | N23: 0
B24: 11 | E24: -83 | I24: 0.04166666667 | N24: 0
B25: 12 | E25: -96 | I25: 0.04166666667 | N25: 0
B26: 13 | E26: -109 | I26: 0.04166666667 | N26: 0
B27: 14 | E27: -122 | I27: 0.04166666667 | N27: 0
B28: 15 | E28: -135 | I28: 0.04166666667 | N28: 0
B29: 16 | E29: -148 | I29: 0.04166666667 | N29: 0
B30: 17 | E30: -161 | I30: 0.04166666667 | N30: 0
B31: 18 | E31: -174 | I31: 0.04166666667 | N31: 0
B32: 19 | E32: -187 | I32: 0.04166666667 | N32: 0
B33: 20 | E33: -200 | I33: 0.04166666667 | N33: 0
B34: 21 | E34: -213 | I34: 0.04166666667 | N34: 0
B35: 22 | E35: -226 | I35: 0.04166666667 | N35: 0
B36: 23 | E36: -239 | I36: 0.04166666667 | N36: 0
B37: 24 | E37: -252 | I37: 0.04166666667 | N37: 0
B38: 25 | E38: -265 | I38: 0.04166666667 | N38: 0
B39: 26 | E39: -278 | I39: 0.04166666667 | N39: 0
B40: 27 | E40: -291 | I40: 0.04166666667 | N40: 0
B41: 28 | E41: -304 | I41: 0.04166666667 | N41: 0
B42: 29 | E42: -317 | I42: 0.04166666667 | N42: 0
B43: 30 | E43: -330 | I43: 0.04166666667 | N43: 0
B44: 31 | E44: -343 | I44: 0.04166666667 | N44: 0
B45: 32 | E45: -356 | I45: 0.04166666667 | N45: 0
B46: 33 | E46: -369 | I46: 0.04166666667 | N46: 0
B47: 34 | E47: =E46-FuelLap+F46 -> -382 | I47: 0.04166666667 | N47: 0
B48: 35 | E48: -395 | I48: 0.04166666667 | N48: 0
B49: 36 | E49: -408 | I49: 0.04166666667 | N49: 0
B50: 37 | E50: -421 | I50: 0.04166666667 | N50: 0
B51: 38 | E51: -434 | I51: 0.04166666667 | N51: 0
B52: 39 | E52: -447 | I52: 0.04166666667 | N52: 0
B53: 40 | E53: -460 | I53: 0.04166666667 | N53: 0
B54: 41 | E54: -473 | I54: 0.04166666667 | N54: 0
B55: 42 | E55: -486 | I55: 0.04166666667 | N55: 0
B56: 43 | E56: -499 | I56: 0.04166666667 | N56: 0
B57: 44 | E57: -512 | I57: 0.04166666667 | N57: 0
B58: 45 | E58: -525 | I58: 0.04166666667 | N58: 0
B59: 46 | E59: -538 | I59: 0.04166666667 | N59: 0
B60: 47 | E60: -551 | I60: 0.04166666667 | N60: 0
B61: 48 | E61: -564 | I61: 0.04166666667 | N61: 0
B62: 49 | E62: -577 | I62: 0.04166666667 | N62: 0
B63: 50 | E63: -590 | I63: 0.04166666667 | N63: 0
B64: 51 | E64: -603 | I64: 0.04166666667 | N64: 0
B65: 52 | E65: -616 | I65: 0.04166666667 | N65: 0
B66: 53 | E66: -629 | I66: 0.04166666667 | N66: 0
B67: 54 | E67: -642 | I67: 0.04166666667 | N67: 0
B68: 55 | E68: -655 | I68: 0.04166666667 | N68: 0
B69: 56 | E69: -668 | I69: 0.04166666667 | N69: 0
B70: 57 | E70: -681 | I70: 0.04166666667 | N70: 0
B71: 58 | E71: -694 | I71: 0.04166666667 | N71: 0
B72: 59 | E72: -707 | I72: 0.04166666667 | N72: 0
B73: 60 | E73: -720 | I73: 0.04166666667 | N73: 0
B74: 61 | E74: -733 | I74: 0.04166666667 | N74: 0
B75: 62 | E75: -746 | I75: 0.04166666667 | N75: 0
B76: 63 | E76: -759 | I76: 0.04166666667 | N76: 0
B77: 64 | E77: -772 | I77: 0.04166666667 | N77: 0
B78: 65 | E78: -785 | I78: 0.04166666667 | N78: 0
B79: 66 | E79: =E78-FuelLap+F78 -> -798 | I79: 0.04166666667 | N79: =IF(C79>0,($L$4*B79)/1000,0) -> 0
B80: 67 | E80: -811 | I80: =I79-C80-G80 -> 0.04166666667 | N80: 0
B81: 68 | E81: -824 | I81: 0.04166666667 | N81: 0
B82: 69 | E82: -837 | I82: 0.04166666667 | N82: 0
B83: 70 | E83: -850 | I83: 0.04166666667 | N83: 0
B84: 71 | E84: -863 | I84: 0.04166666667 | N84: 0
B85: 72 | E85: -876 | I85: 0.04166666667 | N85: 0
B86: 73 | E86: -889 | I86: 0.04166666667 | N86: 0
B87: 74 | E87: -902 | I87: 0.04166666667 | N87: 0
B88: 75 | E88: -915 | I88: 0.04166666667 | N88: 0
B89: 76 | E89: -928 | I89: 0.04166666667 | N89: 0
B90: 77 | E90: -941 | I90: 0.04166666667 | N90: 0
B91: 78 | E91: -954 | I91: 0.04166666667 | N91: 0
B92: 79 | E92: -967 | I92: 0.04166666667 | N92: 0
B93: 80 | E93: -980 | I93: 0.04166666667 | N93: 0
B94: 81 | E94: -993 | I94: 0.04166666667 | N94: 0
B95: 82 | E95: -1006 | I95: 0.04166666667 | N95: 0
B96: 83 | E96: -1019 | I96: 0.04166666667 | N96: 0
B97: 84 | E97: -1032 | I97: 0.04166666667 | N97: 0
B98: 85 | E98: -1045 | I98: 0.04166666667 | N98: 0
B99: 86 | E99: -1058 | I99: 0.04166666667 | N99: 0
B100: 87 | E100: -1071 | I100: 0.04166666667 | N100: 0
B101: 88 | E101: -1084 | I101: 0.04166666667 | N101: 0
B102: 89 | E102: -1097 | I102: 0.04166666667 | N102: 0
B103: 90 | E103: -1110 | I103: 0.04166666667 | N103: 0
B104: 91 | E104: -1123 | I104: 0.04166666667 | N104: 0
B105: 92 | E105: -1136 | I105: 0.04166666667 | N105: 0
B106: 93 | E106: -1149 | I106: 0.04166666667 | N106: 0
B107: 94 | E107: -1162 | I107: 0.04166666667 | N107: 0
B108: 95 | E108: -1175 | I108: 0.04166666667 | N108: 0
B109: 96 | E109: -1188 | I109: 0.04166666667 | N109: 0
B110: 97 | E110: -1201 | I110: 0.04166666667 | N110: 0
B111: 98 | E111: -1214 | I111: 0.04166666667 | N111: 0
B112: 99 | E112: -1227 | I112: 0.04166666667 | N112: 0
B113: 100 | E113: -1240 | I113: 0.04166666667 | N113: 0

Sheet Free Practise
G2: xD Technologies GmbH Senckenberganlage 24 60325 Frankfurt / Main | J2: Circuit Layout
J3: Name: | M3: Comments:
J4: Length: | L4: =Data!C17 -> 3200
J5: Fuel / lap | L5: 13
B6: Event | D6: =Data!C8 -> 0 | E6: Drivers | F6: =Data!F13 -> Driver1 | J6: Fuel in | L6: 60
B7: Date | F7: =Data!F14 -> Driver2 | J7: Track Cond.
B8: Session | F8: =Data!F15 -> Driver3 | J8: Weather Cond.
F9: =Data!F16 -> Driver4
B10: Session duration [u:mm] | D10: 0.04166666667 | F10: =Data!F17 -> Driver5
B12: SESSION | P12: SETUP NR. | Q12: Tyre pressures | U12: Tyre temperatures | AG12: Brake temperatures
B13: Lap | C13: Laptime [m:ss.000] | D13: Driver | E13: Fuel | F13: Fuel IN | G13: Pit Stop | H13: Tyres | I13: Time left | J13: Comment | N13: Aantal KM | Q13: LF | R13: RF | S13: LR | T13: RR | U13: LF O | V13: LF M | W13: LF I | X13: RF 0 | Y13: RF M | Z13: RF I | AA13: LR O | AB13: LR M | AC13: LR I | AD13: RR 0 | AE13: RR M | AF13: RR I | AG13: LF | AH13: RF | AI13: LR | AJ13: RR
B14: 1 | E14: =L6-FuelLap -> 47 | I14: =$D$10-IF(C14=0,0,C14)-G14 -> 0.04166666667 | N14: =IF(C14>0,($L$4*B14)/1000,0) -> 0
B15: 2 | E15: =E14-FuelLap+F14 -> 34 | I15: =I14-C15-G15 -> 0.04166666667 | N15: =IF(C15>0,($L$4*B15)/1000,0) -> 0
B16: 3 | E16: 21 | I16: =I15-C16-G16 -> 0.04166666667 | N16: 0
B17: 4 | E17: 8 | I17: 0.04166666667 | N17: 0
B18: 5 | E18: -5 | I18: 0.04166666667 | N18: 0
B19: 6 | E19: -18 | I19: 0.04166666667 | N19: 0
B20: 7 | E20: -31 | I20: 0.04166666667 | N20: 0
B21: 8 | E21: -44 | I21: 0.04166666667 | N21: 0
B22: 9 | E22: -57 | I22: 0.04166666667 | N22: 0
B23: 10 | E23: -70 | I23: 0.04166666667 | N23: 0
B24: 11 | E24: -83 | I24: 0.04166666667 | N24: 0
B25: 12 | E25: -96 | I25: 0.04166666667 | N25: 0
B26: 13 | E26: -109 | I26: 0.04166666667 | N26: 0
B27: 14 | E27: -122 | I27: 0.04166666667 | N27: 0
B28: 15 | E28: -135 | I28: 0.04166666667 | N28: 0
B29: 16 | E29: -148 | I29: 0.04166666667 | N29: 0
B30: 17 | E30: -161 | I30: 0.04166666667 | N30: 0
B31: 18 | E31: -174 | I31: 0.04166666667 | N31: 0
B32: 19 | E32: -187 | I32: 0.04166666667 | N32: 0
B33: 20 | E33: -200 | I33: 0.04166666667 | N33: 0
B34: 21 | E34: -213 | I34: 0.04166666667 | N34: 0
B35: 22 | E35: -226 | I35: 0.04166666667 | N35: 0
B36: 23 | E36: -239 | I36: 0.04166666667 | N36: 0
B37: 24 | E37: -252 | I37: 0.04166666667 | N37: 0
B38: 25 | E38: -265 | I38: 0.04166666667 | N38: 0
B39: 26 | E39: -278 | I39: 0.04166666667 | N39: 0
B40: 27 | E40: -291 | I40: 0.04166666667 | N40: 0
B41: 28 | E41: -304 | I41: 0.04166666667 | N41: 0
B42: 29 | E42: -317 | I42: 0.04166666667 | N42: 0
B43: 30 | E43: -330 | I43: 0.04166666667 | N43: 0
B44: 31 | E44: -343 | I44: 0.04166666667 | N44: 0
B45: 32 | E45: -356 | I45: 0.04166666667 | N45: 0
B46: 33 | E46: -369 | I46: 0.04166666667 | N46: 0
B47: 34 | E47: =E46-FuelLap+F46 -> -382 | I47: 0.04166666667 | N47: 0
B48: 35 | E48: -395 | I48: 0.04166666667 | N48: 0
B49: 36 | E49: -408 | I49: 0.04166666667 | N49: 0
B50: 37 | E50: -421 | I50: 0.04166666667 | N50: 0
B51: 38 | E51: -434 | I51: 0.04166666667 | N51: 0
B52: 39 | E52: -447 | I52: 0.04166666667 | N52: 0
B53: 40 | E53: -460 | I53: 0.04166666667 | N53: 0
B54: 41 | E54: -473 | I54: 0.04166666667 | N54: 0
B55: 42 | E55: -486 | I55: 0.04166666667 | N55: 0
B56: 43 | E56: -499 | I56: 0.04166666667 | N56: 0
B57: 44 | E57: -512 | I57: 0.04166666667 | N57: 0
B58: 45 | E58: -525 | I58: 0.04166666667 | N58: 0
B59: 46 | E59: -538 | I59: 0.04166666667 | N59: 0
B60: 47 | E60: -551 | I60: 0.04166666667 | N60: 0
B61: 48 | E61: -564 | I61: 0.04166666667 | N61: 0
B62: 49 | E62: -577 | I62: 0.04166666667 | N62: 0
B63: 50 | E63: -590 | I63: 0.04166666667 | N63: 0
B64: 51 | E64: -603 | I64: 0.04166666667 | N64: 0
B65: 52 | E65: -616 | I65: 0.04166666667 | N65: 0
B66: 53 | E66: -629 | I66: 0.04166666667 | N66: 0
B67: 54 | E67: -642 | I67: 0.04166666667 | N67: 0
B68: 55 | E68: -655 | I68: 0.04166666667 | N68: 0
B69: 56 | E69: -668 | I69: 0.04166666667 | N69: 0
B70: 57 | E70: -681 | I70: 0.04166666667 | N70: 0
B71: 58 | E71: -694 | I71: 0.04166666667 | N71: 0
B72: 59 | E72: -707 | I72: 0.04166666667 | N72: 0
B73: 60 | E73: -720 | I73: 0.04166666667 | N73: 0
B74: 61 | E74: -733 | I74: 0.04166666667 | N74: 0
B75: 62 | E75: -746 | I75: 0.04166666667 | N75: 0
B76: 63 | E76: -759 | I76: 0.04166666667 | N76: 0
B77: 64 | E77: -772 | I77: 0.04166666667 | N77: 0
B78: 65 | E78: -785 | I78: 0.04166666667 | N78: 0
B79: 66 | E79: =E78-FuelLap+F78 -> -798 | I79: 0.04166666667 | N79: =IF(C79>0,($L$4*B79)/1000,0) -> 0
B80: 67 | E80: -811 | I80: =I79-C80-G80 -> 0.04166666667 | N80: 0
B81: 68 | E81: -824 | I81: 0.04166666667 | N81: 0
B82: 69 | E82: -837 | I82: 0.04166666667 | N82: 0
B83: 70 | E83: -850 | I83: 0.04166666667 | N83: 0
B84: 71 | E84: -863 | I84: 0.04166666667 | N84: 0
B85: 72 | E85: -876 | I85: 0.04166666667 | N85: 0
B86: 73 | E86: -889 | I86: 0.04166666667 | N86: 0
B87: 74 | E87: -902 | I87: 0.04166666667 | N87: 0
B88: 75 | E88: -915 | I88: 0.04166666667 | N88: 0
B89: 76 | E89: -928 | I89: 0.04166666667 | N89: 0
B90: 77 | E90: -941 | I90: 0.04166666667 | N90: 0
B91: 78 | E91: -954 | I91: 0.04166666667 | N91: 0
B92: 79 | E92: -967 | I92: 0.04166666667 | N92: 0
B93: 80 | E93: -980 | I93: 0.04166666667 | N93: 0
B94: 81 | E94: -993 | I94: 0.04166666667 | N94: 0
B95: 82 | E95: -1006 | I95: 0.04166666667 | N95: 0
B96: 83 | E96: -1019 | I96: 0.04166666667 | N96: 0
B97: 84 | E97: -1032 | I97: 0.04166666667 | N97: 0
B98: 85 | E98: -1045 | I98: 0.04166666667 | N98: 0
B99: 86 | E99: -1058 | I99: 0.04166666667 | N99: 0
B100: 87 | E100: -1071 | I100: 0.04166666667 | N100: 0
B101: 88 | E101: -1084 | I101: 0.04166666667 | N101: 0
B102: 89 | E102: -1097 | I102: 0.04166666667 | N102: 0
B103: 90 | E103: -1110 | I103: 0.04166666667 | N103: 0
B104: 91 | E104: -1123 | I104: 0.04166666667 | N104: 0
B105: 92 | E105: -1136 | I105: 0.04166666667 | N105: 0
B106: 93 | E106: -1149 | I106: 0.04166666667 | N106: 0
B107: 94 | E107: -1162 | I107: 0.04166666667 | N107: 0
B108: 95 | E108: -1175 | I108: 0.04166666667 | N108: 0
B109: 96 | E109: -1188 | I109: 0.04166666667 | N109: 0
B110: 97 | E110: -1201 | I110: 0.04166666667 | N110: 0
B111: 98 | E111: -1214 | I111: 0.04166666667 | N111: 0
B112: 99 | E112: -1227 | I112: 0.04166666667 | N112: 0
B113: 100 | E113: -1240 | I113: 0.04166666667 | N113: 0

Sheet Quali
G2: xD Technologies GmbH Senckenberganlage 24 60325 Frankfurt / Main | J2: Circuit Layout
J3: Name: | M3: Comments:
J4: Length: | L4: =Data!C17 -> 3200
J5: Fuel / lap | L5: 13
B6: Event | D6: =Data!C8 -> 0 | E6: Drivers | F6: =Data!F13 -> Driver1 | J6: Fuel in | L6: 60
B7: Date | F7: =Data!F14 -> Driver2 | J7: Track Cond.
B8: Session | F8: =Data!F15 -> Driver3 | J8: Weather Cond.
F9: =Data!F16 -> Driver4
B10: Session duration [u:mm] | D10: 0.04166666667 | F10: =Data!F17 -> Driver5
B12: SESSION | P12: SETUP NR. | Q12: Tyre pressures | U12: Tyre temperatures | AG12: Brake temperatures
B13: Lap | C13: Laptime [m:ss.000] | D13: Driver | E13: Fuel | F13: Fuel IN | G13: Pit Stop | H13: Tyres | I13: Time left | J13: Comment | N13: Aantal KM | Q13: LF | R13: RF | S13: LR | T13: RR | U13: LF O | V13: LF M | W13: LF I | X13: RF 0 | Y13: RF M | Z13: RF I | AA13: LR O | AB13: LR M | AC13: LR I | AD13: RR 0 | AE13: RR M | AF13: RR I | AG13: LF | AH13: RF | AI13: LR | AJ13: RR
B14: 1 | E14: =L6-FuelLap -> 47 | I14: =$D$10-IF(C14=0,0,C14)-G14 -> 0.04166666667 | N14: =IF(C14>0,($L$4*B14)/1000,0) -> 0
B15: 2 | E15: =E14-FuelLap+F14 -> 34 | I15: =I14-C15-G15 -> 0.04166666667 | N15: =IF(C15>0,($L$4*B15)/1000,0) -> 0
B16: 3 | E16: 21 | I16: =I15-C16-G16 -> 0.04166666667 | N16: 0
B17: 4 | E17: 8 | I17: 0.04166666667 | N17: 0
B18: 5 | E18: -5 | I18: 0.04166666667 | N18: 0
B19: 6 | E19: -18 | I19: 0.04166666667 | N19: 0
B20: 7 | E20: -31 | I20: 0.04166666667 | N20: 0
B21: 8 | E21: -44 | I21: 0.04166666667 | N21: 0
B22: 9 | E22: -57 | I22: 0.04166666667 | N22: 0
B23: 10 | E23: -70 | I23: 0.04166666667 | N23: 0
B24: 11 | E24: -83 | I24: 0.04166666667 | N24: 0
B25: 12 | E25: -96 | I25: 0.04166666667 | N25: 0
B26: 13 | E26: -109 | I26: 0.04166666667 | N26: 0
B27: 14 | E27: -122 | I27: 0.04166666667 | N27: 0
B28: 15 | E28: -135 | I28: 0.04166666667 | N28: 0
B29: 16 | E29: -148 | I29: 0.04166666667 | N29: 0
B30: 17 | E30: -161 | I30: 0.04166666667 | N30: 0
B31: 18 | E31: -174 | I31: 0.04166666667 | N31: 0
B32: 19 | E32: -187 | I32: 0.04166666667 | N32: 0
B33: 20 | E33: -200 | I33: 0.04166666667 | N33: 0
B34: 21 | E34: -213 | I34: 0.04166666667 | N34: 0
B35: 22 | E35: -226 | I35: 0.04166666667 | N35: 0
B36: 23 | E36: -239 | I36: 0.04166666667 | N36: 0
B37: 24 | E37: -252 | I37: 0.04166666667 | N37: 0
B38: 25 | E38: -265 | I38: 0.04166666667 | N38: 0
B39: 26 | E39: -278 | I39: 0.04166666667 | N39: 0
B40: 27 | E40: -291 | I40: 0.04166666667 | N40: 0
B41: 28 | E41: -304 | I41: 0.04166666667 | N41: 0
B42: 29 | E42: -317 | I42: 0.04166666667 | N42: 0
B43: 30 | E43: -330 | I43: 0.04166666667 | N43: 0
B44: 31 | E44: -343 | I44: 0.04166666667 | N44: 0
B45: 32 | E45: -356 | I45: 0.04166666667 | N45: 0
B46: 33 | E46: -369 | I46: 0.04166666667 | N46: 0
B47: 34 | E47: =E46-FuelLap+F46 -> -382 | I47: 0.04166666667 | N47: 0
B48: 35 | E48: -395 | I48: 0.04166666667 | N48: 0
B49: 36 | E49: -408 | I49: 0.04166666667 | N49: 0
B50: 37 | E50: -421 | I50: 0.04166666667 | N50: 0
B51: 38 | E51: -434 | I51: 0.04166666667 | N51: 0
B52: 39 | E52: -447 | I52: 0.04166666667 | N52: 0
B53: 40 | E53: -460 | I53: 0.04166666667 | N53: 0
B54: 41 | E54: -473 | I54: 0.04166666667 | N54: 0
B55: 42 | E55: -486 | I55: 0.04166666667 | N55: 0
B56: 43 | E56: -499 | I56: 0.04166666667 | N56: 0
B57: 44 | E57: -512 | I57: 0.04166666667 | N57: 0
B58: 45 | E58: -525 | I58: 0.04166666667 | N58: 0
B59: 46 | E59: -538 | I59: 0.04166666667 | N59: 0
B60: 47 | E60: -551 | I60: 0.04166666667 | N60: 0
B61: 48 | E61: -564 | I61: 0.04166666667 | N61: 0
B62: 49 | E62: -577 | I62: 0.04166666667 | N62: 0
B63: 50 | E63: -590 | I63: 0.04166666667 | N63: 0
B64: 51 | E64: -603 | I64: 0.04166666667 | N64: 0
B65: 52 | E65: -616 | I65: 0.04166666667 | N65: 0
B66: 53 | E66: -629 | I66: 0.04166666667 | N66: 0
B67: 54 | E67: -642 | I67: 0.04166666667 | N67: 0
B68: 55 | E68: -655 | I68: 0.04166666667 | N68: 0
B69: 56 | E69: -668 | I69: 0.04166666667 | N69: 0
B70: 57 | E70: -681 | I70: 0.04166666667 | N70: 0
B71: 58 | E71: -694 | I71: 0.04166666667 | N71: 0
B72: 59 | E72: -707 | I72: 0.04166666667 | N72: 0
B73: 60 | E73: -720 | I73: 0.04166666667 | N73: 0
B74: 61 | E74: -733 | I74: 0.04166666667 | N74: 0
B75: 62 | E75: -746 | I75: 0.04166666667 | N75: 0
B76: 63 | E76: -759 | I76: 0.04166666667 | N76: 0
B77: 64 | E77: -772 | I77: 0.04166666667 | N77: 0
B78: 65 | E78: -785 | I78: 0.04166666667 | N78: 0
B79: 66 | E79: =E78-FuelLap+F78 -> -798 | I79: 0.04166666667 | N79: =IF(C79>0,($L$4*B79)/1000,0) -> 0
B80: 67 | E80: -811 | I80: =I79-C80-G80 -> 0.04166666667 | N80: 0
B81: 68 | E81: -824 | I81: 0.04166666667 | N81: 0
B82: 69 | E82: -837 | I82: 0.04166666667 | N82: 0
B83: 70 | E83: -850 | I83: 0.04166666667 | N83: 0
B84: 71 | E84: -863 | I84: 0.04166666667 | N84: 0
B85: 72 | E85: -876 | I85: 0.04166666667 | N85: 0
B86: 73 | E86: -889 | I86: 0.04166666667 | N86: 0
B87: 74 | E87: -902 | I87: 0.04166666667 | N87: 0
B88: 75 | E88: -915 | I88: 0.04166666667 | N88: 0
B89: 76 | E89: -928 | I89: 0.04166666667 | N89: 0
B90: 77 | E90: -941 | I90: 0.04166666667 | N90: 0
B91: 78 | E91: -954 | I91: 0.04166666667 | N91: 0
B92: 79 | E92: -967 | I92: 0.04166666667 | N92: 0
B93: 80 | E93: -980 | I93: 0.04166666667 | N93: 0
B94: 81 | E94: -993 | I94: 0.04166666667 | N94: 0
B95: 82 | E95: -1006 | I95: 0.04166666667 | N95: 0
B96: 83 | E96: -1019 | I96: 0.04166666667 | N96: 0
B97: 84 | E97: -1032 | I97: 0.04166666667 | N97: 0
B98: 85 | E98: -1045 | I98: 0.04166666667 | N98: 0
B99: 86 | E99: -1058 | I99: 0.04166666667 | N99: 0
B100: 87 | E100: -1071 | I100: 0.04166666667 | N100: 0
B101: 88 | E101: -1084 | I101: 0.04166666667 | N101: 0
B102: 89 | E102: -1097 | I102: 0.04166666667 | N102: 0
B103: 90 | E103: -1110 | I103: 0.04166666667 | N103: 0
B104: 91 | E104: -1123 | I104: 0.04166666667 | N104: 0
B105: 92 | E105: -1136 | I105: 0.04166666667 | N105: 0
B106: 93 | E106: -1149 | I106: 0.04166666667 | N106: 0
B107: 94 | E107: -1162 | I107: 0.04166666667 | N107: 0
B108: 95 | E108: -1175 | I108: 0.04166666667 | N108: 0
B109: 96 | E109: -1188 | I109: 0.04166666667 | N109: 0
B110: 97 | E110: -1201 | I110: 0.04166666667 | N110: 0
B111: 98 | E111: -1214 | I111: 0.04166666667 | N111: 0
B112: 99 | E112: -1227 | I112: 0.04166666667 | N112: 0
B113: 100 | E113: -1240 | I113: 0.04166666667 | N113: 0

Sheet Session (1)
A1: Engineer | D1: =Data!F8 -> Engineer 1 | J1: Event | K1: =Data!C8 -> 0 | O1: Date
A2: Data Engineer | D2: =Data!F9 -> Data Eng. 1 | J2: Session | O2: Best Lap | Q2: =MIN($J$11:$J$512) -> 00:00:00
A3: #1 Mechanic | D3: =Data!F11 -> Mechanic 1 | J3: Short | K3: =Data!C16 -> 3200 | O3: Avg Lap | Q3: =AVERAGE($J$11:$J$512) -> 
A4: Driver ID 1 | D4: =Data!F13 -> Driver1 | J4: Regular | K4: =Data!C17 -> 3200
A5: Driver ID 2 | D5: =Data!F14 -> Driver2 | J5: Tot. S Laps | K5: =COUNTIF(K11:K512,"S") -> 0
A6: Driver ID 3 | D6: =Data!F15 -> Driver3 | J6: Tot. R Laps | K6: =COUNTIF(K11:K512,"R") -> 1
A7: Driver ID 4 | D7: =Data!F16 -> Driver4 | J7: Tot. Milage | K7: =(K5*K3)+(K6*K4)/1000 -> 3.2
A8: Driver ID 5 | D8: =Data!F17 -> Driver5
W9: FL
A10: Out | B10: RL | C10: OL | D10: ID | E10: Driver | F10: Th. Lap Cons | G10: Rest | H10: TOD | I10: Out / In | J10: Lap Time | K10: S / R | L10: Change | M10: Comment | O10: Fuel in | P10: th. Lap cons | Q10: F-TOTAL | R10: Lap Cons | S10: Rest | T10: In this Lap?
A11: 1 | B11: Grid | C11: Grid | E11: =IF(D11="Grid",Simulation!$B$2,IF(D11="WU",Simulation!$B$3,IF(D11=1,Simulation!$B$4,IF(D11=2,Simulation!$B$5,IF(D11=3,Simulation!$B$6,IF(D11=4,Simulation!$B$7,IF(D11=5,Simulation!$B$8))))))) -> FALSE | F11: =IF(D11="Grid",Simulation!$C$2,IF(D11="WU",Simulation!$C$3,IF(D11=1,Simulation!$C$4,IF(D11=2,Simulation!$C$5,IF(D11=3,Simulation!$C$6,IF(D11=4,Simulation!$C$7,IF(D11=5,Simulation!$C$8))))))) -> FALSE | K11: R | R11: =Q11 -> 0 | S11: =O11-R11 -> 0 | T11: =IF(S11<=F11,"Inlap",IF(S11<=2*F11,"Call: In this lap!",IF(S11<=3*F11,"Show in but don't call!",""))) -> Inlap | W11: =IF(J11=$Q$2,"FL","") -> FL
A12: =IF(O12>0,A11+1,A11) -> 1 | B12: 1 | C12: 1 | E12: =IF(D12="Grid",Simulation!$B$2,IF(D12="WU",Simulation!$B$3,IF(D12=1,Simulation!$B$4,IF(D12=2,Simulation!$B$5,IF(D12=3,Simulation!$B$6,IF(D12=4,Simulation!$B$7,IF(D12=5,Simulation!$B$8))))))) -> FALSE | F12: =IF(D12="Grid",Simulation!$C$2,IF(D12="WU",Simulation!$C$3,IF(D12=1,Simulation!$C$4,IF(D12=2,Simulation!$C$5,IF(D12=3,Simulation!$C$6,IF(D12=4,Simulation!$C$7,IF(D12=5,Simulation!$C$8))))))) -> FALSE | G12: =G11+O11-P11 -> 0 | K12: =IF(J12<>0,K11,"") ->  | P12: =IF(O12>0,Q12,Q12-Q11) -> 0 | R12: =IF(O12>0,Q12,Q12-Q11) -> 0 | S12: =IF(O12>0,O12+S11-Q12,S11-P12) -> 0 | T12: =IF(S12<=F12,"Inlap",IF(S12<=2*F12,"Call: In this lap!",IF(S12<=3*F12,"Show in but don't call!",""))) -> Inlap | W12: =IF(J12=$Q$2,"FL","") -> FL
A13: 1 | B13: 2 | C13: 2 | E13: =IF(D13="Grid",Simulation!$B$2,IF(D13="WU",Simulation!$B$3,IF(D13=1,Simulation!$B$4,IF(D13=2,Simulation!$B$5,IF(D13=3,Simulation!$B$6,IF(D13=4,Simulation!$B$7,IF(D13=5,Simulation!$B$8))))))) -> FALSE | F13: =IF(D13="Grid",Simulation!$C$2,IF(D13="WU",Simulation!$C$3,IF(D13=1,Simulation!$C$4,IF(D13=2,Simulation!$C$5,IF(D13=3,Simulation!$C$6,IF(D13=4,Simulation!$C$7,IF(D13=5,Simulation!$C$8))))))) -> FALSE | G13: 0 | K13: =IF(J13<>0,K12,"") ->  | P13: 0 | R13: 0 | S13: 0 | T13: Inlap | W13: FL
A14: 1 | B14: 3 | C14: =IF(O14="",C13+1,"1") -> 3 | E14: =IF(D14="Grid",Simulation!$B$2,IF(D14="WU",Simulation!$B$3,IF(D14=1,Simulation!$B$4,IF(D14=2,Simulation!$B$5,IF(D14=3,Simulation!$B$6,IF(D14=4,Simulation!$B$7,IF(D14=5,Simulation!$B$8))))))) -> FALSE | F14: =IF(D14="Grid",Simulation!$C$2,IF(D14="WU",Simulation!$C$3,IF(D14=1,Simulation!$C$4,IF(D14=2,Simulation!$C$5,IF(D14=3,Simulation!$C$6,IF(D14=4,Simulation!$C$7,IF(D14=5,Simulation!$C$8))))))) -> FALSE | G14: 0 | P14: 0 | R14: 0 | S14: 0 | T14: Inlap | W14: FL
A15: 1 | B15: 4 | C15: 4 | E15: =IF(D15="Grid",Simulation!$B$2,IF(D15="WU",Simulation!$B$3,IF(D15=1,Simulation!$B$4,IF(D15=2,Simulation!$B$5,IF(D15=3,Simulation!$B$6,IF(D15=4,Simulation!$B$7,IF(D15=5,Simulation!$B$8))))))) -> FALSE | F15: =IF(D15="Grid",Simulation!$C$2,IF(D15="WU",Simulation!$C$3,IF(D15=1,Simulation!$C$4,IF(D15=2,Simulation!$C$5,IF(D15=3,Simulation!$C$6,IF(D15=4,Simulation!$C$7,IF(D15=5,Simulation!$C$8))))))) -> FALSE | G15: 0 | P15: 0 | R15: 0 | S15: 0 | T15: Inlap | W15: FL
A16: 1 | B16: 5 | C16: 5 | E16: =IF(D16="Grid",Simulation!$B$2,IF(D16="WU",Simulation!$B$3,IF(D16=1,Simulation!$B$4,IF(D16=2,Simulation!$B$5,IF(D16=3,Simulation!$B$6,IF(D16=4,Simulation!$B$7,IF(D16=5,Simulation!$B$8))))))) -> FALSE | F16: =IF(D16="Grid",Simulation!$C$2,IF(D16="WU",Simulation!$C$3,IF(D16=1,Simulation!$C$4,IF(D16=2,Simulation!$C$5,IF(D16=3,Simulation!$C$6,IF(D16=4,Simulation!$C$7,IF(D16=5,Simulation!$C$8))))))) -> FALSE | G16: 0 | P16: 0 | R16: 0 | S16: 0 | T16: Inlap | W16: FL
A17: 1 | B17: 6 | C17: 6 | E17: =IF(D17="Grid",Simulation!$B$2,IF(D17="WU",Simulation!$B$3,IF(D17=1,Simulation!$B$4,IF(D17=2,Simulation!$B$5,IF(D17=3,Simulation!$B$6,IF(D17=4,Simulation!$B$7,IF(D17=5,Simulation!$B$8))))))) -> FALSE | F17: =IF(D17="Grid",Simulation!$C$2,IF(D17="WU",Simulation!$C$3,IF(D17=1,Simulation!$C$4,IF(D17=2,Simulation!$C$5,IF(D17=3,Simulation!$C$6,IF(D17=4,Simulation!$C$7,IF(D17=5,Simulation!$C$8))))))) -> FALSE | G17: 0 | P17: 0 | R17: 0 | S17: 0 | T17: Inlap | W17: FL
A18: 1 | B18: 7 | C18: 7 | E18: =IF(D18="Grid",Simulation!$B$2,IF(D18="WU",Simulation!$B$3,IF(D18=1,Simulation!$B$4,IF(D18=2,Simulation!$B$5,IF(D18=3,Simulation!$B$6,IF(D18=4,Simulation!$B$7,IF(D18=5,Simulation!$B$8))))))) -> FALSE | F18: =IF(D18="Grid",Simulation!$C$2,IF(D18="WU",Simulation!$C$3,IF(D18=1,Simulation!$C$4,IF(D18=2,Simulation!$C$5,IF(D18=3,Simulation!$C$6,IF(D18=4,Simulation!$C$7,IF(D18=5,Simulation!$C$8))))))) -> FALSE | G18: 0 | P18: 0 | R18: 0 | S18: 0 | T18: Inlap | W18: FL
A19: 1 | B19: 8 | C19: 8 | E19: =IF(D19="Grid",Simulation!$B$2,IF(D19="WU",Simulation!$B$3,IF(D19=1,Simulation!$B$4,IF(D19=2,Simulation!$B$5,IF(D19=3,Simulation!$B$6,IF(D19=4,Simulation!$B$7,IF(D19=5,Simulation!$B$8))))))) -> FALSE | F19: =IF(D19="Grid",Simulation!$C$2,IF(D19="WU",Simulation!$C$3,IF(D19=1,Simulation!$C$4,IF(D19=2,Simulation!$C$5,IF(D19=3,Simulation!$C$6,IF(D19=4,Simulation!$C$7,IF(D19=5,Simulation!$C$8))))))) -> FALSE | G19: 0 | P19: 0 | R19: 0 | S19: 0 | T19: Inlap | W19: FL
A20: 1 | B20: 9 | C20: 9 | E20: =IF(D20="Grid",Simulation!$B$2,IF(D20="WU",Simulation!$B$3,IF(D20=1,Simulation!$B$4,IF(D20=2,Simulation!$B$5,IF(D20=3,Simulation!$B$6,IF(D20=4,Simulation!$B$7,IF(D20=5,Simulation!$B$8))))))) -> FALSE | F20: =IF(D20="Grid",Simulation!$C$2,IF(D20="WU",Simulation!$C$3,IF(D20=1,Simulation!$C$4,IF(D20=2,Simulation!$C$5,IF(D20=3,Simulation!$C$6,IF(D20=4,Simulation!$C$7,IF(D20=5,Simulation!$C$8))))))) -> FALSE | G20: 0 | P20: 0 | R20: 0 | S20: 0 | T20: Inlap | W20: FL
A21: 1 | B21: 10 | C21: 10 | E21: =IF(D21="Grid",Simulation!$B$2,IF(D21="WU",Simulation!$B$3,IF(D21=1,Simulation!$B$4,IF(D21=2,Simulation!$B$5,IF(D21=3,Simulation!$B$6,IF(D21=4,Simulation!$B$7,IF(D21=5,Simulation!$B$8))))))) -> FALSE | F21: =IF(D21="Grid",Simulation!$C$2,IF(D21="WU",Simulation!$C$3,IF(D21=1,Simulation!$C$4,IF(D21=2,Simulation!$C$5,IF(D21=3,Simulation!$C$6,IF(D21=4,Simulation!$C$7,IF(D21=5,Simulation!$C$8))))))) -> FALSE | G21: 0 | P21: 0 | R21: 0 | S21: 0 | T21: Inlap | W21: FL
A22: 1 | B22: 11 | C22: 11 | E22: =IF(D22="Grid",Simulation!$B$2,IF(D22="WU",Simulation!$B$3,IF(D22=1,Simulation!$B$4,IF(D22=2,Simulation!$B$5,IF(D22=3,Simulation!$B$6,IF(D22=4,Simulation!$B$7,IF(D22=5,Simulation!$B$8))))))) -> FALSE | F22: =IF(D22="Grid",Simulation!$C$2,IF(D22="WU",Simulation!$C$3,IF(D22=1,Simulation!$C$4,IF(D22=2,Simulation!$C$5,IF(D22=3,Simulation!$C$6,IF(D22=4,Simulation!$C$7,IF(D22=5,Simulation!$C$8))))))) -> FALSE | G22: 0 | P22: 0 | R22: 0 | S22: 0 | T22: Inlap | W22: FL
A23: 1 | B23: 12 | C23: 12 | E23: =IF(D23="Grid",Simulation!$B$2,IF(D23="WU",Simulation!$B$3,IF(D23=1,Simulation!$B$4,IF(D23=2,Simulation!$B$5,IF(D23=3,Simulation!$B$6,IF(D23=4,Simulation!$B$7,IF(D23=5,Simulation!$B$8))))))) -> FALSE | F23: =IF(D23="Grid",Simulation!$C$2,IF(D23="WU",Simulation!$C$3,IF(D23=1,Simulation!$C$4,IF(D23=2,Simulation!$C$5,IF(D23=3,Simulation!$C$6,IF(D23=4,Simulation!$C$7,IF(D23=5,Simulation!$C$8))))))) -> FALSE | G23: 0 | P23: 0 | R23: 0 | S23: 0 | T23: Inlap | W23: FL
A24: 1 | B24: 13 | C24: 13 | E24: =IF(D24="Grid",Simulation!$B$2,IF(D24="WU",Simulation!$B$3,IF(D24=1,Simulation!$B$4,IF(D24=2,Simulation!$B$5,IF(D24=3,Simulation!$B$6,IF(D24=4,Simulation!$B$7,IF(D24=5,Simulation!$B$8))))))) -> FALSE | F24: =IF(D24="Grid",Simulation!$C$2,IF(D24="WU",Simulation!$C$3,IF(D24=1,Simulation!$C$4,IF(D24=2,Simulation!$C$5,IF(D24=3,Simulation!$C$6,IF(D24=4,Simulation!$C$7,IF(D24=5,Simulation!$C$8))))))) -> FALSE | G24: 0 | P24: 0 | R24: 0 | S24: 0 | T24: Inlap | W24: FL
A25: 1 | B25: 14 | C25: 14 | E25: =IF(D25="Grid",Simulation!$B$2,IF(D25="WU",Simulation!$B$3,IF(D25=1,Simulation!$B$4,IF(D25=2,Simulation!$B$5,IF(D25=3,Simulation!$B$6,IF(D25=4,Simulation!$B$7,IF(D25=5,Simulation!$B$8))))))) -> FALSE | F25: =IF(D25="Grid",Simulation!$C$2,IF(D25="WU",Simulation!$C$3,IF(D25=1,Simulation!$C$4,IF(D25=2,Simulation!$C$5,IF(D25=3,Simulation!$C$6,IF(D25=4,Simulation!$C$7,IF(D25=5,Simulation!$C$8))))))) -> FALSE | G25: 0 | P25: 0 | R25: 0 | S25: 0 | T25: Inlap | W25: FL
A26: 1 | B26: 15 | C26: 15 | E26: =IF(D26="Grid",Simulation!$B$2,IF(D26="WU",Simulation!$B$3,IF(D26=1,Simulation!$B$4,IF(D26=2,Simulation!$B$5,IF(D26=3,Simulation!$B$6,IF(D26=4,Simulation!$B$7,IF(D26=5,Simulation!$B$8))))))) -> FALSE | F26: =IF(D26="Grid",Simulation!$C$2,IF(D26="WU",Simulation!$C$3,IF(D26=1,Simulation!$C$4,IF(D26=2,Simulation!$C$5,IF(D26=3,Simulation!$C$6,IF(D26=4,Simulation!$C$7,IF(D26=5,Simulation!$C$8))))))) -> FALSE | G26: 0 | P26: 0 | R26: 0 | S26: 0 | T26: Inlap | W26: FL
A27: 1 | B27: 16 | C27: 16 | E27: =IF(D27="Grid",Simulation!$B$2,IF(D27="WU",Simulation!$B$3,IF(D27=1,Simulation!$B$4,IF(D27=2,Simulation!$B$5,IF(D27=3,Simulation!$B$6,IF(D27=4,Simulation!$B$7,IF(D27=5,Simulation!$B$8))))))) -> FALSE | F27: =IF(D27="Grid",Simulation!$C$2,IF(D27="WU",Simulation!$C$3,IF(D27=1,Simulation!$C$4,IF(D27=2,Simulation!$C$5,IF(D27=3,Simulation!$C$6,IF(D27=4,Simulation!$C$7,IF(D27=5,Simulation!$C$8))))))) -> FALSE | G27: 0 | P27: 0 | R27: 0 | S27: 0 | T27: Inlap | W27: FL
A28: 1 | B28: 17 | C28: 17 | E28: =IF(D28="Grid",Simulation!$B$2,IF(D28="WU",Simulation!$B$3,IF(D28=1,Simulation!$B$4,IF(D28=2,Simulation!$B$5,IF(D28=3,Simulation!$B$6,IF(D28=4,Simulation!$B$7,IF(D28=5,Simulation!$B$8))))))) -> FALSE | F28: =IF(D28="Grid",Simulation!$C$2,IF(D28="WU",Simulation!$C$3,IF(D28=1,Simulation!$C$4,IF(D28=2,Simulation!$C$5,IF(D28=3,Simulation!$C$6,IF(D28=4,Simulation!$C$7,IF(D28=5,Simulation!$C$8))))))) -> FALSE | G28: 0 | P28: 0 | R28: 0 | S28: 0 | T28: Inlap | W28: FL
A29: 1 | B29: 18 | C29: 18 | E29: =IF(D29="Grid",Simulation!$B$2,IF(D29="WU",Simulation!$B$3,IF(D29=1,Simulation!$B$4,IF(D29=2,Simulation!$B$5,IF(D29=3,Simulation!$B$6,IF(D29=4,Simulation!$B$7,IF(D29=5,Simulation!$B$8))))))) -> FALSE | F29: =IF(D29="Grid",Simulation!$C$2,IF(D29="WU",Simulation!$C$3,IF(D29=1,Simulation!$C$4,IF(D29=2,Simulation!$C$5,IF(D29=3,Simulation!$C$6,IF(D29=4,Simulation!$C$7,IF(D29=5,Simulation!$C$8))))))) -> FALSE | G29: 0 | P29: 0 | R29: 0 | S29: 0 | T29: Inlap | W29: FL
A30: 1 | B30: 19 | C30: 19 | E30: =IF(D30="Grid",Simulation!$B$2,IF(D30="WU",Simulation!$B$3,IF(D30=1,Simulation!$B$4,IF(D30=2,Simulation!$B$5,IF(D30=3,Simulation!$B$6,IF(D30=4,Simulation!$B$7,IF(D30=5,Simulation!$B$8))))))) -> FALSE | F30: =IF(D30="Grid",Simulation!$C$2,IF(D30="WU",Simulation!$C$3,IF(D30=1,Simulation!$C$4,IF(D30=2,Simulation!$C$5,IF(D30=3,Simulation!$C$6,IF(D30=4,Simulation!$C$7,IF(D30=5,Simulation!$C$8))))))) -> FALSE | G30: 0 | P30: 0 | R30: 0 | S30: 0 | T30: Inlap | W30: FL
A31: 1 | B31: 20 | C31: 20 | E31: =IF(D31="Grid",Simulation!$B$2,IF(D31="WU",Simulation!$B$3,IF(D31=1,Simulation!$B$4,IF(D31=2,Simulation!$B$5,IF(D31=3,Simulation!$B$6,IF(D31=4,Simulation!$B$7,IF(D31=5,Simulation!$B$8))))))) -> FALSE | F31: =IF(D31="Grid",Simulation!$C$2,IF(D31="WU",Simulation!$C$3,IF(D31=1,Simulation!$C$4,IF(D31=2,Simulation!$C$5,IF(D31=3,Simulation!$C$6,IF(D31=4,Simulation!$C$7,IF(D31=5,Simulation!$C$8))))))) -> FALSE | G31: 0 | P31: 0 | R31: 0 | S31: 0 | T31: Inlap | W31: FL
A32: 1 | B32: 21 | C32: 21 | E32: =IF(D32="Grid",Simulation!$B$2,IF(D32="WU",Simulation!$B$3,IF(D32=1,Simulation!$B$4,IF(D32=2,Simulation!$B$5,IF(D32=3,Simulation!$B$6,IF(D32=4,Simulation!$B$7,IF(D32=5,Simulation!$B$8))))))) -> FALSE | F32: =IF(D32="Grid",Simulation!$C$2,IF(D32="WU",Simulation!$C$3,IF(D32=1,Simulation!$C$4,IF(D32=2,Simulation!$C$5,IF(D32=3,Simulation!$C$6,IF(D32=4,Simulation!$C$7,IF(D32=5,Simulation!$C$8))))))) -> FALSE | G32: 0 | P32: 0 | R32: 0 | S32: 0 | T32: Inlap | W32: FL
A33: 1 | B33: 22 | C33: 22 | E33: =IF(D33="Grid",Simulation!$B$2,IF(D33="WU",Simulation!$B$3,IF(D33=1,Simulation!$B$4,IF(D33=2,Simulation!$B$5,IF(D33=3,Simulation!$B$6,IF(D33=4,Simulation!$B$7,IF(D33=5,Simulation!$B$8))))))) -> FALSE | F33: =IF(D33="Grid",Simulation!$C$2,IF(D33="WU",Simulation!$C$3,IF(D33=1,Simulation!$C$4,IF(D33=2,Simulation!$C$5,IF(D33=3,Simulation!$C$6,IF(D33=4,Simulation!$C$7,IF(D33=5,Simulation!$C$8))))))) -> FALSE | G33: 0 | P33: 0 | R33: 0 | S33: 0 | T33: Inlap | W33: FL
A34: 1 | B34: 23 | C34: 23 | E34: =IF(D34="Grid",Simulation!$B$2,IF(D34="WU",Simulation!$B$3,IF(D34=1,Simulation!$B$4,IF(D34=2,Simulation!$B$5,IF(D34=3,Simulation!$B$6,IF(D34=4,Simulation!$B$7,IF(D34=5,Simulation!$B$8))))))) -> FALSE | F34: =IF(D34="Grid",Simulation!$C$2,IF(D34="WU",Simulation!$C$3,IF(D34=1,Simulation!$C$4,IF(D34=2,Simulation!$C$5,IF(D34=3,Simulation!$C$6,IF(D34=4,Simulation!$C$7,IF(D34=5,Simulation!$C$8))))))) -> FALSE | G34: 0 | P34: 0 | R34: 0 | S34: 0 | T34: Inlap | W34: FL
A35: 1 | B35: 24 | C35: 24 | E35: =IF(D35="Grid",Simulation!$B$2,IF(D35="WU",Simulation!$B$3,IF(D35=1,Simulation!$B$4,IF(D35=2,Simulation!$B$5,IF(D35=3,Simulation!$B$6,IF(D35=4,Simulation!$B$7,IF(D35=5,Simulation!$B$8))))))) -> FALSE | F35: =IF(D35="Grid",Simulation!$C$2,IF(D35="WU",Simulation!$C$3,IF(D35=1,Simulation!$C$4,IF(D35=2,Simulation!$C$5,IF(D35=3,Simulation!$C$6,IF(D35=4,Simulation!$C$7,IF(D35=5,Simulation!$C$8))))))) -> FALSE | G35: 0 | P35: 0 | R35: 0 | S35: 0 | T35: Inlap | W35: FL
A36: 1 | B36: 25 | C36: 25 | E36: =IF(D36="Grid",Simulation!$B$2,IF(D36="WU",Simulation!$B$3,IF(D36=1,Simulation!$B$4,IF(D36=2,Simulation!$B$5,IF(D36=3,Simulation!$B$6,IF(D36=4,Simulation!$B$7,IF(D36=5,Simulation!$B$8))))))) -> FALSE | F36: =IF(D36="Grid",Simulation!$C$2,IF(D36="WU",Simulation!$C$3,IF(D36=1,Simulation!$C$4,IF(D36=2,Simulation!$C$5,IF(D36=3,Simulation!$C$6,IF(D36=4,Simulation!$C$7,IF(D36=5,Simulation!$C$8))))))) -> FALSE | G36: 0 | P36: 0 | R36: 0 | S36: 0 | T36: Inlap | W36: FL
A37: 1 | B37: 26 | C37: 26 | E37: =IF(D37="Grid",Simulation!$B$2,IF(D37="WU",Simulation!$B$3,IF(D37=1,Simulation!$B$4,IF(D37=2,Simulation!$B$5,IF(D37=3,Simulation!$B$6,IF(D37=4,Simulation!$B$7,IF(D37=5,Simulation!$B$8))))))) -> FALSE | F37: =IF(D37="Grid",Simulation!$C$2,IF(D37="WU",Simulation!$C$3,IF(D37=1,Simulation!$C$4,IF(D37=2,Simulation!$C$5,IF(D37=3,Simulation!$C$6,IF(D37=4,Simulation!$C$7,IF(D37=5,Simulation!$C$8))))))) -> FALSE | G37: 0 | P37: 0 | R37: 0 | S37: 0 | T37: Inlap | W37: FL
A38: 1 | B38: 27 | C38: 27 | E38: =IF(D38="Grid",Simulation!$B$2,IF(D38="WU",Simulation!$B$3,IF(D38=1,Simulation!$B$4,IF(D38=2,Simulation!$B$5,IF(D38=3,Simulation!$B$6,IF(D38=4,Simulation!$B$7,IF(D38=5,Simulation!$B$8))))))) -> FALSE | F38: =IF(D38="Grid",Simulation!$C$2,IF(D38="WU",Simulation!$C$3,IF(D38=1,Simulation!$C$4,IF(D38=2,Simulation!$C$5,IF(D38=3,Simulation!$C$6,IF(D38=4,Simulation!$C$7,IF(D38=5,Simulation!$C$8))))))) -> FALSE | G38: 0 | P38: 0 | R38: 0 | S38: 0 | T38: Inlap | W38: FL
A39: 1 | B39: 28 | C39: 28 | E39: =IF(D39="Grid",Simulation!$B$2,IF(D39="WU",Simulation!$B$3,IF(D39=1,Simulation!$B$4,IF(D39=2,Simulation!$B$5,IF(D39=3,Simulation!$B$6,IF(D39=4,Simulation!$B$7,IF(D39=5,Simulation!$B$8))))))) -> FALSE | F39: =IF(D39="Grid",Simulation!$C$2,IF(D39="WU",Simulation!$C$3,IF(D39=1,Simulation!$C$4,IF(D39=2,Simulation!$C$5,IF(D39=3,Simulation!$C$6,IF(D39=4,Simulation!$C$7,IF(D39=5,Simulation!$C$8))))))) -> FALSE | G39: 0 | P39: 0 | R39: 0 | S39: 0 | T39: Inlap | W39: FL
A40: 1 | B40: 29 | C40: 29 | E40: =IF(D40="Grid",Simulation!$B$2,IF(D40="WU",Simulation!$B$3,IF(D40=1,Simulation!$B$4,IF(D40=2,Simulation!$B$5,IF(D40=3,Simulation!$B$6,IF(D40=4,Simulation!$B$7,IF(D40=5,Simulation!$B$8))))))) -> FALSE | F40: =IF(D40="Grid",Simulation!$C$2,IF(D40="WU",Simulation!$C$3,IF(D40=1,Simulation!$C$4,IF(D40=2,Simulation!$C$5,IF(D40=3,Simulation!$C$6,IF(D40=4,Simulation!$C$7,IF(D40=5,Simulation!$C$8))))))) -> FALSE | G40: 0 | P40: 0 | R40: 0 | S40: 0 | T40: Inlap | W40: FL
A41: 1 | B41: 30 | C41: 30 | E41: =IF(D41="Grid",Simulation!$B$2,IF(D41="WU",Simulation!$B$3,IF(D41=1,Simulation!$B$4,IF(D41=2,Simulation!$B$5,IF(D41=3,Simulation!$B$6,IF(D41=4,Simulation!$B$7,IF(D41=5,Simulation!$B$8))))))) -> FALSE | F41: =IF(D41="Grid",Simulation!$C$2,IF(D41="WU",Simulation!$C$3,IF(D41=1,Simulation!$C$4,IF(D41=2,Simulation!$C$5,IF(D41=3,Simulation!$C$6,IF(D41=4,Simulation!$C$7,IF(D41=5,Simulation!$C$8))))))) -> FALSE | G41: 0 | P41: 0 | R41: 0 | S41: 0 | T41: Inlap | W41: FL
A42: 1 | B42: 31 | C42: 31 | E42: =IF(D42="Grid",Simulation!$B$2,IF(D42="WU",Simulation!$B$3,IF(D42=1,Simulation!$B$4,IF(D42=2,Simulation!$B$5,IF(D42=3,Simulation!$B$6,IF(D42=4,Simulation!$B$7,IF(D42=5,Simulation!$B$8))))))) -> FALSE | F42: =IF(D42="Grid",Simulation!$C$2,IF(D42="WU",Simulation!$C$3,IF(D42=1,Simulation!$C$4,IF(D42=2,Simulation!$C$5,IF(D42=3,Simulation!$C$6,IF(D42=4,Simulation!$C$7,IF(D42=5,Simulation!$C$8))))))) -> FALSE | G42: 0 | P42: 0 | R42: 0 | S42: 0 | T42: Inlap | W42: FL
A43: 1 | B43: 32 | C43: 32 | E43: =IF(D43="Grid",Simulation!$B$2,IF(D43="WU",Simulation!$B$3,IF(D43=1,Simulation!$B$4,IF(D43=2,Simulation!$B$5,IF(D43=3,Simulation!$B$6,IF(D43=4,Simulation!$B$7,IF(D43=5,Simulation!$B$8))))))) -> FALSE | F43: =IF(D43="Grid",Simulation!$C$2,IF(D43="WU",Simulation!$C$3,IF(D43=1,Simulation!$C$4,IF(D43=2,Simulation!$C$5,IF(D43=3,Simulation!$C$6,IF(D43=4,Simulation!$C$7,IF(D43=5,Simulation!$C$8))))))) -> FALSE | G43: 0 | P43: 0 | R43: 0 | S43: 0 | T43: Inlap | W43: FL
A44: 1 | B44: 33 | C44: 33 | E44: =IF(D44="Grid",Simulation!$B$2,IF(D44="WU",Simulation!$B$3,IF(D44=1,Simulation!$B$4,IF(D44=2,Simulation!$B$5,IF(D44=3,Simulation!$B$6,IF(D44=4,Simulation!$B$7,IF(D44=5,Simulation!$B$8))))))) -> FALSE | F44: =IF(D44="Grid",Simulation!$C$2,IF(D44="WU",Simulation!$C$3,IF(D44=1,Simulation!$C$4,IF(D44=2,Simulation!$C$5,IF(D44=3,Simulation!$C$6,IF(D44=4,Simulation!$C$7,IF(D44=5,Simulation!$C$8))))))) -> FALSE | G44: 0 | P44: 0 | R44: 0 | S44: 0 | T44: Inlap | W44: FL
A45: 1 | B45: 34 | C45: 34 | E45: =IF(D45="Grid",Simulation!$B$2,IF(D45="WU",Simulation!$B$3,IF(D45=1,Simulation!$B$4,IF(D45=2,Simulation!$B$5,IF(D45=3,Simulation!$B$6,IF(D45=4,Simulation!$B$7,IF(D45=5,Simulation!$B$8))))))) -> FALSE | F45: =IF(D45="Grid",Simulation!$C$2,IF(D45="WU",Simulation!$C$3,IF(D45=1,Simulation!$C$4,IF(D45=2,Simulation!$C$5,IF(D45=3,Simulation!$C$6,IF(D45=4,Simulation!$C$7,IF(D45=5,Simulation!$C$8))))))) -> FALSE | G45: 0 | P45: =IF(O45>0,Q45,Q45-Q44) -> 0 | R45: =IF(O45>0,Q45,Q45-Q44) -> 0 | S45: =IF(O45>0,O45+S44-Q45,S44-P45) -> 0 | T45: Inlap | W45: FL
A46: 1 | B46: 35 | C46: 35 | E46: =IF(D46="Grid",Simulation!$B$2,IF(D46="WU",Simulation!$B$3,IF(D46=1,Simulation!$B$4,IF(D46=2,Simulation!$B$5,IF(D46=3,Simulation!$B$6,IF(D46=4,Simulation!$B$7,IF(D46=5,Simulation!$B$8))))))) -> FALSE | F46: =IF(D46="Grid",Simulation!$C$2,IF(D46="WU",Simulation!$C$3,IF(D46=1,Simulation!$C$4,IF(D46=2,Simulation!$C$5,IF(D46=3,Simulation!$C$6,IF(D46=4,Simulation!$C$7,IF(D46=5,Simulation!$C$8))))))) -> FALSE | G46: 0 | P46: =IF(O46>0,Q46,Q46-Q45) -> 0 | R46: =IF(O46>0,Q46,Q46-Q45) -> 0 | S46: 0 | T46: Inlap | W46: FL
A47: 1 | B47: 36 | C47: 36 | E47: =IF(D47="Grid",Simulation!$B$2,IF(D47="WU",Simulation!$B$3,IF(D47=1,Simulation!$B$4,IF(D47=2,Simulation!$B$5,IF(D47=3,Simulation!$B$6,IF(D47=4,Simulation!$B$7,IF(D47=5,Simulation!$B$8))))))) -> FALSE | F47: =IF(D47="Grid",Simulation!$C$2,IF(D47="WU",Simulation!$C$3,IF(D47=1,Simulation!$C$4,IF(D47=2,Simulation!$C$5,IF(D47=3,Simulation!$C$6,IF(D47=4,Simulation!$C$7,IF(D47=5,Simulation!$C$8))))))) -> FALSE | G47: 0 | P47: 0 | R47: 0 | S47: 0 | T47: Inlap | W47: FL
A48: 1 | B48: 37 | C48: 37 | E48: =IF(D48="Grid",Simulation!$B$2,IF(D48="WU",Simulation!$B$3,IF(D48=1,Simulation!$B$4,IF(D48=2,Simulation!$B$5,IF(D48=3,Simulation!$B$6,IF(D48=4,Simulation!$B$7,IF(D48=5,Simulation!$B$8))))))) -> FALSE | F48: =IF(D48="Grid",Simulation!$C$2,IF(D48="WU",Simulation!$C$3,IF(D48=1,Simulation!$C$4,IF(D48=2,Simulation!$C$5,IF(D48=3,Simulation!$C$6,IF(D48=4,Simulation!$C$7,IF(D48=5,Simulation!$C$8))))))) -> FALSE | G48: 0 | P48: 0 | R48: 0 | S48: 0 | T48: Inlap | W48: FL
A49: 1 | B49: 38 | C49: 38 | E49: =IF(D49="Grid",Simulation!$B$2,IF(D49="WU",Simulation!$B$3,IF(D49=1,Simulation!$B$4,IF(D49=2,Simulation!$B$5,IF(D49=3,Simulation!$B$6,IF(D49=4,Simulation!$B$7,IF(D49=5,Simulation!$B$8))))))) -> FALSE | F49: =IF(D49="Grid",Simulation!$C$2,IF(D49="WU",Simulation!$C$3,IF(D49=1,Simulation!$C$4,IF(D49=2,Simulation!$C$5,IF(D49=3,Simulation!$C$6,IF(D49=4,Simulation!$C$7,IF(D49=5,Simulation!$C$8))))))) -> FALSE | G49: 0 | P49: 0 | R49: 0 | S49: 0 | T49: Inlap | W49: FL
A50: 1 | B50: 39 | C50: 39 | E50: =IF(D50="Grid",Simulation!$B$2,IF(D50="WU",Simulation!$B$3,IF(D50=1,Simulation!$B$4,IF(D50=2,Simulation!$B$5,IF(D50=3,Simulation!$B$6,IF(D50=4,Simulation!$B$7,IF(D50=5,Simulation!$B$8))))))) -> FALSE | F50: =IF(D50="Grid",Simulation!$C$2,IF(D50="WU",Simulation!$C$3,IF(D50=1,Simulation!$C$4,IF(D50=2,Simulation!$C$5,IF(D50=3,Simulation!$C$6,IF(D50=4,Simulation!$C$7,IF(D50=5,Simulation!$C$8))))))) -> FALSE | G50: 0 | P50: 0 | R50: 0 | S50: 0 | T50: Inlap | W50: FL
A51: 1 | B51: 40 | C51: 40 | E51: =IF(D51="Grid",Simulation!$B$2,IF(D51="WU",Simulation!$B$3,IF(D51=1,Simulation!$B$4,IF(D51=2,Simulation!$B$5,IF(D51=3,Simulation!$B$6,IF(D51=4,Simulation!$B$7,IF(D51=5,Simulation!$B$8))))))) -> FALSE | F51: =IF(D51="Grid",Simulation!$C$2,IF(D51="WU",Simulation!$C$3,IF(D51=1,Simulation!$C$4,IF(D51=2,Simulation!$C$5,IF(D51=3,Simulation!$C$6,IF(D51=4,Simulation!$C$7,IF(D51=5,Simulation!$C$8))))))) -> FALSE | G51: 0 | P51: 0 | R51: 0 | S51: 0 | T51: Inlap | W51: FL
A52: 1 | B52: 41 | C52: 41 | E52: =IF(D52="Grid",Simulation!$B$2,IF(D52="WU",Simulation!$B$3,IF(D52=1,Simulation!$B$4,IF(D52=2,Simulation!$B$5,IF(D52=3,Simulation!$B$6,IF(D52=4,Simulation!$B$7,IF(D52=5,Simulation!$B$8))))))) -> FALSE | F52: =IF(D52="Grid",Simulation!$C$2,IF(D52="WU",Simulation!$C$3,IF(D52=1,Simulation!$C$4,IF(D52=2,Simulation!$C$5,IF(D52=3,Simulation!$C$6,IF(D52=4,Simulation!$C$7,IF(D52=5,Simulation!$C$8))))))) -> FALSE | G52: 0 | P52: 0 | R52: 0 | S52: 0 | T52: Inlap | W52: FL
A53: 1 | B53: 42 | C53: 42 | E53: =IF(D53="Grid",Simulation!$B$2,IF(D53="WU",Simulation!$B$3,IF(D53=1,Simulation!$B$4,IF(D53=2,Simulation!$B$5,IF(D53=3,Simulation!$B$6,IF(D53=4,Simulation!$B$7,IF(D53=5,Simulation!$B$8))))))) -> FALSE | F53: =IF(D53="Grid",Simulation!$C$2,IF(D53="WU",Simulation!$C$3,IF(D53=1,Simulation!$C$4,IF(D53=2,Simulation!$C$5,IF(D53=3,Simulation!$C$6,IF(D53=4,Simulation!$C$7,IF(D53=5,Simulation!$C$8))))))) -> FALSE | G53: 0 | P53: 0 | R53: =IF(O53>0,Q53,Q53-Q52) -> 0 | S53: 0 | T53: Inlap | W53: FL
A54: 1 | B54: 43 | C54: 43 | E54: =IF(D54="Grid",Simulation!$B$2,IF(D54="WU",Simulation!$B$3,IF(D54=1,Simulation!$B$4,IF(D54=2,Simulation!$B$5,IF(D54=3,Simulation!$B$6,IF(D54=4,Simulation!$B$7,IF(D54=5,Simulation!$B$8))))))) -> FALSE | F54: =IF(D54="Grid",Simulation!$C$2,IF(D54="WU",Simulation!$C$3,IF(D54=1,Simulation!$C$4,IF(D54=2,Simulation!$C$5,IF(D54=3,Simulation!$C$6,IF(D54=4,Simulation!$C$7,IF(D54=5,Simulation!$C$8))))))) -> FALSE | G54: 0 | P54: 0 | R54: 0 | S54: 0 | T54: Inlap | W54: FL
A55: 1 | B55: 44 | C55: 44 | E55: =IF(D55="Grid",Simulation!$B$2,IF(D55="WU",Simulation!$B$3,IF(D55=1,Simulation!$B$4,IF(D55=2,Simulation!$B$5,IF(D55=3,Simulation!$B$6,IF(D55=4,Simulation!$B$7,IF(D55=5,Simulation!$B$8))))))) -> FALSE | F55: =IF(D55="Grid",Simulation!$C$2,IF(D55="WU",Simulation!$C$3,IF(D55=1,Simulation!$C$4,IF(D55=2,Simulation!$C$5,IF(D55=3,Simulation!$C$6,IF(D55=4,Simulation!$C$7,IF(D55=5,Simulation!$C$8))))))) -> FALSE | G55: 0 | P55: 0 | R55: 0 | S55: 0 | T55: Inlap | W55: FL
A56: 1 | B56: 45 | C56: 45 | E56: =IF(D56="Grid",Simulation!$B$2,IF(D56="WU",Simulation!$B$3,IF(D56=1,Simulation!$B$4,IF(D56=2,Simulation!$B$5,IF(D56=3,Simulation!$B$6,IF(D56=4,Simulation!$B$7,IF(D56=5,Simulation!$B$8))))))) -> FALSE | F56: =IF(D56="Grid",Simulation!$C$2,IF(D56="WU",Simulation!$C$3,IF(D56=1,Simulation!$C$4,IF(D56=2,Simulation!$C$5,IF(D56=3,Simulation!$C$6,IF(D56=4,Simulation!$C$7,IF(D56=5,Simulation!$C$8))))))) -> FALSE | G56: 0 | P56: 0 | R56: 0 | S56: 0 | T56: Inlap | W56: FL
A57: 1 | B57: 46 | C57: 46 | E57: =IF(D57="Grid",Simulation!$B$2,IF(D57="WU",Simulation!$B$3,IF(D57=1,Simulation!$B$4,IF(D57=2,Simulation!$B$5,IF(D57=3,Simulation!$B$6,IF(D57=4,Simulation!$B$7,IF(D57=5,Simulation!$B$8))))))) -> FALSE | F57: =IF(D57="Grid",Simulation!$C$2,IF(D57="WU",Simulation!$C$3,IF(D57=1,Simulation!$C$4,IF(D57=2,Simulation!$C$5,IF(D57=3,Simulation!$C$6,IF(D57=4,Simulation!$C$7,IF(D57=5,Simulation!$C$8))))))) -> FALSE | G57: 0 | P57: 0 | R57: 0 | S57: 0 | T57: Inlap | W57: FL
A58: 1 | B58: 47 | C58: 47 | E58: =IF(D58="Grid",Simulation!$B$2,IF(D58="WU",Simulation!$B$3,IF(D58=1,Simulation!$B$4,IF(D58=2,Simulation!$B$5,IF(D58=3,Simulation!$B$6,IF(D58=4,Simulation!$B$7,IF(D58=5,Simulation!$B$8))))))) -> FALSE | F58: =IF(D58="Grid",Simulation!$C$2,IF(D58="WU",Simulation!$C$3,IF(D58=1,Simulation!$C$4,IF(D58=2,Simulation!$C$5,IF(D58=3,Simulation!$C$6,IF(D58=4,Simulation!$C$7,IF(D58=5,Simulation!$C$8))))))) -> FALSE | G58: 0 | P58: 0 | R58: 0 | S58: 0 | T58: Inlap | W58: FL
A59: 1 | B59: 48 | C59: 48 | E59: =IF(D59="Grid",Simulation!$B$2,IF(D59="WU",Simulation!$B$3,IF(D59=1,Simulation!$B$4,IF(D59=2,Simulation!$B$5,IF(D59=3,Simulation!$B$6,IF(D59=4,Simulation!$B$7,IF(D59=5,Simulation!$B$8))))))) -> FALSE | F59: =IF(D59="Grid",Simulation!$C$2,IF(D59="WU",Simulation!$C$3,IF(D59=1,Simulation!$C$4,IF(D59=2,Simulation!$C$5,IF(D59=3,Simulation!$C$6,IF(D59=4,Simulation!$C$7,IF(D59=5,Simulation!$C$8))))))) -> FALSE | G59: 0 | P59: 0 | R59: 0 | S59: 0 | T59: Inlap | W59: FL
A60: 1 | B60: 49 | C60: 49 | E60: =IF(D60="Grid",Simulation!$B$2,IF(D60="WU",Simulation!$B$3,IF(D60=1,Simulation!$B$4,IF(D60=2,Simulation!$B$5,IF(D60=3,Simulation!$B$6,IF(D60=4,Simulation!$B$7,IF(D60=5,Simulation!$B$8))))))) -> FALSE | F60: =IF(D60="Grid",Simulation!$C$2,IF(D60="WU",Simulation!$C$3,IF(D60=1,Simulation!$C$4,IF(D60=2,Simulation!$C$5,IF(D60=3,Simulation!$C$6,IF(D60=4,Simulation!$C$7,IF(D60=5,Simulation!$C$8))))))) -> FALSE | G60: 0 | P60: 0 | R60: 0 | S60: 0 | T60: Inlap | W60: FL
A61: 1 | B61: 50 | C61: 50 | E61: =IF(D61="Grid",Simulation!$B$2,IF(D61="WU",Simulation!$B$3,IF(D61=1,Simulation!$B$4,IF(D61=2,Simulation!$B$5,IF(D61=3,Simulation!$B$6,IF(D61=4,Simulation!$B$7,IF(D61=5,Simulation!$B$8))))))) -> FALSE | F61: =IF(D61="Grid",Simulation!$C$2,IF(D61="WU",Simulation!$C$3,IF(D61=1,Simulation!$C$4,IF(D61=2,Simulation!$C$5,IF(D61=3,Simulation!$C$6,IF(D61=4,Simulation!$C$7,IF(D61=5,Simulation!$C$8))))))) -> FALSE | G61: 0 | P61: 0 | R61: 0 | S61: 0 | T61: Inlap | W61: FL
A62: 1 | B62: 51 | C62: 51 | E62: =IF(D62="Grid",Simulation!$B$2,IF(D62="WU",Simulation!$B$3,IF(D62=1,Simulation!$B$4,IF(D62=2,Simulation!$B$5,IF(D62=3,Simulation!$B$6,IF(D62=4,Simulation!$B$7,IF(D62=5,Simulation!$B$8))))))) -> FALSE | F62: =IF(D62="Grid",Simulation!$C$2,IF(D62="WU",Simulation!$C$3,IF(D62=1,Simulation!$C$4,IF(D62=2,Simulation!$C$5,IF(D62=3,Simulation!$C$6,IF(D62=4,Simulation!$C$7,IF(D62=5,Simulation!$C$8))))))) -> FALSE | G62: 0 | P62: 0 | R62: 0 | S62: 0 | T62: Inlap | W62: FL
A63: 1 | B63: 52 | C63: 52 | E63: =IF(D63="Grid",Simulation!$B$2,IF(D63="WU",Simulation!$B$3,IF(D63=1,Simulation!$B$4,IF(D63=2,Simulation!$B$5,IF(D63=3,Simulation!$B$6,IF(D63=4,Simulation!$B$7,IF(D63=5,Simulation!$B$8))))))) -> FALSE | F63: =IF(D63="Grid",Simulation!$C$2,IF(D63="WU",Simulation!$C$3,IF(D63=1,Simulation!$C$4,IF(D63=2,Simulation!$C$5,IF(D63=3,Simulation!$C$6,IF(D63=4,Simulation!$C$7,IF(D63=5,Simulation!$C$8))))))) -> FALSE | G63: 0 | P63: 0 | R63: 0 | S63: 0 | T63: Inlap | W63: FL
A64: 1 | B64: 53 | C64: 53 | E64: =IF(D64="Grid",Simulation!$B$2,IF(D64="WU",Simulation!$B$3,IF(D64=1,Simulation!$B$4,IF(D64=2,Simulation!$B$5,IF(D64=3,Simulation!$B$6,IF(D64=4,Simulation!$B$7,IF(D64=5,Simulation!$B$8))))))) -> FALSE | F64: =IF(D64="Grid",Simulation!$C$2,IF(D64="WU",Simulation!$C$3,IF(D64=1,Simulation!$C$4,IF(D64=2,Simulation!$C$5,IF(D64=3,Simulation!$C$6,IF(D64=4,Simulation!$C$7,IF(D64=5,Simulation!$C$8))))))) -> FALSE | G64: 0 | P64: 0 | R64: 0 | S64: 0 | T64: Inlap | W64: FL
A65: 1 | B65: 54 | C65: 54 | E65: =IF(D65="Grid",Simulation!$B$2,IF(D65="WU",Simulation!$B$3,IF(D65=1,Simulation!$B$4,IF(D65=2,Simulation!$B$5,IF(D65=3,Simulation!$B$6,IF(D65=4,Simulation!$B$7,IF(D65=5,Simulation!$B$8))))))) -> FALSE | F65: =IF(D65="Grid",Simulation!$C$2,IF(D65="WU",Simulation!$C$3,IF(D65=1,Simulation!$C$4,IF(D65=2,Simulation!$C$5,IF(D65=3,Simulation!$C$6,IF(D65=4,Simulation!$C$7,IF(D65=5,Simulation!$C$8))))))) -> FALSE | G65: 0 | P65: 0 | R65: 0 | S65: 0 | T65: Inlap | W65: FL
A66: 1 | B66: 55 | C66: 55 | E66: =IF(D66="Grid",Simulation!$B$2,IF(D66="WU",Simulation!$B$3,IF(D66=1,Simulation!$B$4,IF(D66=2,Simulation!$B$5,IF(D66=3,Simulation!$B$6,IF(D66=4,Simulation!$B$7,IF(D66=5,Simulation!$B$8))))))) -> FALSE | F66: =IF(D66="Grid",Simulation!$C$2,IF(D66="WU",Simulation!$C$3,IF(D66=1,Simulation!$C$4,IF(D66=2,Simulation!$C$5,IF(D66=3,Simulation!$C$6,IF(D66=4,Simulation!$C$7,IF(D66=5,Simulation!$C$8))))))) -> FALSE | G66: 0 | P66: 0 | R66: 0 | S66: 0 | T66: Inlap | W66: FL
A67: 1 | B67: 56 | C67: 56 | E67: =IF(D67="Grid",Simulation!$B$2,IF(D67="WU",Simulation!$B$3,IF(D67=1,Simulation!$B$4,IF(D67=2,Simulation!$B$5,IF(D67=3,Simulation!$B$6,IF(D67=4,Simulation!$B$7,IF(D67=5,Simulation!$B$8))))))) -> FALSE | F67: =IF(D67="Grid",Simulation!$C$2,IF(D67="WU",Simulation!$C$3,IF(D67=1,Simulation!$C$4,IF(D67=2,Simulation!$C$5,IF(D67=3,Simulation!$C$6,IF(D67=4,Simulation!$C$7,IF(D67=5,Simulation!$C$8))))))) -> FALSE | G67: 0 | P67: 0 | R67: 0 | S67: 0 | T67: Inlap | W67: FL
A68: 1 | B68: 57 | C68: 57 | E68: =IF(D68="Grid",Simulation!$B$2,IF(D68="WU",Simulation!$B$3,IF(D68=1,Simulation!$B$4,IF(D68=2,Simulation!$B$5,IF(D68=3,Simulation!$B$6,IF(D68=4,Simulation!$B$7,IF(D68=5,Simulation!$B$8))))))) -> FALSE | F68: =IF(D68="Grid",Simulation!$C$2,IF(D68="WU",Simulation!$C$3,IF(D68=1,Simulation!$C$4,IF(D68=2,Simulation!$C$5,IF(D68=3,Simulation!$C$6,IF(D68=4,Simulation!$C$7,IF(D68=5,Simulation!$C$8))))))) -> FALSE | G68: 0 | P68: 0 | R68: 0 | S68: 0 | T68: Inlap | W68: FL
A69: 1 | B69: 58 | C69: 58 | E69: =IF(D69="Grid",Simulation!$B$2,IF(D69="WU",Simulation!$B$3,IF(D69=1,Simulation!$B$4,IF(D69=2,Simulation!$B$5,IF(D69=3,Simulation!$B$6,IF(D69=4,Simulation!$B$7,IF(D69=5,Simulation!$B$8))))))) -> FALSE | F69: =IF(D69="Grid",Simulation!$C$2,IF(D69="WU",Simulation!$C$3,IF(D69=1,Simulation!$C$4,IF(D69=2,Simulation!$C$5,IF(D69=3,Simulation!$C$6,IF(D69=4,Simulation!$C$7,IF(D69=5,Simulation!$C$8))))))) -> FALSE | G69: 0 | P69: 0 | R69: 0 | S69: 0 | T69: Inlap | W69: FL
A70: 1 | B70: 59 | C70: 59 | E70: =IF(D70="Grid",Simulation!$B$2,IF(D70="WU",Simulation!$B$3,IF(D70=1,Simulation!$B$4,IF(D70=2,Simulation!$B$5,IF(D70=3,Simulation!$B$6,IF(D70=4,Simulation!$B$7,IF(D70=5,Simulation!$B$8))))))) -> FALSE | F70: =IF(D70="Grid",Simulation!$C$2,IF(D70="WU",Simulation!$C$3,IF(D70=1,Simulation!$C$4,IF(D70=2,Simulation!$C$5,IF(D70=3,Simulation!$C$6,IF(D70=4,Simulation!$C$7,IF(D70=5,Simulation!$C$8))))))) -> FALSE | G70: 0 | P70: 0 | R70: 0 | S70: 0 | T70: Inlap | W70: FL
A71: 1 | B71: 60 | C71: 60 | E71: =IF(D71="Grid",Simulation!$B$2,IF(D71="WU",Simulation!$B$3,IF(D71=1,Simulation!$B$4,IF(D71=2,Simulation!$B$5,IF(D71=3,Simulation!$B$6,IF(D71=4,Simulation!$B$7,IF(D71=5,Simulation!$B$8))))))) -> FALSE | F71: =IF(D71="Grid",Simulation!$C$2,IF(D71="WU",Simulation!$C$3,IF(D71=1,Simulation!$C$4,IF(D71=2,Simulation!$C$5,IF(D71=3,Simulation!$C$6,IF(D71=4,Simulation!$C$7,IF(D71=5,Simulation!$C$8))))))) -> FALSE | G71: 0 | P71: 0 | R71: 0 | S71: 0 | T71: Inlap | W71: FL
A72: 1 | B72: 61 | C72: 61 | E72: =IF(D72="Grid",Simulation!$B$2,IF(D72="WU",Simulation!$B$3,IF(D72=1,Simulation!$B$4,IF(D72=2,Simulation!$B$5,IF(D72=3,Simulation!$B$6,IF(D72=4,Simulation!$B$7,IF(D72=5,Simulation!$B$8))))))) -> FALSE | F72: =IF(D72="Grid",Simulation!$C$2,IF(D72="WU",Simulation!$C$3,IF(D72=1,Simulation!$C$4,IF(D72=2,Simulation!$C$5,IF(D72=3,Simulation!$C$6,IF(D72=4,Simulation!$C$7,IF(D72=5,Simulation!$C$8))))))) -> FALSE | G72: 0 | P72: 0 | R72: 0 | S72: 0 | T72: Inlap | W72: FL
A73: 1 | B73: 62 | C73: 62 | E73: =IF(D73="Grid",Simulation!$B$2,IF(D73="WU",Simulation!$B$3,IF(D73=1,Simulation!$B$4,IF(D73=2,Simulation!$B$5,IF(D73=3,Simulation!$B$6,IF(D73=4,Simulation!$B$7,IF(D73=5,Simulation!$B$8))))))) -> FALSE | F73: =IF(D73="Grid",Simulation!$C$2,IF(D73="WU",Simulation!$C$3,IF(D73=1,Simulation!$C$4,IF(D73=2,Simulation!$C$5,IF(D73=3,Simulation!$C$6,IF(D73=4,Simulation!$C$7,IF(D73=5,Simulation!$C$8))))))) -> FALSE | G73: 0 | P73: 0 | R73: 0 | S73: 0 | T73: Inlap | W73: FL
A74: 1 | B74: 63 | C74: 63 | E74: =IF(D74="Grid",Simulation!$B$2,IF(D74="WU",Simulation!$B$3,IF(D74=1,Simulation!$B$4,IF(D74=2,Simulation!$B$5,IF(D74=3,Simulation!$B$6,IF(D74=4,Simulation!$B$7,IF(D74=5,Simulation!$B$8))))))) -> FALSE | F74: =IF(D74="Grid",Simulation!$C$2,IF(D74="WU",Simulation!$C$3,IF(D74=1,Simulation!$C$4,IF(D74=2,Simulation!$C$5,IF(D74=3,Simulation!$C$6,IF(D74=4,Simulation!$C$7,IF(D74=5,Simulation!$C$8))))))) -> FALSE | G74: 0 | P74: 0 | R74: 0 | S74: 0 | T74: Inlap | W74: FL
A75: 1 | B75: 64 | C75: 64 | E75: =IF(D75="Grid",Simulation!$B$2,IF(D75="WU",Simulation!$B$3,IF(D75=1,Simulation!$B$4,IF(D75=2,Simulation!$B$5,IF(D75=3,Simulation!$B$6,IF(D75=4,Simulation!$B$7,IF(D75=5,Simulation!$B$8))))))) -> FALSE | F75: =IF(D75="Grid",Simulation!$C$2,IF(D75="WU",Simulation!$C$3,IF(D75=1,Simulation!$C$4,IF(D75=2,Simulation!$C$5,IF(D75=3,Simulation!$C$6,IF(D75=4,Simulation!$C$7,IF(D75=5,Simulation!$C$8))))))) -> FALSE | G75: 0 | P75: 0 | R75: 0 | S75: 0 | T75: =IF(S75<=F75,"Inlap",IF(S75<=2*F75,"Call: In this lap!",IF(S75<=3*F75,"Show in but don't call!",""))) -> Inlap | W75: FL
A76: =IF(O76>0,A75+1,A75) -> 1 | B76: 65 | C76: 65 | E76: =IF(D76="Grid",Simulation!$B$2,IF(D76="WU",Simulation!$B$3,IF(D76=1,Simulation!$B$4,IF(D76=2,Simulation!$B$5,IF(D76=3,Simulation!$B$6,IF(D76=4,Simulation!$B$7,IF(D76=5,Simulation!$B$8))))))) -> FALSE | F76: =IF(D76="Grid",Simulation!$C$2,IF(D76="WU",Simulation!$C$3,IF(D76=1,Simulation!$C$4,IF(D76=2,Simulation!$C$5,IF(D76=3,Simulation!$C$6,IF(D76=4,Simulation!$C$7,IF(D76=5,Simulation!$C$8))))))) -> FALSE | G76: =G75+O75-P75 -> 0 | P76: 0 | R76: 0 | S76: =IF(O76>0,O76+S75-Q76,S75-P76) -> 0 | T76: Inlap | W76: =IF(J76=$Q$2,"FL","") -> FL
A77: 1 | B77: 66 | C77: 66 | E77: =IF(D77="Grid",Simulation!$B$2,IF(D77="WU",Simulation!$B$3,IF(D77=1,Simulation!$B$4,IF(D77=2,Simulation!$B$5,IF(D77=3,Simulation!$B$6,IF(D77=4,Simulation!$B$7,IF(D77=5,Simulation!$B$8))))))) -> FALSE | F77: =IF(D77="Grid",Simulation!$C$2,IF(D77="WU",Simulation!$C$3,IF(D77=1,Simulation!$C$4,IF(D77=2,Simulation!$C$5,IF(D77=3,Simulation!$C$6,IF(D77=4,Simulation!$C$7,IF(D77=5,Simulation!$C$8))))))) -> FALSE | G77: 0 | K77: =IF(J77<>0,K76,"") ->  | P77: 0 | R77: 0 | S77: 0 | T77: Inlap | W77: FL
A78: 1 | B78: 67 | C78: =IF(O78="",C77+1,"1") -> 67 | E78: =IF(D78="Grid",Simulation!$B$2,IF(D78="WU",Simulation!$B$3,IF(D78=1,Simulation!$B$4,IF(D78=2,Simulation!$B$5,IF(D78=3,Simulation!$B$6,IF(D78=4,Simulation!$B$7,IF(D78=5,Simulation!$B$8))))))) -> FALSE | F78: =IF(D78="Grid",Simulation!$C$2,IF(D78="WU",Simulation!$C$3,IF(D78=1,Simulation!$C$4,IF(D78=2,Simulation!$C$5,IF(D78=3,Simulation!$C$6,IF(D78=4,Simulation!$C$7,IF(D78=5,Simulation!$C$8))))))) -> FALSE | G78: 0 | P78: 0 | R78: 0 | S78: 0 | T78: Inlap | W78: FL
A79: 1 | B79: 68 | C79: 68 | E79: =IF(D79="Grid",Simulation!$B$2,IF(D79="WU",Simulation!$B$3,IF(D79=1,Simulation!$B$4,IF(D79=2,Simulation!$B$5,IF(D79=3,Simulation!$B$6,IF(D79=4,Simulation!$B$7,IF(D79=5,Simulation!$B$8))))))) -> FALSE | F79: =IF(D79="Grid",Simulation!$C$2,IF(D79="WU",Simulation!$C$3,IF(D79=1,Simulation!$C$4,IF(D79=2,Simulation!$C$5,IF(D79=3,Simulation!$C$6,IF(D79=4,Simulation!$C$7,IF(D79=5,Simulation!$C$8))))))) -> FALSE | G79: 0 | P79: 0 | R79: 0 | S79: 0 | T79: Inlap | W79: FL
A80: 1 | B80: 69 | C80: 69 | E80: =IF(D80="Grid",Simulation!$B$2,IF(D80="WU",Simulation!$B$3,IF(D80=1,Simulation!$B$4,IF(D80=2,Simulation!$B$5,IF(D80=3,Simulation!$B$6,IF(D80=4,Simulation!$B$7,IF(D80=5,Simulation!$B$8))))))) -> FALSE | F80: =IF(D80="Grid",Simulation!$C$2,IF(D80="WU",Simulation!$C$3,IF(D80=1,Simulation!$C$4,IF(D80=2,Simulation!$C$5,IF(D80=3,Simulation!$C$6,IF(D80=4,Simulation!$C$7,IF(D80=5,Simulation!$C$8))))))) -> FALSE | G80: 0 | P80: 0 | R80: 0 | S80: 0 | T80: Inlap | W80: FL
A81: 1 | B81: 70 | C81: 70 | E81: =IF(D81="Grid",Simulation!$B$2,IF(D81="WU",Simulation!$B$3,IF(D81=1,Simulation!$B$4,IF(D81=2,Simulation!$B$5,IF(D81=3,Simulation!$B$6,IF(D81=4,Simulation!$B$7,IF(D81=5,Simulation!$B$8))))))) -> FALSE | F81: =IF(D81="Grid",Simulation!$C$2,IF(D81="WU",Simulation!$C$3,IF(D81=1,Simulation!$C$4,IF(D81=2,Simulation!$C$5,IF(D81=3,Simulation!$C$6,IF(D81=4,Simulation!$C$7,IF(D81=5,Simulation!$C$8))))))) -> FALSE | G81: 0 | P81: 0 | R81: 0 | S81: 0 | T81: Inlap | W81: FL
A82: 1 | B82: 71 | C82: 71 | E82: =IF(D82="Grid",Simulation!$B$2,IF(D82="WU",Simulation!$B$3,IF(D82=1,Simulation!$B$4,IF(D82=2,Simulation!$B$5,IF(D82=3,Simulation!$B$6,IF(D82=4,Simulation!$B$7,IF(D82=5,Simulation!$B$8))))))) -> FALSE | F82: =IF(D82="Grid",Simulation!$C$2,IF(D82="WU",Simulation!$C$3,IF(D82=1,Simulation!$C$4,IF(D82=2,Simulation!$C$5,IF(D82=3,Simulation!$C$6,IF(D82=4,Simulation!$C$7,IF(D82=5,Simulation!$C$8))))))) -> FALSE | G82: 0 | P82: 0 | R82: 0 | S82: 0 | T82: Inlap | W82: FL
A83: 1 | B83: 72 | C83: 72 | E83: =IF(D83="Grid",Simulation!$B$2,IF(D83="WU",Simulation!$B$3,IF(D83=1,Simulation!$B$4,IF(D83=2,Simulation!$B$5,IF(D83=3,Simulation!$B$6,IF(D83=4,Simulation!$B$7,IF(D83=5,Simulation!$B$8))))))) -> FALSE | F83: =IF(D83="Grid",Simulation!$C$2,IF(D83="WU",Simulation!$C$3,IF(D83=1,Simulation!$C$4,IF(D83=2,Simulation!$C$5,IF(D83=3,Simulation!$C$6,IF(D83=4,Simulation!$C$7,IF(D83=5,Simulation!$C$8))))))) -> FALSE | G83: 0 | P83: 0 | R83: 0 | S83: 0 | T83: Inlap | W83: FL
A84: 1 | B84: 73 | C84: 73 | E84: =IF(D84="Grid",Simulation!$B$2,IF(D84="WU",Simulation!$B$3,IF(D84=1,Simulation!$B$4,IF(D84=2,Simulation!$B$5,IF(D84=3,Simulation!$B$6,IF(D84=4,Simulation!$B$7,IF(D84=5,Simulation!$B$8))))))) -> FALSE | F84: =IF(D84="Grid",Simulation!$C$2,IF(D84="WU",Simulation!$C$3,IF(D84=1,Simulation!$C$4,IF(D84=2,Simulation!$C$5,IF(D84=3,Simulation!$C$6,IF(D84=4,Simulation!$C$7,IF(D84=5,Simulation!$C$8))))))) -> FALSE | G84: 0 | P84: 0 | R84: 0 | S84: 0 | T84: Inlap | W84: FL
A85: 1 | B85: 74 | C85: 74 | E85: =IF(D85="Grid",Simulation!$B$2,IF(D85="WU",Simulation!$B$3,IF(D85=1,Simulation!$B$4,IF(D85=2,Simulation!$B$5,IF(D85=3,Simulation!$B$6,IF(D85=4,Simulation!$B$7,IF(D85=5,Simulation!$B$8))))))) -> FALSE | F85: =IF(D85="Grid",Simulation!$C$2,IF(D85="WU",Simulation!$C$3,IF(D85=1,Simulation!$C$4,IF(D85=2,Simulation!$C$5,IF(D85=3,Simulation!$C$6,IF(D85=4,Simulation!$C$7,IF(D85=5,Simulation!$C$8))))))) -> FALSE | G85: 0 | P85: 0 | R85: 0 | S85: 0 | T85: Inlap | W85: FL
A86: 1 | B86: 75 | C86: 75 | E86: =IF(D86="Grid",Simulation!$B$2,IF(D86="WU",Simulation!$B$3,IF(D86=1,Simulation!$B$4,IF(D86=2,Simulation!$B$5,IF(D86=3,Simulation!$B$6,IF(D86=4,Simulation!$B$7,IF(D86=5,Simulation!$B$8))))))) -> FALSE | F86: =IF(D86="Grid",Simulation!$C$2,IF(D86="WU",Simulation!$C$3,IF(D86=1,Simulation!$C$4,IF(D86=2,Simulation!$C$5,IF(D86=3,Simulation!$C$6,IF(D86=4,Simulation!$C$7,IF(D86=5,Simulation!$C$8))))))) -> FALSE | G86: 0 | P86: 0 | R86: 0 | S86: 0 | T86: Inlap | W86: FL
A87: 1 | B87: 76 | C87: 76 | E87: =IF(D87="Grid",Simulation!$B$2,IF(D87="WU",Simulation!$B$3,IF(D87=1,Simulation!$B$4,IF(D87=2,Simulation!$B$5,IF(D87=3,Simulation!$B$6,IF(D87=4,Simulation!$B$7,IF(D87=5,Simulation!$B$8))))))) -> FALSE | F87: =IF(D87="Grid",Simulation!$C$2,IF(D87="WU",Simulation!$C$3,IF(D87=1,Simulation!$C$4,IF(D87=2,Simulation!$C$5,IF(D87=3,Simulation!$C$6,IF(D87=4,Simulation!$C$7,IF(D87=5,Simulation!$C$8))))))) -> FALSE | G87: 0 | P87: 0 | R87: 0 | S87: 0 | T87: Inlap | W87: FL
A88: 1 | B88: 77 | C88: 77 | E88: =IF(D88="Grid",Simulation!$B$2,IF(D88="WU",Simulation!$B$3,IF(D88=1,Simulation!$B$4,IF(D88=2,Simulation!$B$5,IF(D88=3,Simulation!$B$6,IF(D88=4,Simulation!$B$7,IF(D88=5,Simulation!$B$8))))))) -> FALSE | F88: =IF(D88="Grid",Simulation!$C$2,IF(D88="WU",Simulation!$C$3,IF(D88=1,Simulation!$C$4,IF(D88=2,Simulation!$C$5,IF(D88=3,Simulation!$C$6,IF(D88=4,Simulation!$C$7,IF(D88=5,Simulation!$C$8))))))) -> FALSE | G88: 0 | P88: 0 | R88: 0 | S88: 0 | T88: Inlap | W88: FL
A89: 1 | B89: 78 | C89: 78 | E89: =IF(D89="Grid",Simulation!$B$2,IF(D89="WU",Simulation!$B$3,IF(D89=1,Simulation!$B$4,IF(D89=2,Simulation!$B$5,IF(D89=3,Simulation!$B$6,IF(D89=4,Simulation!$B$7,IF(D89=5,Simulation!$B$8))))))) -> FALSE | F89: =IF(D89="Grid",Simulation!$C$2,IF(D89="WU",Simulation!$C$3,IF(D89=1,Simulation!$C$4,IF(D89=2,Simulation!$C$5,IF(D89=3,Simulation!$C$6,IF(D89=4,Simulation!$C$7,IF(D89=5,Simulation!$C$8))))))) -> FALSE | G89: 0 | P89: 0 | R89: 0 | S89: 0 | T89: Inlap | W89: FL
A90: 1 | B90: 79 | C90: 79 | E90: =IF(D90="Grid",Simulation!$B$2,IF(D90="WU",Simulation!$B$3,IF(D90=1,Simulation!$B$4,IF(D90=2,Simulation!$B$5,IF(D90=3,Simulation!$B$6,IF(D90=4,Simulation!$B$7,IF(D90=5,Simulation!$B$8))))))) -> FALSE | F90: =IF(D90="Grid",Simulation!$C$2,IF(D90="WU",Simulation!$C$3,IF(D90=1,Simulation!$C$4,IF(D90=2,Simulation!$C$5,IF(D90=3,Simulation!$C$6,IF(D90=4,Simulation!$C$7,IF(D90=5,Simulation!$C$8))))))) -> FALSE | G90: 0 | P90: 0 | R90: 0 | S90: 0 | T90: Inlap | W90: FL
A91: 1 | B91: 80 | C91: 80 | E91: =IF(D91="Grid",Simulation!$B$2,IF(D91="WU",Simulation!$B$3,IF(D91=1,Simulation!$B$4,IF(D91=2,Simulation!$B$5,IF(D91=3,Simulation!$B$6,IF(D91=4,Simulation!$B$7,IF(D91=5,Simulation!$B$8))))))) -> FALSE | F91: =IF(D91="Grid",Simulation!$C$2,IF(D91="WU",Simulation!$C$3,IF(D91=1,Simulation!$C$4,IF(D91=2,Simulation!$C$5,IF(D91=3,Simulation!$C$6,IF(D91=4,Simulation!$C$7,IF(D91=5,Simulation!$C$8))))))) -> FALSE | G91: 0 | P91: 0 | R91: 0 | S91: 0 | T91: Inlap | W91: FL
A92: 1 | B92: 81 | C92: 81 | E92: =IF(D92="Grid",Simulation!$B$2,IF(D92="WU",Simulation!$B$3,IF(D92=1,Simulation!$B$4,IF(D92=2,Simulation!$B$5,IF(D92=3,Simulation!$B$6,IF(D92=4,Simulation!$B$7,IF(D92=5,Simulation!$B$8))))))) -> FALSE | F92: =IF(D92="Grid",Simulation!$C$2,IF(D92="WU",Simulation!$C$3,IF(D92=1,Simulation!$C$4,IF(D92=2,Simulation!$C$5,IF(D92=3,Simulation!$C$6,IF(D92=4,Simulation!$C$7,IF(D92=5,Simulation!$C$8))))))) -> FALSE | G92: 0 | P92: 0 | R92: 0 | S92: 0 | T92: Inlap | W92: FL
A93: 1 | B93: 82 | C93: 82 | E93: =IF(D93="Grid",Simulation!$B$2,IF(D93="WU",Simulation!$B$3,IF(D93=1,Simulation!$B$4,IF(D93=2,Simulation!$B$5,IF(D93=3,Simulation!$B$6,IF(D93=4,Simulation!$B$7,IF(D93=5,Simulation!$B$8))))))) -> FALSE | F93: =IF(D93="Grid",Simulation!$C$2,IF(D93="WU",Simulation!$C$3,IF(D93=1,Simulation!$C$4,IF(D93=2,Simulation!$C$5,IF(D93=3,Simulation!$C$6,IF(D93=4,Simulation!$C$7,IF(D93=5,Simulation!$C$8))))))) -> FALSE | G93: 0 | P93: 0 | R93: 0 | S93: 0 | T93: Inlap | W93: FL
A94: 1 | B94: 83 | C94: 83 | E94: =IF(D94="Grid",Simulation!$B$2,IF(D94="WU",Simulation!$B$3,IF(D94=1,Simulation!$B$4,IF(D94=2,Simulation!$B$5,IF(D94=3,Simulation!$B$6,IF(D94=4,Simulation!$B$7,IF(D94=5,Simulation!$B$8))))))) -> FALSE | F94: =IF(D94="Grid",Simulation!$C$2,IF(D94="WU",Simulation!$C$3,IF(D94=1,Simulation!$C$4,IF(D94=2,Simulation!$C$5,IF(D94=3,Simulation!$C$6,IF(D94=4,Simulation!$C$7,IF(D94=5,Simulation!$C$8))))))) -> FALSE | G94: 0 | P94: 0 | R94: 0 | S94: 0 | T94: Inlap | W94: FL
A95: 1 | B95: 84 | C95: 84 | E95: =IF(D95="Grid",Simulation!$B$2,IF(D95="WU",Simulation!$B$3,IF(D95=1,Simulation!$B$4,IF(D95=2,Simulation!$B$5,IF(D95=3,Simulation!$B$6,IF(D95=4,Simulation!$B$7,IF(D95=5,Simulation!$B$8))))))) -> FALSE | F95: =IF(D95="Grid",Simulation!$C$2,IF(D95="WU",Simulation!$C$3,IF(D95=1,Simulation!$C$4,IF(D95=2,Simulation!$C$5,IF(D95=3,Simulation!$C$6,IF(D95=4,Simulation!$C$7,IF(D95=5,Simulation!$C$8))))))) -> FALSE | G95: 0 | P95: 0 | R95: 0 | S95: 0 | T95: Inlap | W95: FL
A96: 1 | B96: 85 | C96: 85 | E96: =IF(D96="Grid",Simulation!$B$2,IF(D96="WU",Simulation!$B$3,IF(D96=1,Simulation!$B$4,IF(D96=2,Simulation!$B$5,IF(D96=3,Simulation!$B$6,IF(D96=4,Simulation!$B$7,IF(D96=5,Simulation!$B$8))))))) -> FALSE | F96: =IF(D96="Grid",Simulation!$C$2,IF(D96="WU",Simulation!$C$3,IF(D96=1,Simulation!$C$4,IF(D96=2,Simulation!$C$5,IF(D96=3,Simulation!$C$6,IF(D96=4,Simulation!$C$7,IF(D96=5,Simulation!$C$8))))))) -> FALSE | G96: 0 | P96: 0 | R96: 0 | S96: 0 | T96: Inlap | W96: FL
A97: 1 | B97: 86 | C97: 86 | E97: =IF(D97="Grid",Simulation!$B$2,IF(D97="WU",Simulation!$B$3,IF(D97=1,Simulation!$B$4,IF(D97=2,Simulation!$B$5,IF(D97=3,Simulation!$B$6,IF(D97=4,Simulation!$B$7,IF(D97=5,Simulation!$B$8))))))) -> FALSE | F97: =IF(D97="Grid",Simulation!$C$2,IF(D97="WU",Simulation!$C$3,IF(D97=1,Simulation!$C$4,IF(D97=2,Simulation!$C$5,IF(D97=3,Simulation!$C$6,IF(D97=4,Simulation!$C$7,IF(D97=5,Simulation!$C$8))))))) -> FALSE | G97: 0 | P97: 0 | R97: 0 | S97: 0 | T97: Inlap | W97: FL
A98: 1 | B98: 87 | C98: 87 | E98: =IF(D98="Grid",Simulation!$B$2,IF(D98="WU",Simulation!$B$3,IF(D98=1,Simulation!$B$4,IF(D98=2,Simulation!$B$5,IF(D98=3,Simulation!$B$6,IF(D98=4,Simulation!$B$7,IF(D98=5,Simulation!$B$8))))))) -> FALSE | F98: =IF(D98="Grid",Simulation!$C$2,IF(D98="WU",Simulation!$C$3,IF(D98=1,Simulation!$C$4,IF(D98=2,Simulation!$C$5,IF(D98=3,Simulation!$C$6,IF(D98=4,Simulation!$C$7,IF(D98=5,Simulation!$C$8))))))) -> FALSE | G98: 0 | P98: 0 | R98: 0 | S98: 0 | T98: Inlap | W98: FL
A99: 1 | B99: 88 | C99: 88 | E99: =IF(D99="Grid",Simulation!$B$2,IF(D99="WU",Simulation!$B$3,IF(D99=1,Simulation!$B$4,IF(D99=2,Simulation!$B$5,IF(D99=3,Simulation!$B$6,IF(D99=4,Simulation!$B$7,IF(D99=5,Simulation!$B$8))))))) -> FALSE | F99: =IF(D99="Grid",Simulation!$C$2,IF(D99="WU",Simulation!$C$3,IF(D99=1,Simulation!$C$4,IF(D99=2,Simulation!$C$5,IF(D99=3,Simulation!$C$6,IF(D99=4,Simulation!$C$7,IF(D99=5,Simulation!$C$8))))))) -> FALSE | G99: 0 | P99: 0 | R99: 0 | S99: 0 | T99: Inlap | W99: FL
A100: 1 | B100: 89 | C100: 89 | E100: =IF(D100="Grid",Simulation!$B$2,IF(D100="WU",Simulation!$B$3,IF(D100=1,Simulation!$B$4,IF(D100=2,Simulation!$B$5,IF(D100=3,Simulation!$B$6,IF(D100=4,Simulation!$B$7,IF(D100=5,Simulation!$B$8))))))) -> FALSE | F100: =IF(D100="Grid",Simulation!$C$2,IF(D100="WU",Simulation!$C$3,IF(D100=1,Simulation!$C$4,IF(D100=2,Simulation!$C$5,IF(D100=3,Simulation!$C$6,IF(D100=4,Simulation!$C$7,IF(D100=5,Simulation!$C$8))))))) -> FALSE | G100: 0 | P100: 0 | R100: 0 | S100: 0 | T100: Inlap | W100: FL
A101: 1 | B101: 90 | C101: 90 | E101: =IF(D101="Grid",Simulation!$B$2,IF(D101="WU",Simulation!$B$3,IF(D101=1,Simulation!$B$4,IF(D101=2,Simulation!$B$5,IF(D101=3,Simulation!$B$6,IF(D101=4,Simulation!$B$7,IF(D101=5,Simulation!$B$8))))))) -> FALSE | F101: =IF(D101="Grid",Simulation!$C$2,IF(D101="WU",Simulation!$C$3,IF(D101=1,Simulation!$C$4,IF(D101=2,Simulation!$C$5,IF(D101=3,Simulation!$C$6,IF(D101=4,Simulation!$C$7,IF(D101=5,Simulation!$C$8))))))) -> FALSE | G101: 0 | P101: 0 | R101: 0 | S101: 0 | T101: Inlap | W101: FL
A102: 1 | B102: 91 | C102: 91 | E102: =IF(D102="Grid",Simulation!$B$2,IF(D102="WU",Simulation!$B$3,IF(D102=1,Simulation!$B$4,IF(D102=2,Simulation!$B$5,IF(D102=3,Simulation!$B$6,IF(D102=4,Simulation!$B$7,IF(D102=5,Simulation!$B$8))))))) -> FALSE | F102: =IF(D102="Grid",Simulation!$C$2,IF(D102="WU",Simulation!$C$3,IF(D102=1,Simulation!$C$4,IF(D102=2,Simulation!$C$5,IF(D102=3,Simulation!$C$6,IF(D102=4,Simulation!$C$7,IF(D102=5,Simulation!$C$8))))))) -> FALSE | G102: 0 | P102: 0 | R102: 0 | S102: 0 | T102: Inlap | W102: FL
A103: 1 | B103: 92 | C103: 92 | E103: =IF(D103="Grid",Simulation!$B$2,IF(D103="WU",Simulation!$B$3,IF(D103=1,Simulation!$B$4,IF(D103=2,Simulation!$B$5,IF(D103=3,Simulation!$B$6,IF(D103=4,Simulation!$B$7,IF(D103=5,Simulation!$B$8))))))) -> FALSE | F103: =IF(D103="Grid",Simulation!$C$2,IF(D103="WU",Simulation!$C$3,IF(D103=1,Simulation!$C$4,IF(D103=2,Simulation!$C$5,IF(D103=3,Simulation!$C$6,IF(D103=4,Simulation!$C$7,IF(D103=5,Simulation!$C$8))))))) -> FALSE | G103: 0 | P103: 0 | R103: 0 | S103: 0 | T103: Inlap | W103: FL
A104: 1 | B104: 93 | C104: 93 | E104: =IF(D104="Grid",Simulation!$B$2,IF(D104="WU",Simulation!$B$3,IF(D104=1,Simulation!$B$4,IF(D104=2,Simulation!$B$5,IF(D104=3,Simulation!$B$6,IF(D104=4,Simulation!$B$7,IF(D104=5,Simulation!$B$8))))))) -> FALSE | F104: =IF(D104="Grid",Simulation!$C$2,IF(D104="WU",Simulation!$C$3,IF(D104=1,Simulation!$C$4,IF(D104=2,Simulation!$C$5,IF(D104=3,Simulation!$C$6,IF(D104=4,Simulation!$C$7,IF(D104=5,Simulation!$C$8))))))) -> FALSE | G104: 0 | P104: 0 | R104: 0 | S104: 0 | T104: Inlap | W104: FL
A105: 1 | B105: 94 | C105: 94 | E105: =IF(D105="Grid",Simulation!$B$2,IF(D105="WU",Simulation!$B$3,IF(D105=1,Simulation!$B$4,IF(D105=2,Simulation!$B$5,IF(D105=3,Simulation!$B$6,IF(D105=4,Simulation!$B$7,IF(D105=5,Simulation!$B$8))))))) -> FALSE | F105: =IF(D105="Grid",Simulation!$C$2,IF(D105="WU",Simulation!$C$3,IF(D105=1,Simulation!$C$4,IF(D105=2,Simulation!$C$5,IF(D105=3,Simulation!$C$6,IF(D105=4,Simulation!$C$7,IF(D105=5,Simulation!$C$8))))))) -> FALSE | G105: 0 | P105: 0 | R105: 0 | S105: 0 | T105: Inlap | W105: FL
A106: 1 | B106: 95 | C106: 95 | E106: =IF(D106="Grid",Simulation!$B$2,IF(D106="WU",Simulation!$B$3,IF(D106=1,Simulation!$B$4,IF(D106=2,Simulation!$B$5,IF(D106=3,Simulation!$B$6,IF(D106=4,Simulation!$B$7,IF(D106=5,Simulation!$B$8))))))) -> FALSE | F106: =IF(D106="Grid",Simulation!$C$2,IF(D106="WU",Simulation!$C$3,IF(D106=1,Simulation!$C$4,IF(D106=2,Simulation!$C$5,IF(D106=3,Simulation!$C$6,IF(D106=4,Simulation!$C$7,IF(D106=5,Simulation!$C$8))))))) -> FALSE | G106: 0 | P106: 0 | R106: 0 | S106: 0 | T106: Inlap | W106: FL
A107: 1 | B107: 96 | C107: 96 | E107: =IF(D107="Grid",Simulation!$B$2,IF(D107="WU",Simulation!$B$3,IF(D107=1,Simulation!$B$4,IF(D107=2,Simulation!$B$5,IF(D107=3,Simulation!$B$6,IF(D107=4,Simulation!$B$7,IF(D107=5,Simulation!$B$8))))))) -> FALSE | F107: =IF(D107="Grid",Simulation!$C$2,IF(D107="WU",Simulation!$C$3,IF(D107=1,Simulation!$C$4,IF(D107=2,Simulation!$C$5,IF(D107=3,Simulation!$C$6,IF(D107=4,Simulation!$C$7,IF(D107=5,Simulation!$C$8))))))) -> FALSE | G107: 0 | P107: 0 | R107: 0 | S107: 0 | T107: Inlap | W107: FL
A108: 1 | B108: 97 | C108: 97 | E108: =IF(D108="Grid",Simulation!$B$2,IF(D108="WU",Simulation!$B$3,IF(D108=1,Simulation!$B$4,IF(D108=2,Simulation!$B$5,IF(D108=3,Simulation!$B$6,IF(D108=4,Simulation!$B$7,IF(D108=5,Simulation!$B$8))))))) -> FALSE | F108: =IF(D108="Grid",Simulation!$C$2,IF(D108="WU",Simulation!$C$3,IF(D108=1,Simulation!$C$4,IF(D108=2,Simulation!$C$5,IF(D108=3,Simulation!$C$6,IF(D108=4,Simulation!$C$7,IF(D108=5,Simulation!$C$8))))))) -> FALSE | G108: 0 | P108: 0 | R108: 0 | S108: 0 | T108: Inlap | W108: FL
A109: 1 | B109: 98 | C109: 98 | E109: =IF(D109="Grid",Simulation!$B$2,IF(D109="WU",Simulation!$B$3,IF(D109=1,Simulation!$B$4,IF(D109=2,Simulation!$B$5,IF(D109=3,Simulation!$B$6,IF(D109=4,Simulation!$B$7,IF(D109=5,Simulation!$B$8))))))) -> FALSE | F109: =IF(D109="Grid",Simulation!$C$2,IF(D109="WU",Simulation!$C$3,IF(D109=1,Simulation!$C$4,IF(D109=2,Simulation!$C$5,IF(D109=3,Simulation!$C$6,IF(D109=4,Simulation!$C$7,IF(D109=5,Simulation!$C$8))))))) -> FALSE | G109: 0 | P109: 0 | R109: 0 | S109: 0 | T109: Inlap | W109: FL
A110: 1 | B110: 99 | C110: 99 | E110: =IF(D110="Grid",Simulation!$B$2,IF(D110="WU",Simulation!$B$3,IF(D110=1,Simulation!$B$4,IF(D110=2,Simulation!$B$5,IF(D110=3,Simulation!$B$6,IF(D110=4,Simulation!$B$7,IF(D110=5,Simulation!$B$8))))))) -> FALSE | F110: =IF(D110="Grid",Simulation!$C$2,IF(D110="WU",Simulation!$C$3,IF(D110=1,Simulation!$C$4,IF(D110=2,Simulation!$C$5,IF(D110=3,Simulation!$C$6,IF(D110=4,Simulation!$C$7,IF(D110=5,Simulation!$C$8))))))) -> FALSE | G110: 0 | P110: =IF(O110>0,Q110,Q110-Q109) -> 0 | R110: 0 | S110: 0 | T110: Inlap | W110: FL
A111: 1 | B111: 100 | C111: 100 | E111: =IF(D111="Grid",Simulation!$B$2,IF(D111="WU",Simulation!$B$3,IF(D111=1,Simulation!$B$4,IF(D111=2,Simulation!$B$5,IF(D111=3,Simulation!$B$6,IF(D111=4,Simulation!$B$7,IF(D111=5,Simulation!$B$8))))))) -> FALSE | F111: =IF(D111="Grid",Simulation!$C$2,IF(D111="WU",Simulation!$C$3,IF(D111=1,Simulation!$C$4,IF(D111=2,Simulation!$C$5,IF(D111=3,Simulation!$C$6,IF(D111=4,Simulation!$C$7,IF(D111=5,Simulation!$C$8))))))) -> FALSE | G111: 0 | P111: 0 | R111: 0 | S111: 0 | T111: Inlap | W111: FL
A112: 1 | B112: 101 | C112: 101 | E112: =IF(D112="Grid",Simulation!$B$2,IF(D112="WU",Simulation!$B$3,IF(D112=1,Simulation!$B$4,IF(D112=2,Simulation!$B$5,IF(D112=3,Simulation!$B$6,IF(D112=4,Simulation!$B$7,IF(D112=5,Simulation!$B$8))))))) -> FALSE | F112: =IF(D112="Grid",Simulation!$C$2,IF(D112="WU",Simulation!$C$3,IF(D112=1,Simulation!$C$4,IF(D112=2,Simulation!$C$5,IF(D112=3,Simulation!$C$6,IF(D112=4,Simulation!$C$7,IF(D112=5,Simulation!$C$8))))))) -> FALSE | G112: 0 | P112: 0 | R112: 0 | S112: 0 | T112: Inlap | W112: FL
A113: 1 | B113: 102 | C113: 102 | E113: =IF(D113="Grid",Simulation!$B$2,IF(D113="WU",Simulation!$B$3,IF(D113=1,Simulation!$B$4,IF(D113=2,Simulation!$B$5,IF(D113=3,Simulation!$B$6,IF(D113=4,Simulation!$B$7,IF(D113=5,Simulation!$B$8))))))) -> FALSE | F113: =IF(D113="Grid",Simulation!$C$2,IF(D113="WU",Simulation!$C$3,IF(D113=1,Simulation!$C$4,IF(D113=2,Simulation!$C$5,IF(D113=3,Simulation!$C$6,IF(D113=4,Simulation!$C$7,IF(D113=5,Simulation!$C$8))))))) -> FALSE | G113: 0 | P113: 0 | R113: 0 | S113: 0 | T113: Inlap | W113: FL
A114: 1 | B114: 103 | C114: 103 | E114: =IF(D114="Grid",Simulation!$B$2,IF(D114="WU",Simulation!$B$3,IF(D114=1,Simulation!$B$4,IF(D114=2,Simulation!$B$5,IF(D114=3,Simulation!$B$6,IF(D114=4,Simulation!$B$7,IF(D114=5,Simulation!$B$8))))))) -> FALSE | F114: =IF(D114="Grid",Simulation!$C$2,IF(D114="WU",Simulation!$C$3,IF(D114=1,Simulation!$C$4,IF(D114=2,Simulation!$C$5,IF(D114=3,Simulation!$C$6,IF(D114=4,Simulation!$C$7,IF(D114=5,Simulation!$C$8))))))) -> FALSE | G114: 0 | P114: 0 | R114: 0 | S114: 0 | T114: Inlap | W114: FL
A115: 1 | B115: 104 | C115: 104 | E115: =IF(D115="Grid",Simulation!$B$2,IF(D115="WU",Simulation!$B$3,IF(D115=1,Simulation!$B$4,IF(D115=2,Simulation!$B$5,IF(D115=3,Simulation!$B$6,IF(D115=4,Simulation!$B$7,IF(D115=5,Simulation!$B$8))))))) -> FALSE | F115: =IF(D115="Grid",Simulation!$C$2,IF(D115="WU",Simulation!$C$3,IF(D115=1,Simulation!$C$4,IF(D115=2,Simulation!$C$5,IF(D115=3,Simulation!$C$6,IF(D115=4,Simulation!$C$7,IF(D115=5,Simulation!$C$8))))))) -> FALSE | G115: 0 | P115: 0 | R115: 0 | S115: 0 | T115: Inlap | W115: FL
A116: 1 | B116: 105 | C116: 105 | E116: =IF(D116="Grid",Simulation!$B$2,IF(D116="WU",Simulation!$B$3,IF(D116=1,Simulation!$B$4,IF(D116=2,Simulation!$B$5,IF(D116=3,Simulation!$B$6,IF(D116=4,Simulation!$B$7,IF(D116=5,Simulation!$B$8))))))) -> FALSE | F116: =IF(D116="Grid",Simulation!$C$2,IF(D116="WU",Simulation!$C$3,IF(D116=1,Simulation!$C$4,IF(D116=2,Simulation!$C$5,IF(D116=3,Simulation!$C$6,IF(D116=4,Simulation!$C$7,IF(D116=5,Simulation!$C$8))))))) -> FALSE | G116: 0 | P116: 0 | R116: 0 | S116: 0 | T116: Inlap | W116: FL
A117: 1 | B117: 106 | C117: 106 | E117: =IF(D117="Grid",Simulation!$B$2,IF(D117="WU",Simulation!$B$3,IF(D117=1,Simulation!$B$4,IF(D117=2,Simulation!$B$5,IF(D117=3,Simulation!$B$6,IF(D117=4,Simulation!$B$7,IF(D117=5,Simulation!$B$8))))))) -> FALSE | F117: =IF(D117="Grid",Simulation!$C$2,IF(D117="WU",Simulation!$C$3,IF(D117=1,Simulation!$C$4,IF(D117=2,Simulation!$C$5,IF(D117=3,Simulation!$C$6,IF(D117=4,Simulation!$C$7,IF(D117=5,Simulation!$C$8))))))) -> FALSE | G117: 0 | P117: 0 | R117: =IF(O117>0,Q117,Q117-Q116) -> 0 | S117: 0 | T117: Inlap | W117: FL
A118: 1 | B118: 107 | C118: 107 | E118: =IF(D118="Grid",Simulation!$B$2,IF(D118="WU",Simulation!$B$3,IF(D118=1,Simulation!$B$4,IF(D118=2,Simulation!$B$5,IF(D118=3,Simulation!$B$6,IF(D118=4,Simulation!$B$7,IF(D118=5,Simulation!$B$8))))))) -> FALSE | F118: =IF(D118="Grid",Simulation!$C$2,IF(D118="WU",Simulation!$C$3,IF(D118=1,Simulation!$C$4,IF(D118=2,Simulation!$C$5,IF(D118=3,Simulation!$C$6,IF(D118=4,Simulation!$C$7,IF(D118=5,Simulation!$C$8))))))) -> FALSE | G118: 0 | P118: 0 | R118: 0 | S118: 0 | T118: Inlap | W118: FL
A119: 1 | B119: 108 | C119: 108 | E119: =IF(D119="Grid",Simulation!$B$2,IF(D119="WU",Simulation!$B$3,IF(D119=1,Simulation!$B$4,IF(D119=2,Simulation!$B$5,IF(D119=3,Simulation!$B$6,IF(D119=4,Simulation!$B$7,IF(D119=5,Simulation!$B$8))))))) -> FALSE | F119: =IF(D119="Grid",Simulation!$C$2,IF(D119="WU",Simulation!$C$3,IF(D119=1,Simulation!$C$4,IF(D119=2,Simulation!$C$5,IF(D119=3,Simulation!$C$6,IF(D119=4,Simulation!$C$7,IF(D119=5,Simulation!$C$8))))))) -> FALSE | G119: 0 | P119: 0 | R119: 0 | S119: 0 | T119: Inlap | W119: FL
A120: 1 | B120: 109 | C120: 109 | E120: =IF(D120="Grid",Simulation!$B$2,IF(D120="WU",Simulation!$B$3,IF(D120=1,Simulation!$B$4,IF(D120=2,Simulation!$B$5,IF(D120=3,Simulation!$B$6,IF(D120=4,Simulation!$B$7,IF(D120=5,Simulation!$B$8))))))) -> FALSE | F120: =IF(D120="Grid",Simulation!$C$2,IF(D120="WU",Simulation!$C$3,IF(D120=1,Simulation!$C$4,IF(D120=2,Simulation!$C$5,IF(D120=3,Simulation!$C$6,IF(D120=4,Simulation!$C$7,IF(D120=5,Simulation!$C$8))))))) -> FALSE | G120: 0 | P120: 0 | R120: 0 | S120: 0 | T120: Inlap | W120: FL
A121: 1 | B121: 110 | C121: 110 | E121: =IF(D121="Grid",Simulation!$B$2,IF(D121="WU",Simulation!$B$3,IF(D121=1,Simulation!$B$4,IF(D121=2,Simulation!$B$5,IF(D121=3,Simulation!$B$6,IF(D121=4,Simulation!$B$7,IF(D121=5,Simulation!$B$8))))))) -> FALSE | F121: =IF(D121="Grid",Simulation!$C$2,IF(D121="WU",Simulation!$C$3,IF(D121=1,Simulation!$C$4,IF(D121=2,Simulation!$C$5,IF(D121=3,Simulation!$C$6,IF(D121=4,Simulation!$C$7,IF(D121=5,Simulation!$C$8))))))) -> FALSE | G121: 0 | P121: 0 | R121: 0 | S121: 0 | T121: Inlap | W121: FL
A122: 1 | B122: 111 | C122: 111 | E122: =IF(D122="Grid",Simulation!$B$2,IF(D122="WU",Simulation!$B$3,IF(D122=1,Simulation!$B$4,IF(D122=2,Simulation!$B$5,IF(D122=3,Simulation!$B$6,IF(D122=4,Simulation!$B$7,IF(D122=5,Simulation!$B$8))))))) -> FALSE | F122: =IF(D122="Grid",Simulation!$C$2,IF(D122="WU",Simulation!$C$3,IF(D122=1,Simulation!$C$4,IF(D122=2,Simulation!$C$5,IF(D122=3,Simulation!$C$6,IF(D122=4,Simulation!$C$7,IF(D122=5,Simulation!$C$8))))))) -> FALSE | G122: 0 | P122: 0 | R122: 0 | S122: 0 | T122: Inlap | W122: FL
A123: 1 | B123: 112 | C123: 112 | E123: =IF(D123="Grid",Simulation!$B$2,IF(D123="WU",Simulation!$B$3,IF(D123=1,Simulation!$B$4,IF(D123=2,Simulation!$B$5,IF(D123=3,Simulation!$B$6,IF(D123=4,Simulation!$B$7,IF(D123=5,Simulation!$B$8))))))) -> FALSE | F123: =IF(D123="Grid",Simulation!$C$2,IF(D123="WU",Simulation!$C$3,IF(D123=1,Simulation!$C$4,IF(D123=2,Simulation!$C$5,IF(D123=3,Simulation!$C$6,IF(D123=4,Simulation!$C$7,IF(D123=5,Simulation!$C$8))))))) -> FALSE | G123: 0 | P123: 0 | R123: 0 | S123: 0 | T123: Inlap | W123: FL
A124: 1 | B124: 113 | C124: 113 | E124: =IF(D124="Grid",Simulation!$B$2,IF(D124="WU",Simulation!$B$3,IF(D124=1,Simulation!$B$4,IF(D124=2,Simulation!$B$5,IF(D124=3,Simulation!$B$6,IF(D124=4,Simulation!$B$7,IF(D124=5,Simulation!$B$8))))))) -> FALSE | F124: =IF(D124="Grid",Simulation!$C$2,IF(D124="WU",Simulation!$C$3,IF(D124=1,Simulation!$C$4,IF(D124=2,Simulation!$C$5,IF(D124=3,Simulation!$C$6,IF(D124=4,Simulation!$C$7,IF(D124=5,Simulation!$C$8))))))) -> FALSE | G124: 0 | P124: 0 | R124: 0 | S124: 0 | T124: Inlap | W124: FL
A125: 1 | B125: 114 | C125: 114 | E125: =IF(D125="Grid",Simulation!$B$2,IF(D125="WU",Simulation!$B$3,IF(D125=1,Simulation!$B$4,IF(D125=2,Simulation!$B$5,IF(D125=3,Simulation!$B$6,IF(D125=4,Simulation!$B$7,IF(D125=5,Simulation!$B$8))))))) -> FALSE | F125: =IF(D125="Grid",Simulation!$C$2,IF(D125="WU",Simulation!$C$3,IF(D125=1,Simulation!$C$4,IF(D125=2,Simulation!$C$5,IF(D125=3,Simulation!$C$6,IF(D125=4,Simulation!$C$7,IF(D125=5,Simulation!$C$8))))))) -> FALSE | G125: 0 | P125: 0 | R125: 0 | S125: 0 | T125: Inlap | W125: FL
A126: 1 | B126: 115 | C126: 115 | E126: =IF(D126="Grid",Simulation!$B$2,IF(D126="WU",Simulation!$B$3,IF(D126=1,Simulation!$B$4,IF(D126=2,Simulation!$B$5,IF(D126=3,Simulation!$B$6,IF(D126=4,Simulation!$B$7,IF(D126=5,Simulation!$B$8))))))) -> FALSE | F126: =IF(D126="Grid",Simulation!$C$2,IF(D126="WU",Simulation!$C$3,IF(D126=1,Simulation!$C$4,IF(D126=2,Simulation!$C$5,IF(D126=3,Simulation!$C$6,IF(D126=4,Simulation!$C$7,IF(D126=5,Simulation!$C$8))))))) -> FALSE | G126: 0 | P126: 0 | R126: 0 | S126: 0 | T126: Inlap | W126: FL
A127: 1 | B127: 116 | C127: 116 | E127: =IF(D127="Grid",Simulation!$B$2,IF(D127="WU",Simulation!$B$3,IF(D127=1,Simulation!$B$4,IF(D127=2,Simulation!$B$5,IF(D127=3,Simulation!$B$6,IF(D127=4,Simulation!$B$7,IF(D127=5,Simulation!$B$8))))))) -> FALSE | F127: =IF(D127="Grid",Simulation!$C$2,IF(D127="WU",Simulation!$C$3,IF(D127=1,Simulation!$C$4,IF(D127=2,Simulation!$C$5,IF(D127=3,Simulation!$C$6,IF(D127=4,Simulation!$C$7,IF(D127=5,Simulation!$C$8))))))) -> FALSE | G127: 0 | P127: 0 | R127: 0 | S127: 0 | T127: Inlap | W127: FL
A128: 1 | B128: 117 | C128: 117 | E128: =IF(D128="Grid",Simulation!$B$2,IF(D128="WU",Simulation!$B$3,IF(D128=1,Simulation!$B$4,IF(D128=2,Simulation!$B$5,IF(D128=3,Simulation!$B$6,IF(D128=4,Simulation!$B$7,IF(D128=5,Simulation!$B$8))))))) -> FALSE | F128: =IF(D128="Grid",Simulation!$C$2,IF(D128="WU",Simulation!$C$3,IF(D128=1,Simulation!$C$4,IF(D128=2,Simulation!$C$5,IF(D128=3,Simulation!$C$6,IF(D128=4,Simulation!$C$7,IF(D128=5,Simulation!$C$8))))))) -> FALSE | G128: 0 | P128: 0 | R128: 0 | S128: 0 | T128: Inlap | W128: FL
A129: 1 | B129: 118 | C129: 118 | E129: =IF(D129="Grid",Simulation!$B$2,IF(D129="WU",Simulation!$B$3,IF(D129=1,Simulation!$B$4,IF(D129=2,Simulation!$B$5,IF(D129=3,Simulation!$B$6,IF(D129=4,Simulation!$B$7,IF(D129=5,Simulation!$B$8))))))) -> FALSE | F129: =IF(D129="Grid",Simulation!$C$2,IF(D129="WU",Simulation!$C$3,IF(D129=1,Simulation!$C$4,IF(D129=2,Simulation!$C$5,IF(D129=3,Simulation!$C$6,IF(D129=4,Simulation!$C$7,IF(D129=5,Simulation!$C$8))))))) -> FALSE | G129: 0 | P129: 0 | R129: 0 | S129: 0 | T129: Inlap | W129: FL
A130: 1 | B130: 119 | C130: 119 | E130: =IF(D130="Grid",Simulation!$B$2,IF(D130="WU",Simulation!$B$3,IF(D130=1,Simulation!$B$4,IF(D130=2,Simulation!$B$5,IF(D130=3,Simulation!$B$6,IF(D130=4,Simulation!$B$7,IF(D130=5,Simulation!$B$8))))))) -> FALSE | F130: =IF(D130="Grid",Simulation!$C$2,IF(D130="WU",Simulation!$C$3,IF(D130=1,Simulation!$C$4,IF(D130=2,Simulation!$C$5,IF(D130=3,Simulation!$C$6,IF(D130=4,Simulation!$C$7,IF(D130=5,Simulation!$C$8))))))) -> FALSE | G130: 0 | P130: 0 | R130: 0 | S130: 0 | T130: Inlap | W130: FL
A131: 1 | B131: 120 | C131: 120 | E131: =IF(D131="Grid",Simulation!$B$2,IF(D131="WU",Simulation!$B$3,IF(D131=1,Simulation!$B$4,IF(D131=2,Simulation!$B$5,IF(D131=3,Simulation!$B$6,IF(D131=4,Simulation!$B$7,IF(D131=5,Simulation!$B$8))))))) -> FALSE | F131: =IF(D131="Grid",Simulation!$C$2,IF(D131="WU",Simulation!$C$3,IF(D131=1,Simulation!$C$4,IF(D131=2,Simulation!$C$5,IF(D131=3,Simulation!$C$6,IF(D131=4,Simulation!$C$7,IF(D131=5,Simulation!$C$8))))))) -> FALSE | G131: 0 | P131: 0 | R131: 0 | S131: 0 | T131: Inlap | W131: FL
A132: 1 | B132: 121 | C132: 121 | E132: =IF(D132="Grid",Simulation!$B$2,IF(D132="WU",Simulation!$B$3,IF(D132=1,Simulation!$B$4,IF(D132=2,Simulation!$B$5,IF(D132=3,Simulation!$B$6,IF(D132=4,Simulation!$B$7,IF(D132=5,Simulation!$B$8))))))) -> FALSE | F132: =IF(D132="Grid",Simulation!$C$2,IF(D132="WU",Simulation!$C$3,IF(D132=1,Simulation!$C$4,IF(D132=2,Simulation!$C$5,IF(D132=3,Simulation!$C$6,IF(D132=4,Simulation!$C$7,IF(D132=5,Simulation!$C$8))))))) -> FALSE | G132: 0 | P132: 0 | R132: 0 | S132: 0 | T132: Inlap | W132: FL
A133: 1 | B133: 122 | C133: 122 | E133: =IF(D133="Grid",Simulation!$B$2,IF(D133="WU",Simulation!$B$3,IF(D133=1,Simulation!$B$4,IF(D133=2,Simulation!$B$5,IF(D133=3,Simulation!$B$6,IF(D133=4,Simulation!$B$7,IF(D133=5,Simulation!$B$8))))))) -> FALSE | F133: =IF(D133="Grid",Simulation!$C$2,IF(D133="WU",Simulation!$C$3,IF(D133=1,Simulation!$C$4,IF(D133=2,Simulation!$C$5,IF(D133=3,Simulation!$C$6,IF(D133=4,Simulation!$C$7,IF(D133=5,Simulation!$C$8))))))) -> FALSE | G133: 0 | P133: 0 | R133: 0 | S133: 0 | T133: Inlap | W133: FL
A134: 1 | B134: 123 | C134: 123 | E134: =IF(D134="Grid",Simulation!$B$2,IF(D134="WU",Simulation!$B$3,IF(D134=1,Simulation!$B$4,IF(D134=2,Simulation!$B$5,IF(D134=3,Simulation!$B$6,IF(D134=4,Simulation!$B$7,IF(D134=5,Simulation!$B$8))))))) -> FALSE | F134: =IF(D134="Grid",Simulation!$C$2,IF(D134="WU",Simulation!$C$3,IF(D134=1,Simulation!$C$4,IF(D134=2,Simulation!$C$5,IF(D134=3,Simulation!$C$6,IF(D134=4,Simulation!$C$7,IF(D134=5,Simulation!$C$8))))))) -> FALSE | G134: 0 | P134: 0 | R134: 0 | S134: 0 | T134: Inlap | W134: FL
A135: 1 | B135: 124 | C135: 124 | E135: =IF(D135="Grid",Simulation!$B$2,IF(D135="WU",Simulation!$B$3,IF(D135=1,Simulation!$B$4,IF(D135=2,Simulation!$B$5,IF(D135=3,Simulation!$B$6,IF(D135=4,Simulation!$B$7,IF(D135=5,Simulation!$B$8))))))) -> FALSE | F135: =IF(D135="Grid",Simulation!$C$2,IF(D135="WU",Simulation!$C$3,IF(D135=1,Simulation!$C$4,IF(D135=2,Simulation!$C$5,IF(D135=3,Simulation!$C$6,IF(D135=4,Simulation!$C$7,IF(D135=5,Simulation!$C$8))))))) -> FALSE | G135: 0 | P135: 0 | R135: 0 | S135: 0 | T135: Inlap | W135: FL
A136: 1 | B136: 125 | C136: 125 | E136: =IF(D136="Grid",Simulation!$B$2,IF(D136="WU",Simulation!$B$3,IF(D136=1,Simulation!$B$4,IF(D136=2,Simulation!$B$5,IF(D136=3,Simulation!$B$6,IF(D136=4,Simulation!$B$7,IF(D136=5,Simulation!$B$8))))))) -> FALSE | F136: =IF(D136="Grid",Simulation!$C$2,IF(D136="WU",Simulation!$C$3,IF(D136=1,Simulation!$C$4,IF(D136=2,Simulation!$C$5,IF(D136=3,Simulation!$C$6,IF(D136=4,Simulation!$C$7,IF(D136=5,Simulation!$C$8))))))) -> FALSE | G136: 0 | P136: 0 | R136: 0 | S136: 0 | T136: Inlap | W136: FL
A137: 1 | B137: 126 | C137: 126 | E137: =IF(D137="Grid",Simulation!$B$2,IF(D137="WU",Simulation!$B$3,IF(D137=1,Simulation!$B$4,IF(D137=2,Simulation!$B$5,IF(D137=3,Simulation!$B$6,IF(D137=4,Simulation!$B$7,IF(D137=5,Simulation!$B$8))))))) -> FALSE | F137: =IF(D137="Grid",Simulation!$C$2,IF(D137="WU",Simulation!$C$3,IF(D137=1,Simulation!$C$4,IF(D137=2,Simulation!$C$5,IF(D137=3,Simulation!$C$6,IF(D137=4,Simulation!$C$7,IF(D137=5,Simulation!$C$8))))))) -> FALSE | G137: 0 | P137: 0 | R137: 0 | S137: 0 | T137: Inlap | W137: FL
A138: 1 | B138: 127 | C138: 127 | E138: =IF(D138="Grid",Simulation!$B$2,IF(D138="WU",Simulation!$B$3,IF(D138=1,Simulation!$B$4,IF(D138=2,Simulation!$B$5,IF(D138=3,Simulation!$B$6,IF(D138=4,Simulation!$B$7,IF(D138=5,Simulation!$B$8))))))) -> FALSE | F138: =IF(D138="Grid",Simulation!$C$2,IF(D138="WU",Simulation!$C$3,IF(D138=1,Simulation!$C$4,IF(D138=2,Simulation!$C$5,IF(D138=3,Simulation!$C$6,IF(D138=4,Simulation!$C$7,IF(D138=5,Simulation!$C$8))))))) -> FALSE | G138: 0 | P138: 0 | R138: 0 | S138: 0 | T138: Inlap | W138: FL
A139: 1 | B139: 128 | C139: 128 | E139: =IF(D139="Grid",Simulation!$B$2,IF(D139="WU",Simulation!$B$3,IF(D139=1,Simulation!$B$4,IF(D139=2,Simulation!$B$5,IF(D139=3,Simulation!$B$6,IF(D139=4,Simulation!$B$7,IF(D139=5,Simulation!$B$8))))))) -> FALSE | F139: =IF(D139="Grid",Simulation!$C$2,IF(D139="WU",Simulation!$C$3,IF(D139=1,Simulation!$C$4,IF(D139=2,Simulation!$C$5,IF(D139=3,Simulation!$C$6,IF(D139=4,Simulation!$C$7,IF(D139=5,Simulation!$C$8))))))) -> FALSE | G139: 0 | P139: 0 | R139: 0 | S139: 0 | T139: =IF(S139<=F139,"Inlap",IF(S139<=2*F139,"Call: In this lap!",IF(S139<=3*F139,"Show in but don't call!",""))) -> Inlap | W139: FL
A140: =IF(O140>0,A139+1,A139) -> 1 | B140: 129 | C140: 129 | E140: =IF(D140="Grid",Simulation!$B$2,IF(D140="WU",Simulation!$B$3,IF(D140=1,Simulation!$B$4,IF(D140=2,Simulation!$B$5,IF(D140=3,Simulation!$B$6,IF(D140=4,Simulation!$B$7,IF(D140=5,Simulation!$B$8))))))) -> FALSE | F140: =IF(D140="Grid",Simulation!$C$2,IF(D140="WU",Simulation!$C$3,IF(D140=1,Simulation!$C$4,IF(D140=2,Simulation!$C$5,IF(D140=3,Simulation!$C$6,IF(D140=4,Simulation!$C$7,IF(D140=5,Simulation!$C$8))))))) -> FALSE | G140: =G139+O139-P139 -> 0 | P140: 0 | R140: 0 | S140: =IF(O140>0,O140+S139-Q140,S139-P140) -> 0 | T140: Inlap | W140: =IF(J140=$Q$2,"FL","") -> FL
A141: 1 | B141: 130 | C141: 130 | E141: =IF(D141="Grid",Simulation!$B$2,IF(D141="WU",Simulation!$B$3,IF(D141=1,Simulation!$B$4,IF(D141=2,Simulation!$B$5,IF(D141=3,Simulation!$B$6,IF(D141=4,Simulation!$B$7,IF(D141=5,Simulation!$B$8))))))) -> FALSE | F141: =IF(D141="Grid",Simulation!$C$2,IF(D141="WU",Simulation!$C$3,IF(D141=1,Simulation!$C$4,IF(D141=2,Simulation!$C$5,IF(D141=3,Simulation!$C$6,IF(D141=4,Simulation!$C$7,IF(D141=5,Simulation!$C$8))))))) -> FALSE | G141: 0 | K141: =IF(J141<>0,K140,"") ->  | P141: 0 | R141: 0 | S141: 0 | T141: Inlap | W141: FL
A142: 1 | B142: 131 | C142: =IF(O142="",C141+1,"1") -> 131 | E142: =IF(D142="Grid",Simulation!$B$2,IF(D142="WU",Simulation!$B$3,IF(D142=1,Simulation!$B$4,IF(D142=2,Simulation!$B$5,IF(D142=3,Simulation!$B$6,IF(D142=4,Simulation!$B$7,IF(D142=5,Simulation!$B$8))))))) -> FALSE | F142: =IF(D142="Grid",Simulation!$C$2,IF(D142="WU",Simulation!$C$3,IF(D142=1,Simulation!$C$4,IF(D142=2,Simulation!$C$5,IF(D142=3,Simulation!$C$6,IF(D142=4,Simulation!$C$7,IF(D142=5,Simulation!$C$8))))))) -> FALSE | G142: 0 | P142: 0 | R142: 0 | S142: 0 | T142: Inlap | W142: FL
A143: 1 | B143: 132 | C143: 132 | E143: =IF(D143="Grid",Simulation!$B$2,IF(D143="WU",Simulation!$B$3,IF(D143=1,Simulation!$B$4,IF(D143=2,Simulation!$B$5,IF(D143=3,Simulation!$B$6,IF(D143=4,Simulation!$B$7,IF(D143=5,Simulation!$B$8))))))) -> FALSE | F143: =IF(D143="Grid",Simulation!$C$2,IF(D143="WU",Simulation!$C$3,IF(D143=1,Simulation!$C$4,IF(D143=2,Simulation!$C$5,IF(D143=3,Simulation!$C$6,IF(D143=4,Simulation!$C$7,IF(D143=5,Simulation!$C$8))))))) -> FALSE | G143: 0 | P143: 0 | R143: 0 | S143: 0 | T143: Inlap | W143: FL
A144: 1 | B144: 133 | C144: 133 | E144: =IF(D144="Grid",Simulation!$B$2,IF(D144="WU",Simulation!$B$3,IF(D144=1,Simulation!$B$4,IF(D144=2,Simulation!$B$5,IF(D144=3,Simulation!$B$6,IF(D144=4,Simulation!$B$7,IF(D144=5,Simulation!$B$8))))))) -> FALSE | F144: =IF(D144="Grid",Simulation!$C$2,IF(D144="WU",Simulation!$C$3,IF(D144=1,Simulation!$C$4,IF(D144=2,Simulation!$C$5,IF(D144=3,Simulation!$C$6,IF(D144=4,Simulation!$C$7,IF(D144=5,Simulation!$C$8))))))) -> FALSE | G144: 0 | P144: 0 | R144: 0 | S144: 0 | T144: Inlap | W144: FL
A145: 1 | B145: 134 | C145: 134 | E145: =IF(D145="Grid",Simulation!$B$2,IF(D145="WU",Simulation!$B$3,IF(D145=1,Simulation!$B$4,IF(D145=2,Simulation!$B$5,IF(D145=3,Simulation!$B$6,IF(D145=4,Simulation!$B$7,IF(D145=5,Simulation!$B$8))))))) -> FALSE | F145: =IF(D145="Grid",Simulation!$C$2,IF(D145="WU",Simulation!$C$3,IF(D145=1,Simulation!$C$4,IF(D145=2,Simulation!$C$5,IF(D145=3,Simulation!$C$6,IF(D145=4,Simulation!$C$7,IF(D145=5,Simulation!$C$8))))))) -> FALSE | G145: 0 | P145: 0 | R145: 0 | S145: 0 | T145: Inlap | W145: FL
A146: 1 | B146: 135 | C146: 135 | E146: =IF(D146="Grid",Simulation!$B$2,IF(D146="WU",Simulation!$B$3,IF(D146=1,Simulation!$B$4,IF(D146=2,Simulation!$B$5,IF(D146=3,Simulation!$B$6,IF(D146=4,Simulation!$B$7,IF(D146=5,Simulation!$B$8))))))) -> FALSE | F146: =IF(D146="Grid",Simulation!$C$2,IF(D146="WU",Simulation!$C$3,IF(D146=1,Simulation!$C$4,IF(D146=2,Simulation!$C$5,IF(D146=3,Simulation!$C$6,IF(D146=4,Simulation!$C$7,IF(D146=5,Simulation!$C$8))))))) -> FALSE | G146: 0 | P146: 0 | R146: 0 | S146: 0 | T146: Inlap | W146: FL
A147: 1 | B147: 136 | C147: 136 | E147: =IF(D147="Grid",Simulation!$B$2,IF(D147="WU",Simulation!$B$3,IF(D147=1,Simulation!$B$4,IF(D147=2,Simulation!$B$5,IF(D147=3,Simulation!$B$6,IF(D147=4,Simulation!$B$7,IF(D147=5,Simulation!$B$8))))))) -> FALSE | F147: =IF(D147="Grid",Simulation!$C$2,IF(D147="WU",Simulation!$C$3,IF(D147=1,Simulation!$C$4,IF(D147=2,Simulation!$C$5,IF(D147=3,Simulation!$C$6,IF(D147=4,Simulation!$C$7,IF(D147=5,Simulation!$C$8))))))) -> FALSE | G147: 0 | P147: 0 | R147: 0 | S147: 0 | T147: Inlap | W147: FL
A148: 1 | B148: 137 | C148: 137 | E148: =IF(D148="Grid",Simulation!$B$2,IF(D148="WU",Simulation!$B$3,IF(D148=1,Simulation!$B$4,IF(D148=2,Simulation!$B$5,IF(D148=3,Simulation!$B$6,IF(D148=4,Simulation!$B$7,IF(D148=5,Simulation!$B$8))))))) -> FALSE | F148: =IF(D148="Grid",Simulation!$C$2,IF(D148="WU",Simulation!$C$3,IF(D148=1,Simulation!$C$4,IF(D148=2,Simulation!$C$5,IF(D148=3,Simulation!$C$6,IF(D148=4,Simulation!$C$7,IF(D148=5,Simulation!$C$8))))))) -> FALSE | G148: 0 | P148: 0 | R148: 0 | S148: 0 | T148: Inlap | W148: FL
A149: 1 | B149: 138 | C149: 138 | E149: =IF(D149="Grid",Simulation!$B$2,IF(D149="WU",Simulation!$B$3,IF(D149=1,Simulation!$B$4,IF(D149=2,Simulation!$B$5,IF(D149=3,Simulation!$B$6,IF(D149=4,Simulation!$B$7,IF(D149=5,Simulation!$B$8))))))) -> FALSE | F149: =IF(D149="Grid",Simulation!$C$2,IF(D149="WU",Simulation!$C$3,IF(D149=1,Simulation!$C$4,IF(D149=2,Simulation!$C$5,IF(D149=3,Simulation!$C$6,IF(D149=4,Simulation!$C$7,IF(D149=5,Simulation!$C$8))))))) -> FALSE | G149: 0 | P149: 0 | R149: 0 | S149: 0 | T149: Inlap | W149: FL
A150: 1 | B150: 139 | C150: 139 | E150: =IF(D150="Grid",Simulation!$B$2,IF(D150="WU",Simulation!$B$3,IF(D150=1,Simulation!$B$4,IF(D150=2,Simulation!$B$5,IF(D150=3,Simulation!$B$6,IF(D150=4,Simulation!$B$7,IF(D150=5,Simulation!$B$8))))))) -> FALSE | F150: =IF(D150="Grid",Simulation!$C$2,IF(D150="WU",Simulation!$C$3,IF(D150=1,Simulation!$C$4,IF(D150=2,Simulation!$C$5,IF(D150=3,Simulation!$C$6,IF(D150=4,Simulation!$C$7,IF(D150=5,Simulation!$C$8))))))) -> FALSE | G150: 0 | P150: 0 | R150: 0 | S150: 0 | T150: Inlap | W150: FL
A151: 1 | B151: 140 | C151: 140 | E151: =IF(D151="Grid",Simulation!$B$2,IF(D151="WU",Simulation!$B$3,IF(D151=1,Simulation!$B$4,IF(D151=2,Simulation!$B$5,IF(D151=3,Simulation!$B$6,IF(D151=4,Simulation!$B$7,IF(D151=5,Simulation!$B$8))))))) -> FALSE | F151: =IF(D151="Grid",Simulation!$C$2,IF(D151="WU",Simulation!$C$3,IF(D151=1,Simulation!$C$4,IF(D151=2,Simulation!$C$5,IF(D151=3,Simulation!$C$6,IF(D151=4,Simulation!$C$7,IF(D151=5,Simulation!$C$8))))))) -> FALSE | G151: 0 | P151: 0 | R151: 0 | S151: 0 | T151: Inlap | W151: FL
A152: 1 | B152: 141 | C152: 141 | E152: =IF(D152="Grid",Simulation!$B$2,IF(D152="WU",Simulation!$B$3,IF(D152=1,Simulation!$B$4,IF(D152=2,Simulation!$B$5,IF(D152=3,Simulation!$B$6,IF(D152=4,Simulation!$B$7,IF(D152=5,Simulation!$B$8))))))) -> FALSE | F152: =IF(D152="Grid",Simulation!$C$2,IF(D152="WU",Simulation!$C$3,IF(D152=1,Simulation!$C$4,IF(D152=2,Simulation!$C$5,IF(D152=3,Simulation!$C$6,IF(D152=4,Simulation!$C$7,IF(D152=5,Simulation!$C$8))))))) -> FALSE | G152: 0 | P152: 0 | R152: 0 | S152: 0 | T152: Inlap | W152: FL
A153: 1 | B153: 142 | C153: 142 | E153: =IF(D153="Grid",Simulation!$B$2,IF(D153="WU",Simulation!$B$3,IF(D153=1,Simulation!$B$4,IF(D153=2,Simulation!$B$5,IF(D153=3,Simulation!$B$6,IF(D153=4,Simulation!$B$7,IF(D153=5,Simulation!$B$8))))))) -> FALSE | F153: =IF(D153="Grid",Simulation!$C$2,IF(D153="WU",Simulation!$C$3,IF(D153=1,Simulation!$C$4,IF(D153=2,Simulation!$C$5,IF(D153=3,Simulation!$C$6,IF(D153=4,Simulation!$C$7,IF(D153=5,Simulation!$C$8))))))) -> FALSE | G153: 0 | P153: 0 | R153: 0 | S153: 0 | T153: Inlap | W153: FL
A154: 1 | B154: 143 | C154: 143 | E154: =IF(D154="Grid",Simulation!$B$2,IF(D154="WU",Simulation!$B$3,IF(D154=1,Simulation!$B$4,IF(D154=2,Simulation!$B$5,IF(D154=3,Simulation!$B$6,IF(D154=4,Simulation!$B$7,IF(D154=5,Simulation!$B$8))))))) -> FALSE | F154: =IF(D154="Grid",Simulation!$C$2,IF(D154="WU",Simulation!$C$3,IF(D154=1,Simulation!$C$4,IF(D154=2,Simulation!$C$5,IF(D154=3,Simulation!$C$6,IF(D154=4,Simulation!$C$7,IF(D154=5,Simulation!$C$8))))))) -> FALSE | G154: 0 | P154: 0 | R154: 0 | S154: 0 | T154: Inlap | W154: FL
A155: 1 | B155: 144 | C155: 144 | E155: =IF(D155="Grid",Simulation!$B$2,IF(D155="WU",Simulation!$B$3,IF(D155=1,Simulation!$B$4,IF(D155=2,Simulation!$B$5,IF(D155=3,Simulation!$B$6,IF(D155=4,Simulation!$B$7,IF(D155=5,Simulation!$B$8))))))) -> FALSE | F155: =IF(D155="Grid",Simulation!$C$2,IF(D155="WU",Simulation!$C$3,IF(D155=1,Simulation!$C$4,IF(D155=2,Simulation!$C$5,IF(D155=3,Simulation!$C$6,IF(D155=4,Simulation!$C$7,IF(D155=5,Simulation!$C$8))))))) -> FALSE | G155: 0 | P155: 0 | R155: 0 | S155: 0 | T155: Inlap | W155: FL
A156: 1 | B156: 145 | C156: 145 | E156: =IF(D156="Grid",Simulation!$B$2,IF(D156="WU",Simulation!$B$3,IF(D156=1,Simulation!$B$4,IF(D156=2,Simulation!$B$5,IF(D156=3,Simulation!$B$6,IF(D156=4,Simulation!$B$7,IF(D156=5,Simulation!$B$8))))))) -> FALSE | F156: =IF(D156="Grid",Simulation!$C$2,IF(D156="WU",Simulation!$C$3,IF(D156=1,Simulation!$C$4,IF(D156=2,Simulation!$C$5,IF(D156=3,Simulation!$C$6,IF(D156=4,Simulation!$C$7,IF(D156=5,Simulation!$C$8))))))) -> FALSE | G156: 0 | P156: 0 | R156: 0 | S156: 0 | T156: Inlap | W156: FL
A157: 1 | B157: 146 | C157: 146 | E157: =IF(D157="Grid",Simulation!$B$2,IF(D157="WU",Simulation!$B$3,IF(D157=1,Simulation!$B$4,IF(D157=2,Simulation!$B$5,IF(D157=3,Simulation!$B$6,IF(D157=4,Simulation!$B$7,IF(D157=5,Simulation!$B$8))))))) -> FALSE | F157: =IF(D157="Grid",Simulation!$C$2,IF(D157="WU",Simulation!$C$3,IF(D157=1,Simulation!$C$4,IF(D157=2,Simulation!$C$5,IF(D157=3,Simulation!$C$6,IF(D157=4,Simulation!$C$7,IF(D157=5,Simulation!$C$8))))))) -> FALSE | G157: 0 | P157: 0 | R157: 0 | S157: 0 | T157: Inlap | W157: FL
A158: 1 | B158: 147 | C158: 147 | E158: =IF(D158="Grid",Simulation!$B$2,IF(D158="WU",Simulation!$B$3,IF(D158=1,Simulation!$B$4,IF(D158=2,Simulation!$B$5,IF(D158=3,Simulation!$B$6,IF(D158=4,Simulation!$B$7,IF(D158=5,Simulation!$B$8))))))) -> FALSE | F158: =IF(D158="Grid",Simulation!$C$2,IF(D158="WU",Simulation!$C$3,IF(D158=1,Simulation!$C$4,IF(D158=2,Simulation!$C$5,IF(D158=3,Simulation!$C$6,IF(D158=4,Simulation!$C$7,IF(D158=5,Simulation!$C$8))))))) -> FALSE | G158: 0 | P158: 0 | R158: 0 | S158: 0 | T158: Inlap | W158: FL
A159: 1 | B159: 148 | C159: 148 | E159: =IF(D159="Grid",Simulation!$B$2,IF(D159="WU",Simulation!$B$3,IF(D159=1,Simulation!$B$4,IF(D159=2,Simulation!$B$5,IF(D159=3,Simulation!$B$6,IF(D159=4,Simulation!$B$7,IF(D159=5,Simulation!$B$8))))))) -> FALSE | F159: =IF(D159="Grid",Simulation!$C$2,IF(D159="WU",Simulation!$C$3,IF(D159=1,Simulation!$C$4,IF(D159=2,Simulation!$C$5,IF(D159=3,Simulation!$C$6,IF(D159=4,Simulation!$C$7,IF(D159=5,Simulation!$C$8))))))) -> FALSE | G159: 0 | P159: 0 | R159: 0 | S159: 0 | T159: Inlap | W159: FL
A160: 1 | B160: 149 | C160: 149 | E160: =IF(D160="Grid",Simulation!$B$2,IF(D160="WU",Simulation!$B$3,IF(D160=1,Simulation!$B$4,IF(D160=2,Simulation!$B$5,IF(D160=3,Simulation!$B$6,IF(D160=4,Simulation!$B$7,IF(D160=5,Simulation!$B$8))))))) -> FALSE | F160: =IF(D160="Grid",Simulation!$C$2,IF(D160="WU",Simulation!$C$3,IF(D160=1,Simulation!$C$4,IF(D160=2,Simulation!$C$5,IF(D160=3,Simulation!$C$6,IF(D160=4,Simulation!$C$7,IF(D160=5,Simulation!$C$8))))))) -> FALSE | G160: 0 | P160: 0 | R160: 0 | S160: 0 | T160: Inlap | W160: FL
A161: 1 | B161: 150 | C161: 150 | E161: =IF(D161="Grid",Simulation!$B$2,IF(D161="WU",Simulation!$B$3,IF(D161=1,Simulation!$B$4,IF(D161=2,Simulation!$B$5,IF(D161=3,Simulation!$B$6,IF(D161=4,Simulation!$B$7,IF(D161=5,Simulation!$B$8))))))) -> FALSE | F161: =IF(D161="Grid",Simulation!$C$2,IF(D161="WU",Simulation!$C$3,IF(D161=1,Simulation!$C$4,IF(D161=2,Simulation!$C$5,IF(D161=3,Simulation!$C$6,IF(D161=4,Simulation!$C$7,IF(D161=5,Simulation!$C$8))))))) -> FALSE | G161: 0 | P161: 0 | R161: 0 | S161: 0 | T161: Inlap | W161: FL
A162: 1 | B162: 151 | C162: 151 | E162: =IF(D162="Grid",Simulation!$B$2,IF(D162="WU",Simulation!$B$3,IF(D162=1,Simulation!$B$4,IF(D162=2,Simulation!$B$5,IF(D162=3,Simulation!$B$6,IF(D162=4,Simulation!$B$7,IF(D162=5,Simulation!$B$8))))))) -> FALSE | F162: =IF(D162="Grid",Simulation!$C$2,IF(D162="WU",Simulation!$C$3,IF(D162=1,Simulation!$C$4,IF(D162=2,Simulation!$C$5,IF(D162=3,Simulation!$C$6,IF(D162=4,Simulation!$C$7,IF(D162=5,Simulation!$C$8))))))) -> FALSE | G162: 0 | P162: 0 | R162: 0 | S162: 0 | T162: Inlap | W162: FL
A163: 1 | B163: 152 | C163: 152 | E163: =IF(D163="Grid",Simulation!$B$2,IF(D163="WU",Simulation!$B$3,IF(D163=1,Simulation!$B$4,IF(D163=2,Simulation!$B$5,IF(D163=3,Simulation!$B$6,IF(D163=4,Simulation!$B$7,IF(D163=5,Simulation!$B$8))))))) -> FALSE | F163: =IF(D163="Grid",Simulation!$C$2,IF(D163="WU",Simulation!$C$3,IF(D163=1,Simulation!$C$4,IF(D163=2,Simulation!$C$5,IF(D163=3,Simulation!$C$6,IF(D163=4,Simulation!$C$7,IF(D163=5,Simulation!$C$8))))))) -> FALSE | G163: 0 | P163: 0 | R163: 0 | S163: 0 | T163: Inlap | W163: FL
A164: 1 | B164: 153 | C164: 153 | E164: =IF(D164="Grid",Simulation!$B$2,IF(D164="WU",Simulation!$B$3,IF(D164=1,Simulation!$B$4,IF(D164=2,Simulation!$B$5,IF(D164=3,Simulation!$B$6,IF(D164=4,Simulation!$B$7,IF(D164=5,Simulation!$B$8))))))) -> FALSE | F164: =IF(D164="Grid",Simulation!$C$2,IF(D164="WU",Simulation!$C$3,IF(D164=1,Simulation!$C$4,IF(D164=2,Simulation!$C$5,IF(D164=3,Simulation!$C$6,IF(D164=4,Simulation!$C$7,IF(D164=5,Simulation!$C$8))))))) -> FALSE | G164: 0 | P164: 0 | R164: 0 | S164: 0 | T164: Inlap | W164: FL
A165: 1 | B165: 154 | C165: 154 | E165: =IF(D165="Grid",Simulation!$B$2,IF(D165="WU",Simulation!$B$3,IF(D165=1,Simulation!$B$4,IF(D165=2,Simulation!$B$5,IF(D165=3,Simulation!$B$6,IF(D165=4,Simulation!$B$7,IF(D165=5,Simulation!$B$8))))))) -> FALSE | F165: =IF(D165="Grid",Simulation!$C$2,IF(D165="WU",Simulation!$C$3,IF(D165=1,Simulation!$C$4,IF(D165=2,Simulation!$C$5,IF(D165=3,Simulation!$C$6,IF(D165=4,Simulation!$C$7,IF(D165=5,Simulation!$C$8))))))) -> FALSE | G165: 0 | P165: 0 | R165: 0 | S165: 0 | T165: Inlap | W165: FL
A166: 1 | B166: 155 | C166: 155 | E166: =IF(D166="Grid",Simulation!$B$2,IF(D166="WU",Simulation!$B$3,IF(D166=1,Simulation!$B$4,IF(D166=2,Simulation!$B$5,IF(D166=3,Simulation!$B$6,IF(D166=4,Simulation!$B$7,IF(D166=5,Simulation!$B$8))))))) -> FALSE | F166: =IF(D166="Grid",Simulation!$C$2,IF(D166="WU",Simulation!$C$3,IF(D166=1,Simulation!$C$4,IF(D166=2,Simulation!$C$5,IF(D166=3,Simulation!$C$6,IF(D166=4,Simulation!$C$7,IF(D166=5,Simulation!$C$8))))))) -> FALSE | G166: 0 | P166: 0 | R166: 0 | S166: 0 | T166: Inlap | W166: FL
A167: 1 | B167: 156 | C167: 156 | E167: =IF(D167="Grid",Simulation!$B$2,IF(D167="WU",Simulation!$B$3,IF(D167=1,Simulation!$B$4,IF(D167=2,Simulation!$B$5,IF(D167=3,Simulation!$B$6,IF(D167=4,Simulation!$B$7,IF(D167=5,Simulation!$B$8))))))) -> FALSE | F167: =IF(D167="Grid",Simulation!$C$2,IF(D167="WU",Simulation!$C$3,IF(D167=1,Simulation!$C$4,IF(D167=2,Simulation!$C$5,IF(D167=3,Simulation!$C$6,IF(D167=4,Simulation!$C$7,IF(D167=5,Simulation!$C$8))))))) -> FALSE | G167: 0 | P167: 0 | R167: 0 | S167: 0 | T167: Inlap | W167: FL
A168: 1 | B168: 157 | C168: 157 | E168: =IF(D168="Grid",Simulation!$B$2,IF(D168="WU",Simulation!$B$3,IF(D168=1,Simulation!$B$4,IF(D168=2,Simulation!$B$5,IF(D168=3,Simulation!$B$6,IF(D168=4,Simulation!$B$7,IF(D168=5,Simulation!$B$8))))))) -> FALSE | F168: =IF(D168="Grid",Simulation!$C$2,IF(D168="WU",Simulation!$C$3,IF(D168=1,Simulation!$C$4,IF(D168=2,Simulation!$C$5,IF(D168=3,Simulation!$C$6,IF(D168=4,Simulation!$C$7,IF(D168=5,Simulation!$C$8))))))) -> FALSE | G168: 0 | P168: 0 | R168: 0 | S168: 0 | T168: Inlap | W168: FL
A169: 1 | B169: 158 | C169: 158 | E169: =IF(D169="Grid",Simulation!$B$2,IF(D169="WU",Simulation!$B$3,IF(D169=1,Simulation!$B$4,IF(D169=2,Simulation!$B$5,IF(D169=3,Simulation!$B$6,IF(D169=4,Simulation!$B$7,IF(D169=5,Simulation!$B$8))))))) -> FALSE | F169: =IF(D169="Grid",Simulation!$C$2,IF(D169="WU",Simulation!$C$3,IF(D169=1,Simulation!$C$4,IF(D169=2,Simulation!$C$5,IF(D169=3,Simulation!$C$6,IF(D169=4,Simulation!$C$7,IF(D169=5,Simulation!$C$8))))))) -> FALSE | G169: 0 | P169: 0 | R169: 0 | S169: 0 | T169: Inlap | W169: FL
A170: 1 | B170: 159 | C170: 159 | E170: =IF(D170="Grid",Simulation!$B$2,IF(D170="WU",Simulation!$B$3,IF(D170=1,Simulation!$B$4,IF(D170=2,Simulation!$B$5,IF(D170=3,Simulation!$B$6,IF(D170=4,Simulation!$B$7,IF(D170=5,Simulation!$B$8))))))) -> FALSE | F170: =IF(D170="Grid",Simulation!$C$2,IF(D170="WU",Simulation!$C$3,IF(D170=1,Simulation!$C$4,IF(D170=2,Simulation!$C$5,IF(D170=3,Simulation!$C$6,IF(D170=4,Simulation!$C$7,IF(D170=5,Simulation!$C$8))))))) -> FALSE | G170: 0 | P170: 0 | R170: 0 | S170: 0 | T170: Inlap | W170: FL
A171: 1 | B171: 160 | C171: 160 | E171: =IF(D171="Grid",Simulation!$B$2,IF(D171="WU",Simulation!$B$3,IF(D171=1,Simulation!$B$4,IF(D171=2,Simulation!$B$5,IF(D171=3,Simulation!$B$6,IF(D171=4,Simulation!$B$7,IF(D171=5,Simulation!$B$8))))))) -> FALSE | F171: =IF(D171="Grid",Simulation!$C$2,IF(D171="WU",Simulation!$C$3,IF(D171=1,Simulation!$C$4,IF(D171=2,Simulation!$C$5,IF(D171=3,Simulation!$C$6,IF(D171=4,Simulation!$C$7,IF(D171=5,Simulation!$C$8))))))) -> FALSE | G171: 0 | P171: 0 | R171: 0 | S171: 0 | T171: Inlap | W171: FL
A172: 1 | B172: 161 | C172: 161 | E172: =IF(D172="Grid",Simulation!$B$2,IF(D172="WU",Simulation!$B$3,IF(D172=1,Simulation!$B$4,IF(D172=2,Simulation!$B$5,IF(D172=3,Simulation!$B$6,IF(D172=4,Simulation!$B$7,IF(D172=5,Simulation!$B$8))))))) -> FALSE | F172: =IF(D172="Grid",Simulation!$C$2,IF(D172="WU",Simulation!$C$3,IF(D172=1,Simulation!$C$4,IF(D172=2,Simulation!$C$5,IF(D172=3,Simulation!$C$6,IF(D172=4,Simulation!$C$7,IF(D172=5,Simulation!$C$8))))))) -> FALSE | G172: 0 | P172: 0 | R172: 0 | S172: 0 | T172: Inlap | W172: FL
A173: 1 | B173: 162 | C173: 162 | E173: =IF(D173="Grid",Simulation!$B$2,IF(D173="WU",Simulation!$B$3,IF(D173=1,Simulation!$B$4,IF(D173=2,Simulation!$B$5,IF(D173=3,Simulation!$B$6,IF(D173=4,Simulation!$B$7,IF(D173=5,Simulation!$B$8))))))) -> FALSE | F173: =IF(D173="Grid",Simulation!$C$2,IF(D173="WU",Simulation!$C$3,IF(D173=1,Simulation!$C$4,IF(D173=2,Simulation!$C$5,IF(D173=3,Simulation!$C$6,IF(D173=4,Simulation!$C$7,IF(D173=5,Simulation!$C$8))))))) -> FALSE | G173: 0 | P173: 0 | R173: 0 | S173: 0 | T173: Inlap | W173: FL
A174: 1 | B174: 163 | C174: 163 | E174: =IF(D174="Grid",Simulation!$B$2,IF(D174="WU",Simulation!$B$3,IF(D174=1,Simulation!$B$4,IF(D174=2,Simulation!$B$5,IF(D174=3,Simulation!$B$6,IF(D174=4,Simulation!$B$7,IF(D174=5,Simulation!$B$8))))))) -> FALSE | F174: =IF(D174="Grid",Simulation!$C$2,IF(D174="WU",Simulation!$C$3,IF(D174=1,Simulation!$C$4,IF(D174=2,Simulation!$C$5,IF(D174=3,Simulation!$C$6,IF(D174=4,Simulation!$C$7,IF(D174=5,Simulation!$C$8))))))) -> FALSE | G174: 0 | P174: =IF(O174>0,Q174,Q174-Q173) -> 0 | R174: 0 | S174: 0 | T174: Inlap | W174: FL
A175: 1 | B175: 164 | C175: 164 | E175: =IF(D175="Grid",Simulation!$B$2,IF(D175="WU",Simulation!$B$3,IF(D175=1,Simulation!$B$4,IF(D175=2,Simulation!$B$5,IF(D175=3,Simulation!$B$6,IF(D175=4,Simulation!$B$7,IF(D175=5,Simulation!$B$8))))))) -> FALSE | F175: =IF(D175="Grid",Simulation!$C$2,IF(D175="WU",Simulation!$C$3,IF(D175=1,Simulation!$C$4,IF(D175=2,Simulation!$C$5,IF(D175=3,Simulation!$C$6,IF(D175=4,Simulation!$C$7,IF(D175=5,Simulation!$C$8))))))) -> FALSE | G175: 0 | P175: 0 | R175: 0 | S175: 0 | T175: Inlap | W175: FL
A176: 1 | B176: 165 | C176: 165 | E176: =IF(D176="Grid",Simulation!$B$2,IF(D176="WU",Simulation!$B$3,IF(D176=1,Simulation!$B$4,IF(D176=2,Simulation!$B$5,IF(D176=3,Simulation!$B$6,IF(D176=4,Simulation!$B$7,IF(D176=5,Simulation!$B$8))))))) -> FALSE | F176: =IF(D176="Grid",Simulation!$C$2,IF(D176="WU",Simulation!$C$3,IF(D176=1,Simulation!$C$4,IF(D176=2,Simulation!$C$5,IF(D176=3,Simulation!$C$6,IF(D176=4,Simulation!$C$7,IF(D176=5,Simulation!$C$8))))))) -> FALSE | G176: 0 | P176: 0 | R176: 0 | S176: 0 | T176: Inlap | W176: FL
A177: 1 | B177: 166 | C177: 166 | E177: =IF(D177="Grid",Simulation!$B$2,IF(D177="WU",Simulation!$B$3,IF(D177=1,Simulation!$B$4,IF(D177=2,Simulation!$B$5,IF(D177=3,Simulation!$B$6,IF(D177=4,Simulation!$B$7,IF(D177=5,Simulation!$B$8))))))) -> FALSE | F177: =IF(D177="Grid",Simulation!$C$2,IF(D177="WU",Simulation!$C$3,IF(D177=1,Simulation!$C$4,IF(D177=2,Simulation!$C$5,IF(D177=3,Simulation!$C$6,IF(D177=4,Simulation!$C$7,IF(D177=5,Simulation!$C$8))))))) -> FALSE | G177: 0 | P177: 0 | R177: 0 | S177: 0 | T177: Inlap | W177: FL
A178: 1 | B178: 167 | C178: 167 | E178: =IF(D178="Grid",Simulation!$B$2,IF(D178="WU",Simulation!$B$3,IF(D178=1,Simulation!$B$4,IF(D178=2,Simulation!$B$5,IF(D178=3,Simulation!$B$6,IF(D178=4,Simulation!$B$7,IF(D178=5,Simulation!$B$8))))))) -> FALSE | F178: =IF(D178="Grid",Simulation!$C$2,IF(D178="WU",Simulation!$C$3,IF(D178=1,Simulation!$C$4,IF(D178=2,Simulation!$C$5,IF(D178=3,Simulation!$C$6,IF(D178=4,Simulation!$C$7,IF(D178=5,Simulation!$C$8))))))) -> FALSE | G178: 0 | P178: 0 | R178: 0 | S178: 0 | T178: Inlap | W178: FL
A179: 1 | B179: 168 | C179: 168 | E179: =IF(D179="Grid",Simulation!$B$2,IF(D179="WU",Simulation!$B$3,IF(D179=1,Simulation!$B$4,IF(D179=2,Simulation!$B$5,IF(D179=3,Simulation!$B$6,IF(D179=4,Simulation!$B$7,IF(D179=5,Simulation!$B$8))))))) -> FALSE | F179: =IF(D179="Grid",Simulation!$C$2,IF(D179="WU",Simulation!$C$3,IF(D179=1,Simulation!$C$4,IF(D179=2,Simulation!$C$5,IF(D179=3,Simulation!$C$6,IF(D179=4,Simulation!$C$7,IF(D179=5,Simulation!$C$8))))))) -> FALSE | G179: 0 | P179: 0 | R179: 0 | S179: 0 | T179: Inlap | W179: FL
A180: 1 | B180: 169 | C180: 169 | E180: =IF(D180="Grid",Simulation!$B$2,IF(D180="WU",Simulation!$B$3,IF(D180=1,Simulation!$B$4,IF(D180=2,Simulation!$B$5,IF(D180=3,Simulation!$B$6,IF(D180=4,Simulation!$B$7,IF(D180=5,Simulation!$B$8))))))) -> FALSE | F180: =IF(D180="Grid",Simulation!$C$2,IF(D180="WU",Simulation!$C$3,IF(D180=1,Simulation!$C$4,IF(D180=2,Simulation!$C$5,IF(D180=3,Simulation!$C$6,IF(D180=4,Simulation!$C$7,IF(D180=5,Simulation!$C$8))))))) -> FALSE | G180: 0 | P180: 0 | R180: 0 | S180: 0 | T180: Inlap | W180: FL
A181: 1 | B181: 170 | C181: 170 | E181: =IF(D181="Grid",Simulation!$B$2,IF(D181="WU",Simulation!$B$3,IF(D181=1,Simulation!$B$4,IF(D181=2,Simulation!$B$5,IF(D181=3,Simulation!$B$6,IF(D181=4,Simulation!$B$7,IF(D181=5,Simulation!$B$8))))))) -> FALSE | F181: =IF(D181="Grid",Simulation!$C$2,IF(D181="WU",Simulation!$C$3,IF(D181=1,Simulation!$C$4,IF(D181=2,Simulation!$C$5,IF(D181=3,Simulation!$C$6,IF(D181=4,Simulation!$C$7,IF(D181=5,Simulation!$C$8))))))) -> FALSE | G181: 0 | P181: 0 | R181: =IF(O181>0,Q181,Q181-Q180) -> 0 | S181: 0 | T181: Inlap | W181: FL
A182: 1 | B182: 171 | C182: 171 | E182: =IF(D182="Grid",Simulation!$B$2,IF(D182="WU",Simulation!$B$3,IF(D182=1,Simulation!$B$4,IF(D182=2,Simulation!$B$5,IF(D182=3,Simulation!$B$6,IF(D182=4,Simulation!$B$7,IF(D182=5,Simulation!$B$8))))))) -> FALSE | F182: =IF(D182="Grid",Simulation!$C$2,IF(D182="WU",Simulation!$C$3,IF(D182=1,Simulation!$C$4,IF(D182=2,Simulation!$C$5,IF(D182=3,Simulation!$C$6,IF(D182=4,Simulation!$C$7,IF(D182=5,Simulation!$C$8))))))) -> FALSE | G182: 0 | P182: 0 | R182: 0 | S182: 0 | T182: Inlap | W182: FL
A183: 1 | B183: 172 | C183: 172 | E183: =IF(D183="Grid",Simulation!$B$2,IF(D183="WU",Simulation!$B$3,IF(D183=1,Simulation!$B$4,IF(D183=2,Simulation!$B$5,IF(D183=3,Simulation!$B$6,IF(D183=4,Simulation!$B$7,IF(D183=5,Simulation!$B$8))))))) -> FALSE | F183: =IF(D183="Grid",Simulation!$C$2,IF(D183="WU",Simulation!$C$3,IF(D183=1,Simulation!$C$4,IF(D183=2,Simulation!$C$5,IF(D183=3,Simulation!$C$6,IF(D183=4,Simulation!$C$7,IF(D183=5,Simulation!$C$8))))))) -> FALSE | G183: 0 | P183: 0 | R183: 0 | S183: 0 | T183: Inlap | W183: FL
A184: 1 | B184: 173 | C184: 173 | E184: =IF(D184="Grid",Simulation!$B$2,IF(D184="WU",Simulation!$B$3,IF(D184=1,Simulation!$B$4,IF(D184=2,Simulation!$B$5,IF(D184=3,Simulation!$B$6,IF(D184=4,Simulation!$B$7,IF(D184=5,Simulation!$B$8))))))) -> FALSE | F184: =IF(D184="Grid",Simulation!$C$2,IF(D184="WU",Simulation!$C$3,IF(D184=1,Simulation!$C$4,IF(D184=2,Simulation!$C$5,IF(D184=3,Simulation!$C$6,IF(D184=4,Simulation!$C$7,IF(D184=5,Simulation!$C$8))))))) -> FALSE | G184: 0 | P184: 0 | R184: 0 | S184: 0 | T184: Inlap | W184: FL
A185: 1 | B185: 174 | C185: 174 | E185: =IF(D185="Grid",Simulation!$B$2,IF(D185="WU",Simulation!$B$3,IF(D185=1,Simulation!$B$4,IF(D185=2,Simulation!$B$5,IF(D185=3,Simulation!$B$6,IF(D185=4,Simulation!$B$7,IF(D185=5,Simulation!$B$8))))))) -> FALSE | F185: =IF(D185="Grid",Simulation!$C$2,IF(D185="WU",Simulation!$C$3,IF(D185=1,Simulation!$C$4,IF(D185=2,Simulation!$C$5,IF(D185=3,Simulation!$C$6,IF(D185=4,Simulation!$C$7,IF(D185=5,Simulation!$C$8))))))) -> FALSE | G185: 0 | P185: 0 | R185: 0 | S185: 0 | T185: Inlap | W185: FL
A186: 1 | B186: 175 | C186: 175 | E186: =IF(D186="Grid",Simulation!$B$2,IF(D186="WU",Simulation!$B$3,IF(D186=1,Simulation!$B$4,IF(D186=2,Simulation!$B$5,IF(D186=3,Simulation!$B$6,IF(D186=4,Simulation!$B$7,IF(D186=5,Simulation!$B$8))))))) -> FALSE | F186: =IF(D186="Grid",Simulation!$C$2,IF(D186="WU",Simulation!$C$3,IF(D186=1,Simulation!$C$4,IF(D186=2,Simulation!$C$5,IF(D186=3,Simulation!$C$6,IF(D186=4,Simulation!$C$7,IF(D186=5,Simulation!$C$8))))))) -> FALSE | G186: 0 | P186: 0 | R186: 0 | S186: 0 | T186: Inlap | W186: FL
A187: 1 | B187: 176 | C187: 176 | E187: =IF(D187="Grid",Simulation!$B$2,IF(D187="WU",Simulation!$B$3,IF(D187=1,Simulation!$B$4,IF(D187=2,Simulation!$B$5,IF(D187=3,Simulation!$B$6,IF(D187=4,Simulation!$B$7,IF(D187=5,Simulation!$B$8))))))) -> FALSE | F187: =IF(D187="Grid",Simulation!$C$2,IF(D187="WU",Simulation!$C$3,IF(D187=1,Simulation!$C$4,IF(D187=2,Simulation!$C$5,IF(D187=3,Simulation!$C$6,IF(D187=4,Simulation!$C$7,IF(D187=5,Simulation!$C$8))))))) -> FALSE | G187: 0 | P187: 0 | R187: 0 | S187: 0 | T187: Inlap | W187: FL
A188: 1 | B188: 177 | C188: 177 | E188: =IF(D188="Grid",Simulation!$B$2,IF(D188="WU",Simulation!$B$3,IF(D188=1,Simulation!$B$4,IF(D188=2,Simulation!$B$5,IF(D188=3,Simulation!$B$6,IF(D188=4,Simulation!$B$7,IF(D188=5,Simulation!$B$8))))))) -> FALSE | F188: =IF(D188="Grid",Simulation!$C$2,IF(D188="WU",Simulation!$C$3,IF(D188=1,Simulation!$C$4,IF(D188=2,Simulation!$C$5,IF(D188=3,Simulation!$C$6,IF(D188=4,Simulation!$C$7,IF(D188=5,Simulation!$C$8))))))) -> FALSE | G188: 0 | P188: 0 | R188: 0 | S188: 0 | T188: Inlap | W188: FL
A189: 1 | B189: 178 | C189: 178 | E189: =IF(D189="Grid",Simulation!$B$2,IF(D189="WU",Simulation!$B$3,IF(D189=1,Simulation!$B$4,IF(D189=2,Simulation!$B$5,IF(D189=3,Simulation!$B$6,IF(D189=4,Simulation!$B$7,IF(D189=5,Simulation!$B$8))))))) -> FALSE | F189: =IF(D189="Grid",Simulation!$C$2,IF(D189="WU",Simulation!$C$3,IF(D189=1,Simulation!$C$4,IF(D189=2,Simulation!$C$5,IF(D189=3,Simulation!$C$6,IF(D189=4,Simulation!$C$7,IF(D189=5,Simulation!$C$8))))))) -> FALSE | G189: 0 | P189: 0 | R189: 0 | S189: 0 | T189: Inlap | W189: FL
A190: 1 | B190: 179 | C190: 179 | E190: =IF(D190="Grid",Simulation!$B$2,IF(D190="WU",Simulation!$B$3,IF(D190=1,Simulation!$B$4,IF(D190=2,Simulation!$B$5,IF(D190=3,Simulation!$B$6,IF(D190=4,Simulation!$B$7,IF(D190=5,Simulation!$B$8))))))) -> FALSE | F190: =IF(D190="Grid",Simulation!$C$2,IF(D190="WU",Simulation!$C$3,IF(D190=1,Simulation!$C$4,IF(D190=2,Simulation!$C$5,IF(D190=3,Simulation!$C$6,IF(D190=4,Simulation!$C$7,IF(D190=5,Simulation!$C$8))))))) -> FALSE | G190: 0 | P190: 0 | R190: 0 | S190: 0 | T190: Inlap | W190: FL
A191: 1 | B191: 180 | C191: 180 | E191: =IF(D191="Grid",Simulation!$B$2,IF(D191="WU",Simulation!$B$3,IF(D191=1,Simulation!$B$4,IF(D191=2,Simulation!$B$5,IF(D191=3,Simulation!$B$6,IF(D191=4,Simulation!$B$7,IF(D191=5,Simulation!$B$8))))))) -> FALSE | F191: =IF(D191="Grid",Simulation!$C$2,IF(D191="WU",Simulation!$C$3,IF(D191=1,Simulation!$C$4,IF(D191=2,Simulation!$C$5,IF(D191=3,Simulation!$C$6,IF(D191=4,Simulation!$C$7,IF(D191=5,Simulation!$C$8))))))) -> FALSE | G191: 0 | P191: 0 | R191: 0 | S191: 0 | T191: Inlap | W191: FL
A192: 1 | B192: 181 | C192: 181 | E192: =IF(D192="Grid",Simulation!$B$2,IF(D192="WU",Simulation!$B$3,IF(D192=1,Simulation!$B$4,IF(D192=2,Simulation!$B$5,IF(D192=3,Simulation!$B$6,IF(D192=4,Simulation!$B$7,IF(D192=5,Simulation!$B$8))))))) -> FALSE | F192: =IF(D192="Grid",Simulation!$C$2,IF(D192="WU",Simulation!$C$3,IF(D192=1,Simulation!$C$4,IF(D192=2,Simulation!$C$5,IF(D192=3,Simulation!$C$6,IF(D192=4,Simulation!$C$7,IF(D192=5,Simulation!$C$8))))))) -> FALSE | G192: 0 | P192: 0 | R192: 0 | S192: 0 | T192: Inlap | W192: FL
A193: 1 | B193: 182 | C193: 182 | E193: =IF(D193="Grid",Simulation!$B$2,IF(D193="WU",Simulation!$B$3,IF(D193=1,Simulation!$B$4,IF(D193=2,Simulation!$B$5,IF(D193=3,Simulation!$B$6,IF(D193=4,Simulation!$B$7,IF(D193=5,Simulation!$B$8))))))) -> FALSE | F193: =IF(D193="Grid",Simulation!$C$2,IF(D193="WU",Simulation!$C$3,IF(D193=1,Simulation!$C$4,IF(D193=2,Simulation!$C$5,IF(D193=3,Simulation!$C$6,IF(D193=4,Simulation!$C$7,IF(D193=5,Simulation!$C$8))))))) -> FALSE | G193: 0 | P193: 0 | R193: 0 | S193: 0 | T193: Inlap | W193: FL
A194: 1 | B194: 183 | C194: 183 | E194: =IF(D194="Grid",Simulation!$B$2,IF(D194="WU",Simulation!$B$3,IF(D194=1,Simulation!$B$4,IF(D194=2,Simulation!$B$5,IF(D194=3,Simulation!$B$6,IF(D194=4,Simulation!$B$7,IF(D194=5,Simulation!$B$8))))))) -> FALSE | F194: =IF(D194="Grid",Simulation!$C$2,IF(D194="WU",Simulation!$C$3,IF(D194=1,Simulation!$C$4,IF(D194=2,Simulation!$C$5,IF(D194=3,Simulation!$C$6,IF(D194=4,Simulation!$C$7,IF(D194=5,Simulation!$C$8))))))) -> FALSE | G194: 0 | P194: 0 | R194: 0 | S194: 0 | T194: Inlap | W194: FL
A195: 1 | B195: 184 | C195: 184 | E195: =IF(D195="Grid",Simulation!$B$2,IF(D195="WU",Simulation!$B$3,IF(D195=1,Simulation!$B$4,IF(D195=2,Simulation!$B$5,IF(D195=3,Simulation!$B$6,IF(D195=4,Simulation!$B$7,IF(D195=5,Simulation!$B$8))))))) -> FALSE | F195: =IF(D195="Grid",Simulation!$C$2,IF(D195="WU",Simulation!$C$3,IF(D195=1,Simulation!$C$4,IF(D195=2,Simulation!$C$5,IF(D195=3,Simulation!$C$6,IF(D195=4,Simulation!$C$7,IF(D195=5,Simulation!$C$8))))))) -> FALSE | G195: 0 | P195: 0 | R195: 0 | S195: 0 | T195: Inlap | W195: FL
A196: 1 | B196: 185 | C196: 185 | E196: =IF(D196="Grid",Simulation!$B$2,IF(D196="WU",Simulation!$B$3,IF(D196=1,Simulation!$B$4,IF(D196=2,Simulation!$B$5,IF(D196=3,Simulation!$B$6,IF(D196=4,Simulation!$B$7,IF(D196=5,Simulation!$B$8))))))) -> FALSE | F196: =IF(D196="Grid",Simulation!$C$2,IF(D196="WU",Simulation!$C$3,IF(D196=1,Simulation!$C$4,IF(D196=2,Simulation!$C$5,IF(D196=3,Simulation!$C$6,IF(D196=4,Simulation!$C$7,IF(D196=5,Simulation!$C$8))))))) -> FALSE | G196: 0 | P196: 0 | R196: 0 | S196: 0 | T196: Inlap | W196: FL
A197: 1 | B197: 186 | C197: 186 | E197: =IF(D197="Grid",Simulation!$B$2,IF(D197="WU",Simulation!$B$3,IF(D197=1,Simulation!$B$4,IF(D197=2,Simulation!$B$5,IF(D197=3,Simulation!$B$6,IF(D197=4,Simulation!$B$7,IF(D197=5,Simulation!$B$8))))))) -> FALSE | F197: =IF(D197="Grid",Simulation!$C$2,IF(D197="WU",Simulation!$C$3,IF(D197=1,Simulation!$C$4,IF(D197=2,Simulation!$C$5,IF(D197=3,Simulation!$C$6,IF(D197=4,Simulation!$C$7,IF(D197=5,Simulation!$C$8))))))) -> FALSE | G197: 0 | P197: 0 | R197: 0 | S197: 0 | T197: Inlap | W197: FL
A198: 1 | B198: 187 | C198: 187 | E198: =IF(D198="Grid",Simulation!$B$2,IF(D198="WU",Simulation!$B$3,IF(D198=1,Simulation!$B$4,IF(D198=2,Simulation!$B$5,IF(D198=3,Simulation!$B$6,IF(D198=4,Simulation!$B$7,IF(D198=5,Simulation!$B$8))))))) -> FALSE | F198: =IF(D198="Grid",Simulation!$C$2,IF(D198="WU",Simulation!$C$3,IF(D198=1,Simulation!$C$4,IF(D198=2,Simulation!$C$5,IF(D198=3,Simulation!$C$6,IF(D198=4,Simulation!$C$7,IF(D198=5,Simulation!$C$8))))))) -> FALSE | G198: 0 | P198: 0 | R198: 0 | S198: 0 | T198: Inlap | W198: FL
A199: 1 | B199: 188 | C199: 188 | E199: =IF(D199="Grid",Simulation!$B$2,IF(D199="WU",Simulation!$B$3,IF(D199=1,Simulation!$B$4,IF(D199=2,Simulation!$B$5,IF(D199=3,Simulation!$B$6,IF(D199=4,Simulation!$B$7,IF(D199=5,Simulation!$B$8))))))) -> FALSE | F199: =IF(D199="Grid",Simulation!$C$2,IF(D199="WU",Simulation!$C$3,IF(D199=1,Simulation!$C$4,IF(D199=2,Simulation!$C$5,IF(D199=3,Simulation!$C$6,IF(D199=4,Simulation!$C$7,IF(D199=5,Simulation!$C$8))))))) -> FALSE | G199: 0 | P199: 0 | R199: 0 | S199: 0 | T199: Inlap | W199: FL
A200: 1 | B200: 189 | C200: 189 | E200: =IF(D200="Grid",Simulation!$B$2,IF(D200="WU",Simulation!$B$3,IF(D200=1,Simulation!$B$4,IF(D200=2,Simulation!$B$5,IF(D200=3,Simulation!$B$6,IF(D200=4,Simulation!$B$7,IF(D200=5,Simulation!$B$8))))))) -> FALSE | F200: =IF(D200="Grid",Simulation!$C$2,IF(D200="WU",Simulation!$C$3,IF(D200=1,Simulation!$C$4,IF(D200=2,Simulation!$C$5,IF(D200=3,Simulation!$C$6,IF(D200=4,Simulation!$C$7,IF(D200=5,Simulation!$C$8))))))) -> FALSE | G200: 0 | P200: 0 | R200: 0 | S200: 0 | T200: Inlap | W200: FL
... 312 more rows

Sheet Session (2)
A1: Engineer | D1: =Data!F8 -> Engineer 1 | J1: Event | K1: =Data!C8 -> 0 | O1: Date
A2: Data Engineer | D2: =Data!F9 -> Data Eng. 1 | J2: Session | O2: Best Lap | Q2: =MIN($J$11:$J$512) -> 00:00:00
A3: #1 Mechanic | D3: =Data!F11 -> Mechanic 1 | J3: Short | K3: =Data!C16 -> 3200 | O3: Avg Lap | Q3: =AVERAGE($J$11:$J$512) -> 
A4: Driver ID 1 | D4: =Data!F13 -> Driver1 | J4: Regular | K4: =Data!C17 -> 3200
A5: Driver ID 2 | D5: =Data!F14 -> Driver2 | J5: Tot. S Laps | K5: =COUNTIF(K11:K512,"S") -> 0
A6: Driver ID 3 | D6: =Data!F15 -> Driver3 | J6: Tot. R Laps | K6: =COUNTIF(K11:K512,"R") -> 1
A7: Driver ID 4 | D7: =Data!F16 -> Driver4 | J7: Tot. Milage | K7: =(K5*K3)+(K6*K4)/1000 -> 3.2
A8: Driver ID 5 | D8: =Data!F17 -> Driver5
W9: FL
A10: Out | B10: RL | C10: OL | D10: ID | E10: Driver | F10: Th. Lap Cons | G10: Rest | H10: TOD | I10: Out / In | J10: Lap Time | K10: S / R | L10: Change | M10: Comment | O10: Fuel in | P10: th. Lap cons | Q10: F-TOTAL | R10: Lap Cons | S10: Rest | T10: In this Lap?
A11: 1 | B11: Grid | C11: Grid | E11: =IF(D11="Grid",Simulation!$B$2,IF(D11="WU",Simulation!$B$3,IF(D11=1,Simulation!$B$4,IF(D11=2,Simulation!$B$5,IF(D11=3,Simulation!$B$6,IF(D11=4,Simulation!$B$7,IF(D11=5,Simulation!$B$8))))))) -> FALSE | F11: =IF(D11="Grid",Simulation!$C$2,IF(D11="WU",Simulation!$C$3,IF(D11=1,Simulation!$C$4,IF(D11=2,Simulation!$C$5,IF(D11=3,Simulation!$C$6,IF(D11=4,Simulation!$C$7,IF(D11=5,Simulation!$C$8))))))) -> FALSE | K11: R | R11: =Q11 -> 0 | S11: =O11-R11 -> 0 | T11: =IF(S11<=F11,"Inlap",IF(S11<=2*F11,"Call: In this lap!",IF(S11<=3*F11,"Show in but don't call!",""))) -> Inlap | W11: =IF(J11=$Q$2,"FL","") -> FL
A12: =IF(O12>0,A11+1,A11) -> 1 | B12: 1 | C12: 1 | E12: =IF(D12="Grid",Simulation!$B$2,IF(D12="WU",Simulation!$B$3,IF(D12=1,Simulation!$B$4,IF(D12=2,Simulation!$B$5,IF(D12=3,Simulation!$B$6,IF(D12=4,Simulation!$B$7,IF(D12=5,Simulation!$B$8))))))) -> FALSE | F12: =IF(D12="Grid",Simulation!$C$2,IF(D12="WU",Simulation!$C$3,IF(D12=1,Simulation!$C$4,IF(D12=2,Simulation!$C$5,IF(D12=3,Simulation!$C$6,IF(D12=4,Simulation!$C$7,IF(D12=5,Simulation!$C$8))))))) -> FALSE | G12: =G11+O11-P11 -> 0 | K12: =IF(J12<>0,K11,"") ->  | P12: =IF(O12>0,Q12,Q12-Q11) -> 0 | R12: =IF(O12>0,Q12,Q12-Q11) -> 0 | S12: =IF(O12>0,O12+S11-Q12,S11-P12) -> 0 | T12: =IF(S12<=F12,"Inlap",IF(S12<=2*F12,"Call: In this lap!",IF(S12<=3*F12,"Show in but don't call!",""))) -> Inlap | W12: =IF(J12=$Q$2,"FL","") -> FL
A13: 1 | B13: 2 | C13: 2 | E13: =IF(D13="Grid",Simulation!$B$2,IF(D13="WU",Simulation!$B$3,IF(D13=1,Simulation!$B$4,IF(D13=2,Simulation!$B$5,IF(D13=3,Simulation!$B$6,IF(D13=4,Simulation!$B$7,IF(D13=5,Simulation!$B$8))))))) -> FALSE | F13: =IF(D13="Grid",Simulation!$C$2,IF(D13="WU",Simulation!$C$3,IF(D13=1,Simulation!$C$4,IF(D13=2,Simulation!$C$5,IF(D13=3,Simulation!$C$6,IF(D13=4,Simulation!$C$7,IF(D13=5,Simulation!$C$8))))))) -> FALSE | G13: 0 | K13: =IF(J13<>0,K12,"") ->  | P13: 0 | R13: 0 | S13: 0 | T13: Inlap | W13: FL
A14: 1 | B14: 3 | C14: =IF(O14="",C13+1,"1") -> 3 | E14: =IF(D14="Grid",Simulation!$B$2,IF(D14="WU",Simulation!$B$3,IF(D14=1,Simulation!$B$4,IF(D14=2,Simulation!$B$5,IF(D14=3,Simulation!$B$6,IF(D14=4,Simulation!$B$7,IF(D14=5,Simulation!$B$8))))))) -> FALSE | F14: =IF(D14="Grid",Simulation!$C$2,IF(D14="WU",Simulation!$C$3,IF(D14=1,Simulation!$C$4,IF(D14=2,Simulation!$C$5,IF(D14=3,Simulation!$C$6,IF(D14=4,Simulation!$C$7,IF(D14=5,Simulation!$C$8))))))) -> FALSE | G14: 0 | P14: 0 | R14: 0 | S14: 0 | T14: Inlap | W14: FL
A15: 1 | B15: 4 | C15: 4 | E15: =IF(D15="Grid",Simulation!$B$2,IF(D15="WU",Simulation!$B$3,IF(D15=1,Simulation!$B$4,IF(D15=2,Simulation!$B$5,IF(D15=3,Simulation!$B$6,IF(D15=4,Simulation!$B$7,IF(D15=5,Simulation!$B$8))))))) -> FALSE | F15: =IF(D15="Grid",Simulation!$C$2,IF(D15="WU",Simulation!$C$3,IF(D15=1,Simulation!$C$4,IF(D15=2,Simulation!$C$5,IF(D15=3,Simulation!$C$6,IF(D15=4,Simulation!$C$7,IF(D15=5,Simulation!$C$8))))))) -> FALSE | G15: 0 | P15: 0 | R15: 0 | S15: 0 | T15: Inlap | W15: FL
A16: 1 | B16: 5 | C16: 5 | E16: =IF(D16="Grid",Simulation!$B$2,IF(D16="WU",Simulation!$B$3,IF(D16=1,Simulation!$B$4,IF(D16=2,Simulation!$B$5,IF(D16=3,Simulation!$B$6,IF(D16=4,Simulation!$B$7,IF(D16=5,Simulation!$B$8))))))) -> FALSE | F16: =IF(D16="Grid",Simulation!$C$2,IF(D16="WU",Simulation!$C$3,IF(D16=1,Simulation!$C$4,IF(D16=2,Simulation!$C$5,IF(D16=3,Simulation!$C$6,IF(D16=4,Simulation!$C$7,IF(D16=5,Simulation!$C$8))))))) -> FALSE | G16: 0 | P16: 0 | R16: 0 | S16: 0 | T16: Inlap | W16: FL
A17: 1 | B17: 6 | C17: 6 | E17: =IF(D17="Grid",Simulation!$B$2,IF(D17="WU",Simulation!$B$3,IF(D17=1,Simulation!$B$4,IF(D17=2,Simulation!$B$5,IF(D17=3,Simulation!$B$6,IF(D17=4,Simulation!$B$7,IF(D17=5,Simulation!$B$8))))))) -> FALSE | F17: =IF(D17="Grid",Simulation!$C$2,IF(D17="WU",Simulation!$C$3,IF(D17=1,Simulation!$C$4,IF(D17=2,Simulation!$C$5,IF(D17=3,Simulation!$C$6,IF(D17=4,Simulation!$C$7,IF(D17=5,Simulation!$C$8))))))) -> FALSE | G17: 0 | P17: 0 | R17: 0 | S17: 0 | T17: Inlap | W17: FL
A18: 1 | B18: 7 | C18: 7 | E18: =IF(D18="Grid",Simulation!$B$2,IF(D18="WU",Simulation!$B$3,IF(D18=1,Simulation!$B$4,IF(D18=2,Simulation!$B$5,IF(D18=3,Simulation!$B$6,IF(D18=4,Simulation!$B$7,IF(D18=5,Simulation!$B$8))))))) -> FALSE | F18: =IF(D18="Grid",Simulation!$C$2,IF(D18="WU",Simulation!$C$3,IF(D18=1,Simulation!$C$4,IF(D18=2,Simulation!$C$5,IF(D18=3,Simulation!$C$6,IF(D18=4,Simulation!$C$7,IF(D18=5,Simulation!$C$8))))))) -> FALSE | G18: 0 | P18: 0 | R18: 0 | S18: 0 | T18: Inlap | W18: FL
A19: 1 | B19: 8 | C19: 8 | E19: =IF(D19="Grid",Simulation!$B$2,IF(D19="WU",Simulation!$B$3,IF(D19=1,Simulation!$B$4,IF(D19=2,Simulation!$B$5,IF(D19=3,Simulation!$B$6,IF(D19=4,Simulation!$B$7,IF(D19=5,Simulation!$B$8))))))) -> FALSE | F19: =IF(D19="Grid",Simulation!$C$2,IF(D19="WU",Simulation!$C$3,IF(D19=1,Simulation!$C$4,IF(D19=2,Simulation!$C$5,IF(D19=3,Simulation!$C$6,IF(D19=4,Simulation!$C$7,IF(D19=5,Simulation!$C$8))))))) -> FALSE | G19: 0 | P19: 0 | R19: 0 | S19: 0 | T19: Inlap | W19: FL
A20: 1 | B20: 9 | C20: 9 | E20: =IF(D20="Grid",Simulation!$B$2,IF(D20="WU",Simulation!$B$3,IF(D20=1,Simulation!$B$4,IF(D20=2,Simulation!$B$5,IF(D20=3,Simulation!$B$6,IF(D20=4,Simulation!$B$7,IF(D20=5,Simulation!$B$8))))))) -> FALSE | F20: =IF(D20="Grid",Simulation!$C$2,IF(D20="WU",Simulation!$C$3,IF(D20=1,Simulation!$C$4,IF(D20=2,Simulation!$C$5,IF(D20=3,Simulation!$C$6,IF(D20=4,Simulation!$C$7,IF(D20=5,Simulation!$C$8))))))) -> FALSE | G20: 0 | P20: 0 | R20: 0 | S20: 0 | T20: Inlap | W20: FL
A21: 1 | B21: 10 | C21: 10 | E21: =IF(D21="Grid",Simulation!$B$2,IF(D21="WU",Simulation!$B$3,IF(D21=1,Simulation!$B$4,IF(D21=2,Simulation!$B$5,IF(D21=3,Simulation!$B$6,IF(D21=4,Simulation!$B$7,IF(D21=5,Simulation!$B$8))))))) -> FALSE | F21: =IF(D21="Grid",Simulation!$C$2,IF(D21="WU",Simulation!$C$3,IF(D21=1,Simulation!$C$4,IF(D21=2,Simulation!$C$5,IF(D21=3,Simulation!$C$6,IF(D21=4,Simulation!$C$7,IF(D21=5,Simulation!$C$8))))))) -> FALSE | G21: 0 | P21: 0 | R21: 0 | S21: 0 | T21: Inlap | W21: FL
A22: 1 | B22: 11 | C22: 11 | E22: =IF(D22="Grid",Simulation!$B$2,IF(D22="WU",Simulation!$B$3,IF(D22=1,Simulation!$B$4,IF(D22=2,Simulation!$B$5,IF(D22=3,Simulation!$B$6,IF(D22=4,Simulation!$B$7,IF(D22=5,Simulation!$B$8))))))) -> FALSE | F22: =IF(D22="Grid",Simulation!$C$2,IF(D22="WU",Simulation!$C$3,IF(D22=1,Simulation!$C$4,IF(D22=2,Simulation!$C$5,IF(D22=3,Simulation!$C$6,IF(D22=4,Simulation!$C$7,IF(D22=5,Simulation!$C$8))))))) -> FALSE | G22: 0 | P22: 0 | R22: 0 | S22: 0 | T22: Inlap | W22: FL
A23: 1 | B23: 12 | C23: 12 | E23: =IF(D23="Grid",Simulation!$B$2,IF(D23="WU",Simulation!$B$3,IF(D23=1,Simulation!$B$4,IF(D23=2,Simulation!$B$5,IF(D23=3,Simulation!$B$6,IF(D23=4,Simulation!$B$7,IF(D23=5,Simulation!$B$8))))))) -> FALSE | F23: =IF(D23="Grid",Simulation!$C$2,IF(D23="WU",Simulation!$C$3,IF(D23=1,Simulation!$C$4,IF(D23=2,Simulation!$C$5,IF(D23=3,Simulation!$C$6,IF(D23=4,Simulation!$C$7,IF(D23=5,Simulation!$C$8))))))) -> FALSE | G23: 0 | P23: 0 | R23: 0 | S23: 0 | T23: Inlap | W23: FL
A24: 1 | B24: 13 | C24: 13 | E24: =IF(D24="Grid",Simulation!$B$2,IF(D24="WU",Simulation!$B$3,IF(D24=1,Simulation!$B$4,IF(D24=2,Simulation!$B$5,IF(D24=3,Simulation!$B$6,IF(D24=4,Simulation!$B$7,IF(D24=5,Simulation!$B$8))))))) -> FALSE | F24: =IF(D24="Grid",Simulation!$C$2,IF(D24="WU",Simulation!$C$3,IF(D24=1,Simulation!$C$4,IF(D24=2,Simulation!$C$5,IF(D24=3,Simulation!$C$6,IF(D24=4,Simulation!$C$7,IF(D24=5,Simulation!$C$8))))))) -> FALSE | G24: 0 | P24: 0 | R24: 0 | S24: 0 | T24: Inlap | W24: FL
A25: 1 | B25: 14 | C25: 14 | E25: =IF(D25="Grid",Simulation!$B$2,IF(D25="WU",Simulation!$B$3,IF(D25=1,Simulation!$B$4,IF(D25=2,Simulation!$B$5,IF(D25=3,Simulation!$B$6,IF(D25=4,Simulation!$B$7,IF(D25=5,Simulation!$B$8))))))) -> FALSE | F25: =IF(D25="Grid",Simulation!$C$2,IF(D25="WU",Simulation!$C$3,IF(D25=1,Simulation!$C$4,IF(D25=2,Simulation!$C$5,IF(D25=3,Simulation!$C$6,IF(D25=4,Simulation!$C$7,IF(D25=5,Simulation!$C$8))))))) -> FALSE | G25: 0 | P25: 0 | R25: 0 | S25: 0 | T25: Inlap | W25: FL
A26: 1 | B26: 15 | C26: 15 | E26: =IF(D26="Grid",Simulation!$B$2,IF(D26="WU",Simulation!$B$3,IF(D26=1,Simulation!$B$4,IF(D26=2,Simulation!$B$5,IF(D26=3,Simulation!$B$6,IF(D26=4,Simulation!$B$7,IF(D26=5,Simulation!$B$8))))))) -> FALSE | F26: =IF(D26="Grid",Simulation!$C$2,IF(D26="WU",Simulation!$C$3,IF(D26=1,Simulation!$C$4,IF(D26=2,Simulation!$C$5,IF(D26=3,Simulation!$C$6,IF(D26=4,Simulation!$C$7,IF(D26=5,Simulation!$C$8))))))) -> FALSE | G26: 0 | P26: 0 | R26: 0 | S26: 0 | T26: Inlap | W26: FL
A27: 1 | B27: 16 | C27: 16 | E27: =IF(D27="Grid",Simulation!$B$2,IF(D27="WU",Simulation!$B$3,IF(D27=1,Simulation!$B$4,IF(D27=2,Simulation!$B$5,IF(D27=3,Simulation!$B$6,IF(D27=4,Simulation!$B$7,IF(D27=5,Simulation!$B$8))))))) -> FALSE | F27: =IF(D27="Grid",Simulation!$C$2,IF(D27="WU",Simulation!$C$3,IF(D27=1,Simulation!$C$4,IF(D27=2,Simulation!$C$5,IF(D27=3,Simulation!$C$6,IF(D27=4,Simulation!$C$7,IF(D27=5,Simulation!$C$8))))))) -> FALSE | G27: 0 | P27: 0 | R27: 0 | S27: 0 | T27: Inlap | W27: FL
A28: 1 | B28: 17 | C28: 17 | E28: =IF(D28="Grid",Simulation!$B$2,IF(D28="WU",Simulation!$B$3,IF(D28=1,Simulation!$B$4,IF(D28=2,Simulation!$B$5,IF(D28=3,Simulation!$B$6,IF(D28=4,Simulation!$B$7,IF(D28=5,Simulation!$B$8))))))) -> FALSE | F28: =IF(D28="Grid",Simulation!$C$2,IF(D28="WU",Simulation!$C$3,IF(D28=1,Simulation!$C$4,IF(D28=2,Simulation!$C$5,IF(D28=3,Simulation!$C$6,IF(D28=4,Simulation!$C$7,IF(D28=5,Simulation!$C$8))))))) -> FALSE | G28: 0 | P28: 0 | R28: 0 | S28: 0 | T28: Inlap | W28: FL
A29: 1 | B29: 18 | C29: 18 | E29: =IF(D29="Grid",Simulation!$B$2,IF(D29="WU",Simulation!$B$3,IF(D29=1,Simulation!$B$4,IF(D29=2,Simulation!$B$5,IF(D29=3,Simulation!$B$6,IF(D29=4,Simulation!$B$7,IF(D29=5,Simulation!$B$8))))))) -> FALSE | F29: =IF(D29="Grid",Simulation!$C$2,IF(D29="WU",Simulation!$C$3,IF(D29=1,Simulation!$C$4,IF(D29=2,Simulation!$C$5,IF(D29=3,Simulation!$C$6,IF(D29=4,Simulation!$C$7,IF(D29=5,Simulation!$C$8))))))) -> FALSE | G29: 0 | P29: 0 | R29: 0 | S29: 0 | T29: Inlap | W29: FL
A30: 1 | B30: 19 | C30: 19 | E30: =IF(D30="Grid",Simulation!$B$2,IF(D30="WU",Simulation!$B$3,IF(D30=1,Simulation!$B$4,IF(D30=2,Simulation!$B$5,IF(D30=3,Simulation!$B$6,IF(D30=4,Simulation!$B$7,IF(D30=5,Simulation!$B$8))))))) -> FALSE | F30: =IF(D30="Grid",Simulation!$C$2,IF(D30="WU",Simulation!$C$3,IF(D30=1,Simulation!$C$4,IF(D30=2,Simulation!$C$5,IF(D30=3,Simulation!$C$6,IF(D30=4,Simulation!$C$7,IF(D30=5,Simulation!$C$8))))))) -> FALSE | G30: 0 | P30: 0 | R30: 0 | S30: 0 | T30: Inlap | W30: FL
A31: 1 | B31: 20 | C31: 20 | E31: =IF(D31="Grid",Simulation!$B$2,IF(D31="WU",Simulation!$B$3,IF(D31=1,Simulation!$B$4,IF(D31=2,Simulation!$B$5,IF(D31=3,Simulation!$B$6,IF(D31=4,Simulation!$B$7,IF(D31=5,Simulation!$B$8))))))) -> FALSE | F31: =IF(D31="Grid",Simulation!$C$2,IF(D31="WU",Simulation!$C$3,IF(D31=1,Simulation!$C$4,IF(D31=2,Simulation!$C$5,IF(D31=3,Simulation!$C$6,IF(D31=4,Simulation!$C$7,IF(D31=5,Simulation!$C$8))))))) -> FALSE | G31: 0 | P31: 0 | R31: 0 | S31: 0 | T31: Inlap | W31: FL
A32: 1 | B32: 21 | C32: 21 | E32: =IF(D32="Grid",Simulation!$B$2,IF(D32="WU",Simulation!$B$3,IF(D32=1,Simulation!$B$4,IF(D32=2,Simulation!$B$5,IF(D32=3,Simulation!$B$6,IF(D32=4,Simulation!$B$7,IF(D32=5,Simulation!$B$8))))))) -> FALSE | F32: =IF(D32="Grid",Simulation!$C$2,IF(D32="WU",Simulation!$C$3,IF(D32=1,Simulation!$C$4,IF(D32=2,Simulation!$C$5,IF(D32=3,Simulation!$C$6,IF(D32=4,Simulation!$C$7,IF(D32=5,Simulation!$C$8))))))) -> FALSE | G32: 0 | P32: 0 | R32: 0 | S32: 0 | T32: Inlap | W32: FL
A33: 1 | B33: 22 | C33: 22 | E33: =IF(D33="Grid",Simulation!$B$2,IF(D33="WU",Simulation!$B$3,IF(D33=1,Simulation!$B$4,IF(D33=2,Simulation!$B$5,IF(D33=3,Simulation!$B$6,IF(D33=4,Simulation!$B$7,IF(D33=5,Simulation!$B$8))))))) -> FALSE | F33: =IF(D33="Grid",Simulation!$C$2,IF(D33="WU",Simulation!$C$3,IF(D33=1,Simulation!$C$4,IF(D33=2,Simulation!$C$5,IF(D33=3,Simulation!$C$6,IF(D33=4,Simulation!$C$7,IF(D33=5,Simulation!$C$8))))))) -> FALSE | G33: 0 | P33: 0 | R33: 0 | S33: 0 | T33: Inlap | W33: FL
A34: 1 | B34: 23 | C34: 23 | E34: =IF(D34="Grid",Simulation!$B$2,IF(D34="WU",Simulation!$B$3,IF(D34=1,Simulation!$B$4,IF(D34=2,Simulation!$B$5,IF(D34=3,Simulation!$B$6,IF(D34=4,Simulation!$B$7,IF(D34=5,Simulation!$B$8))))))) -> FALSE | F34: =IF(D34="Grid",Simulation!$C$2,IF(D34="WU",Simulation!$C$3,IF(D34=1,Simulation!$C$4,IF(D34=2,Simulation!$C$5,IF(D34=3,Simulation!$C$6,IF(D34=4,Simulation!$C$7,IF(D34=5,Simulation!$C$8))))))) -> FALSE | G34: 0 | P34: 0 | R34: 0 | S34: 0 | T34: Inlap | W34: FL
A35: 1 | B35: 24 | C35: 24 | E35: =IF(D35="Grid",Simulation!$B$2,IF(D35="WU",Simulation!$B$3,IF(D35=1,Simulation!$B$4,IF(D35=2,Simulation!$B$5,IF(D35=3,Simulation!$B$6,IF(D35=4,Simulation!$B$7,IF(D35=5,Simulation!$B$8))))))) -> FALSE | F35: =IF(D35="Grid",Simulation!$C$2,IF(D35="WU",Simulation!$C$3,IF(D35=1,Simulation!$C$4,IF(D35=2,Simulation!$C$5,IF(D35=3,Simulation!$C$6,IF(D35=4,Simulation!$C$7,IF(D35=5,Simulation!$C$8))))))) -> FALSE | G35: 0 | P35: 0 | R35: 0 | S35: 0 | T35: Inlap | W35: FL
A36: 1 | B36: 25 | C36: 25 | E36: =IF(D36="Grid",Simulation!$B$2,IF(D36="WU",Simulation!$B$3,IF(D36=1,Simulation!$B$4,IF(D36=2,Simulation!$B$5,IF(D36=3,Simulation!$B$6,IF(D36=4,Simulation!$B$7,IF(D36=5,Simulation!$B$8))))))) -> FALSE | F36: =IF(D36="Grid",Simulation!$C$2,IF(D36="WU",Simulation!$C$3,IF(D36=1,Simulation!$C$4,IF(D36=2,Simulation!$C$5,IF(D36=3,Simulation!$C$6,IF(D36=4,Simulation!$C$7,IF(D36=5,Simulation!$C$8))))))) -> FALSE | G36: 0 | P36: 0 | R36: 0 | S36: 0 | T36: Inlap | W36: FL
A37: 1 | B37: 26 | C37: 26 | E37: =IF(D37="Grid",Simulation!$B$2,IF(D37="WU",Simulation!$B$3,IF(D37=1,Simulation!$B$4,IF(D37=2,Simulation!$B$5,IF(D37=3,Simulation!$B$6,IF(D37=4,Simulation!$B$7,IF(D37=5,Simulation!$B$8))))))) -> FALSE | F37: =IF(D37="Grid",Simulation!$C$2,IF(D37="WU",Simulation!$C$3,IF(D37=1,Simulation!$C$4,IF(D37=2,Simulation!$C$5,IF(D37=3,Simulation!$C$6,IF(D37=4,Simulation!$C$7,IF(D37=5,Simulation!$C$8))))))) -> FALSE | G37: 0 | P37: 0 | R37: 0 | S37: 0 | T37: Inlap | W37: FL
A38: 1 | B38: 27 | C38: 27 | E38: =IF(D38="Grid",Simulation!$B$2,IF(D38="WU",Simulation!$B$3,IF(D38=1,Simulation!$B$4,IF(D38=2,Simulation!$B$5,IF(D38=3,Simulation!$B$6,IF(D38=4,Simulation!$B$7,IF(D38=5,Simulation!$B$8))))))) -> FALSE | F38: =IF(D38="Grid",Simulation!$C$2,IF(D38="WU",Simulation!$C$3,IF(D38=1,Simulation!$C$4,IF(D38=2,Simulation!$C$5,IF(D38=3,Simulation!$C$6,IF(D38=4,Simulation!$C$7,IF(D38=5,Simulation!$C$8))))))) -> FALSE | G38: 0 | P38: 0 | R38: 0 | S38: 0 | T38: Inlap | W38: FL
A39: 1 | B39: 28 | C39: 28 | E39: =IF(D39="Grid",Simulation!$B$2,IF(D39="WU",Simulation!$B$3,IF(D39=1,Simulation!$B$4,IF(D39=2,Simulation!$B$5,IF(D39=3,Simulation!$B$6,IF(D39=4,Simulation!$B$7,IF(D39=5,Simulation!$B$8))))))) -> FALSE | F39: =IF(D39="Grid",Simulation!$C$2,IF(D39="WU",Simulation!$C$3,IF(D39=1,Simulation!$C$4,IF(D39=2,Simulation!$C$5,IF(D39=3,Simulation!$C$6,IF(D39=4,Simulation!$C$7,IF(D39=5,Simulation!$C$8))))))) -> FALSE | G39: 0 | P39: 0 | R39: 0 | S39: 0 | T39: Inlap | W39: FL
A40: 1 | B40: 29 | C40: 29 | E40: =IF(D40="Grid",Simulation!$B$2,IF(D40="WU",Simulation!$B$3,IF(D40=1,Simulation!$B$4,IF(D40=2,Simulation!$B$5,IF(D40=3,Simulation!$B$6,IF(D40=4,Simulation!$B$7,IF(D40=5,Simulation!$B$8))))))) -> FALSE | F40: =IF(D40="Grid",Simulation!$C$2,IF(D40="WU",Simulation!$C$3,IF(D40=1,Simulation!$C$4,IF(D40=2,Simulation!$C$5,IF(D40=3,Simulation!$C$6,IF(D40=4,Simulation!$C$7,IF(D40=5,Simulation!$C$8))))))) -> FALSE | G40: 0 | P40: 0 | R40: 0 | S40: 0 | T40: Inlap | W40: FL
A41: 1 | B41: 30 | C41: 30 | E41: =IF(D41="Grid",Simulation!$B$2,IF(D41="WU",Simulation!$B$3,IF(D41=1,Simulation!$B$4,IF(D41=2,Simulation!$B$5,IF(D41=3,Simulation!$B$6,IF(D41=4,Simulation!$B$7,IF(D41=5,Simulation!$B$8))))))) -> FALSE | F41: =IF(D41="Grid",Simulation!$C$2,IF(D41="WU",Simulation!$C$3,IF(D41=1,Simulation!$C$4,IF(D41=2,Simulation!$C$5,IF(D41=3,Simulation!$C$6,IF(D41=4,Simulation!$C$7,IF(D41=5,Simulation!$C$8))))))) -> FALSE | G41: 0 | P41: 0 | R41: 0 | S41: 0 | T41: Inlap | W41: FL
A42: 1 | B42: 31 | C42: 31 | E42: =IF(D42="Grid",Simulation!$B$2,IF(D42="WU",Simulation!$B$3,IF(D42=1,Simulation!$B$4,IF(D42=2,Simulation!$B$5,IF(D42=3,Simulation!$B$6,IF(D42=4,Simulation!$B$7,IF(D42=5,Simulation!$B$8))))))) -> FALSE | F42: =IF(D42="Grid",Simulation!$C$2,IF(D42="WU",Simulation!$C$3,IF(D42=1,Simulation!$C$4,IF(D42=2,Simulation!$C$5,IF(D42=3,Simulation!$C$6,IF(D42=4,Simulation!$C$7,IF(D42=5,Simulation!$C$8))))))) -> FALSE | G42: 0 | P42: 0 | R42: 0 | S42: 0 | T42: Inlap | W42: FL
A43: 1 | B43: 32 | C43: 32 | E43: =IF(D43="Grid",Simulation!$B$2,IF(D43="WU",Simulation!$B$3,IF(D43=1,Simulation!$B$4,IF(D43=2,Simulation!$B$5,IF(D43=3,Simulation!$B$6,IF(D43=4,Simulation!$B$7,IF(D43=5,Simulation!$B$8))))))) -> FALSE | F43: =IF(D43="Grid",Simulation!$C$2,IF(D43="WU",Simulation!$C$3,IF(D43=1,Simulation!$C$4,IF(D43=2,Simulation!$C$5,IF(D43=3,Simulation!$C$6,IF(D43=4,Simulation!$C$7,IF(D43=5,Simulation!$C$8))))))) -> FALSE | G43: 0 | P43: 0 | R43: 0 | S43: 0 | T43: Inlap | W43: FL
A44: 1 | B44: 33 | C44: 33 | E44: =IF(D44="Grid",Simulation!$B$2,IF(D44="WU",Simulation!$B$3,IF(D44=1,Simulation!$B$4,IF(D44=2,Simulation!$B$5,IF(D44=3,Simulation!$B$6,IF(D44=4,Simulation!$B$7,IF(D44=5,Simulation!$B$8))))))) -> FALSE | F44: =IF(D44="Grid",Simulation!$C$2,IF(D44="WU",Simulation!$C$3,IF(D44=1,Simulation!$C$4,IF(D44=2,Simulation!$C$5,IF(D44=3,Simulation!$C$6,IF(D44=4,Simulation!$C$7,IF(D44=5,Simulation!$C$8))))))) -> FALSE | G44: 0 | P44: 0 | R44: 0 | S44: 0 | T44: Inlap | W44: FL
A45: 1 | B45: 34 | C45: 34 | E45: =IF(D45="Grid",Simulation!$B$2,IF(D45="WU",Simulation!$B$3,IF(D45=1,Simulation!$B$4,IF(D45=2,Simulation!$B$5,IF(D45=3,Simulation!$B$6,IF(D45=4,Simulation!$B$7,IF(D45=5,Simulation!$B$8))))))) -> FALSE | F45: =IF(D45="Grid",Simulation!$C$2,IF(D45="WU",Simulation!$C$3,IF(D45=1,Simulation!$C$4,IF(D45=2,Simulation!$C$5,IF(D45=3,Simulation!$C$6,IF(D45=4,Simulation!$C$7,IF(D45=5,Simulation!$C$8))))))) -> FALSE | G45: 0 | P45: =IF(O45>0,Q45,Q45-Q44) -> 0 | R45: =IF(O45>0,Q45,Q45-Q44) -> 0 | S45: =IF(O45>0,O45+S44-Q45,S44-P45) -> 0 | T45: Inlap | W45: FL
A46: 1 | B46: 35 | C46: 35 | E46: =IF(D46="Grid",Simulation!$B$2,IF(D46="WU",Simulation!$B$3,IF(D46=1,Simulation!$B$4,IF(D46=2,Simulation!$B$5,IF(D46=3,Simulation!$B$6,IF(D46=4,Simulation!$B$7,IF(D46=5,Simulation!$B$8))))))) -> FALSE | F46: =IF(D46="Grid",Simulation!$C$2,IF(D46="WU",Simulation!$C$3,IF(D46=1,Simulation!$C$4,IF(D46=2,Simulation!$C$5,IF(D46=3,Simulation!$C$6,IF(D46=4,Simulation!$C$7,IF(D46=5,Simulation!$C$8))))))) -> FALSE | G46: 0 | P46: =IF(O46>0,Q46,Q46-Q45) -> 0 | R46: =IF(O46>0,Q46,Q46-Q45) -> 0 | S46: 0 | T46: Inlap | W46: FL
A47: 1 | B47: 36 | C47: 36 | E47: =IF(D47="Grid",Simulation!$B$2,IF(D47="WU",Simulation!$B$3,IF(D47=1,Simulation!$B$4,IF(D47=2,Simulation!$B$5,IF(D47=3,Simulation!$B$6,IF(D47=4,Simulation!$B$7,IF(D47=5,Simulation!$B$8))))))) -> FALSE | F47: =IF(D47="Grid",Simulation!$C$2,IF(D47="WU",Simulation!$C$3,IF(D47=1,Simulation!$C$4,IF(D47=2,Simulation!$C$5,IF(D47=3,Simulation!$C$6,IF(D47=4,Simulation!$C$7,IF(D47=5,Simulation!$C$8))))))) -> FALSE | G47: 0 | P47: 0 | R47: 0 | S47: 0 | T47: Inlap | W47: FL
A48: 1 | B48: 37 | C48: 37 | E48: =IF(D48="Grid",Simulation!$B$2,IF(D48="WU",Simulation!$B$3,IF(D48=1,Simulation!$B$4,IF(D48=2,Simulation!$B$5,IF(D48=3,Simulation!$B$6,IF(D48=4,Simulation!$B$7,IF(D48=5,Simulation!$B$8))))))) -> FALSE | F48: =IF(D48="Grid",Simulation!$C$2,IF(D48="WU",Simulation!$C$3,IF(D48=1,Simulation!$C$4,IF(D48=2,Simulation!$C$5,IF(D48=3,Simulation!$C$6,IF(D48=4,Simulation!$C$7,IF(D48=5,Simulation!$C$8))))))) -> FALSE | G48: 0 | P48: 0 | R48: 0 | S48: 0 | T48: Inlap | W48: FL
A49: 1 | B49: 38 | C49: 38 | E49: =IF(D49="Grid",Simulation!$B$2,IF(D49="WU",Simulation!$B$3,IF(D49=1,Simulation!$B$4,IF(D49=2,Simulation!$B$5,IF(D49=3,Simulation!$B$6,IF(D49=4,Simulation!$B$7,IF(D49=5,Simulation!$B$8))))))) -> FALSE | F49: =IF(D49="Grid",Simulation!$C$2,IF(D49="WU",Simulation!$C$3,IF(D49=1,Simulation!$C$4,IF(D49=2,Simulation!$C$5,IF(D49=3,Simulation!$C$6,IF(D49=4,Simulation!$C$7,IF(D49=5,Simulation!$C$8))))))) -> FALSE | G49: 0 | P49: 0 | R49: 0 | S49: 0 | T49: Inlap | W49: FL
A50: 1 | B50: 39 | C50: 39 | E50: =IF(D50="Grid",Simulation!$B$2,IF(D50="WU",Simulation!$B$3,IF(D50=1,Simulation!$B$4,IF(D50=2,Simulation!$B$5,IF(D50=3,Simulation!$B$6,IF(D50=4,Simulation!$B$7,IF(D50=5,Simulation!$B$8))))))) -> FALSE | F50: =IF(D50="Grid",Simulation!$C$2,IF(D50="WU",Simulation!$C$3,IF(D50=1,Simulation!$C$4,IF(D50=2,Simulation!$C$5,IF(D50=3,Simulation!$C$6,IF(D50=4,Simulation!$C$7,IF(D50=5,Simulation!$C$8))))))) -> FALSE | G50: 0 | P50: 0 | R50: 0 | S50: 0 | T50: Inlap | W50: FL
A51: 1 | B51: 40 | C51: 40 | E51: =IF(D51="Grid",Simulation!$B$2,IF(D51="WU",Simulation!$B$3,IF(D51=1,Simulation!$B$4,IF(D51=2,Simulation!$B$5,IF(D51=3,Simulation!$B$6,IF(D51=4,Simulation!$B$7,IF(D51=5,Simulation!$B$8))))))) -> FALSE | F51: =IF(D51="Grid",Simulation!$C$2,IF(D51="WU",Simulation!$C$3,IF(D51=1,Simulation!$C$4,IF(D51=2,Simulation!$C$5,IF(D51=3,Simulation!$C$6,IF(D51=4,Simulation!$C$7,IF(D51=5,Simulation!$C$8))))))) -> FALSE | G51: 0 | P51: 0 | R51: 0 | S51: 0 | T51: Inlap | W51: FL
A52: 1 | B52: 41 | C52: 41 | E52: =IF(D52="Grid",Simulation!$B$2,IF(D52="WU",Simulation!$B$3,IF(D52=1,Simulation!$B$4,IF(D52=2,Simulation!$B$5,IF(D52=3,Simulation!$B$6,IF(D52=4,Simulation!$B$7,IF(D52=5,Simulation!$B$8))))))) -> FALSE | F52: =IF(D52="Grid",Simulation!$C$2,IF(D52="WU",Simulation!$C$3,IF(D52=1,Simulation!$C$4,IF(D52=2,Simulation!$C$5,IF(D52=3,Simulation!$C$6,IF(D52=4,Simulation!$C$7,IF(D52=5,Simulation!$C$8))))))) -> FALSE | G52: 0 | P52: 0 | R52: 0 | S52: 0 | T52: Inlap | W52: FL
A53: 1 | B53: 42 | C53: 42 | E53: =IF(D53="Grid",Simulation!$B$2,IF(D53="WU",Simulation!$B$3,IF(D53=1,Simulation!$B$4,IF(D53=2,Simulation!$B$5,IF(D53=3,Simulation!$B$6,IF(D53=4,Simulation!$B$7,IF(D53=5,Simulation!$B$8))))))) -> FALSE | F53: =IF(D53="Grid",Simulation!$C$2,IF(D53="WU",Simulation!$C$3,IF(D53=1,Simulation!$C$4,IF(D53=2,Simulation!$C$5,IF(D53=3,Simulation!$C$6,IF(D53=4,Simulation!$C$7,IF(D53=5,Simulation!$C$8))))))) -> FALSE | G53: 0 | P53: 0 | R53: 0 | S53: 0 | T53: Inlap | W53: FL
A54: 1 | B54: 43 | C54: 43 | E54: =IF(D54="Grid",Simulation!$B$2,IF(D54="WU",Simulation!$B$3,IF(D54=1,Simulation!$B$4,IF(D54=2,Simulation!$B$5,IF(D54=3,Simulation!$B$6,IF(D54=4,Simulation!$B$7,IF(D54=5,Simulation!$B$8))))))) -> FALSE | F54: =IF(D54="Grid",Simulation!$C$2,IF(D54="WU",Simulation!$C$3,IF(D54=1,Simulation!$C$4,IF(D54=2,Simulation!$C$5,IF(D54=3,Simulation!$C$6,IF(D54=4,Simulation!$C$7,IF(D54=5,Simulation!$C$8))))))) -> FALSE | G54: 0 | P54: 0 | R54: 0 | S54: 0 | T54: Inlap | W54: FL
A55: 1 | B55: 44 | C55: 44 | E55: =IF(D55="Grid",Simulation!$B$2,IF(D55="WU",Simulation!$B$3,IF(D55=1,Simulation!$B$4,IF(D55=2,Simulation!$B$5,IF(D55=3,Simulation!$B$6,IF(D55=4,Simulation!$B$7,IF(D55=5,Simulation!$B$8))))))) -> FALSE | F55: =IF(D55="Grid",Simulation!$C$2,IF(D55="WU",Simulation!$C$3,IF(D55=1,Simulation!$C$4,IF(D55=2,Simulation!$C$5,IF(D55=3,Simulation!$C$6,IF(D55=4,Simulation!$C$7,IF(D55=5,Simulation!$C$8))))))) -> FALSE | G55: 0 | P55: 0 | R55: 0 | S55: 0 | T55: Inlap | W55: FL
A56: 1 | B56: 45 | C56: 45 | E56: =IF(D56="Grid",Simulation!$B$2,IF(D56="WU",Simulation!$B$3,IF(D56=1,Simulation!$B$4,IF(D56=2,Simulation!$B$5,IF(D56=3,Simulation!$B$6,IF(D56=4,Simulation!$B$7,IF(D56=5,Simulation!$B$8))))))) -> FALSE | F56: =IF(D56="Grid",Simulation!$C$2,IF(D56="WU",Simulation!$C$3,IF(D56=1,Simulation!$C$4,IF(D56=2,Simulation!$C$5,IF(D56=3,Simulation!$C$6,IF(D56=4,Simulation!$C$7,IF(D56=5,Simulation!$C$8))))))) -> FALSE | G56: 0 | P56: 0 | R56: 0 | S56: 0 | T56: Inlap | W56: FL
A57: 1 | B57: 46 | C57: 46 | E57: =IF(D57="Grid",Simulation!$B$2,IF(D57="WU",Simulation!$B$3,IF(D57=1,Simulation!$B$4,IF(D57=2,Simulation!$B$5,IF(D57=3,Simulation!$B$6,IF(D57=4,Simulation!$B$7,IF(D57=5,Simulation!$B$8))))))) -> FALSE | F57: =IF(D57="Grid",Simulation!$C$2,IF(D57="WU",Simulation!$C$3,IF(D57=1,Simulation!$C$4,IF(D57=2,Simulation!$C$5,IF(D57=3,Simulation!$C$6,IF(D57=4,Simulation!$C$7,IF(D57=5,Simulation!$C$8))))))) -> FALSE | G57: 0 | P57: 0 | R57: 0 | S57: 0 | T57: Inlap | W57: FL
A58: 1 | B58: 47 | C58: 47 | E58: =IF(D58="Grid",Simulation!$B$2,IF(D58="WU",Simulation!$B$3,IF(D58=1,Simulation!$B$4,IF(D58=2,Simulation!$B$5,IF(D58=3,Simulation!$B$6,IF(D58=4,Simulation!$B$7,IF(D58=5,Simulation!$B$8))))))) -> FALSE | F58: =IF(D58="Grid",Simulation!$C$2,IF(D58="WU",Simulation!$C$3,IF(D58=1,Simulation!$C$4,IF(D58=2,Simulation!$C$5,IF(D58=3,Simulation!$C$6,IF(D58=4,Simulation!$C$7,IF(D58=5,Simulation!$C$8))))))) -> FALSE | G58: 0 | P58: 0 | R58: 0 | S58: 0 | T58: Inlap | W58: FL
A59: 1 | B59: 48 | C59: 48 | E59: =IF(D59="Grid",Simulation!$B$2,IF(D59="WU",Simulation!$B$3,IF(D59=1,Simulation!$B$4,IF(D59=2,Simulation!$B$5,IF(D59=3,Simulation!$B$6,IF(D59=4,Simulation!$B$7,IF(D59=5,Simulation!$B$8))))))) -> FALSE | F59: =IF(D59="Grid",Simulation!$C$2,IF(D59="WU",Simulation!$C$3,IF(D59=1,Simulation!$C$4,IF(D59=2,Simulation!$C$5,IF(D59=3,Simulation!$C$6,IF(D59=4,Simulation!$C$7,IF(D59=5,Simulation!$C$8))))))) -> FALSE | G59: 0 | P59: 0 | R59: 0 | S59: 0 | T59: Inlap | W59: FL
A60: 1 | B60: 49 | C60: 49 | E60: =IF(D60="Grid",Simulation!$B$2,IF(D60="WU",Simulation!$B$3,IF(D60=1,Simulation!$B$4,IF(D60=2,Simulation!$B$5,IF(D60=3,Simulation!$B$6,IF(D60=4,Simulation!$B$7,IF(D60=5,Simulation!$B$8))))))) -> FALSE | F60: =IF(D60="Grid",Simulation!$C$2,IF(D60="WU",Simulation!$C$3,IF(D60=1,Simulation!$C$4,IF(D60=2,Simulation!$C$5,IF(D60=3,Simulation!$C$6,IF(D60=4,Simulation!$C$7,IF(D60=5,Simulation!$C$8))))))) -> FALSE | G60: 0 | P60: 0 | R60: 0 | S60: 0 | T60: Inlap | W60: FL
A61: 1 | B61: 50 | C61: 50 | E61: =IF(D61="Grid",Simulation!$B$2,IF(D61="WU",Simulation!$B$3,IF(D61=1,Simulation!$B$4,IF(D61=2,Simulation!$B$5,IF(D61=3,Simulation!$B$6,IF(D61=4,Simulation!$B$7,IF(D61=5,Simulation!$B$8))))))) -> FALSE | F61: =IF(D61="Grid",Simulation!$C$2,IF(D61="WU",Simulation!$C$3,IF(D61=1,Simulation!$C$4,IF(D61=2,Simulation!$C$5,IF(D61=3,Simulation!$C$6,IF(D61=4,Simulation!$C$7,IF(D61=5,Simulation!$C$8))))))) -> FALSE | G61: 0 | P61: 0 | R61: 0 | S61: 0 | T61: Inlap | W61: FL
A62: 1 | B62: 51 | C62: 51 | E62: =IF(D62="Grid",Simulation!$B$2,IF(D62="WU",Simulation!$B$3,IF(D62=1,Simulation!$B$4,IF(D62=2,Simulation!$B$5,IF(D62=3,Simulation!$B$6,IF(D62=4,Simulation!$B$7,IF(D62=5,Simulation!$B$8))))))) -> FALSE | F62: =IF(D62="Grid",Simulation!$C$2,IF(D62="WU",Simulation!$C$3,IF(D62=1,Simulation!$C$4,IF(D62=2,Simulation!$C$5,IF(D62=3,Simulation!$C$6,IF(D62=4,Simulation!$C$7,IF(D62=5,Simulation!$C$8))))))) -> FALSE | G62: 0 | P62: 0 | R62: 0 | S62: 0 | T62: Inlap | W62: FL
A63: 1 | B63: 52 | C63: 52 | E63: =IF(D63="Grid",Simulation!$B$2,IF(D63="WU",Simulation!$B$3,IF(D63=1,Simulation!$B$4,IF(D63=2,Simulation!$B$5,IF(D63=3,Simulation!$B$6,IF(D63=4,Simulation!$B$7,IF(D63=5,Simulation!$B$8))))))) -> FALSE | F63: =IF(D63="Grid",Simulation!$C$2,IF(D63="WU",Simulation!$C$3,IF(D63=1,Simulation!$C$4,IF(D63=2,Simulation!$C$5,IF(D63=3,Simulation!$C$6,IF(D63=4,Simulation!$C$7,IF(D63=5,Simulation!$C$8))))))) -> FALSE | G63: 0 | P63: 0 | R63: 0 | S63: 0 | T63: Inlap | W63: FL
A64: 1 | B64: 53 | C64: 53 | E64: =IF(D64="Grid",Simulation!$B$2,IF(D64="WU",Simulation!$B$3,IF(D64=1,Simulation!$B$4,IF(D64=2,Simulation!$B$5,IF(D64=3,Simulation!$B$6,IF(D64=4,Simulation!$B$7,IF(D64=5,Simulation!$B$8))))))) -> FALSE | F64: =IF(D64="Grid",Simulation!$C$2,IF(D64="WU",Simulation!$C$3,IF(D64=1,Simulation!$C$4,IF(D64=2,Simulation!$C$5,IF(D64=3,Simulation!$C$6,IF(D64=4,Simulation!$C$7,IF(D64=5,Simulation!$C$8))))))) -> FALSE | G64: 0 | P64: 0 | R64: 0 | S64: 0 | T64: Inlap | W64: FL
A65: 1 | B65: 54 | C65: 54 | E65: =IF(D65="Grid",Simulation!$B$2,IF(D65="WU",Simulation!$B$3,IF(D65=1,Simulation!$B$4,IF(D65=2,Simulation!$B$5,IF(D65=3,Simulation!$B$6,IF(D65=4,Simulation!$B$7,IF(D65=5,Simulation!$B$8))))))) -> FALSE | F65: =IF(D65="Grid",Simulation!$C$2,IF(D65="WU",Simulation!$C$3,IF(D65=1,Simulation!$C$4,IF(D65=2,Simulation!$C$5,IF(D65=3,Simulation!$C$6,IF(D65=4,Simulation!$C$7,IF(D65=5,Simulation!$C$8))))))) -> FALSE | G65: 0 | P65: 0 | R65: 0 | S65: 0 | T65: Inlap | W65: FL
A66: 1 | B66: 55 | C66: 55 | E66: =IF(D66="Grid",Simulation!$B$2,IF(D66="WU",Simulation!$B$3,IF(D66=1,Simulation!$B$4,IF(D66=2,Simulation!$B$5,IF(D66=3,Simulation!$B$6,IF(D66=4,Simulation!$B$7,IF(D66=5,Simulation!$B$8))))))) -> FALSE | F66: =IF(D66="Grid",Simulation!$C$2,IF(D66="WU",Simulation!$C$3,IF(D66=1,Simulation!$C$4,IF(D66=2,Simulation!$C$5,IF(D66=3,Simulation!$C$6,IF(D66=4,Simulation!$C$7,IF(D66=5,Simulation!$C$8))))))) -> FALSE | G66: 0 | P66: 0 | R66: 0 | S66: 0 | T66: Inlap | W66: FL
A67: 1 | B67: 56 | C67: 56 | E67: =IF(D67="Grid",Simulation!$B$2,IF(D67="WU",Simulation!$B$3,IF(D67=1,Simulation!$B$4,IF(D67=2,Simulation!$B$5,IF(D67=3,Simulation!$B$6,IF(D67=4,Simulation!$B$7,IF(D67=5,Simulation!$B$8))))))) -> FALSE | F67: =IF(D67="Grid",Simulation!$C$2,IF(D67="WU",Simulation!$C$3,IF(D67=1,Simulation!$C$4,IF(D67=2,Simulation!$C$5,IF(D67=3,Simulation!$C$6,IF(D67=4,Simulation!$C$7,IF(D67=5,Simulation!$C$8))))))) -> FALSE | G67: 0 | P67: 0 | R67: 0 | S67: 0 | T67: Inlap | W67: FL
A68: 1 | B68: 57 | C68: 57 | E68: =IF(D68="Grid",Simulation!$B$2,IF(D68="WU",Simulation!$B$3,IF(D68=1,Simulation!$B$4,IF(D68=2,Simulation!$B$5,IF(D68=3,Simulation!$B$6,IF(D68=4,Simulation!$B$7,IF(D68=5,Simulation!$B$8))))))) -> FALSE | F68: =IF(D68="Grid",Simulation!$C$2,IF(D68="WU",Simulation!$C$3,IF(D68=1,Simulation!$C$4,IF(D68=2,Simulation!$C$5,IF(D68=3,Simulation!$C$6,IF(D68=4,Simulation!$C$7,IF(D68=5,Simulation!$C$8))))))) -> FALSE | G68: 0 | P68: 0 | R68: 0 | S68: 0 | T68: Inlap | W68: FL
A69: 1 | B69: 58 | C69: 58 | E69: =IF(D69="Grid",Simulation!$B$2,IF(D69="WU",Simulation!$B$3,IF(D69=1,Simulation!$B$4,IF(D69=2,Simulation!$B$5,IF(D69=3,Simulation!$B$6,IF(D69=4,Simulation!$B$7,IF(D69=5,Simulation!$B$8))))))) -> FALSE | F69: =IF(D69="Grid",Simulation!$C$2,IF(D69="WU",Simulation!$C$3,IF(D69=1,Simulation!$C$4,IF(D69=2,Simulation!$C$5,IF(D69=3,Simulation!$C$6,IF(D69=4,Simulation!$C$7,IF(D69=5,Simulation!$C$8))))))) -> FALSE | G69: 0 | P69: 0 | R69: 0 | S69: 0 | T69: Inlap | W69: FL
A70: 1 | B70: 59 | C70: 59 | E70: =IF(D70="Grid",Simulation!$B$2,IF(D70="WU",Simulation!$B$3,IF(D70=1,Simulation!$B$4,IF(D70=2,Simulation!$B$5,IF(D70=3,Simulation!$B$6,IF(D70=4,Simulation!$B$7,IF(D70=5,Simulation!$B$8))))))) -> FALSE | F70: =IF(D70="Grid",Simulation!$C$2,IF(D70="WU",Simulation!$C$3,IF(D70=1,Simulation!$C$4,IF(D70=2,Simulation!$C$5,IF(D70=3,Simulation!$C$6,IF(D70=4,Simulation!$C$7,IF(D70=5,Simulation!$C$8))))))) -> FALSE | G70: 0 | P70: 0 | R70: 0 | S70: 0 | T70: Inlap | W70: FL
A71: 1 | B71: 60 | C71: 60 | E71: =IF(D71="Grid",Simulation!$B$2,IF(D71="WU",Simulation!$B$3,IF(D71=1,Simulation!$B$4,IF(D71=2,Simulation!$B$5,IF(D71=3,Simulation!$B$6,IF(D71=4,Simulation!$B$7,IF(D71=5,Simulation!$B$8))))))) -> FALSE | F71: =IF(D71="Grid",Simulation!$C$2,IF(D71="WU",Simulation!$C$3,IF(D71=1,Simulation!$C$4,IF(D71=2,Simulation!$C$5,IF(D71=3,Simulation!$C$6,IF(D71=4,Simulation!$C$7,IF(D71=5,Simulation!$C$8))))))) -> FALSE | G71: 0 | P71: 0 | R71: 0 | S71: 0 | T71: Inlap | W71: FL
A72: 1 | B72: 61 | C72: 61 | E72: =IF(D72="Grid",Simulation!$B$2,IF(D72="WU",Simulation!$B$3,IF(D72=1,Simulation!$B$4,IF(D72=2,Simulation!$B$5,IF(D72=3,Simulation!$B$6,IF(D72=4,Simulation!$B$7,IF(D72=5,Simulation!$B$8))))))) -> FALSE | F72: =IF(D72="Grid",Simulation!$C$2,IF(D72="WU",Simulation!$C$3,IF(D72=1,Simulation!$C$4,IF(D72=2,Simulation!$C$5,IF(D72=3,Simulation!$C$6,IF(D72=4,Simulation!$C$7,IF(D72=5,Simulation!$C$8))))))) -> FALSE | G72: 0 | P72: 0 | R72: 0 | S72: 0 | T72: Inlap | W72: FL
A73: 1 | B73: 62 | C73: 62 | E73: =IF(D73="Grid",Simulation!$B$2,IF(D73="WU",Simulation!$B$3,IF(D73=1,Simulation!$B$4,IF(D73=2,Simulation!$B$5,IF(D73=3,Simulation!$B$6,IF(D73=4,Simulation!$B$7,IF(D73=5,Simulation!$B$8))))))) -> FALSE | F73: =IF(D73="Grid",Simulation!$C$2,IF(D73="WU",Simulation!$C$3,IF(D73=1,Simulation!$C$4,IF(D73=2,Simulation!$C$5,IF(D73=3,Simulation!$C$6,IF(D73=4,Simulation!$C$7,IF(D73=5,Simulation!$C$8))))))) -> FALSE | G73: 0 | P73: 0 | R73: 0 | S73: 0 | T73: Inlap | W73: FL
A74: 1 | B74: 63 | C74: 63 | E74: =IF(D74="Grid",Simulation!$B$2,IF(D74="WU",Simulation!$B$3,IF(D74=1,Simulation!$B$4,IF(D74=2,Simulation!$B$5,IF(D74=3,Simulation!$B$6,IF(D74=4,Simulation!$B$7,IF(D74=5,Simulation!$B$8))))))) -> FALSE | F74: =IF(D74="Grid",Simulation!$C$2,IF(D74="WU",Simulation!$C$3,IF(D74=1,Simulation!$C$4,IF(D74=2,Simulation!$C$5,IF(D74=3,Simulation!$C$6,IF(D74=4,Simulation!$C$7,IF(D74=5,Simulation!$C$8))))))) -> FALSE | G74: 0 | P74: 0 | R74: 0 | S74: 0 | T74: Inlap | W74: FL
A75: 1 | B75: 64 | C75: 64 | E75: =IF(D75="Grid",Simulation!$B$2,IF(D75="WU",Simulation!$B$3,IF(D75=1,Simulation!$B$4,IF(D75=2,Simulation!$B$5,IF(D75=3,Simulation!$B$6,IF(D75=4,Simulation!$B$7,IF(D75=5,Simulation!$B$8))))))) -> FALSE | F75: =IF(D75="Grid",Simulation!$C$2,IF(D75="WU",Simulation!$C$3,IF(D75=1,Simulation!$C$4,IF(D75=2,Simulation!$C$5,IF(D75=3,Simulation!$C$6,IF(D75=4,Simulation!$C$7,IF(D75=5,Simulation!$C$8))))))) -> FALSE | G75: 0 | P75: 0 | R75: 0 | S75: 0 | T75: Inlap | W75: FL
A76: =IF(O76>0,A75+1,A75) -> 1 | B76: 65 | C76: 65 | E76: =IF(D76="Grid",Simulation!$B$2,IF(D76="WU",Simulation!$B$3,IF(D76=1,Simulation!$B$4,IF(D76=2,Simulation!$B$5,IF(D76=3,Simulation!$B$6,IF(D76=4,Simulation!$B$7,IF(D76=5,Simulation!$B$8))))))) -> FALSE | F76: =IF(D76="Grid",Simulation!$C$2,IF(D76="WU",Simulation!$C$3,IF(D76=1,Simulation!$C$4,IF(D76=2,Simulation!$C$5,IF(D76=3,Simulation!$C$6,IF(D76=4,Simulation!$C$7,IF(D76=5,Simulation!$C$8))))))) -> FALSE | G76: =G75+O75-P75 -> 0 | P76: 0 | R76: 0 | S76: =IF(O76>0,O76+S75-Q76,S75-P76) -> 0 | T76: =IF(S76<=F76,"Inlap",IF(S76<=2*F76,"Call: In this lap!",IF(S76<=3*F76,"Show in but don't call!",""))) -> Inlap | W76: =IF(J76=$Q$2,"FL","") -> FL
A77: 1 | B77: 66 | C77: 66 | E77: =IF(D77="Grid",Simulation!$B$2,IF(D77="WU",Simulation!$B$3,IF(D77=1,Simulation!$B$4,IF(D77=2,Simulation!$B$5,IF(D77=3,Simulation!$B$6,IF(D77=4,Simulation!$B$7,IF(D77=5,Simulation!$B$8))))))) -> FALSE | F77: =IF(D77="Grid",Simulation!$C$2,IF(D77="WU",Simulation!$C$3,IF(D77=1,Simulation!$C$4,IF(D77=2,Simulation!$C$5,IF(D77=3,Simulation!$C$6,IF(D77=4,Simulation!$C$7,IF(D77=5,Simulation!$C$8))))))) -> FALSE | G77: 0 | K77: =IF(J77<>0,K76,"") ->  | P77: 0 | R77: 0 | S77: 0 | T77: Inlap | W77: FL
A78: 1 | B78: 67 | C78: =IF(O78="",C77+1,"1") -> 67 | E78: =IF(D78="Grid",Simulation!$B$2,IF(D78="WU",Simulation!$B$3,IF(D78=1,Simulation!$B$4,IF(D78=2,Simulation!$B$5,IF(D78=3,Simulation!$B$6,IF(D78=4,Simulation!$B$7,IF(D78=5,Simulation!$B$8))))))) -> FALSE | F78: =IF(D78="Grid",Simulation!$C$2,IF(D78="WU",Simulation!$C$3,IF(D78=1,Simulation!$C$4,IF(D78=2,Simulation!$C$5,IF(D78=3,Simulation!$C$6,IF(D78=4,Simulation!$C$7,IF(D78=5,Simulation!$C$8))))))) -> FALSE | G78: 0 | P78: 0 | R78: 0 | S78: 0 | T78: Inlap | W78: FL
A79: 1 | B79: 68 | C79: 68 | E79: =IF(D79="Grid",Simulation!$B$2,IF(D79="WU",Simulation!$B$3,IF(D79=1,Simulation!$B$4,IF(D79=2,Simulation!$B$5,IF(D79=3,Simulation!$B$6,IF(D79=4,Simulation!$B$7,IF(D79=5,Simulation!$B$8))))))) -> FALSE | F79: =IF(D79="Grid",Simulation!$C$2,IF(D79="WU",Simulation!$C$3,IF(D79=1,Simulation!$C$4,IF(D79=2,Simulation!$C$5,IF(D79=3,Simulation!$C$6,IF(D79=4,Simulation!$C$7,IF(D79=5,Simulation!$C$8))))))) -> FALSE | G79: 0 | P79: 0 | R79: 0 | S79: 0 | T79: Inlap | W79: FL
A80: 1 | B80: 69 | C80: 69 | E80: =IF(D80="Grid",Simulation!$B$2,IF(D80="WU",Simulation!$B$3,IF(D80=1,Simulation!$B$4,IF(D80=2,Simulation!$B$5,IF(D80=3,Simulation!$B$6,IF(D80=4,Simulation!$B$7,IF(D80=5,Simulation!$B$8))))))) -> FALSE | F80: =IF(D80="Grid",Simulation!$C$2,IF(D80="WU",Simulation!$C$3,IF(D80=1,Simulation!$C$4,IF(D80=2,Simulation!$C$5,IF(D80=3,Simulation!$C$6,IF(D80=4,Simulation!$C$7,IF(D80=5,Simulation!$C$8))))))) -> FALSE | G80: 0 | P80: 0 | R80: 0 | S80: 0 | T80: Inlap | W80: FL
A81: 1 | B81: 70 | C81: 70 | E81: =IF(D81="Grid",Simulation!$B$2,IF(D81="WU",Simulation!$B$3,IF(D81=1,Simulation!$B$4,IF(D81=2,Simulation!$B$5,IF(D81=3,Simulation!$B$6,IF(D81=4,Simulation!$B$7,IF(D81=5,Simulation!$B$8))))))) -> FALSE | F81: =IF(D81="Grid",Simulation!$C$2,IF(D81="WU",Simulation!$C$3,IF(D81=1,Simulation!$C$4,IF(D81=2,Simulation!$C$5,IF(D81=3,Simulation!$C$6,IF(D81=4,Simulation!$C$7,IF(D81=5,Simulation!$C$8))))))) -> FALSE | G81: 0 | P81: 0 | R81: 0 | S81: 0 | T81: Inlap | W81: FL
A82: 1 | B82: 71 | C82: 71 | E82: =IF(D82="Grid",Simulation!$B$2,IF(D82="WU",Simulation!$B$3,IF(D82=1,Simulation!$B$4,IF(D82=2,Simulation!$B$5,IF(D82=3,Simulation!$B$6,IF(D82=4,Simulation!$B$7,IF(D82=5,Simulation!$B$8))))))) -> FALSE | F82: =IF(D82="Grid",Simulation!$C$2,IF(D82="WU",Simulation!$C$3,IF(D82=1,Simulation!$C$4,IF(D82=2,Simulation!$C$5,IF(D82=3,Simulation!$C$6,IF(D82=4,Simulation!$C$7,IF(D82=5,Simulation!$C$8))))))) -> FALSE | G82: 0 | P82: 0 | R82: 0 | S82: 0 | T82: Inlap | W82: FL
A83: 1 | B83: 72 | C83: 72 | E83: =IF(D83="Grid",Simulation!$B$2,IF(D83="WU",Simulation!$B$3,IF(D83=1,Simulation!$B$4,IF(D83=2,Simulation!$B$5,IF(D83=3,Simulation!$B$6,IF(D83=4,Simulation!$B$7,IF(D83=5,Simulation!$B$8))))))) -> FALSE | F83: =IF(D83="Grid",Simulation!$C$2,IF(D83="WU",Simulation!$C$3,IF(D83=1,Simulation!$C$4,IF(D83=2,Simulation!$C$5,IF(D83=3,Simulation!$C$6,IF(D83=4,Simulation!$C$7,IF(D83=5,Simulation!$C$8))))))) -> FALSE | G83: 0 | P83: 0 | R83: 0 | S83: 0 | T83: Inlap | W83: FL
A84: 1 | B84: 73 | C84: 73 | E84: =IF(D84="Grid",Simulation!$B$2,IF(D84="WU",Simulation!$B$3,IF(D84=1,Simulation!$B$4,IF(D84=2,Simulation!$B$5,IF(D84=3,Simulation!$B$6,IF(D84=4,Simulation!$B$7,IF(D84=5,Simulation!$B$8))))))) -> FALSE | F84: =IF(D84="Grid",Simulation!$C$2,IF(D84="WU",Simulation!$C$3,IF(D84=1,Simulation!$C$4,IF(D84=2,Simulation!$C$5,IF(D84=3,Simulation!$C$6,IF(D84=4,Simulation!$C$7,IF(D84=5,Simulation!$C$8))))))) -> FALSE | G84: 0 | P84: 0 | R84: 0 | S84: 0 | T84: Inlap | W84: FL
A85: 1 | B85: 74 | C85: 74 | E85: =IF(D85="Grid",Simulation!$B$2,IF(D85="WU",Simulation!$B$3,IF(D85=1,Simulation!$B$4,IF(D85=2,Simulation!$B$5,IF(D85=3,Simulation!$B$6,IF(D85=4,Simulation!$B$7,IF(D85=5,Simulation!$B$8))))))) -> FALSE | F85: =IF(D85="Grid",Simulation!$C$2,IF(D85="WU",Simulation!$C$3,IF(D85=1,Simulation!$C$4,IF(D85=2,Simulation!$C$5,IF(D85=3,Simulation!$C$6,IF(D85=4,Simulation!$C$7,IF(D85=5,Simulation!$C$8))))))) -> FALSE | G85: 0 | P85: 0 | R85: 0 | S85: 0 | T85: Inlap | W85: FL
A86: 1 | B86: 75 | C86: 75 | E86: =IF(D86="Grid",Simulation!$B$2,IF(D86="WU",Simulation!$B$3,IF(D86=1,Simulation!$B$4,IF(D86=2,Simulation!$B$5,IF(D86=3,Simulation!$B$6,IF(D86=4,Simulation!$B$7,IF(D86=5,Simulation!$B$8))))))) -> FALSE | F86: =IF(D86="Grid",Simulation!$C$2,IF(D86="WU",Simulation!$C$3,IF(D86=1,Simulation!$C$4,IF(D86=2,Simulation!$C$5,IF(D86=3,Simulation!$C$6,IF(D86=4,Simulation!$C$7,IF(D86=5,Simulation!$C$8))))))) -> FALSE | G86: 0 | P86: 0 | R86: 0 | S86: 0 | T86: Inlap | W86: FL
A87: 1 | B87: 76 | C87: 76 | E87: =IF(D87="Grid",Simulation!$B$2,IF(D87="WU",Simulation!$B$3,IF(D87=1,Simulation!$B$4,IF(D87=2,Simulation!$B$5,IF(D87=3,Simulation!$B$6,IF(D87=4,Simulation!$B$7,IF(D87=5,Simulation!$B$8))))))) -> FALSE | F87: =IF(D87="Grid",Simulation!$C$2,IF(D87="WU",Simulation!$C$3,IF(D87=1,Simulation!$C$4,IF(D87=2,Simulation!$C$5,IF(D87=3,Simulation!$C$6,IF(D87=4,Simulation!$C$7,IF(D87=5,Simulation!$C$8))))))) -> FALSE | G87: 0 | P87: 0 | R87: 0 | S87: 0 | T87: Inlap | W87: FL
A88: 1 | B88: 77 | C88: 77 | E88: =IF(D88="Grid",Simulation!$B$2,IF(D88="WU",Simulation!$B$3,IF(D88=1,Simulation!$B$4,IF(D88=2,Simulation!$B$5,IF(D88=3,Simulation!$B$6,IF(D88=4,Simulation!$B$7,IF(D88=5,Simulation!$B$8))))))) -> FALSE | F88: =IF(D88="Grid",Simulation!$C$2,IF(D88="WU",Simulation!$C$3,IF(D88=1,Simulation!$C$4,IF(D88=2,Simulation!$C$5,IF(D88=3,Simulation!$C$6,IF(D88=4,Simulation!$C$7,IF(D88=5,Simulation!$C$8))))))) -> FALSE | G88: 0 | P88: 0 | R88: 0 | S88: 0 | T88: Inlap | W88: FL
A89: 1 | B89: 78 | C89: 78 | E89: =IF(D89="Grid",Simulation!$B$2,IF(D89="WU",Simulation!$B$3,IF(D89=1,Simulation!$B$4,IF(D89=2,Simulation!$B$5,IF(D89=3,Simulation!$B$6,IF(D89=4,Simulation!$B$7,IF(D89=5,Simulation!$B$8))))))) -> FALSE | F89: =IF(D89="Grid",Simulation!$C$2,IF(D89="WU",Simulation!$C$3,IF(D89=1,Simulation!$C$4,IF(D89=2,Simulation!$C$5,IF(D89=3,Simulation!$C$6,IF(D89=4,Simulation!$C$7,IF(D89=5,Simulation!$C$8))))))) -> FALSE | G89: 0 | P89: 0 | R89: 0 | S89: 0 | T89: Inlap | W89: FL
A90: 1 | B90: 79 | C90: 79 | E90: =IF(D90="Grid",Simulation!$B$2,IF(D90="WU",Simulation!$B$3,IF(D90=1,Simulation!$B$4,IF(D90=2,Simulation!$B$5,IF(D90=3,Simulation!$B$6,IF(D90=4,Simulation!$B$7,IF(D90=5,Simulation!$B$8))))))) -> FALSE | F90: =IF(D90="Grid",Simulation!$C$2,IF(D90="WU",Simulation!$C$3,IF(D90=1,Simulation!$C$4,IF(D90=2,Simulation!$C$5,IF(D90=3,Simulation!$C$6,IF(D90=4,Simulation!$C$7,IF(D90=5,Simulation!$C$8))))))) -> FALSE | G90: 0 | P90: 0 | R90: 0 | S90: 0 | T90: Inlap | W90: FL
A91: 1 | B91: 80 | C91: 80 | E91: =IF(D91="Grid",Simulation!$B$2,IF(D91="WU",Simulation!$B$3,IF(D91=1,Simulation!$B$4,IF(D91=2,Simulation!$B$5,IF(D91=3,Simulation!$B$6,IF(D91=4,Simulation!$B$7,IF(D91=5,Simulation!$B$8))))))) -> FALSE | F91: =IF(D91="Grid",Simulation!$C$2,IF(D91="WU",Simulation!$C$3,IF(D91=1,Simulation!$C$4,IF(D91=2,Simulation!$C$5,IF(D91=3,Simulation!$C$6,IF(D91=4,Simulation!$C$7,IF(D91=5,Simulation!$C$8))))))) -> FALSE | G91: 0 | P91: 0 | R91: 0 | S91: 0 | T91: Inlap | W91: FL
A92: 1 | B92: 81 | C92: 81 | E92: =IF(D92="Grid",Simulation!$B$2,IF(D92="WU",Simulation!$B$3,IF(D92=1,Simulation!$B$4,IF(D92=2,Simulation!$B$5,IF(D92=3,Simulation!$B$6,IF(D92=4,Simulation!$B$7,IF(D92=5,Simulation!$B$8))))))) -> FALSE | F92: =IF(D92="Grid",Simulation!$C$2,IF(D92="WU",Simulation!$C$3,IF(D92=1,Simulation!$C$4,IF(D92=2,Simulation!$C$5,IF(D92=3,Simulation!$C$6,IF(D92=4,Simulation!$C$7,IF(D92=5,Simulation!$C$8))))))) -> FALSE | G92: 0 | P92: 0 | R92: 0 | S92: 0 | T92: Inlap | W92: FL
A93: 1 | B93: 82 | C93: 82 | E93: =IF(D93="Grid",Simulation!$B$2,IF(D93="WU",Simulation!$B$3,IF(D93=1,Simulation!$B$4,IF(D93=2,Simulation!$B$5,IF(D93=3,Simulation!$B$6,IF(D93=4,Simulation!$B$7,IF(D93=5,Simulation!$B$8))))))) -> FALSE | F93: =IF(D93="Grid",Simulation!$C$2,IF(D93="WU",Simulation!$C$3,IF(D93=1,Simulation!$C$4,IF(D93=2,Simulation!$C$5,IF(D93=3,Simulation!$C$6,IF(D93=4,Simulation!$C$7,IF(D93=5,Simulation!$C$8))))))) -> FALSE | G93: 0 | P93: 0 | R93: 0 | S93: 0 | T93: Inlap | W93: FL
A94: 1 | B94: 83 | C94: 83 | E94: =IF(D94="Grid",Simulation!$B$2,IF(D94="WU",Simulation!$B$3,IF(D94=1,Simulation!$B$4,IF(D94=2,Simulation!$B$5,IF(D94=3,Simulation!$B$6,IF(D94=4,Simulation!$B$7,IF(D94=5,Simulation!$B$8))))))) -> FALSE | F94: =IF(D94="Grid",Simulation!$C$2,IF(D94="WU",Simulation!$C$3,IF(D94=1,Simulation!$C$4,IF(D94=2,Simulation!$C$5,IF(D94=3,Simulation!$C$6,IF(D94=4,Simulation!$C$7,IF(D94=5,Simulation!$C$8))))))) -> FALSE | G94: 0 | P94: 0 | R94: 0 | S94: 0 | T94: Inlap | W94: FL
A95: 1 | B95: 84 | C95: 84 | E95: =IF(D95="Grid",Simulation!$B$2,IF(D95="WU",Simulation!$B$3,IF(D95=1,Simulation!$B$4,IF(D95=2,Simulation!$B$5,IF(D95=3,Simulation!$B$6,IF(D95=4,Simulation!$B$7,IF(D95=5,Simulation!$B$8))))))) -> FALSE | F95: =IF(D95="Grid",Simulation!$C$2,IF(D95="WU",Simulation!$C$3,IF(D95=1,Simulation!$C$4,IF(D95=2,Simulation!$C$5,IF(D95=3,Simulation!$C$6,IF(D95=4,Simulation!$C$7,IF(D95=5,Simulation!$C$8))))))) -> FALSE | G95: 0 | P95: 0 | R95: 0 | S95: 0 | T95: Inlap | W95: FL
A96: 1 | B96: 85 | C96: 85 | E96: =IF(D96="Grid",Simulation!$B$2,IF(D96="WU",Simulation!$B$3,IF(D96=1,Simulation!$B$4,IF(D96=2,Simulation!$B$5,IF(D96=3,Simulation!$B$6,IF(D96=4,Simulation!$B$7,IF(D96=5,Simulation!$B$8))))))) -> FALSE | F96: =IF(D96="Grid",Simulation!$C$2,IF(D96="WU",Simulation!$C$3,IF(D96=1,Simulation!$C$4,IF(D96=2,Simulation!$C$5,IF(D96=3,Simulation!$C$6,IF(D96=4,Simulation!$C$7,IF(D96=5,Simulation!$C$8))))))) -> FALSE | G96: 0 | P96: 0 | R96: 0 | S96: 0 | T96: Inlap | W96: FL
A97: 1 | B97: 86 | C97: 86 | E97: =IF(D97="Grid",Simulation!$B$2,IF(D97="WU",Simulation!$B$3,IF(D97=1,Simulation!$B$4,IF(D97=2,Simulation!$B$5,IF(D97=3,Simulation!$B$6,IF(D97=4,Simulation!$B$7,IF(D97=5,Simulation!$B$8))))))) -> FALSE | F97: =IF(D97="Grid",Simulation!$C$2,IF(D97="WU",Simulation!$C$3,IF(D97=1,Simulation!$C$4,IF(D97=2,Simulation!$C$5,IF(D97=3,Simulation!$C$6,IF(D97=4,Simulation!$C$7,IF(D97=5,Simulation!$C$8))))))) -> FALSE | G97: 0 | P97: 0 | R97: 0 | S97: 0 | T97: Inlap | W97: FL
A98: 1 | B98: 87 | C98: 87 | E98: =IF(D98="Grid",Simulation!$B$2,IF(D98="WU",Simulation!$B$3,IF(D98=1,Simulation!$B$4,IF(D98=2,Simulation!$B$5,IF(D98=3,Simulation!$B$6,IF(D98=4,Simulation!$B$7,IF(D98=5,Simulation!$B$8))))))) -> FALSE | F98: =IF(D98="Grid",Simulation!$C$2,IF(D98="WU",Simulation!$C$3,IF(D98=1,Simulation!$C$4,IF(D98=2,Simulation!$C$5,IF(D98=3,Simulation!$C$6,IF(D98=4,Simulation!$C$7,IF(D98=5,Simulation!$C$8))))))) -> FALSE | G98: 0 | P98: 0 | R98: 0 | S98: 0 | T98: Inlap | W98: FL
A99: 1 | B99: 88 | C99: 88 | E99: =IF(D99="Grid",Simulation!$B$2,IF(D99="WU",Simulation!$B$3,IF(D99=1,Simulation!$B$4,IF(D99=2,Simulation!$B$5,IF(D99=3,Simulation!$B$6,IF(D99=4,Simulation!$B$7,IF(D99=5,Simulation!$B$8))))))) -> FALSE | F99: =IF(D99="Grid",Simulation!$C$2,IF(D99="WU",Simulation!$C$3,IF(D99=1,Simulation!$C$4,IF(D99=2,Simulation!$C$5,IF(D99=3,Simulation!$C$6,IF(D99=4,Simulation!$C$7,IF(D99=5,Simulation!$C$8))))))) -> FALSE | G99: 0 | P99: 0 | R99: 0 | S99: 0 | T99: Inlap | W99: FL
A100: 1 | B100: 89 | C100: 89 | E100: =IF(D100="Grid",Simulation!$B$2,IF(D100="WU",Simulation!$B$3,IF(D100=1,Simulation!$B$4,IF(D100=2,Simulation!$B$5,IF(D100=3,Simulation!$B$6,IF(D100=4,Simulation!$B$7,IF(D100=5,Simulation!$B$8))))))) -> FALSE | F100: =IF(D100="Grid",Simulation!$C$2,IF(D100="WU",Simulation!$C$3,IF(D100=1,Simulation!$C$4,IF(D100=2,Simulation!$C$5,IF(D100=3,Simulation!$C$6,IF(D100=4,Simulation!$C$7,IF(D100=5,Simulation!$C$8))))))) -> FALSE | G100: 0 | P100: 0 | R100: 0 | S100: 0 | T100: Inlap | W100: FL
A101: 1 | B101: 90 | C101: 90 | E101: =IF(D101="Grid",Simulation!$B$2,IF(D101="WU",Simulation!$B$3,IF(D101=1,Simulation!$B$4,IF(D101=2,Simulation!$B$5,IF(D101=3,Simulation!$B$6,IF(D101=4,Simulation!$B$7,IF(D101=5,Simulation!$B$8))))))) -> FALSE | F101: =IF(D101="Grid",Simulation!$C$2,IF(D101="WU",Simulation!$C$3,IF(D101=1,Simulation!$C$4,IF(D101=2,Simulation!$C$5,IF(D101=3,Simulation!$C$6,IF(D101=4,Simulation!$C$7,IF(D101=5,Simulation!$C$8))))))) -> FALSE | G101: 0 | P101: 0 | R101: 0 | S101: 0 | T101: Inlap | W101: FL
A102: 1 | B102: 91 | C102: 91 | E102: =IF(D102="Grid",Simulation!$B$2,IF(D102="WU",Simulation!$B$3,IF(D102=1,Simulation!$B$4,IF(D102=2,Simulation!$B$5,IF(D102=3,Simulation!$B$6,IF(D102=4,Simulation!$B$7,IF(D102=5,Simulation!$B$8))))))) -> FALSE | F102: =IF(D102="Grid",Simulation!$C$2,IF(D102="WU",Simulation!$C$3,IF(D102=1,Simulation!$C$4,IF(D102=2,Simulation!$C$5,IF(D102=3,Simulation!$C$6,IF(D102=4,Simulation!$C$7,IF(D102=5,Simulation!$C$8))))))) -> FALSE | G102: 0 | P102: 0 | R102: 0 | S102: 0 | T102: Inlap | W102: FL
A103: 1 | B103: 92 | C103: 92 | E103: =IF(D103="Grid",Simulation!$B$2,IF(D103="WU",Simulation!$B$3,IF(D103=1,Simulation!$B$4,IF(D103=2,Simulation!$B$5,IF(D103=3,Simulation!$B$6,IF(D103=4,Simulation!$B$7,IF(D103=5,Simulation!$B$8))))))) -> FALSE | F103: =IF(D103="Grid",Simulation!$C$2,IF(D103="WU",Simulation!$C$3,IF(D103=1,Simulation!$C$4,IF(D103=2,Simulation!$C$5,IF(D103=3,Simulation!$C$6,IF(D103=4,Simulation!$C$7,IF(D103=5,Simulation!$C$8))))))) -> FALSE | G103: 0 | P103: 0 | R103: 0 | S103: 0 | T103: Inlap | W103: FL
A104: 1 | B104: 93 | C104: 93 | E104: =IF(D104="Grid",Simulation!$B$2,IF(D104="WU",Simulation!$B$3,IF(D104=1,Simulation!$B$4,IF(D104=2,Simulation!$B$5,IF(D104=3,Simulation!$B$6,IF(D104=4,Simulation!$B$7,IF(D104=5,Simulation!$B$8))))))) -> FALSE | F104: =IF(D104="Grid",Simulation!$C$2,IF(D104="WU",Simulation!$C$3,IF(D104=1,Simulation!$C$4,IF(D104=2,Simulation!$C$5,IF(D104=3,Simulation!$C$6,IF(D104=4,Simulation!$C$7,IF(D104=5,Simulation!$C$8))))))) -> FALSE | G104: 0 | P104: 0 | R104: 0 | S104: 0 | T104: Inlap | W104: FL
A105: 1 | B105: 94 | C105: 94 | E105: =IF(D105="Grid",Simulation!$B$2,IF(D105="WU",Simulation!$B$3,IF(D105=1,Simulation!$B$4,IF(D105=2,Simulation!$B$5,IF(D105=3,Simulation!$B$6,IF(D105=4,Simulation!$B$7,IF(D105=5,Simulation!$B$8))))))) -> FALSE | F105: =IF(D105="Grid",Simulation!$C$2,IF(D105="WU",Simulation!$C$3,IF(D105=1,Simulation!$C$4,IF(D105=2,Simulation!$C$5,IF(D105=3,Simulation!$C$6,IF(D105=4,Simulation!$C$7,IF(D105=5,Simulation!$C$8))))))) -> FALSE | G105: 0 | P105: 0 | R105: 0 | S105: 0 | T105: Inlap | W105: FL
A106: 1 | B106: 95 | C106: 95 | E106: =IF(D106="Grid",Simulation!$B$2,IF(D106="WU",Simulation!$B$3,IF(D106=1,Simulation!$B$4,IF(D106=2,Simulation!$B$5,IF(D106=3,Simulation!$B$6,IF(D106=4,Simulation!$B$7,IF(D106=5,Simulation!$B$8))))))) -> FALSE | F106: =IF(D106="Grid",Simulation!$C$2,IF(D106="WU",Simulation!$C$3,IF(D106=1,Simulation!$C$4,IF(D106=2,Simulation!$C$5,IF(D106=3,Simulation!$C$6,IF(D106=4,Simulation!$C$7,IF(D106=5,Simulation!$C$8))))))) -> FALSE | G106: 0 | P106: 0 | R106: 0 | S106: 0 | T106: Inlap | W106: FL
A107: 1 | B107: 96 | C107: 96 | E107: =IF(D107="Grid",Simulation!$B$2,IF(D107="WU",Simulation!$B$3,IF(D107=1,Simulation!$B$4,IF(D107=2,Simulation!$B$5,IF(D107=3,Simulation!$B$6,IF(D107=4,Simulation!$B$7,IF(D107=5,Simulation!$B$8))))))) -> FALSE | F107: =IF(D107="Grid",Simulation!$C$2,IF(D107="WU",Simulation!$C$3,IF(D107=1,Simulation!$C$4,IF(D107=2,Simulation!$C$5,IF(D107=3,Simulation!$C$6,IF(D107=4,Simulation!$C$7,IF(D107=5,Simulation!$C$8))))))) -> FALSE | G107: 0 | P107: 0 | R107: 0 | S107: 0 | T107: Inlap | W107: FL
A108: 1 | B108: 97 | C108: 97 | E108: =IF(D108="Grid",Simulation!$B$2,IF(D108="WU",Simulation!$B$3,IF(D108=1,Simulation!$B$4,IF(D108=2,Simulation!$B$5,IF(D108=3,Simulation!$B$6,IF(D108=4,Simulation!$B$7,IF(D108=5,Simulation!$B$8))))))) -> FALSE | F108: =IF(D108="Grid",Simulation!$C$2,IF(D108="WU",Simulation!$C$3,IF(D108=1,Simulation!$C$4,IF(D108=2,Simulation!$C$5,IF(D108=3,Simulation!$C$6,IF(D108=4,Simulation!$C$7,IF(D108=5,Simulation!$C$8))))))) -> FALSE | G108: 0 | P108: 0 | R108: 0 | S108: 0 | T108: Inlap | W108: FL
A109: 1 | B109: 98 | C109: 98 | E109: =IF(D109="Grid",Simulation!$B$2,IF(D109="WU",Simulation!$B$3,IF(D109=1,Simulation!$B$4,IF(D109=2,Simulation!$B$5,IF(D109=3,Simulation!$B$6,IF(D109=4,Simulation!$B$7,IF(D109=5,Simulation!$B$8))))))) -> FALSE | F109: =IF(D109="Grid",Simulation!$C$2,IF(D109="WU",Simulation!$C$3,IF(D109=1,Simulation!$C$4,IF(D109=2,Simulation!$C$5,IF(D109=3,Simulation!$C$6,IF(D109=4,Simulation!$C$7,IF(D109=5,Simulation!$C$8))))))) -> FALSE | G109: 0 | P109: 0 | R109: 0 | S109: 0 | T109: Inlap | W109: FL
A110: 1 | B110: 99 | C110: 99 | E110: =IF(D110="Grid",Simulation!$B$2,IF(D110="WU",Simulation!$B$3,IF(D110=1,Simulation!$B$4,IF(D110=2,Simulation!$B$5,IF(D110=3,Simulation!$B$6,IF(D110=4,Simulation!$B$7,IF(D110=5,Simulation!$B$8))))))) -> FALSE | F110: =IF(D110="Grid",Simulation!$C$2,IF(D110="WU",Simulation!$C$3,IF(D110=1,Simulation!$C$4,IF(D110=2,Simulation!$C$5,IF(D110=3,Simulation!$C$6,IF(D110=4,Simulation!$C$7,IF(D110=5,Simulation!$C$8))))))) -> FALSE | G110: 0 | P110: =IF(O110>0,Q110,Q110-Q109) -> 0 | R110: =IF(O110>0,Q110,Q110-Q109) -> 0 | S110: 0 | T110: Inlap | W110: FL
A111: 1 | B111: 100 | C111: 100 | E111: =IF(D111="Grid",Simulation!$B$2,IF(D111="WU",Simulation!$B$3,IF(D111=1,Simulation!$B$4,IF(D111=2,Simulation!$B$5,IF(D111=3,Simulation!$B$6,IF(D111=4,Simulation!$B$7,IF(D111=5,Simulation!$B$8))))))) -> FALSE | F111: =IF(D111="Grid",Simulation!$C$2,IF(D111="WU",Simulation!$C$3,IF(D111=1,Simulation!$C$4,IF(D111=2,Simulation!$C$5,IF(D111=3,Simulation!$C$6,IF(D111=4,Simulation!$C$7,IF(D111=5,Simulation!$C$8))))))) -> FALSE | G111: 0 | P111: 0 | R111: 0 | S111: 0 | T111: Inlap | W111: FL
A112: 1 | B112: 101 | C112: 101 | E112: =IF(D112="Grid",Simulation!$B$2,IF(D112="WU",Simulation!$B$3,IF(D112=1,Simulation!$B$4,IF(D112=2,Simulation!$B$5,IF(D112=3,Simulation!$B$6,IF(D112=4,Simulation!$B$7,IF(D112=5,Simulation!$B$8))))))) -> FALSE | F112: =IF(D112="Grid",Simulation!$C$2,IF(D112="WU",Simulation!$C$3,IF(D112=1,Simulation!$C$4,IF(D112=2,Simulation!$C$5,IF(D112=3,Simulation!$C$6,IF(D112=4,Simulation!$C$7,IF(D112=5,Simulation!$C$8))))))) -> FALSE | G112: 0 | P112: 0 | R112: 0 | S112: 0 | T112: Inlap | W112: FL
A113: 1 | B113: 102 | C113: 102 | E113: =IF(D113="Grid",Simulation!$B$2,IF(D113="WU",Simulation!$B$3,IF(D113=1,Simulation!$B$4,IF(D113=2,Simulation!$B$5,IF(D113=3,Simulation!$B$6,IF(D113=4,Simulation!$B$7,IF(D113=5,Simulation!$B$8))))))) -> FALSE | F113: =IF(D113="Grid",Simulation!$C$2,IF(D113="WU",Simulation!$C$3,IF(D113=1,Simulation!$C$4,IF(D113=2,Simulation!$C$5,IF(D113=3,Simulation!$C$6,IF(D113=4,Simulation!$C$7,IF(D113=5,Simulation!$C$8))))))) -> FALSE | G113: 0 | P113: 0 | R113: 0 | S113: 0 | T113: Inlap | W113: FL
A114: 1 | B114: 103 | C114: 103 | E114: =IF(D114="Grid",Simulation!$B$2,IF(D114="WU",Simulation!$B$3,IF(D114=1,Simulation!$B$4,IF(D114=2,Simulation!$B$5,IF(D114=3,Simulation!$B$6,IF(D114=4,Simulation!$B$7,IF(D114=5,Simulation!$B$8))))))) -> FALSE | F114: =IF(D114="Grid",Simulation!$C$2,IF(D114="WU",Simulation!$C$3,IF(D114=1,Simulation!$C$4,IF(D114=2,Simulation!$C$5,IF(D114=3,Simulation!$C$6,IF(D114=4,Simulation!$C$7,IF(D114=5,Simulation!$C$8))))))) -> FALSE | G114: 0 | P114: 0 | R114: 0 | S114: 0 | T114: Inlap | W114: FL
A115: 1 | B115: 104 | C115: 104 | E115: =IF(D115="Grid",Simulation!$B$2,IF(D115="WU",Simulation!$B$3,IF(D115=1,Simulation!$B$4,IF(D115=2,Simulation!$B$5,IF(D115=3,Simulation!$B$6,IF(D115=4,Simulation!$B$7,IF(D115=5,Simulation!$B$8))))))) -> FALSE | F115: =IF(D115="Grid",Simulation!$C$2,IF(D115="WU",Simulation!$C$3,IF(D115=1,Simulation!$C$4,IF(D115=2,Simulation!$C$5,IF(D115=3,Simulation!$C$6,IF(D115=4,Simulation!$C$7,IF(D115=5,Simulation!$C$8))))))) -> FALSE | G115: 0 | P115: 0 | R115: 0 | S115: 0 | T115: Inlap | W115: FL
A116: 1 | B116: 105 | C116: 105 | E116: =IF(D116="Grid",Simulation!$B$2,IF(D116="WU",Simulation!$B$3,IF(D116=1,Simulation!$B$4,IF(D116=2,Simulation!$B$5,IF(D116=3,Simulation!$B$6,IF(D116=4,Simulation!$B$7,IF(D116=5,Simulation!$B$8))))))) -> FALSE | F116: =IF(D116="Grid",Simulation!$C$2,IF(D116="WU",Simulation!$C$3,IF(D116=1,Simulation!$C$4,IF(D116=2,Simulation!$C$5,IF(D116=3,Simulation!$C$6,IF(D116=4,Simulation!$C$7,IF(D116=5,Simulation!$C$8))))))) -> FALSE | G116: 0 | P116: 0 | R116: 0 | S116: 0 | T116: Inlap | W116: FL
A117: 1 | B117: 106 | C117: 106 | E117: =IF(D117="Grid",Simulation!$B$2,IF(D117="WU",Simulation!$B$3,IF(D117=1,Simulation!$B$4,IF(D117=2,Simulation!$B$5,IF(D117=3,Simulation!$B$6,IF(D117=4,Simulation!$B$7,IF(D117=5,Simulation!$B$8))))))) -> FALSE | F117: =IF(D117="Grid",Simulation!$C$2,IF(D117="WU",Simulation!$C$3,IF(D117=1,Simulation!$C$4,IF(D117=2,Simulation!$C$5,IF(D117=3,Simulation!$C$6,IF(D117=4,Simulation!$C$7,IF(D117=5,Simulation!$C$8))))))) -> FALSE | G117: 0 | P117: 0 | R117: 0 | S117: 0 | T117: Inlap | W117: FL
A118: 1 | B118: 107 | C118: 107 | E118: =IF(D118="Grid",Simulation!$B$2,IF(D118="WU",Simulation!$B$3,IF(D118=1,Simulation!$B$4,IF(D118=2,Simulation!$B$5,IF(D118=3,Simulation!$B$6,IF(D118=4,Simulation!$B$7,IF(D118=5,Simulation!$B$8))))))) -> FALSE | F118: =IF(D118="Grid",Simulation!$C$2,IF(D118="WU",Simulation!$C$3,IF(D118=1,Simulation!$C$4,IF(D118=2,Simulation!$C$5,IF(D118=3,Simulation!$C$6,IF(D118=4,Simulation!$C$7,IF(D118=5,Simulation!$C$8))))))) -> FALSE | G118: 0 | P118: 0 | R118: 0 | S118: 0 | T118: Inlap | W118: FL
A119: 1 | B119: 108 | C119: 108 | E119: =IF(D119="Grid",Simulation!$B$2,IF(D119="WU",Simulation!$B$3,IF(D119=1,Simulation!$B$4,IF(D119=2,Simulation!$B$5,IF(D119=3,Simulation!$B$6,IF(D119=4,Simulation!$B$7,IF(D119=5,Simulation!$B$8))))))) -> FALSE | F119: =IF(D119="Grid",Simulation!$C$2,IF(D119="WU",Simulation!$C$3,IF(D119=1,Simulation!$C$4,IF(D119=2,Simulation!$C$5,IF(D119=3,Simulation!$C$6,IF(D119=4,Simulation!$C$7,IF(D119=5,Simulation!$C$8))))))) -> FALSE | G119: 0 | P119: 0 | R119: 0 | S119: 0 | T119: Inlap | W119: FL
A120: 1 | B120: 109 | C120: 109 | E120: =IF(D120="Grid",Simulation!$B$2,IF(D120="WU",Simulation!$B$3,IF(D120=1,Simulation!$B$4,IF(D120=2,Simulation!$B$5,IF(D120=3,Simulation!$B$6,IF(D120=4,Simulation!$B$7,IF(D120=5,Simulation!$B$8))))))) -> FALSE | F120: =IF(D120="Grid",Simulation!$C$2,IF(D120="WU",Simulation!$C$3,IF(D120=1,Simulation!$C$4,IF(D120=2,Simulation!$C$5,IF(D120=3,Simulation!$C$6,IF(D120=4,Simulation!$C$7,IF(D120=5,Simulation!$C$8))))))) -> FALSE | G120: 0 | P120: 0 | R120: 0 | S120: 0 | T120: Inlap | W120: FL
A121: 1 | B121: 110 | C121: 110 | E121: =IF(D121="Grid",Simulation!$B$2,IF(D121="WU",Simulation!$B$3,IF(D121=1,Simulation!$B$4,IF(D121=2,Simulation!$B$5,IF(D121=3,Simulation!$B$6,IF(D121=4,Simulation!$B$7,IF(D121=5,Simulation!$B$8))))))) -> FALSE | F121: =IF(D121="Grid",Simulation!$C$2,IF(D121="WU",Simulation!$C$3,IF(D121=1,Simulation!$C$4,IF(D121=2,Simulation!$C$5,IF(D121=3,Simulation!$C$6,IF(D121=4,Simulation!$C$7,IF(D121=5,Simulation!$C$8))))))) -> FALSE | G121: 0 | P121: 0 | R121: 0 | S121: 0 | T121: Inlap | W121: FL
A122: 1 | B122: 111 | C122: 111 | E122: =IF(D122="Grid",Simulation!$B$2,IF(D122="WU",Simulation!$B$3,IF(D122=1,Simulation!$B$4,IF(D122=2,Simulation!$B$5,IF(D122=3,Simulation!$B$6,IF(D122=4,Simulation!$B$7,IF(D122=5,Simulation!$B$8))))))) -> FALSE | F122: =IF(D122="Grid",Simulation!$C$2,IF(D122="WU",Simulation!$C$3,IF(D122=1,Simulation!$C$4,IF(D122=2,Simulation!$C$5,IF(D122=3,Simulation!$C$6,IF(D122=4,Simulation!$C$7,IF(D122=5,Simulation!$C$8))))))) -> FALSE | G122: 0 | P122: 0 | R122: 0 | S122: 0 | T122: Inlap | W122: FL
A123: 1 | B123: 112 | C123: 112 | E123: =IF(D123="Grid",Simulation!$B$2,IF(D123="WU",Simulation!$B$3,IF(D123=1,Simulation!$B$4,IF(D123=2,Simulation!$B$5,IF(D123=3,Simulation!$B$6,IF(D123=4,Simulation!$B$7,IF(D123=5,Simulation!$B$8))))))) -> FALSE | F123: =IF(D123="Grid",Simulation!$C$2,IF(D123="WU",Simulation!$C$3,IF(D123=1,Simulation!$C$4,IF(D123=2,Simulation!$C$5,IF(D123=3,Simulation!$C$6,IF(D123=4,Simulation!$C$7,IF(D123=5,Simulation!$C$8))))))) -> FALSE | G123: 0 | P123: 0 | R123: 0 | S123: 0 | T123: Inlap | W123: FL
A124: 1 | B124: 113 | C124: 113 | E124: =IF(D124="Grid",Simulation!$B$2,IF(D124="WU",Simulation!$B$3,IF(D124=1,Simulation!$B$4,IF(D124=2,Simulation!$B$5,IF(D124=3,Simulation!$B$6,IF(D124=4,Simulation!$B$7,IF(D124=5,Simulation!$B$8))))))) -> FALSE | F124: =IF(D124="Grid",Simulation!$C$2,IF(D124="WU",Simulation!$C$3,IF(D124=1,Simulation!$C$4,IF(D124=2,Simulation!$C$5,IF(D124=3,Simulation!$C$6,IF(D124=4,Simulation!$C$7,IF(D124=5,Simulation!$C$8))))))) -> FALSE | G124: 0 | P124: 0 | R124: 0 | S124: 0 | T124: Inlap | W124: FL
A125: 1 | B125: 114 | C125: 114 | E125: =IF(D125="Grid",Simulation!$B$2,IF(D125="WU",Simulation!$B$3,IF(D125=1,Simulation!$B$4,IF(D125=2,Simulation!$B$5,IF(D125=3,Simulation!$B$6,IF(D125=4,Simulation!$B$7,IF(D125=5,Simulation!$B$8))))))) -> FALSE | F125: =IF(D125="Grid",Simulation!$C$2,IF(D125="WU",Simulation!$C$3,IF(D125=1,Simulation!$C$4,IF(D125=2,Simulation!$C$5,IF(D125=3,Simulation!$C$6,IF(D125=4,Simulation!$C$7,IF(D125=5,Simulation!$C$8))))))) -> FALSE | G125: 0 | P125: 0 | R125: 0 | S125: 0 | T125: Inlap | W125: FL
A126: 1 | B126: 115 | C126: 115 | E126: =IF(D126="Grid",Simulation!$B$2,IF(D126="WU",Simulation!$B$3,IF(D126=1,Simulation!$B$4,IF(D126=2,Simulation!$B$5,IF(D126=3,Simulation!$B$6,IF(D126=4,Simulation!$B$7,IF(D126=5,Simulation!$B$8))))))) -> FALSE | F126: =IF(D126="Grid",Simulation!$C$2,IF(D126="WU",Simulation!$C$3,IF(D126=1,Simulation!$C$4,IF(D126=2,Simulation!$C$5,IF(D126=3,Simulation!$C$6,IF(D126=4,Simulation!$C$7,IF(D126=5,Simulation!$C$8))))))) -> FALSE | G126: 0 | P126: 0 | R126: 0 | S126: 0 | T126: Inlap | W126: FL
A127: 1 | B127: 116 | C127: 116 | E127: =IF(D127="Grid",Simulation!$B$2,IF(D127="WU",Simulation!$B$3,IF(D127=1,Simulation!$B$4,IF(D127=2,Simulation!$B$5,IF(D127=3,Simulation!$B$6,IF(D127=4,Simulation!$B$7,IF(D127=5,Simulation!$B$8))))))) -> FALSE | F127: =IF(D127="Grid",Simulation!$C$2,IF(D127="WU",Simulation!$C$3,IF(D127=1,Simulation!$C$4,IF(D127=2,Simulation!$C$5,IF(D127=3,Simulation!$C$6,IF(D127=4,Simulation!$C$7,IF(D127=5,Simulation!$C$8))))))) -> FALSE | G127: 0 | P127: 0 | R127: 0 | S127: 0 | T127: Inlap | W127: FL
A128: 1 | B128: 117 | C128: 117 | E128: =IF(D128="Grid",Simulation!$B$2,IF(D128="WU",Simulation!$B$3,IF(D128=1,Simulation!$B$4,IF(D128=2,Simulation!$B$5,IF(D128=3,Simulation!$B$6,IF(D128=4,Simulation!$B$7,IF(D128=5,Simulation!$B$8))))))) -> FALSE | F128: =IF(D128="Grid",Simulation!$C$2,IF(D128="WU",Simulation!$C$3,IF(D128=1,Simulation!$C$4,IF(D128=2,Simulation!$C$5,IF(D128=3,Simulation!$C$6,IF(D128=4,Simulation!$C$7,IF(D128=5,Simulation!$C$8))))))) -> FALSE | G128: 0 | P128: 0 | R128: 0 | S128: 0 | T128: Inlap | W128: FL
A129: 1 | B129: 118 | C129: 118 | E129: =IF(D129="Grid",Simulation!$B$2,IF(D129="WU",Simulation!$B$3,IF(D129=1,Simulation!$B$4,IF(D129=2,Simulation!$B$5,IF(D129=3,Simulation!$B$6,IF(D129=4,Simulation!$B$7,IF(D129=5,Simulation!$B$8))))))) -> FALSE | F129: =IF(D129="Grid",Simulation!$C$2,IF(D129="WU",Simulation!$C$3,IF(D129=1,Simulation!$C$4,IF(D129=2,Simulation!$C$5,IF(D129=3,Simulation!$C$6,IF(D129=4,Simulation!$C$7,IF(D129=5,Simulation!$C$8))))))) -> FALSE | G129: 0 | P129: 0 | R129: 0 | S129: 0 | T129: Inlap | W129: FL
A130: 1 | B130: 119 | C130: 119 | E130: =IF(D130="Grid",Simulation!$B$2,IF(D130="WU",Simulation!$B$3,IF(D130=1,Simulation!$B$4,IF(D130=2,Simulation!$B$5,IF(D130=3,Simulation!$B$6,IF(D130=4,Simulation!$B$7,IF(D130=5,Simulation!$B$8))))))) -> FALSE | F130: =IF(D130="Grid",Simulation!$C$2,IF(D130="WU",Simulation!$C$3,IF(D130=1,Simulation!$C$4,IF(D130=2,Simulation!$C$5,IF(D130=3,Simulation!$C$6,IF(D130=4,Simulation!$C$7,IF(D130=5,Simulation!$C$8))))))) -> FALSE | G130: 0 | P130: 0 | R130: 0 | S130: 0 | T130: Inlap | W130: FL
A131: 1 | B131: 120 | C131: 120 | E131: =IF(D131="Grid",Simulation!$B$2,IF(D131="WU",Simulation!$B$3,IF(D131=1,Simulation!$B$4,IF(D131=2,Simulation!$B$5,IF(D131=3,Simulation!$B$6,IF(D131=4,Simulation!$B$7,IF(D131=5,Simulation!$B$8))))))) -> FALSE | F131: =IF(D131="Grid",Simulation!$C$2,IF(D131="WU",Simulation!$C$3,IF(D131=1,Simulation!$C$4,IF(D131=2,Simulation!$C$5,IF(D131=3,Simulation!$C$6,IF(D131=4,Simulation!$C$7,IF(D131=5,Simulation!$C$8))))))) -> FALSE | G131: 0 | P131: 0 | R131: 0 | S131: 0 | T131: Inlap | W131: FL
A132: 1 | B132: 121 | C132: 121 | E132: =IF(D132="Grid",Simulation!$B$2,IF(D132="WU",Simulation!$B$3,IF(D132=1,Simulation!$B$4,IF(D132=2,Simulation!$B$5,IF(D132=3,Simulation!$B$6,IF(D132=4,Simulation!$B$7,IF(D132=5,Simulation!$B$8))))))) -> FALSE | F132: =IF(D132="Grid",Simulation!$C$2,IF(D132="WU",Simulation!$C$3,IF(D132=1,Simulation!$C$4,IF(D132=2,Simulation!$C$5,IF(D132=3,Simulation!$C$6,IF(D132=4,Simulation!$C$7,IF(D132=5,Simulation!$C$8))))))) -> FALSE | G132: 0 | P132: 0 | R132: 0 | S132: 0 | T132: Inlap | W132: FL
A133: 1 | B133: 122 | C133: 122 | E133: =IF(D133="Grid",Simulation!$B$2,IF(D133="WU",Simulation!$B$3,IF(D133=1,Simulation!$B$4,IF(D133=2,Simulation!$B$5,IF(D133=3,Simulation!$B$6,IF(D133=4,Simulation!$B$7,IF(D133=5,Simulation!$B$8))))))) -> FALSE | F133: =IF(D133="Grid",Simulation!$C$2,IF(D133="WU",Simulation!$C$3,IF(D133=1,Simulation!$C$4,IF(D133=2,Simulation!$C$5,IF(D133=3,Simulation!$C$6,IF(D133=4,Simulation!$C$7,IF(D133=5,Simulation!$C$8))))))) -> FALSE | G133: 0 | P133: 0 | R133: 0 | S133: 0 | T133: Inlap | W133: FL
A134: 1 | B134: 123 | C134: 123 | E134: =IF(D134="Grid",Simulation!$B$2,IF(D134="WU",Simulation!$B$3,IF(D134=1,Simulation!$B$4,IF(D134=2,Simulation!$B$5,IF(D134=3,Simulation!$B$6,IF(D134=4,Simulation!$B$7,IF(D134=5,Simulation!$B$8))))))) -> FALSE | F134: =IF(D134="Grid",Simulation!$C$2,IF(D134="WU",Simulation!$C$3,IF(D134=1,Simulation!$C$4,IF(D134=2,Simulation!$C$5,IF(D134=3,Simulation!$C$6,IF(D134=4,Simulation!$C$7,IF(D134=5,Simulation!$C$8))))))) -> FALSE | G134: 0 | P134: 0 | R134: 0 | S134: 0 | T134: Inlap | W134: FL
A135: 1 | B135: 124 | C135: 124 | E135: =IF(D135="Grid",Simulation!$B$2,IF(D135="WU",Simulation!$B$3,IF(D135=1,Simulation!$B$4,IF(D135=2,Simulation!$B$5,IF(D135=3,Simulation!$B$6,IF(D135=4,Simulation!$B$7,IF(D135=5,Simulation!$B$8))))))) -> FALSE | F135: =IF(D135="Grid",Simulation!$C$2,IF(D135="WU",Simulation!$C$3,IF(D135=1,Simulation!$C$4,IF(D135=2,Simulation!$C$5,IF(D135=3,Simulation!$C$6,IF(D135=4,Simulation!$C$7,IF(D135=5,Simulation!$C$8))))))) -> FALSE | G135: 0 | P135: 0 | R135: 0 | S135: 0 | T135: Inlap | W135: FL
A136: 1 | B136: 125 | C136: 125 | E136: =IF(D136="Grid",Simulation!$B$2,IF(D136="WU",Simulation!$B$3,IF(D136=1,Simulation!$B$4,IF(D136=2,Simulation!$B$5,IF(D136=3,Simulation!$B$6,IF(D136=4,Simulation!$B$7,IF(D136=5,Simulation!$B$8))))))) -> FALSE | F136: =IF(D136="Grid",Simulation!$C$2,IF(D136="WU",Simulation!$C$3,IF(D136=1,Simulation!$C$4,IF(D136=2,Simulation!$C$5,IF(D136=3,Simulation!$C$6,IF(D136=4,Simulation!$C$7,IF(D136=5,Simulation!$C$8))))))) -> FALSE | G136: 0 | P136: 0 | R136: 0 | S136: 0 | T136: Inlap | W136: FL
A137: 1 | B137: 126 | C137: 126 | E137: =IF(D137="Grid",Simulation!$B$2,IF(D137="WU",Simulation!$B$3,IF(D137=1,Simulation!$B$4,IF(D137=2,Simulation!$B$5,IF(D137=3,Simulation!$B$6,IF(D137=4,Simulation!$B$7,IF(D137=5,Simulation!$B$8))))))) -> FALSE | F137: =IF(D137="Grid",Simulation!$C$2,IF(D137="WU",Simulation!$C$3,IF(D137=1,Simulation!$C$4,IF(D137=2,Simulation!$C$5,IF(D137=3,Simulation!$C$6,IF(D137=4,Simulation!$C$7,IF(D137=5,Simulation!$C$8))))))) -> FALSE | G137: 0 | P137: 0 | R137: 0 | S137: 0 | T137: Inlap | W137: FL
A138: 1 | B138: 127 | C138: 127 | E138: =IF(D138="Grid",Simulation!$B$2,IF(D138="WU",Simulation!$B$3,IF(D138=1,Simulation!$B$4,IF(D138=2,Simulation!$B$5,IF(D138=3,Simulation!$B$6,IF(D138=4,Simulation!$B$7,IF(D138=5,Simulation!$B$8))))))) -> FALSE | F138: =IF(D138="Grid",Simulation!$C$2,IF(D138="WU",Simulation!$C$3,IF(D138=1,Simulation!$C$4,IF(D138=2,Simulation!$C$5,IF(D138=3,Simulation!$C$6,IF(D138=4,Simulation!$C$7,IF(D138=5,Simulation!$C$8))))))) -> FALSE | G138: 0 | P138: 0 | R138: 0 | S138: 0 | T138: Inlap | W138: FL
A139: 1 | B139: 128 | C139: 128 | E139: =IF(D139="Grid",Simulation!$B$2,IF(D139="WU",Simulation!$B$3,IF(D139=1,Simulation!$B$4,IF(D139=2,Simulation!$B$5,IF(D139=3,Simulation!$B$6,IF(D139=4,Simulation!$B$7,IF(D139=5,Simulation!$B$8))))))) -> FALSE | F139: =IF(D139="Grid",Simulation!$C$2,IF(D139="WU",Simulation!$C$3,IF(D139=1,Simulation!$C$4,IF(D139=2,Simulation!$C$5,IF(D139=3,Simulation!$C$6,IF(D139=4,Simulation!$C$7,IF(D139=5,Simulation!$C$8))))))) -> FALSE | G139: 0 | P139: 0 | R139: 0 | S139: 0 | T139: Inlap | W139: FL
A140: =IF(O140>0,A139+1,A139) -> 1 | B140: 129 | C140: 129 | E140: =IF(D140="Grid",Simulation!$B$2,IF(D140="WU",Simulation!$B$3,IF(D140=1,Simulation!$B$4,IF(D140=2,Simulation!$B$5,IF(D140=3,Simulation!$B$6,IF(D140=4,Simulation!$B$7,IF(D140=5,Simulation!$B$8))))))) -> FALSE | F140: =IF(D140="Grid",Simulation!$C$2,IF(D140="WU",Simulation!$C$3,IF(D140=1,Simulation!$C$4,IF(D140=2,Simulation!$C$5,IF(D140=3,Simulation!$C$6,IF(D140=4,Simulation!$C$7,IF(D140=5,Simulation!$C$8))))))) -> FALSE | G140: =G139+O139-P139 -> 0 | P140: 0 | R140: 0 | S140: =IF(O140>0,O140+S139-Q140,S139-P140) -> 0 | T140: =IF(S140<=F140,"Inlap",IF(S140<=2*F140,"Call: In this lap!",IF(S140<=3*F140,"Show in but don't call!",""))) -> Inlap | W140: =IF(J140=$Q$2,"FL","") -> FL
A141: 1 | B141: 130 | C141: 130 | E141: =IF(D141="Grid",Simulation!$B$2,IF(D141="WU",Simulation!$B$3,IF(D141=1,Simulation!$B$4,IF(D141=2,Simulation!$B$5,IF(D141=3,Simulation!$B$6,IF(D141=4,Simulation!$B$7,IF(D141=5,Simulation!$B$8))))))) -> FALSE | F141: =IF(D141="Grid",Simulation!$C$2,IF(D141="WU",Simulation!$C$3,IF(D141=1,Simulation!$C$4,IF(D141=2,Simulation!$C$5,IF(D141=3,Simulation!$C$6,IF(D141=4,Simulation!$C$7,IF(D141=5,Simulation!$C$8))))))) -> FALSE | G141: 0 | K141: =IF(J141<>0,K140,"") ->  | P141: 0 | R141: 0 | S141: 0 | T141: Inlap | W141: FL
A142: 1 | B142: 131 | C142: =IF(O142="",C141+1,"1") -> 131 | E142: =IF(D142="Grid",Simulation!$B$2,IF(D142="WU",Simulation!$B$3,IF(D142=1,Simulation!$B$4,IF(D142=2,Simulation!$B$5,IF(D142=3,Simulation!$B$6,IF(D142=4,Simulation!$B$7,IF(D142=5,Simulation!$B$8))))))) -> FALSE | F142: =IF(D142="Grid",Simulation!$C$2,IF(D142="WU",Simulation!$C$3,IF(D142=1,Simulation!$C$4,IF(D142=2,Simulation!$C$5,IF(D142=3,Simulation!$C$6,IF(D142=4,Simulation!$C$7,IF(D142=5,Simulation!$C$8))))))) -> FALSE | G142: 0 | P142: 0 | R142: 0 | S142: 0 | T142: Inlap | W142: FL
A143: 1 | B143: 132 | C143: 132 | E143: =IF(D143="Grid",Simulation!$B$2,IF(D143="WU",Simulation!$B$3,IF(D143=1,Simulation!$B$4,IF(D143=2,Simulation!$B$5,IF(D143=3,Simulation!$B$6,IF(D143=4,Simulation!$B$7,IF(D143=5,Simulation!$B$8))))))) -> FALSE | F143: =IF(D143="Grid",Simulation!$C$2,IF(D143="WU",Simulation!$C$3,IF(D143=1,Simulation!$C$4,IF(D143=2,Simulation!$C$5,IF(D143=3,Simulation!$C$6,IF(D143=4,Simulation!$C$7,IF(D143=5,Simulation!$C$8))))))) -> FALSE | G143: 0 | P143: 0 | R143: 0 | S143: 0 | T143: Inlap | W143: FL
A144: 1 | B144: 133 | C144: 133 | E144: =IF(D144="Grid",Simulation!$B$2,IF(D144="WU",Simulation!$B$3,IF(D144=1,Simulation!$B$4,IF(D144=2,Simulation!$B$5,IF(D144=3,Simulation!$B$6,IF(D144=4,Simulation!$B$7,IF(D144=5,Simulation!$B$8))))))) -> FALSE | F144: =IF(D144="Grid",Simulation!$C$2,IF(D144="WU",Simulation!$C$3,IF(D144=1,Simulation!$C$4,IF(D144=2,Simulation!$C$5,IF(D144=3,Simulation!$C$6,IF(D144=4,Simulation!$C$7,IF(D144=5,Simulation!$C$8))))))) -> FALSE | G144: 0 | P144: 0 | R144: 0 | S144: 0 | T144: Inlap | W144: FL
A145: 1 | B145: 134 | C145: 134 | E145: =IF(D145="Grid",Simulation!$B$2,IF(D145="WU",Simulation!$B$3,IF(D145=1,Simulation!$B$4,IF(D145=2,Simulation!$B$5,IF(D145=3,Simulation!$B$6,IF(D145=4,Simulation!$B$7,IF(D145=5,Simulation!$B$8))))))) -> FALSE | F145: =IF(D145="Grid",Simulation!$C$2,IF(D145="WU",Simulation!$C$3,IF(D145=1,Simulation!$C$4,IF(D145=2,Simulation!$C$5,IF(D145=3,Simulation!$C$6,IF(D145=4,Simulation!$C$7,IF(D145=5,Simulation!$C$8))))))) -> FALSE | G145: 0 | P145: 0 | R145: 0 | S145: 0 | T145: Inlap | W145: FL
A146: 1 | B146: 135 | C146: 135 | E146: =IF(D146="Grid",Simulation!$B$2,IF(D146="WU",Simulation!$B$3,IF(D146=1,Simulation!$B$4,IF(D146=2,Simulation!$B$5,IF(D146=3,Simulation!$B$6,IF(D146=4,Simulation!$B$7,IF(D146=5,Simulation!$B$8))))))) -> FALSE | F146: =IF(D146="Grid",Simulation!$C$2,IF(D146="WU",Simulation!$C$3,IF(D146=1,Simulation!$C$4,IF(D146=2,Simulation!$C$5,IF(D146=3,Simulation!$C$6,IF(D146=4,Simulation!$C$7,IF(D146=5,Simulation!$C$8))))))) -> FALSE | G146: 0 | P146: 0 | R146: 0 | S146: 0 | T146: Inlap | W146: FL
A147: 1 | B147: 136 | C147: 136 | E147: =IF(D147="Grid",Simulation!$B$2,IF(D147="WU",Simulation!$B$3,IF(D147=1,Simulation!$B$4,IF(D147=2,Simulation!$B$5,IF(D147=3,Simulation!$B$6,IF(D147=4,Simulation!$B$7,IF(D147=5,Simulation!$B$8))))))) -> FALSE | F147: =IF(D147="Grid",Simulation!$C$2,IF(D147="WU",Simulation!$C$3,IF(D147=1,Simulation!$C$4,IF(D147=2,Simulation!$C$5,IF(D147=3,Simulation!$C$6,IF(D147=4,Simulation!$C$7,IF(D147=5,Simulation!$C$8))))))) -> FALSE | G147: 0 | P147: 0 | R147: 0 | S147: 0 | T147: Inlap | W147: FL
A148: 1 | B148: 137 | C148: 137 | E148: =IF(D148="Grid",Simulation!$B$2,IF(D148="WU",Simulation!$B$3,IF(D148=1,Simulation!$B$4,IF(D148=2,Simulation!$B$5,IF(D148=3,Simulation!$B$6,IF(D148=4,Simulation!$B$7,IF(D148=5,Simulation!$B$8))))))) -> FALSE | F148: =IF(D148="Grid",Simulation!$C$2,IF(D148="WU",Simulation!$C$3,IF(D148=1,Simulation!$C$4,IF(D148=2,Simulation!$C$5,IF(D148=3,Simulation!$C$6,IF(D148=4,Simulation!$C$7,IF(D148=5,Simulation!$C$8))))))) -> FALSE | G148: 0 | P148: 0 | R148: 0 | S148: 0 | T148: Inlap | W148: FL
A149: 1 | B149: 138 | C149: 138 | E149: =IF(D149="Grid",Simulation!$B$2,IF(D149="WU",Simulation!$B$3,IF(D149=1,Simulation!$B$4,IF(D149=2,Simulation!$B$5,IF(D149=3,Simulation!$B$6,IF(D149=4,Simulation!$B$7,IF(D149=5,Simulation!$B$8))))))) -> FALSE | F149: =IF(D149="Grid",Simulation!$C$2,IF(D149="WU",Simulation!$C$3,IF(D149=1,Simulation!$C$4,IF(D149=2,Simulation!$C$5,IF(D149=3,Simulation!$C$6,IF(D149=4,Simulation!$C$7,IF(D149=5,Simulation!$C$8))))))) -> FALSE | G149: 0 | P149: 0 | R149: 0 | S149: 0 | T149: Inlap | W149: FL
A150: 1 | B150: 139 | C150: 139 | E150: =IF(D150="Grid",Simulation!$B$2,IF(D150="WU",Simulation!$B$3,IF(D150=1,Simulation!$B$4,IF(D150=2,Simulation!$B$5,IF(D150=3,Simulation!$B$6,IF(D150=4,Simulation!$B$7,IF(D150=5,Simulation!$B$8))))))) -> FALSE | F150: =IF(D150="Grid",Simulation!$C$2,IF(D150="WU",Simulation!$C$3,IF(D150=1,Simulation!$C$4,IF(D150=2,Simulation!$C$5,IF(D150=3,Simulation!$C$6,IF(D150=4,Simulation!$C$7,IF(D150=5,Simulation!$C$8))))))) -> FALSE | G150: 0 | P150: 0 | R150: 0 | S150: 0 | T150: Inlap | W150: FL
A151: 1 | B151: 140 | C151: 140 | E151: =IF(D151="Grid",Simulation!$B$2,IF(D151="WU",Simulation!$B$3,IF(D151=1,Simulation!$B$4,IF(D151=2,Simulation!$B$5,IF(D151=3,Simulation!$B$6,IF(D151=4,Simulation!$B$7,IF(D151=5,Simulation!$B$8))))))) -> FALSE | F151: =IF(D151="Grid",Simulation!$C$2,IF(D151="WU",Simulation!$C$3,IF(D151=1,Simulation!$C$4,IF(D151=2,Simulation!$C$5,IF(D151=3,Simulation!$C$6,IF(D151=4,Simulation!$C$7,IF(D151=5,Simulation!$C$8))))))) -> FALSE | G151: 0 | P151: 0 | R151: 0 | S151: 0 | T151: Inlap | W151: FL
A152: 1 | B152: 141 | C152: 141 | E152: =IF(D152="Grid",Simulation!$B$2,IF(D152="WU",Simulation!$B$3,IF(D152=1,Simulation!$B$4,IF(D152=2,Simulation!$B$5,IF(D152=3,Simulation!$B$6,IF(D152=4,Simulation!$B$7,IF(D152=5,Simulation!$B$8))))))) -> FALSE | F152: =IF(D152="Grid",Simulation!$C$2,IF(D152="WU",Simulation!$C$3,IF(D152=1,Simulation!$C$4,IF(D152=2,Simulation!$C$5,IF(D152=3,Simulation!$C$6,IF(D152=4,Simulation!$C$7,IF(D152=5,Simulation!$C$8))))))) -> FALSE | G152: 0 | P152: 0 | R152: 0 | S152: 0 | T152: Inlap | W152: FL
A153: 1 | B153: 142 | C153: 142 | E153: =IF(D153="Grid",Simulation!$B$2,IF(D153="WU",Simulation!$B$3,IF(D153=1,Simulation!$B$4,IF(D153=2,Simulation!$B$5,IF(D153=3,Simulation!$B$6,IF(D153=4,Simulation!$B$7,IF(D153=5,Simulation!$B$8))))))) -> FALSE | F153: =IF(D153="Grid",Simulation!$C$2,IF(D153="WU",Simulation!$C$3,IF(D153=1,Simulation!$C$4,IF(D153=2,Simulation!$C$5,IF(D153=3,Simulation!$C$6,IF(D153=4,Simulation!$C$7,IF(D153=5,Simulation!$C$8))))))) -> FALSE | G153: 0 | P153: 0 | R153: 0 | S153: 0 | T153: Inlap | W153: FL
A154: 1 | B154: 143 | C154: 143 | E154: =IF(D154="Grid",Simulation!$B$2,IF(D154="WU",Simulation!$B$3,IF(D154=1,Simulation!$B$4,IF(D154=2,Simulation!$B$5,IF(D154=3,Simulation!$B$6,IF(D154=4,Simulation!$B$7,IF(D154=5,Simulation!$B$8))))))) -> FALSE | F154: =IF(D154="Grid",Simulation!$C$2,IF(D154="WU",Simulation!$C$3,IF(D154=1,Simulation!$C$4,IF(D154=2,Simulation!$C$5,IF(D154=3,Simulation!$C$6,IF(D154=4,Simulation!$C$7,IF(D154=5,Simulation!$C$8))))))) -> FALSE | G154: 0 | P154: 0 | R154: 0 | S154: 0 | T154: Inlap | W154: FL
A155: 1 | B155: 144 | C155: 144 | E155: =IF(D155="Grid",Simulation!$B$2,IF(D155="WU",Simulation!$B$3,IF(D155=1,Simulation!$B$4,IF(D155=2,Simulation!$B$5,IF(D155=3,Simulation!$B$6,IF(D155=4,Simulation!$B$7,IF(D155=5,Simulation!$B$8))))))) -> FALSE | F155: =IF(D155="Grid",Simulation!$C$2,IF(D155="WU",Simulation!$C$3,IF(D155=1,Simulation!$C$4,IF(D155=2,Simulation!$C$5,IF(D155=3,Simulation!$C$6,IF(D155=4,Simulation!$C$7,IF(D155=5,Simulation!$C$8))))))) -> FALSE | G155: 0 | P155: 0 | R155: 0 | S155: 0 | T155: Inlap | W155: FL
A156: 1 | B156: 145 | C156: 145 | E156: =IF(D156="Grid",Simulation!$B$2,IF(D156="WU",Simulation!$B$3,IF(D156=1,Simulation!$B$4,IF(D156=2,Simulation!$B$5,IF(D156=3,Simulation!$B$6,IF(D156=4,Simulation!$B$7,IF(D156=5,Simulation!$B$8))))))) -> FALSE | F156: =IF(D156="Grid",Simulation!$C$2,IF(D156="WU",Simulation!$C$3,IF(D156=1,Simulation!$C$4,IF(D156=2,Simulation!$C$5,IF(D156=3,Simulation!$C$6,IF(D156=4,Simulation!$C$7,IF(D156=5,Simulation!$C$8))))))) -> FALSE | G156: 0 | P156: 0 | R156: 0 | S156: 0 | T156: Inlap | W156: FL
A157: 1 | B157: 146 | C157: 146 | E157: =IF(D157="Grid",Simulation!$B$2,IF(D157="WU",Simulation!$B$3,IF(D157=1,Simulation!$B$4,IF(D157=2,Simulation!$B$5,IF(D157=3,Simulation!$B$6,IF(D157=4,Simulation!$B$7,IF(D157=5,Simulation!$B$8))))))) -> FALSE | F157: =IF(D157="Grid",Simulation!$C$2,IF(D157="WU",Simulation!$C$3,IF(D157=1,Simulation!$C$4,IF(D157=2,Simulation!$C$5,IF(D157=3,Simulation!$C$6,IF(D157=4,Simulation!$C$7,IF(D157=5,Simulation!$C$8))))))) -> FALSE | G157: 0 | P157: 0 | R157: 0 | S157: 0 | T157: Inlap | W157: FL
A158: 1 | B158: 147 | C158: 147 | E158: =IF(D158="Grid",Simulation!$B$2,IF(D158="WU",Simulation!$B$3,IF(D158=1,Simulation!$B$4,IF(D158=2,Simulation!$B$5,IF(D158=3,Simulation!$B$6,IF(D158=4,Simulation!$B$7,IF(D158=5,Simulation!$B$8))))))) -> FALSE | F158: =IF(D158="Grid",Simulation!$C$2,IF(D158="WU",Simulation!$C$3,IF(D158=1,Simulation!$C$4,IF(D158=2,Simulation!$C$5,IF(D158=3,Simulation!$C$6,IF(D158=4,Simulation!$C$7,IF(D158=5,Simulation!$C$8))))))) -> FALSE | G158: 0 | P158: 0 | R158: 0 | S158: 0 | T158: Inlap | W158: FL
A159: 1 | B159: 148 | C159: 148 | E159: =IF(D159="Grid",Simulation!$B$2,IF(D159="WU",Simulation!$B$3,IF(D159=1,Simulation!$B$4,IF(D159=2,Simulation!$B$5,IF(D159=3,Simulation!$B$6,IF(D159=4,Simulation!$B$7,IF(D159=5,Simulation!$B$8))))))) -> FALSE | F159: =IF(D159="Grid",Simulation!$C$2,IF(D159="WU",Simulation!$C$3,IF(D159=1,Simulation!$C$4,IF(D159=2,Simulation!$C$5,IF(D159=3,Simulation!$C$6,IF(D159=4,Simulation!$C$7,IF(D159=5,Simulation!$C$8))))))) -> FALSE | G159: 0 | P159: 0 | R159: 0 | S159: 0 | T159: Inlap | W159: FL
A160: 1 | B160: 149 | C160: 149 | E160: =IF(D160="Grid",Simulation!$B$2,IF(D160="WU",Simulation!$B$3,IF(D160=1,Simulation!$B$4,IF(D160=2,Simulation!$B$5,IF(D160=3,Simulation!$B$6,IF(D160=4,Simulation!$B$7,IF(D160=5,Simulation!$B$8))))))) -> FALSE | F160: =IF(D160="Grid",Simulation!$C$2,IF(D160="WU",Simulation!$C$3,IF(D160=1,Simulation!$C$4,IF(D160=2,Simulation!$C$5,IF(D160=3,Simulation!$C$6,IF(D160=4,Simulation!$C$7,IF(D160=5,Simulation!$C$8))))))) -> FALSE | G160: 0 | P160: 0 | R160: 0 | S160: 0 | T160: Inlap | W160: FL
A161: 1 | B161: 150 | C161: 150 | E161: =IF(D161="Grid",Simulation!$B$2,IF(D161="WU",Simulation!$B$3,IF(D161=1,Simulation!$B$4,IF(D161=2,Simulation!$B$5,IF(D161=3,Simulation!$B$6,IF(D161=4,Simulation!$B$7,IF(D161=5,Simulation!$B$8))))))) -> FALSE | F161: =IF(D161="Grid",Simulation!$C$2,IF(D161="WU",Simulation!$C$3,IF(D161=1,Simulation!$C$4,IF(D161=2,Simulation!$C$5,IF(D161=3,Simulation!$C$6,IF(D161=4,Simulation!$C$7,IF(D161=5,Simulation!$C$8))))))) -> FALSE | G161: 0 | P161: 0 | R161: 0 | S161: 0 | T161: Inlap | W161: FL
A162: 1 | B162: 151 | C162: 151 | E162: =IF(D162="Grid",Simulation!$B$2,IF(D162="WU",Simulation!$B$3,IF(D162=1,Simulation!$B$4,IF(D162=2,Simulation!$B$5,IF(D162=3,Simulation!$B$6,IF(D162=4,Simulation!$B$7,IF(D162=5,Simulation!$B$8))))))) -> FALSE | F162: =IF(D162="Grid",Simulation!$C$2,IF(D162="WU",Simulation!$C$3,IF(D162=1,Simulation!$C$4,IF(D162=2,Simulation!$C$5,IF(D162=3,Simulation!$C$6,IF(D162=4,Simulation!$C$7,IF(D162=5,Simulation!$C$8))))))) -> FALSE | G162: 0 | P162: 0 | R162: 0 | S162: 0 | T162: Inlap | W162: FL
A163: 1 | B163: 152 | C163: 152 | E163: =IF(D163="Grid",Simulation!$B$2,IF(D163="WU",Simulation!$B$3,IF(D163=1,Simulation!$B$4,IF(D163=2,Simulation!$B$5,IF(D163=3,Simulation!$B$6,IF(D163=4,Simulation!$B$7,IF(D163=5,Simulation!$B$8))))))) -> FALSE | F163: =IF(D163="Grid",Simulation!$C$2,IF(D163="WU",Simulation!$C$3,IF(D163=1,Simulation!$C$4,IF(D163=2,Simulation!$C$5,IF(D163=3,Simulation!$C$6,IF(D163=4,Simulation!$C$7,IF(D163=5,Simulation!$C$8))))))) -> FALSE | G163: 0 | P163: 0 | R163: 0 | S163: 0 | T163: Inlap | W163: FL
A164: 1 | B164: 153 | C164: 153 | E164: =IF(D164="Grid",Simulation!$B$2,IF(D164="WU",Simulation!$B$3,IF(D164=1,Simulation!$B$4,IF(D164=2,Simulation!$B$5,IF(D164=3,Simulation!$B$6,IF(D164=4,Simulation!$B$7,IF(D164=5,Simulation!$B$8))))))) -> FALSE | F164: =IF(D164="Grid",Simulation!$C$2,IF(D164="WU",Simulation!$C$3,IF(D164=1,Simulation!$C$4,IF(D164=2,Simulation!$C$5,IF(D164=3,Simulation!$C$6,IF(D164=4,Simulation!$C$7,IF(D164=5,Simulation!$C$8))))))) -> FALSE | G164: 0 | P164: 0 | R164: 0 | S164: 0 | T164: Inlap | W164: FL
A165: 1 | B165: 154 | C165: 154 | E165: =IF(D165="Grid",Simulation!$B$2,IF(D165="WU",Simulation!$B$3,IF(D165=1,Simulation!$B$4,IF(D165=2,Simulation!$B$5,IF(D165=3,Simulation!$B$6,IF(D165=4,Simulation!$B$7,IF(D165=5,Simulation!$B$8))))))) -> FALSE | F165: =IF(D165="Grid",Simulation!$C$2,IF(D165="WU",Simulation!$C$3,IF(D165=1,Simulation!$C$4,IF(D165=2,Simulation!$C$5,IF(D165=3,Simulation!$C$6,IF(D165=4,Simulation!$C$7,IF(D165=5,Simulation!$C$8))))))) -> FALSE | G165: 0 | P165: 0 | R165: 0 | S165: 0 | T165: Inlap | W165: FL
A166: 1 | B166: 155 | C166: 155 | E166: =IF(D166="Grid",Simulation!$B$2,IF(D166="WU",Simulation!$B$3,IF(D166=1,Simulation!$B$4,IF(D166=2,Simulation!$B$5,IF(D166=3,Simulation!$B$6,IF(D166=4,Simulation!$B$7,IF(D166=5,Simulation!$B$8))))))) -> FALSE | F166: =IF(D166="Grid",Simulation!$C$2,IF(D166="WU",Simulation!$C$3,IF(D166=1,Simulation!$C$4,IF(D166=2,Simulation!$C$5,IF(D166=3,Simulation!$C$6,IF(D166=4,Simulation!$C$7,IF(D166=5,Simulation!$C$8))))))) -> FALSE | G166: 0 | P166: 0 | R166: 0 | S166: 0 | T166: Inlap | W166: FL
A167: 1 | B167: 156 | C167: 156 | E167: =IF(D167="Grid",Simulation!$B$2,IF(D167="WU",Simulation!$B$3,IF(D167=1,Simulation!$B$4,IF(D167=2,Simulation!$B$5,IF(D167=3,Simulation!$B$6,IF(D167=4,Simulation!$B$7,IF(D167=5,Simulation!$B$8))))))) -> FALSE | F167: =IF(D167="Grid",Simulation!$C$2,IF(D167="WU",Simulation!$C$3,IF(D167=1,Simulation!$C$4,IF(D167=2,Simulation!$C$5,IF(D167=3,Simulation!$C$6,IF(D167=4,Simulation!$C$7,IF(D167=5,Simulation!$C$8))))))) -> FALSE | G167: 0 | P167: 0 | R167: 0 | S167: 0 | T167: Inlap | W167: FL
A168: 1 | B168: 157 | C168: 157 | E168: =IF(D168="Grid",Simulation!$B$2,IF(D168="WU",Simulation!$B$3,IF(D168=1,Simulation!$B$4,IF(D168=2,Simulation!$B$5,IF(D168=3,Simulation!$B$6,IF(D168=4,Simulation!$B$7,IF(D168=5,Simulation!$B$8))))))) -> FALSE | F168: =IF(D168="Grid",Simulation!$C$2,IF(D168="WU",Simulation!$C$3,IF(D168=1,Simulation!$C$4,IF(D168=2,Simulation!$C$5,IF(D168=3,Simulation!$C$6,IF(D168=4,Simulation!$C$7,IF(D168=5,Simulation!$C$8))))))) -> FALSE | G168: 0 | P168: 0 | R168: 0 | S168: 0 | T168: Inlap | W168: FL
A169: 1 | B169: 158 | C169: 158 | E169: =IF(D169="Grid",Simulation!$B$2,IF(D169="WU",Simulation!$B$3,IF(D169=1,Simulation!$B$4,IF(D169=2,Simulation!$B$5,IF(D169=3,Simulation!$B$6,IF(D169=4,Simulation!$B$7,IF(D169=5,Simulation!$B$8))))))) -> FALSE | F169: =IF(D169="Grid",Simulation!$C$2,IF(D169="WU",Simulation!$C$3,IF(D169=1,Simulation!$C$4,IF(D169=2,Simulation!$C$5,IF(D169=3,Simulation!$C$6,IF(D169=4,Simulation!$C$7,IF(D169=5,Simulation!$C$8))))))) -> FALSE | G169: 0 | P169: 0 | R169: 0 | S169: 0 | T169: Inlap | W169: FL
A170: 1 | B170: 159 | C170: 159 | E170: =IF(D170="Grid",Simulation!$B$2,IF(D170="WU",Simulation!$B$3,IF(D170=1,Simulation!$B$4,IF(D170=2,Simulation!$B$5,IF(D170=3,Simulation!$B$6,IF(D170=4,Simulation!$B$7,IF(D170=5,Simulation!$B$8))))))) -> FALSE | F170: =IF(D170="Grid",Simulation!$C$2,IF(D170="WU",Simulation!$C$3,IF(D170=1,Simulation!$C$4,IF(D170=2,Simulation!$C$5,IF(D170=3,Simulation!$C$6,IF(D170=4,Simulation!$C$7,IF(D170=5,Simulation!$C$8))))))) -> FALSE | G170: 0 | P170: 0 | R170: 0 | S170: 0 | T170: Inlap | W170: FL
A171: 1 | B171: 160 | C171: 160 | E171: =IF(D171="Grid",Simulation!$B$2,IF(D171="WU",Simulation!$B$3,IF(D171=1,Simulation!$B$4,IF(D171=2,Simulation!$B$5,IF(D171=3,Simulation!$B$6,IF(D171=4,Simulation!$B$7,IF(D171=5,Simulation!$B$8))))))) -> FALSE | F171: =IF(D171="Grid",Simulation!$C$2,IF(D171="WU",Simulation!$C$3,IF(D171=1,Simulation!$C$4,IF(D171=2,Simulation!$C$5,IF(D171=3,Simulation!$C$6,IF(D171=4,Simulation!$C$7,IF(D171=5,Simulation!$C$8))))))) -> FALSE | G171: 0 | P171: 0 | R171: 0 | S171: 0 | T171: Inlap | W171: FL
A172: 1 | B172: 161 | C172: 161 | E172: =IF(D172="Grid",Simulation!$B$2,IF(D172="WU",Simulation!$B$3,IF(D172=1,Simulation!$B$4,IF(D172=2,Simulation!$B$5,IF(D172=3,Simulation!$B$6,IF(D172=4,Simulation!$B$7,IF(D172=5,Simulation!$B$8))))))) -> FALSE | F172: =IF(D172="Grid",Simulation!$C$2,IF(D172="WU",Simulation!$C$3,IF(D172=1,Simulation!$C$4,IF(D172=2,Simulation!$C$5,IF(D172=3,Simulation!$C$6,IF(D172=4,Simulation!$C$7,IF(D172=5,Simulation!$C$8))))))) -> FALSE | G172: 0 | P172: 0 | R172: 0 | S172: 0 | T172: Inlap | W172: FL
A173: 1 | B173: 162 | C173: 162 | E173: =IF(D173="Grid",Simulation!$B$2,IF(D173="WU",Simulation!$B$3,IF(D173=1,Simulation!$B$4,IF(D173=2,Simulation!$B$5,IF(D173=3,Simulation!$B$6,IF(D173=4,Simulation!$B$7,IF(D173=5,Simulation!$B$8))))))) -> FALSE | F173: =IF(D173="Grid",Simulation!$C$2,IF(D173="WU",Simulation!$C$3,IF(D173=1,Simulation!$C$4,IF(D173=2,Simulation!$C$5,IF(D173=3,Simulation!$C$6,IF(D173=4,Simulation!$C$7,IF(D173=5,Simulation!$C$8))))))) -> FALSE | G173: 0 | P173: 0 | R173: 0 | S173: 0 | T173: Inlap | W173: FL
A174: 1 | B174: 163 | C174: 163 | E174: =IF(D174="Grid",Simulation!$B$2,IF(D174="WU",Simulation!$B$3,IF(D174=1,Simulation!$B$4,IF(D174=2,Simulation!$B$5,IF(D174=3,Simulation!$B$6,IF(D174=4,Simulation!$B$7,IF(D174=5,Simulation!$B$8))))))) -> FALSE | F174: =IF(D174="Grid",Simulation!$C$2,IF(D174="WU",Simulation!$C$3,IF(D174=1,Simulation!$C$4,IF(D174=2,Simulation!$C$5,IF(D174=3,Simulation!$C$6,IF(D174=4,Simulation!$C$7,IF(D174=5,Simulation!$C$8))))))) -> FALSE | G174: 0 | P174: =IF(O174>0,Q174,Q174-Q173) -> 0 | R174: =IF(O174>0,Q174,Q174-Q173) -> 0 | S174: 0 | T174: Inlap | W174: FL
A175: 1 | B175: 164 | C175: 164 | E175: =IF(D175="Grid",Simulation!$B$2,IF(D175="WU",Simulation!$B$3,IF(D175=1,Simulation!$B$4,IF(D175=2,Simulation!$B$5,IF(D175=3,Simulation!$B$6,IF(D175=4,Simulation!$B$7,IF(D175=5,Simulation!$B$8))))))) -> FALSE | F175: =IF(D175="Grid",Simulation!$C$2,IF(D175="WU",Simulation!$C$3,IF(D175=1,Simulation!$C$4,IF(D175=2,Simulation!$C$5,IF(D175=3,Simulation!$C$6,IF(D175=4,Simulation!$C$7,IF(D175=5,Simulation!$C$8))))))) -> FALSE | G175: 0 | P175: 0 | R175: 0 | S175: 0 | T175: Inlap | W175: FL
A176: 1 | B176: 165 | C176: 165 | E176: =IF(D176="Grid",Simulation!$B$2,IF(D176="WU",Simulation!$B$3,IF(D176=1,Simulation!$B$4,IF(D176=2,Simulation!$B$5,IF(D176=3,Simulation!$B$6,IF(D176=4,Simulation!$B$7,IF(D176=5,Simulation!$B$8))))))) -> FALSE | F176: =IF(D176="Grid",Simulation!$C$2,IF(D176="WU",Simulation!$C$3,IF(D176=1,Simulation!$C$4,IF(D176=2,Simulation!$C$5,IF(D176=3,Simulation!$C$6,IF(D176=4,Simulation!$C$7,IF(D176=5,Simulation!$C$8))))))) -> FALSE | G176: 0 | P176: 0 | R176: 0 | S176: 0 | T176: Inlap | W176: FL
A177: 1 | B177: 166 | C177: 166 | E177: =IF(D177="Grid",Simulation!$B$2,IF(D177="WU",Simulation!$B$3,IF(D177=1,Simulation!$B$4,IF(D177=2,Simulation!$B$5,IF(D177=3,Simulation!$B$6,IF(D177=4,Simulation!$B$7,IF(D177=5,Simulation!$B$8))))))) -> FALSE | F177: =IF(D177="Grid",Simulation!$C$2,IF(D177="WU",Simulation!$C$3,IF(D177=1,Simulation!$C$4,IF(D177=2,Simulation!$C$5,IF(D177=3,Simulation!$C$6,IF(D177=4,Simulation!$C$7,IF(D177=5,Simulation!$C$8))))))) -> FALSE | G177: 0 | P177: 0 | R177: 0 | S177: 0 | T177: Inlap | W177: FL
A178: 1 | B178: 167 | C178: 167 | E178: =IF(D178="Grid",Simulation!$B$2,IF(D178="WU",Simulation!$B$3,IF(D178=1,Simulation!$B$4,IF(D178=2,Simulation!$B$5,IF(D178=3,Simulation!$B$6,IF(D178=4,Simulation!$B$7,IF(D178=5,Simulation!$B$8))))))) -> FALSE | F178: =IF(D178="Grid",Simulation!$C$2,IF(D178="WU",Simulation!$C$3,IF(D178=1,Simulation!$C$4,IF(D178=2,Simulation!$C$5,IF(D178=3,Simulation!$C$6,IF(D178=4,Simulation!$C$7,IF(D178=5,Simulation!$C$8))))))) -> FALSE | G178: 0 | P178: 0 | R178: 0 | S178: 0 | T178: Inlap | W178: FL
A179: 1 | B179: 168 | C179: 168 | E179: =IF(D179="Grid",Simulation!$B$2,IF(D179="WU",Simulation!$B$3,IF(D179=1,Simulation!$B$4,IF(D179=2,Simulation!$B$5,IF(D179=3,Simulation!$B$6,IF(D179=4,Simulation!$B$7,IF(D179=5,Simulation!$B$8))))))) -> FALSE | F179: =IF(D179="Grid",Simulation!$C$2,IF(D179="WU",Simulation!$C$3,IF(D179=1,Simulation!$C$4,IF(D179=2,Simulation!$C$5,IF(D179=3,Simulation!$C$6,IF(D179=4,Simulation!$C$7,IF(D179=5,Simulation!$C$8))))))) -> FALSE | G179: 0 | P179: 0 | R179: 0 | S179: 0 | T179: Inlap | W179: FL
A180: 1 | B180: 169 | C180: 169 | E180: =IF(D180="Grid",Simulation!$B$2,IF(D180="WU",Simulation!$B$3,IF(D180=1,Simulation!$B$4,IF(D180=2,Simulation!$B$5,IF(D180=3,Simulation!$B$6,IF(D180=4,Simulation!$B$7,IF(D180=5,Simulation!$B$8))))))) -> FALSE | F180: =IF(D180="Grid",Simulation!$C$2,IF(D180="WU",Simulation!$C$3,IF(D180=1,Simulation!$C$4,IF(D180=2,Simulation!$C$5,IF(D180=3,Simulation!$C$6,IF(D180=4,Simulation!$C$7,IF(D180=5,Simulation!$C$8))))))) -> FALSE | G180: 0 | P180: 0 | R180: 0 | S180: 0 | T180: Inlap | W180: FL
A181: 1 | B181: 170 | C181: 170 | E181: =IF(D181="Grid",Simulation!$B$2,IF(D181="WU",Simulation!$B$3,IF(D181=1,Simulation!$B$4,IF(D181=2,Simulation!$B$5,IF(D181=3,Simulation!$B$6,IF(D181=4,Simulation!$B$7,IF(D181=5,Simulation!$B$8))))))) -> FALSE | F181: =IF(D181="Grid",Simulation!$C$2,IF(D181="WU",Simulation!$C$3,IF(D181=1,Simulation!$C$4,IF(D181=2,Simulation!$C$5,IF(D181=3,Simulation!$C$6,IF(D181=4,Simulation!$C$7,IF(D181=5,Simulation!$C$8))))))) -> FALSE | G181: 0 | P181: 0 | R181: 0 | S181: 0 | T181: Inlap | W181: FL
A182: 1 | B182: 171 | C182: 171 | E182: =IF(D182="Grid",Simulation!$B$2,IF(D182="WU",Simulation!$B$3,IF(D182=1,Simulation!$B$4,IF(D182=2,Simulation!$B$5,IF(D182=3,Simulation!$B$6,IF(D182=4,Simulation!$B$7,IF(D182=5,Simulation!$B$8))))))) -> FALSE | F182: =IF(D182="Grid",Simulation!$C$2,IF(D182="WU",Simulation!$C$3,IF(D182=1,Simulation!$C$4,IF(D182=2,Simulation!$C$5,IF(D182=3,Simulation!$C$6,IF(D182=4,Simulation!$C$7,IF(D182=5,Simulation!$C$8))))))) -> FALSE | G182: 0 | P182: 0 | R182: 0 | S182: 0 | T182: Inlap | W182: FL
A183: 1 | B183: 172 | C183: 172 | E183: =IF(D183="Grid",Simulation!$B$2,IF(D183="WU",Simulation!$B$3,IF(D183=1,Simulation!$B$4,IF(D183=2,Simulation!$B$5,IF(D183=3,Simulation!$B$6,IF(D183=4,Simulation!$B$7,IF(D183=5,Simulation!$B$8))))))) -> FALSE | F183: =IF(D183="Grid",Simulation!$C$2,IF(D183="WU",Simulation!$C$3,IF(D183=1,Simulation!$C$4,IF(D183=2,Simulation!$C$5,IF(D183=3,Simulation!$C$6,IF(D183=4,Simulation!$C$7,IF(D183=5,Simulation!$C$8))))))) -> FALSE | G183: 0 | P183: 0 | R183: 0 | S183: 0 | T183: Inlap | W183: FL
A184: 1 | B184: 173 | C184: 173 | E184: =IF(D184="Grid",Simulation!$B$2,IF(D184="WU",Simulation!$B$3,IF(D184=1,Simulation!$B$4,IF(D184=2,Simulation!$B$5,IF(D184=3,Simulation!$B$6,IF(D184=4,Simulation!$B$7,IF(D184=5,Simulation!$B$8))))))) -> FALSE | F184: =IF(D184="Grid",Simulation!$C$2,IF(D184="WU",Simulation!$C$3,IF(D184=1,Simulation!$C$4,IF(D184=2,Simulation!$C$5,IF(D184=3,Simulation!$C$6,IF(D184=4,Simulation!$C$7,IF(D184=5,Simulation!$C$8))))))) -> FALSE | G184: 0 | P184: 0 | R184: 0 | S184: 0 | T184: Inlap | W184: FL
A185: 1 | B185: 174 | C185: 174 | E185: =IF(D185="Grid",Simulation!$B$2,IF(D185="WU",Simulation!$B$3,IF(D185=1,Simulation!$B$4,IF(D185=2,Simulation!$B$5,IF(D185=3,Simulation!$B$6,IF(D185=4,Simulation!$B$7,IF(D185=5,Simulation!$B$8))))))) -> FALSE | F185: =IF(D185="Grid",Simulation!$C$2,IF(D185="WU",Simulation!$C$3,IF(D185=1,Simulation!$C$4,IF(D185=2,Simulation!$C$5,IF(D185=3,Simulation!$C$6,IF(D185=4,Simulation!$C$7,IF(D185=5,Simulation!$C$8))))))) -> FALSE | G185: 0 | P185: 0 | R185: 0 | S185: 0 | T185: Inlap | W185: FL
A186: 1 | B186: 175 | C186: 175 | E186: =IF(D186="Grid",Simulation!$B$2,IF(D186="WU",Simulation!$B$3,IF(D186=1,Simulation!$B$4,IF(D186=2,Simulation!$B$5,IF(D186=3,Simulation!$B$6,IF(D186=4,Simulation!$B$7,IF(D186=5,Simulation!$B$8))))))) -> FALSE | F186: =IF(D186="Grid",Simulation!$C$2,IF(D186="WU",Simulation!$C$3,IF(D186=1,Simulation!$C$4,IF(D186=2,Simulation!$C$5,IF(D186=3,Simulation!$C$6,IF(D186=4,Simulation!$C$7,IF(D186=5,Simulation!$C$8))))))) -> FALSE | G186: 0 | P186: 0 | R186: 0 | S186: 0 | T186: Inlap | W186: FL
A187: 1 | B187: 176 | C187: 176 | E187: =IF(D187="Grid",Simulation!$B$2,IF(D187="WU",Simulation!$B$3,IF(D187=1,Simulation!$B$4,IF(D187=2,Simulation!$B$5,IF(D187=3,Simulation!$B$6,IF(D187=4,Simulation!$B$7,IF(D187=5,Simulation!$B$8))))))) -> FALSE | F187: =IF(D187="Grid",Simulation!$C$2,IF(D187="WU",Simulation!$C$3,IF(D187=1,Simulation!$C$4,IF(D187=2,Simulation!$C$5,IF(D187=3,Simulation!$C$6,IF(D187=4,Simulation!$C$7,IF(D187=5,Simulation!$C$8))))))) -> FALSE | G187: 0 | P187: 0 | R187: 0 | S187: 0 | T187: Inlap | W187: FL
A188: 1 | B188: 177 | C188: 177 | E188: =IF(D188="Grid",Simulation!$B$2,IF(D188="WU",Simulation!$B$3,IF(D188=1,Simulation!$B$4,IF(D188=2,Simulation!$B$5,IF(D188=3,Simulation!$B$6,IF(D188=4,Simulation!$B$7,IF(D188=5,Simulation!$B$8))))))) -> FALSE | F188: =IF(D188="Grid",Simulation!$C$2,IF(D188="WU",Simulation!$C$3,IF(D188=1,Simulation!$C$4,IF(D188=2,Simulation!$C$5,IF(D188=3,Simulation!$C$6,IF(D188=4,Simulation!$C$7,IF(D188=5,Simulation!$C$8))))))) -> FALSE | G188: 0 | P188: 0 | R188: 0 | S188: 0 | T188: Inlap | W188: FL
A189: 1 | B189: 178 | C189: 178 | E189: =IF(D189="Grid",Simulation!$B$2,IF(D189="WU",Simulation!$B$3,IF(D189=1,Simulation!$B$4,IF(D189=2,Simulation!$B$5,IF(D189=3,Simulation!$B$6,IF(D189=4,Simulation!$B$7,IF(D189=5,Simulation!$B$8))))))) -> FALSE | F189: =IF(D189="Grid",Simulation!$C$2,IF(D189="WU",Simulation!$C$3,IF(D189=1,Simulation!$C$4,IF(D189=2,Simulation!$C$5,IF(D189=3,Simulation!$C$6,IF(D189=4,Simulation!$C$7,IF(D189=5,Simulation!$C$8))))))) -> FALSE | G189: 0 | P189: 0 | R189: 0 | S189: 0 | T189: Inlap | W189: FL
A190: 1 | B190: 179 | C190: 179 | E190: =IF(D190="Grid",Simulation!$B$2,IF(D190="WU",Simulation!$B$3,IF(D190=1,Simulation!$B$4,IF(D190=2,Simulation!$B$5,IF(D190=3,Simulation!$B$6,IF(D190=4,Simulation!$B$7,IF(D190=5,Simulation!$B$8))))))) -> FALSE | F190: =IF(D190="Grid",Simulation!$C$2,IF(D190="WU",Simulation!$C$3,IF(D190=1,Simulation!$C$4,IF(D190=2,Simulation!$C$5,IF(D190=3,Simulation!$C$6,IF(D190=4,Simulation!$C$7,IF(D190=5,Simulation!$C$8))))))) -> FALSE | G190: 0 | P190: 0 | R190: 0 | S190: 0 | T190: Inlap | W190: FL
A191: 1 | B191: 180 | C191: 180 | E191: =IF(D191="Grid",Simulation!$B$2,IF(D191="WU",Simulation!$B$3,IF(D191=1,Simulation!$B$4,IF(D191=2,Simulation!$B$5,IF(D191=3,Simulation!$B$6,IF(D191=4,Simulation!$B$7,IF(D191=5,Simulation!$B$8))))))) -> FALSE | F191: =IF(D191="Grid",Simulation!$C$2,IF(D191="WU",Simulation!$C$3,IF(D191=1,Simulation!$C$4,IF(D191=2,Simulation!$C$5,IF(D191=3,Simulation!$C$6,IF(D191=4,Simulation!$C$7,IF(D191=5,Simulation!$C$8))))))) -> FALSE | G191: 0 | P191: 0 | R191: 0 | S191: 0 | T191: Inlap | W191: FL
A192: 1 | B192: 181 | C192: 181 | E192: =IF(D192="Grid",Simulation!$B$2,IF(D192="WU",Simulation!$B$3,IF(D192=1,Simulation!$B$4,IF(D192=2,Simulation!$B$5,IF(D192=3,Simulation!$B$6,IF(D192=4,Simulation!$B$7,IF(D192=5,Simulation!$B$8))))))) -> FALSE | F192: =IF(D192="Grid",Simulation!$C$2,IF(D192="WU",Simulation!$C$3,IF(D192=1,Simulation!$C$4,IF(D192=2,Simulation!$C$5,IF(D192=3,Simulation!$C$6,IF(D192=4,Simulation!$C$7,IF(D192=5,Simulation!$C$8))))))) -> FALSE | G192: 0 | P192: 0 | R192: 0 | S192: 0 | T192: Inlap | W192: FL
A193: 1 | B193: 182 | C193: 182 | E193: =IF(D193="Grid",Simulation!$B$2,IF(D193="WU",Simulation!$B$3,IF(D193=1,Simulation!$B$4,IF(D193=2,Simulation!$B$5,IF(D193=3,Simulation!$B$6,IF(D193=4,Simulation!$B$7,IF(D193=5,Simulation!$B$8))))))) -> FALSE | F193: =IF(D193="Grid",Simulation!$C$2,IF(D193="WU",Simulation!$C$3,IF(D193=1,Simulation!$C$4,IF(D193=2,Simulation!$C$5,IF(D193=3,Simulation!$C$6,IF(D193=4,Simulation!$C$7,IF(D193=5,Simulation!$C$8))))))) -> FALSE | G193: 0 | P193: 0 | R193: 0 | S193: 0 | T193: Inlap | W193: FL
A194: 1 | B194: 183 | C194: 183 | E194: =IF(D194="Grid",Simulation!$B$2,IF(D194="WU",Simulation!$B$3,IF(D194=1,Simulation!$B$4,IF(D194=2,Simulation!$B$5,IF(D194=3,Simulation!$B$6,IF(D194=4,Simulation!$B$7,IF(D194=5,Simulation!$B$8))))))) -> FALSE | F194: =IF(D194="Grid",Simulation!$C$2,IF(D194="WU",Simulation!$C$3,IF(D194=1,Simulation!$C$4,IF(D194=2,Simulation!$C$5,IF(D194=3,Simulation!$C$6,IF(D194=4,Simulation!$C$7,IF(D194=5,Simulation!$C$8))))))) -> FALSE | G194: 0 | P194: 0 | R194: 0 | S194: 0 | T194: Inlap | W194: FL
A195: 1 | B195: 184 | C195: 184 | E195: =IF(D195="Grid",Simulation!$B$2,IF(D195="WU",Simulation!$B$3,IF(D195=1,Simulation!$B$4,IF(D195=2,Simulation!$B$5,IF(D195=3,Simulation!$B$6,IF(D195=4,Simulation!$B$7,IF(D195=5,Simulation!$B$8))))))) -> FALSE | F195: =IF(D195="Grid",Simulation!$C$2,IF(D195="WU",Simulation!$C$3,IF(D195=1,Simulation!$C$4,IF(D195=2,Simulation!$C$5,IF(D195=3,Simulation!$C$6,IF(D195=4,Simulation!$C$7,IF(D195=5,Simulation!$C$8))))))) -> FALSE | G195: 0 | P195: 0 | R195: 0 | S195: 0 | T195: Inlap | W195: FL
A196: 1 | B196: 185 | C196: 185 | E196: =IF(D196="Grid",Simulation!$B$2,IF(D196="WU",Simulation!$B$3,IF(D196=1,Simulation!$B$4,IF(D196=2,Simulation!$B$5,IF(D196=3,Simulation!$B$6,IF(D196=4,Simulation!$B$7,IF(D196=5,Simulation!$B$8))))))) -> FALSE | F196: =IF(D196="Grid",Simulation!$C$2,IF(D196="WU",Simulation!$C$3,IF(D196=1,Simulation!$C$4,IF(D196=2,Simulation!$C$5,IF(D196=3,Simulation!$C$6,IF(D196=4,Simulation!$C$7,IF(D196=5,Simulation!$C$8))))))) -> FALSE | G196: 0 | P196: 0 | R196: 0 | S196: 0 | T196: Inlap | W196: FL
A197: 1 | B197: 186 | C197: 186 | E197: =IF(D197="Grid",Simulation!$B$2,IF(D197="WU",Simulation!$B$3,IF(D197=1,Simulation!$B$4,IF(D197=2,Simulation!$B$5,IF(D197=3,Simulation!$B$6,IF(D197=4,Simulation!$B$7,IF(D197=5,Simulation!$B$8))))))) -> FALSE | F197: =IF(D197="Grid",Simulation!$C$2,IF(D197="WU",Simulation!$C$3,IF(D197=1,Simulation!$C$4,IF(D197=2,Simulation!$C$5,IF(D197=3,Simulation!$C$6,IF(D197=4,Simulation!$C$7,IF(D197=5,Simulation!$C$8))))))) -> FALSE | G197: 0 | P197: 0 | R197: 0 | S197: 0 | T197: Inlap | W197: FL
A198: 1 | B198: 187 | C198: 187 | E198: =IF(D198="Grid",Simulation!$B$2,IF(D198="WU",Simulation!$B$3,IF(D198=1,Simulation!$B$4,IF(D198=2,Simulation!$B$5,IF(D198=3,Simulation!$B$6,IF(D198=4,Simulation!$B$7,IF(D198=5,Simulation!$B$8))))))) -> FALSE | F198: =IF(D198="Grid",Simulation!$C$2,IF(D198="WU",Simulation!$C$3,IF(D198=1,Simulation!$C$4,IF(D198=2,Simulation!$C$5,IF(D198=3,Simulation!$C$6,IF(D198=4,Simulation!$C$7,IF(D198=5,Simulation!$C$8))))))) -> FALSE | G198: 0 | P198: 0 | R198: 0 | S198: 0 | T198: Inlap | W198: FL
A199: 1 | B199: 188 | C199: 188 | E199: =IF(D199="Grid",Simulation!$B$2,IF(D199="WU",Simulation!$B$3,IF(D199=1,Simulation!$B$4,IF(D199=2,Simulation!$B$5,IF(D199=3,Simulation!$B$6,IF(D199=4,Simulation!$B$7,IF(D199=5,Simulation!$B$8))))))) -> FALSE | F199: =IF(D199="Grid",Simulation!$C$2,IF(D199="WU",Simulation!$C$3,IF(D199=1,Simulation!$C$4,IF(D199=2,Simulation!$C$5,IF(D199=3,Simulation!$C$6,IF(D199=4,Simulation!$C$7,IF(D199=5,Simulation!$C$8))))))) -> FALSE | G199: 0 | P199: 0 | R199: 0 | S199: 0 | T199: Inlap | W199: FL
A200: 1 | B200: 189 | C200: 189 | E200: =IF(D200="Grid",Simulation!$B$2,IF(D200="WU",Simulation!$B$3,IF(D200=1,Simulation!$B$4,IF(D200=2,Simulation!$B$5,IF(D200=3,Simulation!$B$6,IF(D200=4,Simulation!$B$7,IF(D200=5,Simulation!$B$8))))))) -> FALSE | F200: =IF(D200="Grid",Simulation!$C$2,IF(D200="WU",Simulation!$C$3,IF(D200=1,Simulation!$C$4,IF(D200=2,Simulation!$C$5,IF(D200=3,Simulation!$C$6,IF(D200=4,Simulation!$C$7,IF(D200=5,Simulation!$C$8))))))) -> FALSE | G200: 0 | P200: 0 | R200: 0 | S200: 0 | T200: Inlap | W200: FL
... 312 more rows

Sheet Session (3)
A1: Engineer | D1: =Data!F8 -> Engineer 1 | J1: Event | K1: =Data!C8 -> 0 | O1: Date
A2: Data Engineer | D2: =Data!F9 -> Data Eng. 1 | J2: Session | O2: Best Lap | Q2: =MIN($J$11:$J$512) -> 00:00:00
A3: #1 Mechanic | D3: =Data!F11 -> Mechanic 1 | J3: Short | K3: =Data!C16 -> 3200 | O3: Avg Lap | Q3: =AVERAGE($J$11:$J$512) -> 
A4: Driver ID 1 | D4: =Data!F13 -> Driver1 | J4: Regular | K4: =Data!C17 -> 3200
A5: Driver ID 2 | D5: =Data!F14 -> Driver2 | J5: Tot. S Laps | K5: =COUNTIF(K11:K512,"S") -> 0
A6: Driver ID 3 | D6: =Data!F15 -> Driver3 | J6: Tot. R Laps | K6: =COUNTIF(K11:K512,"R") -> 1
A7: Driver ID 4 | D7: =Data!F16 -> Driver4 | J7: Tot. Milage | K7: =(K5*K3)+(K6*K4)/1000 -> 3.2
A8: Driver ID 5 | D8: =Data!F17 -> Driver5
W9: FL
A10: Out | B10: RL | C10: OL | D10: ID | E10: Driver | F10: Th. Lap Cons | G10: Rest | H10: TOD | I10: Out / In | J10: Lap Time | K10: S / R | L10: Change | M10: Comment | O10: Fuel in | P10: th. Lap cons | Q10: F-TOTAL | R10: Lap Cons | S10: Rest | T10: In this Lap?
A11: 1 | B11: Grid | C11: Grid | E11: =IF(D11="Grid",Simulation!$B$2,IF(D11="WU",Simulation!$B$3,IF(D11=1,Simulation!$B$4,IF(D11=2,Simulation!$B$5,IF(D11=3,Simulation!$B$6,IF(D11=4,Simulation!$B$7,IF(D11=5,Simulation!$B$8))))))) -> FALSE | F11: =IF(D11="Grid",Simulation!$C$2,IF(D11="WU",Simulation!$C$3,IF(D11=1,Simulation!$C$4,IF(D11=2,Simulation!$C$5,IF(D11=3,Simulation!$C$6,IF(D11=4,Simulation!$C$7,IF(D11=5,Simulation!$C$8))))))) -> FALSE | K11: R | R11: =Q11 -> 0 | S11: =O11-R11 -> 0 | T11: =IF(S11<=F11,"Inlap",IF(S11<=2*F11,"Call: In this lap!",IF(S11<=3*F11,"Show in but don't call!",""))) -> Inlap | W11: =IF(J11=$Q$2,"FL","") -> FL
A12: =IF(O12>0,A11+1,A11) -> 1 | B12: 1 | C12: 1 | E12: =IF(D12="Grid",Simulation!$B$2,IF(D12="WU",Simulation!$B$3,IF(D12=1,Simulation!$B$4,IF(D12=2,Simulation!$B$5,IF(D12=3,Simulation!$B$6,IF(D12=4,Simulation!$B$7,IF(D12=5,Simulation!$B$8))))))) -> FALSE | F12: =IF(D12="Grid",Simulation!$C$2,IF(D12="WU",Simulation!$C$3,IF(D12=1,Simulation!$C$4,IF(D12=2,Simulation!$C$5,IF(D12=3,Simulation!$C$6,IF(D12=4,Simulation!$C$7,IF(D12=5,Simulation!$C$8))))))) -> FALSE | G12: =G11+O11-P11 -> 0 | K12: =IF(J12<>0,K11,"") ->  | P12: =IF(O12>0,Q12,Q12-Q11) -> 0 | R12: =IF(O12>0,Q12,Q12-Q11) -> 0 | S12: =IF(O12>0,O12+S11-Q12,S11-P12) -> 0 | T12: =IF(S12<=F12,"Inlap",IF(S12<=2*F12,"Call: In this lap!",IF(S12<=3*F12,"Show in but don't call!",""))) -> Inlap | W12: =IF(J12=$Q$2,"FL","") -> FL
A13: 1 | B13: 2 | C13: 2 | E13: =IF(D13="Grid",Simulation!$B$2,IF(D13="WU",Simulation!$B$3,IF(D13=1,Simulation!$B$4,IF(D13=2,Simulation!$B$5,IF(D13=3,Simulation!$B$6,IF(D13=4,Simulation!$B$7,IF(D13=5,Simulation!$B$8))))))) -> FALSE | F13: =IF(D13="Grid",Simulation!$C$2,IF(D13="WU",Simulation!$C$3,IF(D13=1,Simulation!$C$4,IF(D13=2,Simulation!$C$5,IF(D13=3,Simulation!$C$6,IF(D13=4,Simulation!$C$7,IF(D13=5,Simulation!$C$8))))))) -> FALSE | G13: 0 | K13: =IF(J13<>0,K12,"") ->  | P13: 0 | R13: 0 | S13: 0 | T13: Inlap | W13: FL
A14: 1 | B14: 3 | C14: =IF(O14="",C13+1,"1") -> 3 | E14: =IF(D14="Grid",Simulation!$B$2,IF(D14="WU",Simulation!$B$3,IF(D14=1,Simulation!$B$4,IF(D14=2,Simulation!$B$5,IF(D14=3,Simulation!$B$6,IF(D14=4,Simulation!$B$7,IF(D14=5,Simulation!$B$8))))))) -> FALSE | F14: =IF(D14="Grid",Simulation!$C$2,IF(D14="WU",Simulation!$C$3,IF(D14=1,Simulation!$C$4,IF(D14=2,Simulation!$C$5,IF(D14=3,Simulation!$C$6,IF(D14=4,Simulation!$C$7,IF(D14=5,Simulation!$C$8))))))) -> FALSE | G14: 0 | P14: 0 | R14: 0 | S14: 0 | T14: Inlap | W14: FL
A15: 1 | B15: 4 | C15: 4 | E15: =IF(D15="Grid",Simulation!$B$2,IF(D15="WU",Simulation!$B$3,IF(D15=1,Simulation!$B$4,IF(D15=2,Simulation!$B$5,IF(D15=3,Simulation!$B$6,IF(D15=4,Simulation!$B$7,IF(D15=5,Simulation!$B$8))))))) -> FALSE | F15: =IF(D15="Grid",Simulation!$C$2,IF(D15="WU",Simulation!$C$3,IF(D15=1,Simulation!$C$4,IF(D15=2,Simulation!$C$5,IF(D15=3,Simulation!$C$6,IF(D15=4,Simulation!$C$7,IF(D15=5,Simulation!$C$8))))))) -> FALSE | G15: 0 | P15: 0 | R15: 0 | S15: 0 | T15: Inlap | W15: FL
A16: 1 | B16: 5 | C16: 5 | E16: =IF(D16="Grid",Simulation!$B$2,IF(D16="WU",Simulation!$B$3,IF(D16=1,Simulation!$B$4,IF(D16=2,Simulation!$B$5,IF(D16=3,Simulation!$B$6,IF(D16=4,Simulation!$B$7,IF(D16=5,Simulation!$B$8))))))) -> FALSE | F16: =IF(D16="Grid",Simulation!$C$2,IF(D16="WU",Simulation!$C$3,IF(D16=1,Simulation!$C$4,IF(D16=2,Simulation!$C$5,IF(D16=3,Simulation!$C$6,IF(D16=4,Simulation!$C$7,IF(D16=5,Simulation!$C$8))))))) -> FALSE | G16: 0 | P16: 0 | R16: 0 | S16: 0 | T16: Inlap | W16: FL
A17: 1 | B17: 6 | C17: 6 | E17: =IF(D17="Grid",Simulation!$B$2,IF(D17="WU",Simulation!$B$3,IF(D17=1,Simulation!$B$4,IF(D17=2,Simulation!$B$5,IF(D17=3,Simulation!$B$6,IF(D17=4,Simulation!$B$7,IF(D17=5,Simulation!$B$8))))))) -> FALSE | F17: =IF(D17="Grid",Simulation!$C$2,IF(D17="WU",Simulation!$C$3,IF(D17=1,Simulation!$C$4,IF(D17=2,Simulation!$C$5,IF(D17=3,Simulation!$C$6,IF(D17=4,Simulation!$C$7,IF(D17=5,Simulation!$C$8))))))) -> FALSE | G17: 0 | P17: 0 | R17: 0 | S17: 0 | T17: Inlap | W17: FL
A18: 1 | B18: 7 | C18: 7 | E18: =IF(D18="Grid",Simulation!$B$2,IF(D18="WU",Simulation!$B$3,IF(D18=1,Simulation!$B$4,IF(D18=2,Simulation!$B$5,IF(D18=3,Simulation!$B$6,IF(D18=4,Simulation!$B$7,IF(D18=5,Simulation!$B$8))))))) -> FALSE | F18: =IF(D18="Grid",Simulation!$C$2,IF(D18="WU",Simulation!$C$3,IF(D18=1,Simulation!$C$4,IF(D18=2,Simulation!$C$5,IF(D18=3,Simulation!$C$6,IF(D18=4,Simulation!$C$7,IF(D18=5,Simulation!$C$8))))))) -> FALSE | G18: 0 | P18: 0 | R18: 0 | S18: 0 | T18: Inlap | W18: FL
A19: 1 | B19: 8 | C19: 8 | E19: =IF(D19="Grid",Simulation!$B$2,IF(D19="WU",Simulation!$B$3,IF(D19=1,Simulation!$B$4,IF(D19=2,Simulation!$B$5,IF(D19=3,Simulation!$B$6,IF(D19=4,Simulation!$B$7,IF(D19=5,Simulation!$B$8))))))) -> FALSE | F19: =IF(D19="Grid",Simulation!$C$2,IF(D19="WU",Simulation!$C$3,IF(D19=1,Simulation!$C$4,IF(D19=2,Simulation!$C$5,IF(D19=3,Simulation!$C$6,IF(D19=4,Simulation!$C$7,IF(D19=5,Simulation!$C$8))))))) -> FALSE | G19: 0 | P19: 0 | R19: 0 | S19: 0 | T19: Inlap | W19: FL
A20: 1 | B20: 9 | C20: 9 | E20: =IF(D20="Grid",Simulation!$B$2,IF(D20="WU",Simulation!$B$3,IF(D20=1,Simulation!$B$4,IF(D20=2,Simulation!$B$5,IF(D20=3,Simulation!$B$6,IF(D20=4,Simulation!$B$7,IF(D20=5,Simulation!$B$8))))))) -> FALSE | F20: =IF(D20="Grid",Simulation!$C$2,IF(D20="WU",Simulation!$C$3,IF(D20=1,Simulation!$C$4,IF(D20=2,Simulation!$C$5,IF(D20=3,Simulation!$C$6,IF(D20=4,Simulation!$C$7,IF(D20=5,Simulation!$C$8))))))) -> FALSE | G20: 0 | P20: 0 | R20: 0 | S20: 0 | T20: Inlap | W20: FL
A21: 1 | B21: 10 | C21: 10 | E21: =IF(D21="Grid",Simulation!$B$2,IF(D21="WU",Simulation!$B$3,IF(D21=1,Simulation!$B$4,IF(D21=2,Simulation!$B$5,IF(D21=3,Simulation!$B$6,IF(D21=4,Simulation!$B$7,IF(D21=5,Simulation!$B$8))))))) -> FALSE | F21: =IF(D21="Grid",Simulation!$C$2,IF(D21="WU",Simulation!$C$3,IF(D21=1,Simulation!$C$4,IF(D21=2,Simulation!$C$5,IF(D21=3,Simulation!$C$6,IF(D21=4,Simulation!$C$7,IF(D21=5,Simulation!$C$8))))))) -> FALSE | G21: 0 | P21: 0 | R21: 0 | S21: 0 | T21: Inlap | W21: FL
A22: 1 | B22: 11 | C22: 11 | E22: =IF(D22="Grid",Simulation!$B$2,IF(D22="WU",Simulation!$B$3,IF(D22=1,Simulation!$B$4,IF(D22=2,Simulation!$B$5,IF(D22=3,Simulation!$B$6,IF(D22=4,Simulation!$B$7,IF(D22=5,Simulation!$B$8))))))) -> FALSE | F22: =IF(D22="Grid",Simulation!$C$2,IF(D22="WU",Simulation!$C$3,IF(D22=1,Simulation!$C$4,IF(D22=2,Simulation!$C$5,IF(D22=3,Simulation!$C$6,IF(D22=4,Simulation!$C$7,IF(D22=5,Simulation!$C$8))))))) -> FALSE | G22: 0 | P22: 0 | R22: 0 | S22: 0 | T22: Inlap | W22: FL
A23: 1 | B23: 12 | C23: 12 | E23: =IF(D23="Grid",Simulation!$B$2,IF(D23="WU",Simulation!$B$3,IF(D23=1,Simulation!$B$4,IF(D23=2,Simulation!$B$5,IF(D23=3,Simulation!$B$6,IF(D23=4,Simulation!$B$7,IF(D23=5,Simulation!$B$8))))))) -> FALSE | F23: =IF(D23="Grid",Simulation!$C$2,IF(D23="WU",Simulation!$C$3,IF(D23=1,Simulation!$C$4,IF(D23=2,Simulation!$C$5,IF(D23=3,Simulation!$C$6,IF(D23=4,Simulation!$C$7,IF(D23=5,Simulation!$C$8))))))) -> FALSE | G23: 0 | P23: 0 | R23: 0 | S23: 0 | T23: Inlap | W23: FL
A24: 1 | B24: 13 | C24: 13 | E24: =IF(D24="Grid",Simulation!$B$2,IF(D24="WU",Simulation!$B$3,IF(D24=1,Simulation!$B$4,IF(D24=2,Simulation!$B$5,IF(D24=3,Simulation!$B$6,IF(D24=4,Simulation!$B$7,IF(D24=5,Simulation!$B$8))))))) -> FALSE | F24: =IF(D24="Grid",Simulation!$C$2,IF(D24="WU",Simulation!$C$3,IF(D24=1,Simulation!$C$4,IF(D24=2,Simulation!$C$5,IF(D24=3,Simulation!$C$6,IF(D24=4,Simulation!$C$7,IF(D24=5,Simulation!$C$8))))))) -> FALSE | G24: 0 | P24: 0 | R24: 0 | S24: 0 | T24: Inlap | W24: FL
A25: 1 | B25: 14 | C25: 14 | E25: =IF(D25="Grid",Simulation!$B$2,IF(D25="WU",Simulation!$B$3,IF(D25=1,Simulation!$B$4,IF(D25=2,Simulation!$B$5,IF(D25=3,Simulation!$B$6,IF(D25=4,Simulation!$B$7,IF(D25=5,Simulation!$B$8))))))) -> FALSE | F25: =IF(D25="Grid",Simulation!$C$2,IF(D25="WU",Simulation!$C$3,IF(D25=1,Simulation!$C$4,IF(D25=2,Simulation!$C$5,IF(D25=3,Simulation!$C$6,IF(D25=4,Simulation!$C$7,IF(D25=5,Simulation!$C$8))))))) -> FALSE | G25: 0 | P25: 0 | R25: 0 | S25: 0 | T25: Inlap | W25: FL
A26: 1 | B26: 15 | C26: 15 | E26: =IF(D26="Grid",Simulation!$B$2,IF(D26="WU",Simulation!$B$3,IF(D26=1,Simulation!$B$4,IF(D26=2,Simulation!$B$5,IF(D26=3,Simulation!$B$6,IF(D26=4,Simulation!$B$7,IF(D26=5,Simulation!$B$8))))))) -> FALSE | F26: =IF(D26="Grid",Simulation!$C$2,IF(D26="WU",Simulation!$C$3,IF(D26=1,Simulation!$C$4,IF(D26=2,Simulation!$C$5,IF(D26=3,Simulation!$C$6,IF(D26=4,Simulation!$C$7,IF(D26=5,Simulation!$C$8))))))) -> FALSE | G26: 0 | P26: 0 | R26: 0 | S26: 0 | T26: Inlap | W26: FL
A27: 1 | B27: 16 | C27: 16 | E27: =IF(D27="Grid",Simulation!$B$2,IF(D27="WU",Simulation!$B$3,IF(D27=1,Simulation!$B$4,IF(D27=2,Simulation!$B$5,IF(D27=3,Simulation!$B$6,IF(D27=4,Simulation!$B$7,IF(D27=5,Simulation!$B$8))))))) -> FALSE | F27: =IF(D27="Grid",Simulation!$C$2,IF(D27="WU",Simulation!$C$3,IF(D27=1,Simulation!$C$4,IF(D27=2,Simulation!$C$5,IF(D27=3,Simulation!$C$6,IF(D27=4,Simulation!$C$7,IF(D27=5,Simulation!$C$8))))))) -> FALSE | G27: 0 | P27: 0 | R27: 0 | S27: 0 | T27: Inlap | W27: FL
A28: 1 | B28: 17 | C28: 17 | E28: =IF(D28="Grid",Simulation!$B$2,IF(D28="WU",Simulation!$B$3,IF(D28=1,Simulation!$B$4,IF(D28=2,Simulation!$B$5,IF(D28=3,Simulation!$B$6,IF(D28=4,Simulation!$B$7,IF(D28=5,Simulation!$B$8))))))) -> FALSE | F28: =IF(D28="Grid",Simulation!$C$2,IF(D28="WU",Simulation!$C$3,IF(D28=1,Simulation!$C$4,IF(D28=2,Simulation!$C$5,IF(D28=3,Simulation!$C$6,IF(D28=4,Simulation!$C$7,IF(D28=5,Simulation!$C$8))))))) -> FALSE | G28: 0 | P28: 0 | R28: 0 | S28: 0 | T28: Inlap | W28: FL
A29: 1 | B29: 18 | C29: 18 | E29: =IF(D29="Grid",Simulation!$B$2,IF(D29="WU",Simulation!$B$3,IF(D29=1,Simulation!$B$4,IF(D29=2,Simulation!$B$5,IF(D29=3,Simulation!$B$6,IF(D29=4,Simulation!$B$7,IF(D29=5,Simulation!$B$8))))))) -> FALSE | F29: =IF(D29="Grid",Simulation!$C$2,IF(D29="WU",Simulation!$C$3,IF(D29=1,Simulation!$C$4,IF(D29=2,Simulation!$C$5,IF(D29=3,Simulation!$C$6,IF(D29=4,Simulation!$C$7,IF(D29=5,Simulation!$C$8))))))) -> FALSE | G29: 0 | P29: 0 | R29: 0 | S29: 0 | T29: Inlap | W29: FL
A30: 1 | B30: 19 | C30: 19 | E30: =IF(D30="Grid",Simulation!$B$2,IF(D30="WU",Simulation!$B$3,IF(D30=1,Simulation!$B$4,IF(D30=2,Simulation!$B$5,IF(D30=3,Simulation!$B$6,IF(D30=4,Simulation!$B$7,IF(D30=5,Simulation!$B$8))))))) -> FALSE | F30: =IF(D30="Grid",Simulation!$C$2,IF(D30="WU",Simulation!$C$3,IF(D30=1,Simulation!$C$4,IF(D30=2,Simulation!$C$5,IF(D30=3,Simulation!$C$6,IF(D30=4,Simulation!$C$7,IF(D30=5,Simulation!$C$8))))))) -> FALSE | G30: 0 | P30: 0 | R30: 0 | S30: 0 | T30: Inlap | W30: FL
A31: 1 | B31: 20 | C31: 20 | E31: =IF(D31="Grid",Simulation!$B$2,IF(D31="WU",Simulation!$B$3,IF(D31=1,Simulation!$B$4,IF(D31=2,Simulation!$B$5,IF(D31=3,Simulation!$B$6,IF(D31=4,Simulation!$B$7,IF(D31=5,Simulation!$B$8))))))) -> FALSE | F31: =IF(D31="Grid",Simulation!$C$2,IF(D31="WU",Simulation!$C$3,IF(D31=1,Simulation!$C$4,IF(D31=2,Simulation!$C$5,IF(D31=3,Simulation!$C$6,IF(D31=4,Simulation!$C$7,IF(D31=5,Simulation!$C$8))))))) -> FALSE | G31: 0 | P31: 0 | R31: 0 | S31: 0 | T31: Inlap | W31: FL
A32: 1 | B32: 21 | C32: 21 | E32: =IF(D32="Grid",Simulation!$B$2,IF(D32="WU",Simulation!$B$3,IF(D32=1,Simulation!$B$4,IF(D32=2,Simulation!$B$5,IF(D32=3,Simulation!$B$6,IF(D32=4,Simulation!$B$7,IF(D32=5,Simulation!$B$8))))))) -> FALSE | F32: =IF(D32="Grid",Simulation!$C$2,IF(D32="WU",Simulation!$C$3,IF(D32=1,Simulation!$C$4,IF(D32=2,Simulation!$C$5,IF(D32=3,Simulation!$C$6,IF(D32=4,Simulation!$C$7,IF(D32=5,Simulation!$C$8))))))) -> FALSE | G32: 0 | P32: 0 | R32: 0 | S32: 0 | T32: Inlap | W32: FL
A33: 1 | B33: 22 | C33: 22 | E33: =IF(D33="Grid",Simulation!$B$2,IF(D33="WU",Simulation!$B$3,IF(D33=1,Simulation!$B$4,IF(D33=2,Simulation!$B$5,IF(D33=3,Simulation!$B$6,IF(D33=4,Simulation!$B$7,IF(D33=5,Simulation!$B$8))))))) -> FALSE | F33: =IF(D33="Grid",Simulation!$C$2,IF(D33="WU",Simulation!$C$3,IF(D33=1,Simulation!$C$4,IF(D33=2,Simulation!$C$5,IF(D33=3,Simulation!$C$6,IF(D33=4,Simulation!$C$7,IF(D33=5,Simulation!$C$8))))))) -> FALSE | G33: 0 | P33: 0 | R33: 0 | S33: 0 | T33: Inlap | W33: FL
A34: 1 | B34: 23 | C34: 23 | E34: =IF(D34="Grid",Simulation!$B$2,IF(D34="WU",Simulation!$B$3,IF(D34=1,Simulation!$B$4,IF(D34=2,Simulation!$B$5,IF(D34=3,Simulation!$B$6,IF(D34=4,Simulation!$B$7,IF(D34=5,Simulation!$B$8))))))) -> FALSE | F34: =IF(D34="Grid",Simulation!$C$2,IF(D34="WU",Simulation!$C$3,IF(D34=1,Simulation!$C$4,IF(D34=2,Simulation!$C$5,IF(D34=3,Simulation!$C$6,IF(D34=4,Simulation!$C$7,IF(D34=5,Simulation!$C$8))))))) -> FALSE | G34: 0 | P34: 0 | R34: 0 | S34: 0 | T34: Inlap | W34: FL
A35: 1 | B35: 24 | C35: 24 | E35: =IF(D35="Grid",Simulation!$B$2,IF(D35="WU",Simulation!$B$3,IF(D35=1,Simulation!$B$4,IF(D35=2,Simulation!$B$5,IF(D35=3,Simulation!$B$6,IF(D35=4,Simulation!$B$7,IF(D35=5,Simulation!$B$8))))))) -> FALSE | F35: =IF(D35="Grid",Simulation!$C$2,IF(D35="WU",Simulation!$C$3,IF(D35=1,Simulation!$C$4,IF(D35=2,Simulation!$C$5,IF(D35=3,Simulation!$C$6,IF(D35=4,Simulation!$C$7,IF(D35=5,Simulation!$C$8))))))) -> FALSE | G35: 0 | P35: 0 | R35: 0 | S35: 0 | T35: Inlap | W35: FL
A36: 1 | B36: 25 | C36: 25 | E36: =IF(D36="Grid",Simulation!$B$2,IF(D36="WU",Simulation!$B$3,IF(D36=1,Simulation!$B$4,IF(D36=2,Simulation!$B$5,IF(D36=3,Simulation!$B$6,IF(D36=4,Simulation!$B$7,IF(D36=5,Simulation!$B$8))))))) -> FALSE | F36: =IF(D36="Grid",Simulation!$C$2,IF(D36="WU",Simulation!$C$3,IF(D36=1,Simulation!$C$4,IF(D36=2,Simulation!$C$5,IF(D36=3,Simulation!$C$6,IF(D36=4,Simulation!$C$7,IF(D36=5,Simulation!$C$8))))))) -> FALSE | G36: 0 | P36: 0 | R36: 0 | S36: 0 | T36: Inlap | W36: FL
A37: 1 | B37: 26 | C37: 26 | E37: =IF(D37="Grid",Simulation!$B$2,IF(D37="WU",Simulation!$B$3,IF(D37=1,Simulation!$B$4,IF(D37=2,Simulation!$B$5,IF(D37=3,Simulation!$B$6,IF(D37=4,Simulation!$B$7,IF(D37=5,Simulation!$B$8))))))) -> FALSE | F37: =IF(D37="Grid",Simulation!$C$2,IF(D37="WU",Simulation!$C$3,IF(D37=1,Simulation!$C$4,IF(D37=2,Simulation!$C$5,IF(D37=3,Simulation!$C$6,IF(D37=4,Simulation!$C$7,IF(D37=5,Simulation!$C$8))))))) -> FALSE | G37: 0 | P37: 0 | R37: 0 | S37: 0 | T37: Inlap | W37: FL
A38: 1 | B38: 27 | C38: 27 | E38: =IF(D38="Grid",Simulation!$B$2,IF(D38="WU",Simulation!$B$3,IF(D38=1,Simulation!$B$4,IF(D38=2,Simulation!$B$5,IF(D38=3,Simulation!$B$6,IF(D38=4,Simulation!$B$7,IF(D38=5,Simulation!$B$8))))))) -> FALSE | F38: =IF(D38="Grid",Simulation!$C$2,IF(D38="WU",Simulation!$C$3,IF(D38=1,Simulation!$C$4,IF(D38=2,Simulation!$C$5,IF(D38=3,Simulation!$C$6,IF(D38=4,Simulation!$C$7,IF(D38=5,Simulation!$C$8))))))) -> FALSE | G38: 0 | P38: 0 | R38: 0 | S38: 0 | T38: Inlap | W38: FL
A39: 1 | B39: 28 | C39: 28 | E39: =IF(D39="Grid",Simulation!$B$2,IF(D39="WU",Simulation!$B$3,IF(D39=1,Simulation!$B$4,IF(D39=2,Simulation!$B$5,IF(D39=3,Simulation!$B$6,IF(D39=4,Simulation!$B$7,IF(D39=5,Simulation!$B$8))))))) -> FALSE | F39: =IF(D39="Grid",Simulation!$C$2,IF(D39="WU",Simulation!$C$3,IF(D39=1,Simulation!$C$4,IF(D39=2,Simulation!$C$5,IF(D39=3,Simulation!$C$6,IF(D39=4,Simulation!$C$7,IF(D39=5,Simulation!$C$8))))))) -> FALSE | G39: 0 | P39: 0 | R39: 0 | S39: 0 | T39: Inlap | W39: FL
A40: 1 | B40: 29 | C40: 29 | E40: =IF(D40="Grid",Simulation!$B$2,IF(D40="WU",Simulation!$B$3,IF(D40=1,Simulation!$B$4,IF(D40=2,Simulation!$B$5,IF(D40=3,Simulation!$B$6,IF(D40=4,Simulation!$B$7,IF(D40=5,Simulation!$B$8))))))) -> FALSE | F40: =IF(D40="Grid",Simulation!$C$2,IF(D40="WU",Simulation!$C$3,IF(D40=1,Simulation!$C$4,IF(D40=2,Simulation!$C$5,IF(D40=3,Simulation!$C$6,IF(D40=4,Simulation!$C$7,IF(D40=5,Simulation!$C$8))))))) -> FALSE | G40: 0 | P40: 0 | R40: 0 | S40: 0 | T40: Inlap | W40: FL
A41: 1 | B41: 30 | C41: 30 | E41: =IF(D41="Grid",Simulation!$B$2,IF(D41="WU",Simulation!$B$3,IF(D41=1,Simulation!$B$4,IF(D41=2,Simulation!$B$5,IF(D41=3,Simulation!$B$6,IF(D41=4,Simulation!$B$7,IF(D41=5,Simulation!$B$8))))))) -> FALSE | F41: =IF(D41="Grid",Simulation!$C$2,IF(D41="WU",Simulation!$C$3,IF(D41=1,Simulation!$C$4,IF(D41=2,Simulation!$C$5,IF(D41=3,Simulation!$C$6,IF(D41=4,Simulation!$C$7,IF(D41=5,Simulation!$C$8))))))) -> FALSE | G41: 0 | P41: 0 | R41: 0 | S41: 0 | T41: Inlap | W41: FL
A42: 1 | B42: 31 | C42: 31 | E42: =IF(D42="Grid",Simulation!$B$2,IF(D42="WU",Simulation!$B$3,IF(D42=1,Simulation!$B$4,IF(D42=2,Simulation!$B$5,IF(D42=3,Simulation!$B$6,IF(D42=4,Simulation!$B$7,IF(D42=5,Simulation!$B$8))))))) -> FALSE | F42: =IF(D42="Grid",Simulation!$C$2,IF(D42="WU",Simulation!$C$3,IF(D42=1,Simulation!$C$4,IF(D42=2,Simulation!$C$5,IF(D42=3,Simulation!$C$6,IF(D42=4,Simulation!$C$7,IF(D42=5,Simulation!$C$8))))))) -> FALSE | G42: 0 | P42: 0 | R42: 0 | S42: 0 | T42: Inlap | W42: FL
A43: 1 | B43: 32 | C43: 32 | E43: =IF(D43="Grid",Simulation!$B$2,IF(D43="WU",Simulation!$B$3,IF(D43=1,Simulation!$B$4,IF(D43=2,Simulation!$B$5,IF(D43=3,Simulation!$B$6,IF(D43=4,Simulation!$B$7,IF(D43=5,Simulation!$B$8))))))) -> FALSE | F43: =IF(D43="Grid",Simulation!$C$2,IF(D43="WU",Simulation!$C$3,IF(D43=1,Simulation!$C$4,IF(D43=2,Simulation!$C$5,IF(D43=3,Simulation!$C$6,IF(D43=4,Simulation!$C$7,IF(D43=5,Simulation!$C$8))))))) -> FALSE | G43: 0 | P43: 0 | R43: 0 | S43: 0 | T43: Inlap | W43: FL
A44: 1 | B44: 33 | C44: 33 | E44: =IF(D44="Grid",Simulation!$B$2,IF(D44="WU",Simulation!$B$3,IF(D44=1,Simulation!$B$4,IF(D44=2,Simulation!$B$5,IF(D44=3,Simulation!$B$6,IF(D44=4,Simulation!$B$7,IF(D44=5,Simulation!$B$8))))))) -> FALSE | F44: =IF(D44="Grid",Simulation!$C$2,IF(D44="WU",Simulation!$C$3,IF(D44=1,Simulation!$C$4,IF(D44=2,Simulation!$C$5,IF(D44=3,Simulation!$C$6,IF(D44=4,Simulation!$C$7,IF(D44=5,Simulation!$C$8))))))) -> FALSE | G44: 0 | P44: 0 | R44: 0 | S44: 0 | T44: Inlap | W44: FL
A45: 1 | B45: 34 | C45: 34 | E45: =IF(D45="Grid",Simulation!$B$2,IF(D45="WU",Simulation!$B$3,IF(D45=1,Simulation!$B$4,IF(D45=2,Simulation!$B$5,IF(D45=3,Simulation!$B$6,IF(D45=4,Simulation!$B$7,IF(D45=5,Simulation!$B$8))))))) -> FALSE | F45: =IF(D45="Grid",Simulation!$C$2,IF(D45="WU",Simulation!$C$3,IF(D45=1,Simulation!$C$4,IF(D45=2,Simulation!$C$5,IF(D45=3,Simulation!$C$6,IF(D45=4,Simulation!$C$7,IF(D45=5,Simulation!$C$8))))))) -> FALSE | G45: 0 | P45: =IF(O45>0,Q45,Q45-Q44) -> 0 | R45: =IF(O45>0,Q45,Q45-Q44) -> 0 | S45: =IF(O45>0,O45+S44-Q45,S44-P45) -> 0 | T45: Inlap | W45: FL
A46: 1 | B46: 35 | C46: 35 | E46: =IF(D46="Grid",Simulation!$B$2,IF(D46="WU",Simulation!$B$3,IF(D46=1,Simulation!$B$4,IF(D46=2,Simulation!$B$5,IF(D46=3,Simulation!$B$6,IF(D46=4,Simulation!$B$7,IF(D46=5,Simulation!$B$8))))))) -> FALSE | F46: =IF(D46="Grid",Simulation!$C$2,IF(D46="WU",Simulation!$C$3,IF(D46=1,Simulation!$C$4,IF(D46=2,Simulation!$C$5,IF(D46=3,Simulation!$C$6,IF(D46=4,Simulation!$C$7,IF(D46=5,Simulation!$C$8))))))) -> FALSE | G46: 0 | P46: =IF(O46>0,Q46,Q46-Q45) -> 0 | R46: =IF(O46>0,Q46,Q46-Q45) -> 0 | S46: 0 | T46: Inlap | W46: FL
A47: 1 | B47: 36 | C47: 36 | E47: =IF(D47="Grid",Simulation!$B$2,IF(D47="WU",Simulation!$B$3,IF(D47=1,Simulation!$B$4,IF(D47=2,Simulation!$B$5,IF(D47=3,Simulation!$B$6,IF(D47=4,Simulation!$B$7,IF(D47=5,Simulation!$B$8))))))) -> FALSE | F47: =IF(D47="Grid",Simulation!$C$2,IF(D47="WU",Simulation!$C$3,IF(D47=1,Simulation!$C$4,IF(D47=2,Simulation!$C$5,IF(D47=3,Simulation!$C$6,IF(D47=4,Simulation!$C$7,IF(D47=5,Simulation!$C$8))))))) -> FALSE | G47: 0 | P47: 0 | R47: 0 | S47: 0 | T47: Inlap | W47: FL
A48: 1 | B48: 37 | C48: 37 | E48: =IF(D48="Grid",Simulation!$B$2,IF(D48="WU",Simulation!$B$3,IF(D48=1,Simulation!$B$4,IF(D48=2,Simulation!$B$5,IF(D48=3,Simulation!$B$6,IF(D48=4,Simulation!$B$7,IF(D48=5,Simulation!$B$8))))))) -> FALSE | F48: =IF(D48="Grid",Simulation!$C$2,IF(D48="WU",Simulation!$C$3,IF(D48=1,Simulation!$C$4,IF(D48=2,Simulation!$C$5,IF(D48=3,Simulation!$C$6,IF(D48=4,Simulation!$C$7,IF(D48=5,Simulation!$C$8))))))) -> FALSE | G48: 0 | P48: 0 | R48: 0 | S48: 0 | T48: Inlap | W48: FL
A49: 1 | B49: 38 | C49: 38 | E49: =IF(D49="Grid",Simulation!$B$2,IF(D49="WU",Simulation!$B$3,IF(D49=1,Simulation!$B$4,IF(D49=2,Simulation!$B$5,IF(D49=3,Simulation!$B$6,IF(D49=4,Simulation!$B$7,IF(D49=5,Simulation!$B$8))))))) -> FALSE | F49: =IF(D49="Grid",Simulation!$C$2,IF(D49="WU",Simulation!$C$3,IF(D49=1,Simulation!$C$4,IF(D49=2,Simulation!$C$5,IF(D49=3,Simulation!$C$6,IF(D49=4,Simulation!$C$7,IF(D49=5,Simulation!$C$8))))))) -> FALSE | G49: 0 | P49: 0 | R49: 0 | S49: 0 | T49: Inlap | W49: FL
A50: 1 | B50: 39 | C50: 39 | E50: =IF(D50="Grid",Simulation!$B$2,IF(D50="WU",Simulation!$B$3,IF(D50=1,Simulation!$B$4,IF(D50=2,Simulation!$B$5,IF(D50=3,Simulation!$B$6,IF(D50=4,Simulation!$B$7,IF(D50=5,Simulation!$B$8))))))) -> FALSE | F50: =IF(D50="Grid",Simulation!$C$2,IF(D50="WU",Simulation!$C$3,IF(D50=1,Simulation!$C$4,IF(D50=2,Simulation!$C$5,IF(D50=3,Simulation!$C$6,IF(D50=4,Simulation!$C$7,IF(D50=5,Simulation!$C$8))))))) -> FALSE | G50: 0 | P50: 0 | R50: 0 | S50: 0 | T50: Inlap | W50: FL
A51: 1 | B51: 40 | C51: 40 | E51: =IF(D51="Grid",Simulation!$B$2,IF(D51="WU",Simulation!$B$3,IF(D51=1,Simulation!$B$4,IF(D51=2,Simulation!$B$5,IF(D51=3,Simulation!$B$6,IF(D51=4,Simulation!$B$7,IF(D51=5,Simulation!$B$8))))))) -> FALSE | F51: =IF(D51="Grid",Simulation!$C$2,IF(D51="WU",Simulation!$C$3,IF(D51=1,Simulation!$C$4,IF(D51=2,Simulation!$C$5,IF(D51=3,Simulation!$C$6,IF(D51=4,Simulation!$C$7,IF(D51=5,Simulation!$C$8))))))) -> FALSE | G51: 0 | P51: 0 | R51: 0 | S51: 0 | T51: Inlap | W51: FL
A52: 1 | B52: 41 | C52: 41 | E52: =IF(D52="Grid",Simulation!$B$2,IF(D52="WU",Simulation!$B$3,IF(D52=1,Simulation!$B$4,IF(D52=2,Simulation!$B$5,IF(D52=3,Simulation!$B$6,IF(D52=4,Simulation!$B$7,IF(D52=5,Simulation!$B$8))))))) -> FALSE | F52: =IF(D52="Grid",Simulation!$C$2,IF(D52="WU",Simulation!$C$3,IF(D52=1,Simulation!$C$4,IF(D52=2,Simulation!$C$5,IF(D52=3,Simulation!$C$6,IF(D52=4,Simulation!$C$7,IF(D52=5,Simulation!$C$8))))))) -> FALSE | G52: 0 | P52: 0 | R52: 0 | S52: 0 | T52: Inlap | W52: FL
A53: 1 | B53: 42 | C53: 42 | E53: =IF(D53="Grid",Simulation!$B$2,IF(D53="WU",Simulation!$B$3,IF(D53=1,Simulation!$B$4,IF(D53=2,Simulation!$B$5,IF(D53=3,Simulation!$B$6,IF(D53=4,Simulation!$B$7,IF(D53=5,Simulation!$B$8))))))) -> FALSE | F53: =IF(D53="Grid",Simulation!$C$2,IF(D53="WU",Simulation!$C$3,IF(D53=1,Simulation!$C$4,IF(D53=2,Simulation!$C$5,IF(D53=3,Simulation!$C$6,IF(D53=4,Simulation!$C$7,IF(D53=5,Simulation!$C$8))))))) -> FALSE | G53: 0 | P53: 0 | R53: 0 | S53: 0 | T53: Inlap | W53: FL
A54: 1 | B54: 43 | C54: 43 | E54: =IF(D54="Grid",Simulation!$B$2,IF(D54="WU",Simulation!$B$3,IF(D54=1,Simulation!$B$4,IF(D54=2,Simulation!$B$5,IF(D54=3,Simulation!$B$6,IF(D54=4,Simulation!$B$7,IF(D54=5,Simulation!$B$8))))))) -> FALSE | F54: =IF(D54="Grid",Simulation!$C$2,IF(D54="WU",Simulation!$C$3,IF(D54=1,Simulation!$C$4,IF(D54=2,Simulation!$C$5,IF(D54=3,Simulation!$C$6,IF(D54=4,Simulation!$C$7,IF(D54=5,Simulation!$C$8))))))) -> FALSE | G54: 0 | P54: 0 | R54: 0 | S54: 0 | T54: Inlap | W54: FL
A55: 1 | B55: 44 | C55: 44 | E55: =IF(D55="Grid",Simulation!$B$2,IF(D55="WU",Simulation!$B$3,IF(D55=1,Simulation!$B$4,IF(D55=2,Simulation!$B$5,IF(D55=3,Simulation!$B$6,IF(D55=4,Simulation!$B$7,IF(D55=5,Simulation!$B$8))))))) -> FALSE | F55: =IF(D55="Grid",Simulation!$C$2,IF(D55="WU",Simulation!$C$3,IF(D55=1,Simulation!$C$4,IF(D55=2,Simulation!$C$5,IF(D55=3,Simulation!$C$6,IF(D55=4,Simulation!$C$7,IF(D55=5,Simulation!$C$8))))))) -> FALSE | G55: 0 | P55: 0 | R55: 0 | S55: 0 | T55: Inlap | W55: FL
A56: 1 | B56: 45 | C56: 45 | E56: =IF(D56="Grid",Simulation!$B$2,IF(D56="WU",Simulation!$B$3,IF(D56=1,Simulation!$B$4,IF(D56=2,Simulation!$B$5,IF(D56=3,Simulation!$B$6,IF(D56=4,Simulation!$B$7,IF(D56=5,Simulation!$B$8))))))) -> FALSE | F56: =IF(D56="Grid",Simulation!$C$2,IF(D56="WU",Simulation!$C$3,IF(D56=1,Simulation!$C$4,IF(D56=2,Simulation!$C$5,IF(D56=3,Simulation!$C$6,IF(D56=4,Simulation!$C$7,IF(D56=5,Simulation!$C$8))))))) -> FALSE | G56: 0 | P56: 0 | R56: 0 | S56: 0 | T56: Inlap | W56: FL
A57: 1 | B57: 46 | C57: 46 | E57: =IF(D57="Grid",Simulation!$B$2,IF(D57="WU",Simulation!$B$3,IF(D57=1,Simulation!$B$4,IF(D57=2,Simulation!$B$5,IF(D57=3,Simulation!$B$6,IF(D57=4,Simulation!$B$7,IF(D57=5,Simulation!$B$8))))))) -> FALSE | F57: =IF(D57="Grid",Simulation!$C$2,IF(D57="WU",Simulation!$C$3,IF(D57=1,Simulation!$C$4,IF(D57=2,Simulation!$C$5,IF(D57=3,Simulation!$C$6,IF(D57=4,Simulation!$C$7,IF(D57=5,Simulation!$C$8))))))) -> FALSE | G57: 0 | P57: 0 | R57: 0 | S57: 0 | T57: Inlap | W57: FL
A58: 1 | B58: 47 | C58: 47 | E58: =IF(D58="Grid",Simulation!$B$2,IF(D58="WU",Simulation!$B$3,IF(D58=1,Simulation!$B$4,IF(D58=2,Simulation!$B$5,IF(D58=3,Simulation!$B$6,IF(D58=4,Simulation!$B$7,IF(D58=5,Simulation!$B$8))))))) -> FALSE | F58: =IF(D58="Grid",Simulation!$C$2,IF(D58="WU",Simulation!$C$3,IF(D58=1,Simulation!$C$4,IF(D58=2,Simulation!$C$5,IF(D58=3,Simulation!$C$6,IF(D58=4,Simulation!$C$7,IF(D58=5,Simulation!$C$8))))))) -> FALSE | G58: 0 | P58: 0 | R58: 0 | S58: 0 | T58: Inlap | W58: FL
A59: 1 | B59: 48 | C59: 48 | E59: =IF(D59="Grid",Simulation!$B$2,IF(D59="WU",Simulation!$B$3,IF(D59=1,Simulation!$B$4,IF(D59=2,Simulation!$B$5,IF(D59=3,Simulation!$B$6,IF(D59=4,Simulation!$B$7,IF(D59=5,Simulation!$B$8))))))) -> FALSE | F59: =IF(D59="Grid",Simulation!$C$2,IF(D59="WU",Simulation!$C$3,IF(D59=1,Simulation!$C$4,IF(D59=2,Simulation!$C$5,IF(D59=3,Simulation!$C$6,IF(D59=4,Simulation!$C$7,IF(D59=5,Simulation!$C$8))))))) -> FALSE | G59: 0 | P59: 0 | R59: 0 | S59: 0 | T59: Inlap | W59: FL
A60: 1 | B60: 49 | C60: 49 | E60: =IF(D60="Grid",Simulation!$B$2,IF(D60="WU",Simulation!$B$3,IF(D60=1,Simulation!$B$4,IF(D60=2,Simulation!$B$5,IF(D60=3,Simulation!$B$6,IF(D60=4,Simulation!$B$7,IF(D60=5,Simulation!$B$8))))))) -> FALSE | F60: =IF(D60="Grid",Simulation!$C$2,IF(D60="WU",Simulation!$C$3,IF(D60=1,Simulation!$C$4,IF(D60=2,Simulation!$C$5,IF(D60=3,Simulation!$C$6,IF(D60=4,Simulation!$C$7,IF(D60=5,Simulation!$C$8))))))) -> FALSE | G60: 0 | P60: 0 | R60: 0 | S60: 0 | T60: Inlap | W60: FL
A61: 1 | B61: 50 | C61: 50 | E61: =IF(D61="Grid",Simulation!$B$2,IF(D61="WU",Simulation!$B$3,IF(D61=1,Simulation!$B$4,IF(D61=2,Simulation!$B$5,IF(D61=3,Simulation!$B$6,IF(D61=4,Simulation!$B$7,IF(D61=5,Simulation!$B$8))))))) -> FALSE | F61: =IF(D61="Grid",Simulation!$C$2,IF(D61="WU",Simulation!$C$3,IF(D61=1,Simulation!$C$4,IF(D61=2,Simulation!$C$5,IF(D61=3,Simulation!$C$6,IF(D61=4,Simulation!$C$7,IF(D61=5,Simulation!$C$8))))))) -> FALSE | G61: 0 | P61: 0 | R61: 0 | S61: 0 | T61: Inlap | W61: FL
A62: 1 | B62: 51 | C62: 51 | E62: =IF(D62="Grid",Simulation!$B$2,IF(D62="WU",Simulation!$B$3,IF(D62=1,Simulation!$B$4,IF(D62=2,Simulation!$B$5,IF(D62=3,Simulation!$B$6,IF(D62=4,Simulation!$B$7,IF(D62=5,Simulation!$B$8))))))) -> FALSE | F62: =IF(D62="Grid",Simulation!$C$2,IF(D62="WU",Simulation!$C$3,IF(D62=1,Simulation!$C$4,IF(D62=2,Simulation!$C$5,IF(D62=3,Simulation!$C$6,IF(D62=4,Simulation!$C$7,IF(D62=5,Simulation!$C$8))))))) -> FALSE | G62: 0 | P62: 0 | R62: 0 | S62: 0 | T62: Inlap | W62: FL
A63: 1 | B63: 52 | C63: 52 | E63: =IF(D63="Grid",Simulation!$B$2,IF(D63="WU",Simulation!$B$3,IF(D63=1,Simulation!$B$4,IF(D63=2,Simulation!$B$5,IF(D63=3,Simulation!$B$6,IF(D63=4,Simulation!$B$7,IF(D63=5,Simulation!$B$8))))))) -> FALSE | F63: =IF(D63="Grid",Simulation!$C$2,IF(D63="WU",Simulation!$C$3,IF(D63=1,Simulation!$C$4,IF(D63=2,Simulation!$C$5,IF(D63=3,Simulation!$C$6,IF(D63=4,Simulation!$C$7,IF(D63=5,Simulation!$C$8))))))) -> FALSE | G63: 0 | P63: 0 | R63: 0 | S63: 0 | T63: Inlap | W63: FL
A64: 1 | B64: 53 | C64: 53 | E64: =IF(D64="Grid",Simulation!$B$2,IF(D64="WU",Simulation!$B$3,IF(D64=1,Simulation!$B$4,IF(D64=2,Simulation!$B$5,IF(D64=3,Simulation!$B$6,IF(D64=4,Simulation!$B$7,IF(D64=5,Simulation!$B$8))))))) -> FALSE | F64: =IF(D64="Grid",Simulation!$C$2,IF(D64="WU",Simulation!$C$3,IF(D64=1,Simulation!$C$4,IF(D64=2,Simulation!$C$5,IF(D64=3,Simulation!$C$6,IF(D64=4,Simulation!$C$7,IF(D64=5,Simulation!$C$8))))))) -> FALSE | G64: 0 | P64: 0 | R64: 0 | S64: 0 | T64: Inlap | W64: FL
A65: 1 | B65: 54 | C65: 54 | E65: =IF(D65="Grid",Simulation!$B$2,IF(D65="WU",Simulation!$B$3,IF(D65=1,Simulation!$B$4,IF(D65=2,Simulation!$B$5,IF(D65=3,Simulation!$B$6,IF(D65=4,Simulation!$B$7,IF(D65=5,Simulation!$B$8))))))) -> FALSE | F65: =IF(D65="Grid",Simulation!$C$2,IF(D65="WU",Simulation!$C$3,IF(D65=1,Simulation!$C$4,IF(D65=2,Simulation!$C$5,IF(D65=3,Simulation!$C$6,IF(D65=4,Simulation!$C$7,IF(D65=5,Simulation!$C$8))))))) -> FALSE | G65: 0 | P65: 0 | R65: 0 | S65: 0 | T65: Inlap | W65: FL
A66: 1 | B66: 55 | C66: 55 | E66: =IF(D66="Grid",Simulation!$B$2,IF(D66="WU",Simulation!$B$3,IF(D66=1,Simulation!$B$4,IF(D66=2,Simulation!$B$5,IF(D66=3,Simulation!$B$6,IF(D66=4,Simulation!$B$7,IF(D66=5,Simulation!$B$8))))))) -> FALSE | F66: =IF(D66="Grid",Simulation!$C$2,IF(D66="WU",Simulation!$C$3,IF(D66=1,Simulation!$C$4,IF(D66=2,Simulation!$C$5,IF(D66=3,Simulation!$C$6,IF(D66=4,Simulation!$C$7,IF(D66=5,Simulation!$C$8))))))) -> FALSE | G66: 0 | P66: 0 | R66: 0 | S66: 0 | T66: Inlap | W66: FL
A67: 1 | B67: 56 | C67: 56 | E67: =IF(D67="Grid",Simulation!$B$2,IF(D67="WU",Simulation!$B$3,IF(D67=1,Simulation!$B$4,IF(D67=2,Simulation!$B$5,IF(D67=3,Simulation!$B$6,IF(D67=4,Simulation!$B$7,IF(D67=5,Simulation!$B$8))))))) -> FALSE | F67: =IF(D67="Grid",Simulation!$C$2,IF(D67="WU",Simulation!$C$3,IF(D67=1,Simulation!$C$4,IF(D67=2,Simulation!$C$5,IF(D67=3,Simulation!$C$6,IF(D67=4,Simulation!$C$7,IF(D67=5,Simulation!$C$8))))))) -> FALSE | G67: 0 | P67: 0 | R67: 0 | S67: 0 | T67: Inlap | W67: FL
A68: 1 | B68: 57 | C68: 57 | E68: =IF(D68="Grid",Simulation!$B$2,IF(D68="WU",Simulation!$B$3,IF(D68=1,Simulation!$B$4,IF(D68=2,Simulation!$B$5,IF(D68=3,Simulation!$B$6,IF(D68=4,Simulation!$B$7,IF(D68=5,Simulation!$B$8))))))) -> FALSE | F68: =IF(D68="Grid",Simulation!$C$2,IF(D68="WU",Simulation!$C$3,IF(D68=1,Simulation!$C$4,IF(D68=2,Simulation!$C$5,IF(D68=3,Simulation!$C$6,IF(D68=4,Simulation!$C$7,IF(D68=5,Simulation!$C$8))))))) -> FALSE | G68: 0 | P68: 0 | R68: 0 | S68: 0 | T68: Inlap | W68: FL
A69: 1 | B69: 58 | C69: 58 | E69: =IF(D69="Grid",Simulation!$B$2,IF(D69="WU",Simulation!$B$3,IF(D69=1,Simulation!$B$4,IF(D69=2,Simulation!$B$5,IF(D69=3,Simulation!$B$6,IF(D69=4,Simulation!$B$7,IF(D69=5,Simulation!$B$8))))))) -> FALSE | F69: =IF(D69="Grid",Simulation!$C$2,IF(D69="WU",Simulation!$C$3,IF(D69=1,Simulation!$C$4,IF(D69=2,Simulation!$C$5,IF(D69=3,Simulation!$C$6,IF(D69=4,Simulation!$C$7,IF(D69=5,Simulation!$C$8))))))) -> FALSE | G69: 0 | P69: 0 | R69: 0 | S69: 0 | T69: Inlap | W69: FL
A70: 1 | B70: 59 | C70: 59 | E70: =IF(D70="Grid",Simulation!$B$2,IF(D70="WU",Simulation!$B$3,IF(D70=1,Simulation!$B$4,IF(D70=2,Simulation!$B$5,IF(D70=3,Simulation!$B$6,IF(D70=4,Simulation!$B$7,IF(D70=5,Simulation!$B$8))))))) -> FALSE | F70: =IF(D70="Grid",Simulation!$C$2,IF(D70="WU",Simulation!$C$3,IF(D70=1,Simulation!$C$4,IF(D70=2,Simulation!$C$5,IF(D70=3,Simulation!$C$6,IF(D70=4,Simulation!$C$7,IF(D70=5,Simulation!$C$8))))))) -> FALSE | G70: 0 | P70: 0 | R70: 0 | S70: 0 | T70: Inlap | W70: FL
A71: 1 | B71: 60 | C71: 60 | E71: =IF(D71="Grid",Simulation!$B$2,IF(D71="WU",Simulation!$B$3,IF(D71=1,Simulation!$B$4,IF(D71=2,Simulation!$B$5,IF(D71=3,Simulation!$B$6,IF(D71=4,Simulation!$B$7,IF(D71=5,Simulation!$B$8))))))) -> FALSE | F71: =IF(D71="Grid",Simulation!$C$2,IF(D71="WU",Simulation!$C$3,IF(D71=1,Simulation!$C$4,IF(D71=2,Simulation!$C$5,IF(D71=3,Simulation!$C$6,IF(D71=4,Simulation!$C$7,IF(D71=5,Simulation!$C$8))))))) -> FALSE | G71: 0 | P71: 0 | R71: 0 | S71: 0 | T71: Inlap | W71: FL
A72: 1 | B72: 61 | C72: 61 | E72: =IF(D72="Grid",Simulation!$B$2,IF(D72="WU",Simulation!$B$3,IF(D72=1,Simulation!$B$4,IF(D72=2,Simulation!$B$5,IF(D72=3,Simulation!$B$6,IF(D72=4,Simulation!$B$7,IF(D72=5,Simulation!$B$8))))))) -> FALSE | F72: =IF(D72="Grid",Simulation!$C$2,IF(D72="WU",Simulation!$C$3,IF(D72=1,Simulation!$C$4,IF(D72=2,Simulation!$C$5,IF(D72=3,Simulation!$C$6,IF(D72=4,Simulation!$C$7,IF(D72=5,Simulation!$C$8))))))) -> FALSE | G72: 0 | P72: 0 | R72: 0 | S72: 0 | T72: Inlap | W72: FL
A73: 1 | B73: 62 | C73: 62 | E73: =IF(D73="Grid",Simulation!$B$2,IF(D73="WU",Simulation!$B$3,IF(D73=1,Simulation!$B$4,IF(D73=2,Simulation!$B$5,IF(D73=3,Simulation!$B$6,IF(D73=4,Simulation!$B$7,IF(D73=5,Simulation!$B$8))))))) -> FALSE | F73: =IF(D73="Grid",Simulation!$C$2,IF(D73="WU",Simulation!$C$3,IF(D73=1,Simulation!$C$4,IF(D73=2,Simulation!$C$5,IF(D73=3,Simulation!$C$6,IF(D73=4,Simulation!$C$7,IF(D73=5,Simulation!$C$8))))))) -> FALSE | G73: 0 | P73: 0 | R73: 0 | S73: 0 | T73: Inlap | W73: FL
A74: 1 | B74: 63 | C74: 63 | E74: =IF(D74="Grid",Simulation!$B$2,IF(D74="WU",Simulation!$B$3,IF(D74=1,Simulation!$B$4,IF(D74=2,Simulation!$B$5,IF(D74=3,Simulation!$B$6,IF(D74=4,Simulation!$B$7,IF(D74=5,Simulation!$B$8))))))) -> FALSE | F74: =IF(D74="Grid",Simulation!$C$2,IF(D74="WU",Simulation!$C$3,IF(D74=1,Simulation!$C$4,IF(D74=2,Simulation!$C$5,IF(D74=3,Simulation!$C$6,IF(D74=4,Simulation!$C$7,IF(D74=5,Simulation!$C$8))))))) -> FALSE | G74: 0 | P74: 0 | R74: 0 | S74: 0 | T74: Inlap | W74: FL
A75: 1 | B75: 64 | C75: 64 | E75: =IF(D75="Grid",Simulation!$B$2,IF(D75="WU",Simulation!$B$3,IF(D75=1,Simulation!$B$4,IF(D75=2,Simulation!$B$5,IF(D75=3,Simulation!$B$6,IF(D75=4,Simulation!$B$7,IF(D75=5,Simulation!$B$8))))))) -> FALSE | F75: =IF(D75="Grid",Simulation!$C$2,IF(D75="WU",Simulation!$C$3,IF(D75=1,Simulation!$C$4,IF(D75=2,Simulation!$C$5,IF(D75=3,Simulation!$C$6,IF(D75=4,Simulation!$C$7,IF(D75=5,Simulation!$C$8))))))) -> FALSE | G75: 0 | P75: 0 | R75: 0 | S75: 0 | T75: Inlap | W75: FL
A76: =IF(O76>0,A75+1,A75) -> 1 | B76: 65 | C76: 65 | E76: =IF(D76="Grid",Simulation!$B$2,IF(D76="WU",Simulation!$B$3,IF(D76=1,Simulation!$B$4,IF(D76=2,Simulation!$B$5,IF(D76=3,Simulation!$B$6,IF(D76=4,Simulation!$B$7,IF(D76=5,Simulation!$B$8))))))) -> FALSE | F76: =IF(D76="Grid",Simulation!$C$2,IF(D76="WU",Simulation!$C$3,IF(D76=1,Simulation!$C$4,IF(D76=2,Simulation!$C$5,IF(D76=3,Simulation!$C$6,IF(D76=4,Simulation!$C$7,IF(D76=5,Simulation!$C$8))))))) -> FALSE | G76: =G75+O75-P75 -> 0 | P76: 0 | R76: 0 | S76: =IF(O76>0,O76+S75-Q76,S75-P76) -> 0 | T76: =IF(S76<=F76,"Inlap",IF(S76<=2*F76,"Call: In this lap!",IF(S76<=3*F76,"Show in but don't call!",""))) -> Inlap | W76: =IF(J76=$Q$2,"FL","") -> FL
A77: 1 | B77: 66 | C77: 66 | E77: =IF(D77="Grid",Simulation!$B$2,IF(D77="WU",Simulation!$B$3,IF(D77=1,Simulation!$B$4,IF(D77=2,Simulation!$B$5,IF(D77=3,Simulation!$B$6,IF(D77=4,Simulation!$B$7,IF(D77=5,Simulation!$B$8))))))) -> FALSE | F77: =IF(D77="Grid",Simulation!$C$2,IF(D77="WU",Simulation!$C$3,IF(D77=1,Simulation!$C$4,IF(D77=2,Simulation!$C$5,IF(D77=3,Simulation!$C$6,IF(D77=4,Simulation!$C$7,IF(D77=5,Simulation!$C$8))))))) -> FALSE | G77: 0 | K77: =IF(J77<>0,K76,"") ->  | P77: 0 | R77: 0 | S77: 0 | T77: Inlap | W77: FL
A78: 1 | B78: 67 | C78: =IF(O78="",C77+1,"1") -> 67 | E78: =IF(D78="Grid",Simulation!$B$2,IF(D78="WU",Simulation!$B$3,IF(D78=1,Simulation!$B$4,IF(D78=2,Simulation!$B$5,IF(D78=3,Simulation!$B$6,IF(D78=4,Simulation!$B$7,IF(D78=5,Simulation!$B$8))))))) -> FALSE | F78: =IF(D78="Grid",Simulation!$C$2,IF(D78="WU",Simulation!$C$3,IF(D78=1,Simulation!$C$4,IF(D78=2,Simulation!$C$5,IF(D78=3,Simulation!$C$6,IF(D78=4,Simulation!$C$7,IF(D78=5,Simulation!$C$8))))))) -> FALSE | G78: 0 | P78: 0 | R78: 0 | S78: 0 | T78: Inlap | W78: FL
A79: 1 | B79: 68 | C79: 68 | E79: =IF(D79="Grid",Simulation!$B$2,IF(D79="WU",Simulation!$B$3,IF(D79=1,Simulation!$B$4,IF(D79=2,Simulation!$B$5,IF(D79=3,Simulation!$B$6,IF(D79=4,Simulation!$B$7,IF(D79=5,Simulation!$B$8))))))) -> FALSE | F79: =IF(D79="Grid",Simulation!$C$2,IF(D79="WU",Simulation!$C$3,IF(D79=1,Simulation!$C$4,IF(D79=2,Simulation!$C$5,IF(D79=3,Simulation!$C$6,IF(D79=4,Simulation!$C$7,IF(D79=5,Simulation!$C$8))))))) -> FALSE | G79: 0 | P79: 0 | R79: 0 | S79: 0 | T79: Inlap | W79: FL
A80: 1 | B80: 69 | C80: 69 | E80: =IF(D80="Grid",Simulation!$B$2,IF(D80="WU",Simulation!$B$3,IF(D80=1,Simulation!$B$4,IF(D80=2,Simulation!$B$5,IF(D80=3,Simulation!$B$6,IF(D80=4,Simulation!$B$7,IF(D80=5,Simulation!$B$8))))))) -> FALSE | F80: =IF(D80="Grid",Simulation!$C$2,IF(D80="WU",Simulation!$C$3,IF(D80=1,Simulation!$C$4,IF(D80=2,Simulation!$C$5,IF(D80=3,Simulation!$C$6,IF(D80=4,Simulation!$C$7,IF(D80=5,Simulation!$C$8))))))) -> FALSE | G80: 0 | P80: 0 | R80: 0 | S80: 0 | T80: Inlap | W80: FL
A81: 1 | B81: 70 | C81: 70 | E81: =IF(D81="Grid",Simulation!$B$2,IF(D81="WU",Simulation!$B$3,IF(D81=1,Simulation!$B$4,IF(D81=2,Simulation!$B$5,IF(D81=3,Simulation!$B$6,IF(D81=4,Simulation!$B$7,IF(D81=5,Simulation!$B$8))))))) -> FALSE | F81: =IF(D81="Grid",Simulation!$C$2,IF(D81="WU",Simulation!$C$3,IF(D81=1,Simulation!$C$4,IF(D81=2,Simulation!$C$5,IF(D81=3,Simulation!$C$6,IF(D81=4,Simulation!$C$7,IF(D81=5,Simulation!$C$8))))))) -> FALSE | G81: 0 | P81: 0 | R81: 0 | S81: 0 | T81: Inlap | W81: FL
A82: 1 | B82: 71 | C82: 71 | E82: =IF(D82="Grid",Simulation!$B$2,IF(D82="WU",Simulation!$B$3,IF(D82=1,Simulation!$B$4,IF(D82=2,Simulation!$B$5,IF(D82=3,Simulation!$B$6,IF(D82=4,Simulation!$B$7,IF(D82=5,Simulation!$B$8))))))) -> FALSE | F82: =IF(D82="Grid",Simulation!$C$2,IF(D82="WU",Simulation!$C$3,IF(D82=1,Simulation!$C$4,IF(D82=2,Simulation!$C$5,IF(D82=3,Simulation!$C$6,IF(D82=4,Simulation!$C$7,IF(D82=5,Simulation!$C$8))))))) -> FALSE | G82: 0 | P82: 0 | R82: 0 | S82: 0 | T82: Inlap | W82: FL
A83: 1 | B83: 72 | C83: 72 | E83: =IF(D83="Grid",Simulation!$B$2,IF(D83="WU",Simulation!$B$3,IF(D83=1,Simulation!$B$4,IF(D83=2,Simulation!$B$5,IF(D83=3,Simulation!$B$6,IF(D83=4,Simulation!$B$7,IF(D83=5,Simulation!$B$8))))))) -> FALSE | F83: =IF(D83="Grid",Simulation!$C$2,IF(D83="WU",Simulation!$C$3,IF(D83=1,Simulation!$C$4,IF(D83=2,Simulation!$C$5,IF(D83=3,Simulation!$C$6,IF(D83=4,Simulation!$C$7,IF(D83=5,Simulation!$C$8))))))) -> FALSE | G83: 0 | P83: 0 | R83: 0 | S83: 0 | T83: Inlap | W83: FL
A84: 1 | B84: 73 | C84: 73 | E84: =IF(D84="Grid",Simulation!$B$2,IF(D84="WU",Simulation!$B$3,IF(D84=1,Simulation!$B$4,IF(D84=2,Simulation!$B$5,IF(D84=3,Simulation!$B$6,IF(D84=4,Simulation!$B$7,IF(D84=5,Simulation!$B$8))))))) -> FALSE | F84: =IF(D84="Grid",Simulation!$C$2,IF(D84="WU",Simulation!$C$3,IF(D84=1,Simulation!$C$4,IF(D84=2,Simulation!$C$5,IF(D84=3,Simulation!$C$6,IF(D84=4,Simulation!$C$7,IF(D84=5,Simulation!$C$8))))))) -> FALSE | G84: 0 | P84: 0 | R84: 0 | S84: 0 | T84: Inlap | W84: FL
A85: 1 | B85: 74 | C85: 74 | E85: =IF(D85="Grid",Simulation!$B$2,IF(D85="WU",Simulation!$B$3,IF(D85=1,Simulation!$B$4,IF(D85=2,Simulation!$B$5,IF(D85=3,Simulation!$B$6,IF(D85=4,Simulation!$B$7,IF(D85=5,Simulation!$B$8))))))) -> FALSE | F85: =IF(D85="Grid",Simulation!$C$2,IF(D85="WU",Simulation!$C$3,IF(D85=1,Simulation!$C$4,IF(D85=2,Simulation!$C$5,IF(D85=3,Simulation!$C$6,IF(D85=4,Simulation!$C$7,IF(D85=5,Simulation!$C$8))))))) -> FALSE | G85: 0 | P85: 0 | R85: 0 | S85: 0 | T85: Inlap | W85: FL
A86: 1 | B86: 75 | C86: 75 | E86: =IF(D86="Grid",Simulation!$B$2,IF(D86="WU",Simulation!$B$3,IF(D86=1,Simulation!$B$4,IF(D86=2,Simulation!$B$5,IF(D86=3,Simulation!$B$6,IF(D86=4,Simulation!$B$7,IF(D86=5,Simulation!$B$8))))))) -> FALSE | F86: =IF(D86="Grid",Simulation!$C$2,IF(D86="WU",Simulation!$C$3,IF(D86=1,Simulation!$C$4,IF(D86=2,Simulation!$C$5,IF(D86=3,Simulation!$C$6,IF(D86=4,Simulation!$C$7,IF(D86=5,Simulation!$C$8))))))) -> FALSE | G86: 0 | P86: 0 | R86: 0 | S86: 0 | T86: Inlap | W86: FL
A87: 1 | B87: 76 | C87: 76 | E87: =IF(D87="Grid",Simulation!$B$2,IF(D87="WU",Simulation!$B$3,IF(D87=1,Simulation!$B$4,IF(D87=2,Simulation!$B$5,IF(D87=3,Simulation!$B$6,IF(D87=4,Simulation!$B$7,IF(D87=5,Simulation!$B$8))))))) -> FALSE | F87: =IF(D87="Grid",Simulation!$C$2,IF(D87="WU",Simulation!$C$3,IF(D87=1,Simulation!$C$4,IF(D87=2,Simulation!$C$5,IF(D87=3,Simulation!$C$6,IF(D87=4,Simulation!$C$7,IF(D87=5,Simulation!$C$8))))))) -> FALSE | G87: 0 | P87: 0 | R87: 0 | S87: 0 | T87: Inlap | W87: FL
A88: 1 | B88: 77 | C88: 77 | E88: =IF(D88="Grid",Simulation!$B$2,IF(D88="WU",Simulation!$B$3,IF(D88=1,Simulation!$B$4,IF(D88=2,Simulation!$B$5,IF(D88=3,Simulation!$B$6,IF(D88=4,Simulation!$B$7,IF(D88=5,Simulation!$B$8))))))) -> FALSE | F88: =IF(D88="Grid",Simulation!$C$2,IF(D88="WU",Simulation!$C$3,IF(D88=1,Simulation!$C$4,IF(D88=2,Simulation!$C$5,IF(D88=3,Simulation!$C$6,IF(D88=4,Simulation!$C$7,IF(D88=5,Simulation!$C$8))))))) -> FALSE | G88: 0 | P88: 0 | R88: 0 | S88: 0 | T88: Inlap | W88: FL
A89: 1 | B89: 78 | C89: 78 | E89: =IF(D89="Grid",Simulation!$B$2,IF(D89="WU",Simulation!$B$3,IF(D89=1,Simulation!$B$4,IF(D89=2,Simulation!$B$5,IF(D89=3,Simulation!$B$6,IF(D89=4,Simulation!$B$7,IF(D89=5,Simulation!$B$8))))))) -> FALSE | F89: =IF(D89="Grid",Simulation!$C$2,IF(D89="WU",Simulation!$C$3,IF(D89=1,Simulation!$C$4,IF(D89=2,Simulation!$C$5,IF(D89=3,Simulation!$C$6,IF(D89=4,Simulation!$C$7,IF(D89=5,Simulation!$C$8))))))) -> FALSE | G89: 0 | P89: 0 | R89: 0 | S89: 0 | T89: Inlap | W89: FL
A90: 1 | B90: 79 | C90: 79 | E90: =IF(D90="Grid",Simulation!$B$2,IF(D90="WU",Simulation!$B$3,IF(D90=1,Simulation!$B$4,IF(D90=2,Simulation!$B$5,IF(D90=3,Simulation!$B$6,IF(D90=4,Simulation!$B$7,IF(D90=5,Simulation!$B$8))))))) -> FALSE | F90: =IF(D90="Grid",Simulation!$C$2,IF(D90="WU",Simulation!$C$3,IF(D90=1,Simulation!$C$4,IF(D90=2,Simulation!$C$5,IF(D90=3,Simulation!$C$6,IF(D90=4,Simulation!$C$7,IF(D90=5,Simulation!$C$8))))))) -> FALSE | G90: 0 | P90: 0 | R90: 0 | S90: 0 | T90: Inlap | W90: FL
A91: 1 | B91: 80 | C91: 80 | E91: =IF(D91="Grid",Simulation!$B$2,IF(D91="WU",Simulation!$B$3,IF(D91=1,Simulation!$B$4,IF(D91=2,Simulation!$B$5,IF(D91=3,Simulation!$B$6,IF(D91=4,Simulation!$B$7,IF(D91=5,Simulation!$B$8))))))) -> FALSE | F91: =IF(D91="Grid",Simulation!$C$2,IF(D91="WU",Simulation!$C$3,IF(D91=1,Simulation!$C$4,IF(D91=2,Simulation!$C$5,IF(D91=3,Simulation!$C$6,IF(D91=4,Simulation!$C$7,IF(D91=5,Simulation!$C$8))))))) -> FALSE | G91: 0 | P91: 0 | R91: 0 | S91: 0 | T91: Inlap | W91: FL
A92: 1 | B92: 81 | C92: 81 | E92: =IF(D92="Grid",Simulation!$B$2,IF(D92="WU",Simulation!$B$3,IF(D92=1,Simulation!$B$4,IF(D92=2,Simulation!$B$5,IF(D92=3,Simulation!$B$6,IF(D92=4,Simulation!$B$7,IF(D92=5,Simulation!$B$8))))))) -> FALSE | F92: =IF(D92="Grid",Simulation!$C$2,IF(D92="WU",Simulation!$C$3,IF(D92=1,Simulation!$C$4,IF(D92=2,Simulation!$C$5,IF(D92=3,Simulation!$C$6,IF(D92=4,Simulation!$C$7,IF(D92=5,Simulation!$C$8))))))) -> FALSE | G92: 0 | P92: 0 | R92: 0 | S92: 0 | T92: Inlap | W92: FL
A93: 1 | B93: 82 | C93: 82 | E93: =IF(D93="Grid",Simulation!$B$2,IF(D93="WU",Simulation!$B$3,IF(D93=1,Simulation!$B$4,IF(D93=2,Simulation!$B$5,IF(D93=3,Simulation!$B$6,IF(D93=4,Simulation!$B$7,IF(D93=5,Simulation!$B$8))))))) -> FALSE | F93: =IF(D93="Grid",Simulation!$C$2,IF(D93="WU",Simulation!$C$3,IF(D93=1,Simulation!$C$4,IF(D93=2,Simulation!$C$5,IF(D93=3,Simulation!$C$6,IF(D93=4,Simulation!$C$7,IF(D93=5,Simulation!$C$8))))))) -> FALSE | G93: 0 | P93: 0 | R93: 0 | S93: 0 | T93: Inlap | W93: FL
A94: 1 | B94: 83 | C94: 83 | E94: =IF(D94="Grid",Simulation!$B$2,IF(D94="WU",Simulation!$B$3,IF(D94=1,Simulation!$B$4,IF(D94=2,Simulation!$B$5,IF(D94=3,Simulation!$B$6,IF(D94=4,Simulation!$B$7,IF(D94=5,Simulation!$B$8))))))) -> FALSE | F94: =IF(D94="Grid",Simulation!$C$2,IF(D94="WU",Simulation!$C$3,IF(D94=1,Simulation!$C$4,IF(D94=2,Simulation!$C$5,IF(D94=3,Simulation!$C$6,IF(D94=4,Simulation!$C$7,IF(D94=5,Simulation!$C$8))))))) -> FALSE | G94: 0 | P94: 0 | R94: 0 | S94: 0 | T94: Inlap | W94: FL
A95: 1 | B95: 84 | C95: 84 | E95: =IF(D95="Grid",Simulation!$B$2,IF(D95="WU",Simulation!$B$3,IF(D95=1,Simulation!$B$4,IF(D95=2,Simulation!$B$5,IF(D95=3,Simulation!$B$6,IF(D95=4,Simulation!$B$7,IF(D95=5,Simulation!$B$8))))))) -> FALSE | F95: =IF(D95="Grid",Simulation!$C$2,IF(D95="WU",Simulation!$C$3,IF(D95=1,Simulation!$C$4,IF(D95=2,Simulation!$C$5,IF(D95=3,Simulation!$C$6,IF(D95=4,Simulation!$C$7,IF(D95=5,Simulation!$C$8))))))) -> FALSE | G95: 0 | P95: 0 | R95: 0 | S95: 0 | T95: Inlap | W95: FL
A96: 1 | B96: 85 | C96: 85 | E96: =IF(D96="Grid",Simulation!$B$2,IF(D96="WU",Simulation!$B$3,IF(D96=1,Simulation!$B$4,IF(D96=2,Simulation!$B$5,IF(D96=3,Simulation!$B$6,IF(D96=4,Simulation!$B$7,IF(D96=5,Simulation!$B$8))))))) -> FALSE | F96: =IF(D96="Grid",Simulation!$C$2,IF(D96="WU",Simulation!$C$3,IF(D96=1,Simulation!$C$4,IF(D96=2,Simulation!$C$5,IF(D96=3,Simulation!$C$6,IF(D96=4,Simulation!$C$7,IF(D96=5,Simulation!$C$8))))))) -> FALSE | G96: 0 | P96: 0 | R96: 0 | S96: 0 | T96: Inlap | W96: FL
A97: 1 | B97: 86 | C97: 86 | E97: =IF(D97="Grid",Simulation!$B$2,IF(D97="WU",Simulation!$B$3,IF(D97=1,Simulation!$B$4,IF(D97=2,Simulation!$B$5,IF(D97=3,Simulation!$B$6,IF(D97=4,Simulation!$B$7,IF(D97=5,Simulation!$B$8))))))) -> FALSE | F97: =IF(D97="Grid",Simulation!$C$2,IF(D97="WU",Simulation!$C$3,IF(D97=1,Simulation!$C$4,IF(D97=2,Simulation!$C$5,IF(D97=3,Simulation!$C$6,IF(D97=4,Simulation!$C$7,IF(D97=5,Simulation!$C$8))))))) -> FALSE | G97: 0 | P97: 0 | R97: 0 | S97: 0 | T97: Inlap | W97: FL
A98: 1 | B98: 87 | C98: 87 | E98: =IF(D98="Grid",Simulation!$B$2,IF(D98="WU",Simulation!$B$3,IF(D98=1,Simulation!$B$4,IF(D98=2,Simulation!$B$5,IF(D98=3,Simulation!$B$6,IF(D98=4,Simulation!$B$7,IF(D98=5,Simulation!$B$8))))))) -> FALSE | F98: =IF(D98="Grid",Simulation!$C$2,IF(D98="WU",Simulation!$C$3,IF(D98=1,Simulation!$C$4,IF(D98=2,Simulation!$C$5,IF(D98=3,Simulation!$C$6,IF(D98=4,Simulation!$C$7,IF(D98=5,Simulation!$C$8))))))) -> FALSE | G98: 0 | P98: 0 | R98: 0 | S98: 0 | T98: Inlap | W98: FL
A99: 1 | B99: 88 | C99: 88 | E99: =IF(D99="Grid",Simulation!$B$2,IF(D99="WU",Simulation!$B$3,IF(D99=1,Simulation!$B$4,IF(D99=2,Simulation!$B$5,IF(D99=3,Simulation!$B$6,IF(D99=4,Simulation!$B$7,IF(D99=5,Simulation!$B$8))))))) -> FALSE | F99: =IF(D99="Grid",Simulation!$C$2,IF(D99="WU",Simulation!$C$3,IF(D99=1,Simulation!$C$4,IF(D99=2,Simulation!$C$5,IF(D99=3,Simulation!$C$6,IF(D99=4,Simulation!$C$7,IF(D99=5,Simulation!$C$8))))))) -> FALSE | G99: 0 | P99: 0 | R99: 0 | S99: 0 | T99: Inlap | W99: FL
A100: 1 | B100: 89 | C100: 89 | E100: =IF(D100="Grid",Simulation!$B$2,IF(D100="WU",Simulation!$B$3,IF(D100=1,Simulation!$B$4,IF(D100=2,Simulation!$B$5,IF(D100=3,Simulation!$B$6,IF(D100=4,Simulation!$B$7,IF(D100=5,Simulation!$B$8))))))) -> FALSE | F100: =IF(D100="Grid",Simulation!$C$2,IF(D100="WU",Simulation!$C$3,IF(D100=1,Simulation!$C$4,IF(D100=2,Simulation!$C$5,IF(D100=3,Simulation!$C$6,IF(D100=4,Simulation!$C$7,IF(D100=5,Simulation!$C$8))))))) -> FALSE | G100: 0 | P100: 0 | R100: 0 | S100: 0 | T100: Inlap | W100: FL
A101: 1 | B101: 90 | C101: 90 | E101: =IF(D101="Grid",Simulation!$B$2,IF(D101="WU",Simulation!$B$3,IF(D101=1,Simulation!$B$4,IF(D101=2,Simulation!$B$5,IF(D101=3,Simulation!$B$6,IF(D101=4,Simulation!$B$7,IF(D101=5,Simulation!$B$8))))))) -> FALSE | F101: =IF(D101="Grid",Simulation!$C$2,IF(D101="WU",Simulation!$C$3,IF(D101=1,Simulation!$C$4,IF(D101=2,Simulation!$C$5,IF(D101=3,Simulation!$C$6,IF(D101=4,Simulation!$C$7,IF(D101=5,Simulation!$C$8))))))) -> FALSE | G101: 0 | P101: 0 | R101: 0 | S101: 0 | T101: Inlap | W101: FL
A102: 1 | B102: 91 | C102: 91 | E102: =IF(D102="Grid",Simulation!$B$2,IF(D102="WU",Simulation!$B$3,IF(D102=1,Simulation!$B$4,IF(D102=2,Simulation!$B$5,IF(D102=3,Simulation!$B$6,IF(D102=4,Simulation!$B$7,IF(D102=5,Simulation!$B$8))))))) -> FALSE | F102: =IF(D102="Grid",Simulation!$C$2,IF(D102="WU",Simulation!$C$3,IF(D102=1,Simulation!$C$4,IF(D102=2,Simulation!$C$5,IF(D102=3,Simulation!$C$6,IF(D102=4,Simulation!$C$7,IF(D102=5,Simulation!$C$8))))))) -> FALSE | G102: 0 | P102: 0 | R102: 0 | S102: 0 | T102: Inlap | W102: FL
A103: 1 | B103: 92 | C103: 92 | E103: =IF(D103="Grid",Simulation!$B$2,IF(D103="WU",Simulation!$B$3,IF(D103=1,Simulation!$B$4,IF(D103=2,Simulation!$B$5,IF(D103=3,Simulation!$B$6,IF(D103=4,Simulation!$B$7,IF(D103=5,Simulation!$B$8))))))) -> FALSE | F103: =IF(D103="Grid",Simulation!$C$2,IF(D103="WU",Simulation!$C$3,IF(D103=1,Simulation!$C$4,IF(D103=2,Simulation!$C$5,IF(D103=3,Simulation!$C$6,IF(D103=4,Simulation!$C$7,IF(D103=5,Simulation!$C$8))))))) -> FALSE | G103: 0 | P103: 0 | R103: 0 | S103: 0 | T103: Inlap | W103: FL
A104: 1 | B104: 93 | C104: 93 | E104: =IF(D104="Grid",Simulation!$B$2,IF(D104="WU",Simulation!$B$3,IF(D104=1,Simulation!$B$4,IF(D104=2,Simulation!$B$5,IF(D104=3,Simulation!$B$6,IF(D104=4,Simulation!$B$7,IF(D104=5,Simulation!$B$8))))))) -> FALSE | F104: =IF(D104="Grid",Simulation!$C$2,IF(D104="WU",Simulation!$C$3,IF(D104=1,Simulation!$C$4,IF(D104=2,Simulation!$C$5,IF(D104=3,Simulation!$C$6,IF(D104=4,Simulation!$C$7,IF(D104=5,Simulation!$C$8))))))) -> FALSE | G104: 0 | P104: 0 | R104: 0 | S104: 0 | T104: Inlap | W104: FL
A105: 1 | B105: 94 | C105: 94 | E105: =IF(D105="Grid",Simulation!$B$2,IF(D105="WU",Simulation!$B$3,IF(D105=1,Simulation!$B$4,IF(D105=2,Simulation!$B$5,IF(D105=3,Simulation!$B$6,IF(D105=4,Simulation!$B$7,IF(D105=5,Simulation!$B$8))))))) -> FALSE | F105: =IF(D105="Grid",Simulation!$C$2,IF(D105="WU",Simulation!$C$3,IF(D105=1,Simulation!$C$4,IF(D105=2,Simulation!$C$5,IF(D105=3,Simulation!$C$6,IF(D105=4,Simulation!$C$7,IF(D105=5,Simulation!$C$8))))))) -> FALSE | G105: 0 | P105: 0 | R105: 0 | S105: 0 | T105: Inlap | W105: FL
A106: 1 | B106: 95 | C106: 95 | E106: =IF(D106="Grid",Simulation!$B$2,IF(D106="WU",Simulation!$B$3,IF(D106=1,Simulation!$B$4,IF(D106=2,Simulation!$B$5,IF(D106=3,Simulation!$B$6,IF(D106=4,Simulation!$B$7,IF(D106=5,Simulation!$B$8))))))) -> FALSE | F106: =IF(D106="Grid",Simulation!$C$2,IF(D106="WU",Simulation!$C$3,IF(D106=1,Simulation!$C$4,IF(D106=2,Simulation!$C$5,IF(D106=3,Simulation!$C$6,IF(D106=4,Simulation!$C$7,IF(D106=5,Simulation!$C$8))))))) -> FALSE | G106: 0 | P106: 0 | R106: 0 | S106: 0 | T106: Inlap | W106: FL
A107: 1 | B107: 96 | C107: 96 | E107: =IF(D107="Grid",Simulation!$B$2,IF(D107="WU",Simulation!$B$3,IF(D107=1,Simulation!$B$4,IF(D107=2,Simulation!$B$5,IF(D107=3,Simulation!$B$6,IF(D107=4,Simulation!$B$7,IF(D107=5,Simulation!$B$8))))))) -> FALSE | F107: =IF(D107="Grid",Simulation!$C$2,IF(D107="WU",Simulation!$C$3,IF(D107=1,Simulation!$C$4,IF(D107=2,Simulation!$C$5,IF(D107=3,Simulation!$C$6,IF(D107=4,Simulation!$C$7,IF(D107=5,Simulation!$C$8))))))) -> FALSE | G107: 0 | P107: 0 | R107: 0 | S107: 0 | T107: Inlap | W107: FL
A108: 1 | B108: 97 | C108: 97 | E108: =IF(D108="Grid",Simulation!$B$2,IF(D108="WU",Simulation!$B$3,IF(D108=1,Simulation!$B$4,IF(D108=2,Simulation!$B$5,IF(D108=3,Simulation!$B$6,IF(D108=4,Simulation!$B$7,IF(D108=5,Simulation!$B$8))))))) -> FALSE | F108: =IF(D108="Grid",Simulation!$C$2,IF(D108="WU",Simulation!$C$3,IF(D108=1,Simulation!$C$4,IF(D108=2,Simulation!$C$5,IF(D108=3,Simulation!$C$6,IF(D108=4,Simulation!$C$7,IF(D108=5,Simulation!$C$8))))))) -> FALSE | G108: 0 | P108: 0 | R108: 0 | S108: 0 | T108: Inlap | W108: FL
A109: 1 | B109: 98 | C109: 98 | E109: =IF(D109="Grid",Simulation!$B$2,IF(D109="WU",Simulation!$B$3,IF(D109=1,Simulation!$B$4,IF(D109=2,Simulation!$B$5,IF(D109=3,Simulation!$B$6,IF(D109=4,Simulation!$B$7,IF(D109=5,Simulation!$B$8))))))) -> FALSE | F109: =IF(D109="Grid",Simulation!$C$2,IF(D109="WU",Simulation!$C$3,IF(D109=1,Simulation!$C$4,IF(D109=2,Simulation!$C$5,IF(D109=3,Simulation!$C$6,IF(D109=4,Simulation!$C$7,IF(D109=5,Simulation!$C$8))))))) -> FALSE | G109: 0 | P109: 0 | R109: 0 | S109: 0 | T109: Inlap | W109: FL
A110: 1 | B110: 99 | C110: 99 | E110: =IF(D110="Grid",Simulation!$B$2,IF(D110="WU",Simulation!$B$3,IF(D110=1,Simulation!$B$4,IF(D110=2,Simulation!$B$5,IF(D110=3,Simulation!$B$6,IF(D110=4,Simulation!$B$7,IF(D110=5,Simulation!$B$8))))))) -> FALSE | F110: =IF(D110="Grid",Simulation!$C$2,IF(D110="WU",Simulation!$C$3,IF(D110=1,Simulation!$C$4,IF(D110=2,Simulation!$C$5,IF(D110=3,Simulation!$C$6,IF(D110=4,Simulation!$C$7,IF(D110=5,Simulation!$C$8))))))) -> FALSE | G110: 0 | P110: =IF(O110>0,Q110,Q110-Q109) -> 0 | R110: =IF(O110>0,Q110,Q110-Q109) -> 0 | S110: 0 | T110: Inlap | W110: FL
A111: 1 | B111: 100 | C111: 100 | E111: =IF(D111="Grid",Simulation!$B$2,IF(D111="WU",Simulation!$B$3,IF(D111=1,Simulation!$B$4,IF(D111=2,Simulation!$B$5,IF(D111=3,Simulation!$B$6,IF(D111=4,Simulation!$B$7,IF(D111=5,Simulation!$B$8))))))) -> FALSE | F111: =IF(D111="Grid",Simulation!$C$2,IF(D111="WU",Simulation!$C$3,IF(D111=1,Simulation!$C$4,IF(D111=2,Simulation!$C$5,IF(D111=3,Simulation!$C$6,IF(D111=4,Simulation!$C$7,IF(D111=5,Simulation!$C$8))))))) -> FALSE | G111: 0 | P111: 0 | R111: 0 | S111: 0 | T111: Inlap | W111: FL
A112: 1 | B112: 101 | C112: 101 | E112: =IF(D112="Grid",Simulation!$B$2,IF(D112="WU",Simulation!$B$3,IF(D112=1,Simulation!$B$4,IF(D112=2,Simulation!$B$5,IF(D112=3,Simulation!$B$6,IF(D112=4,Simulation!$B$7,IF(D112=5,Simulation!$B$8))))))) -> FALSE | F112: =IF(D112="Grid",Simulation!$C$2,IF(D112="WU",Simulation!$C$3,IF(D112=1,Simulation!$C$4,IF(D112=2,Simulation!$C$5,IF(D112=3,Simulation!$C$6,IF(D112=4,Simulation!$C$7,IF(D112=5,Simulation!$C$8))))))) -> FALSE | G112: 0 | P112: 0 | R112: 0 | S112: 0 | T112: Inlap | W112: FL
A113: 1 | B113: 102 | C113: 102 | E113: =IF(D113="Grid",Simulation!$B$2,IF(D113="WU",Simulation!$B$3,IF(D113=1,Simulation!$B$4,IF(D113=2,Simulation!$B$5,IF(D113=3,Simulation!$B$6,IF(D113=4,Simulation!$B$7,IF(D113=5,Simulation!$B$8))))))) -> FALSE | F113: =IF(D113="Grid",Simulation!$C$2,IF(D113="WU",Simulation!$C$3,IF(D113=1,Simulation!$C$4,IF(D113=2,Simulation!$C$5,IF(D113=3,Simulation!$C$6,IF(D113=4,Simulation!$C$7,IF(D113=5,Simulation!$C$8))))))) -> FALSE | G113: 0 | P113: 0 | R113: 0 | S113: 0 | T113: Inlap | W113: FL
A114: 1 | B114: 103 | C114: 103 | E114: =IF(D114="Grid",Simulation!$B$2,IF(D114="WU",Simulation!$B$3,IF(D114=1,Simulation!$B$4,IF(D114=2,Simulation!$B$5,IF(D114=3,Simulation!$B$6,IF(D114=4,Simulation!$B$7,IF(D114=5,Simulation!$B$8))))))) -> FALSE | F114: =IF(D114="Grid",Simulation!$C$2,IF(D114="WU",Simulation!$C$3,IF(D114=1,Simulation!$C$4,IF(D114=2,Simulation!$C$5,IF(D114=3,Simulation!$C$6,IF(D114=4,Simulation!$C$7,IF(D114=5,Simulation!$C$8))))))) -> FALSE | G114: 0 | P114: 0 | R114: 0 | S114: 0 | T114: Inlap | W114: FL
A115: 1 | B115: 104 | C115: 104 | E115: =IF(D115="Grid",Simulation!$B$2,IF(D115="WU",Simulation!$B$3,IF(D115=1,Simulation!$B$4,IF(D115=2,Simulation!$B$5,IF(D115=3,Simulation!$B$6,IF(D115=4,Simulation!$B$7,IF(D115=5,Simulation!$B$8))))))) -> FALSE | F115: =IF(D115="Grid",Simulation!$C$2,IF(D115="WU",Simulation!$C$3,IF(D115=1,Simulation!$C$4,IF(D115=2,Simulation!$C$5,IF(D115=3,Simulation!$C$6,IF(D115=4,Simulation!$C$7,IF(D115=5,Simulation!$C$8))))))) -> FALSE | G115: 0 | P115: 0 | R115: 0 | S115: 0 | T115: Inlap | W115: FL
A116: 1 | B116: 105 | C116: 105 | E116: =IF(D116="Grid",Simulation!$B$2,IF(D116="WU",Simulation!$B$3,IF(D116=1,Simulation!$B$4,IF(D116=2,Simulation!$B$5,IF(D116=3,Simulation!$B$6,IF(D116=4,Simulation!$B$7,IF(D116=5,Simulation!$B$8))))))) -> FALSE | F116: =IF(D116="Grid",Simulation!$C$2,IF(D116="WU",Simulation!$C$3,IF(D116=1,Simulation!$C$4,IF(D116=2,Simulation!$C$5,IF(D116=3,Simulation!$C$6,IF(D116=4,Simulation!$C$7,IF(D116=5,Simulation!$C$8))))))) -> FALSE | G116: 0 | P116: 0 | R116: 0 | S116: 0 | T116: Inlap | W116: FL
A117: 1 | B117: 106 | C117: 106 | E117: =IF(D117="Grid",Simulation!$B$2,IF(D117="WU",Simulation!$B$3,IF(D117=1,Simulation!$B$4,IF(D117=2,Simulation!$B$5,IF(D117=3,Simulation!$B$6,IF(D117=4,Simulation!$B$7,IF(D117=5,Simulation!$B$8))))))) -> FALSE | F117: =IF(D117="Grid",Simulation!$C$2,IF(D117="WU",Simulation!$C$3,IF(D117=1,Simulation!$C$4,IF(D117=2,Simulation!$C$5,IF(D117=3,Simulation!$C$6,IF(D117=4,Simulation!$C$7,IF(D117=5,Simulation!$C$8))))))) -> FALSE | G117: 0 | P117: 0 | R117: 0 | S117: 0 | T117: Inlap | W117: FL
A118: 1 | B118: 107 | C118: 107 | E118: =IF(D118="Grid",Simulation!$B$2,IF(D118="WU",Simulation!$B$3,IF(D118=1,Simulation!$B$4,IF(D118=2,Simulation!$B$5,IF(D118=3,Simulation!$B$6,IF(D118=4,Simulation!$B$7,IF(D118=5,Simulation!$B$8))))))) -> FALSE | F118: =IF(D118="Grid",Simulation!$C$2,IF(D118="WU",Simulation!$C$3,IF(D118=1,Simulation!$C$4,IF(D118=2,Simulation!$C$5,IF(D118=3,Simulation!$C$6,IF(D118=4,Simulation!$C$7,IF(D118=5,Simulation!$C$8))))))) -> FALSE | G118: 0 | P118: 0 | R118: 0 | S118: 0 | T118: Inlap | W118: FL
A119: 1 | B119: 108 | C119: 108 | E119: =IF(D119="Grid",Simulation!$B$2,IF(D119="WU",Simulation!$B$3,IF(D119=1,Simulation!$B$4,IF(D119=2,Simulation!$B$5,IF(D119=3,Simulation!$B$6,IF(D119=4,Simulation!$B$7,IF(D119=5,Simulation!$B$8))))))) -> FALSE | F119: =IF(D119="Grid",Simulation!$C$2,IF(D119="WU",Simulation!$C$3,IF(D119=1,Simulation!$C$4,IF(D119=2,Simulation!$C$5,IF(D119=3,Simulation!$C$6,IF(D119=4,Simulation!$C$7,IF(D119=5,Simulation!$C$8))))))) -> FALSE | G119: 0 | P119: 0 | R119: 0 | S119: 0 | T119: Inlap | W119: FL
A120: 1 | B120: 109 | C120: 109 | E120: =IF(D120="Grid",Simulation!$B$2,IF(D120="WU",Simulation!$B$3,IF(D120=1,Simulation!$B$4,IF(D120=2,Simulation!$B$5,IF(D120=3,Simulation!$B$6,IF(D120=4,Simulation!$B$7,IF(D120=5,Simulation!$B$8))))))) -> FALSE | F120: =IF(D120="Grid",Simulation!$C$2,IF(D120="WU",Simulation!$C$3,IF(D120=1,Simulation!$C$4,IF(D120=2,Simulation!$C$5,IF(D120=3,Simulation!$C$6,IF(D120=4,Simulation!$C$7,IF(D120=5,Simulation!$C$8))))))) -> FALSE | G120: 0 | P120: 0 | R120: 0 | S120: 0 | T120: Inlap | W120: FL
A121: 1 | B121: 110 | C121: 110 | E121: =IF(D121="Grid",Simulation!$B$2,IF(D121="WU",Simulation!$B$3,IF(D121=1,Simulation!$B$4,IF(D121=2,Simulation!$B$5,IF(D121=3,Simulation!$B$6,IF(D121=4,Simulation!$B$7,IF(D121=5,Simulation!$B$8))))))) -> FALSE | F121: =IF(D121="Grid",Simulation!$C$2,IF(D121="WU",Simulation!$C$3,IF(D121=1,Simulation!$C$4,IF(D121=2,Simulation!$C$5,IF(D121=3,Simulation!$C$6,IF(D121=4,Simulation!$C$7,IF(D121=5,Simulation!$C$8))))))) -> FALSE | G121: 0 | P121: 0 | R121: 0 | S121: 0 | T121: Inlap | W121: FL
A122: 1 | B122: 111 | C122: 111 | E122: =IF(D122="Grid",Simulation!$B$2,IF(D122="WU",Simulation!$B$3,IF(D122=1,Simulation!$B$4,IF(D122=2,Simulation!$B$5,IF(D122=3,Simulation!$B$6,IF(D122=4,Simulation!$B$7,IF(D122=5,Simulation!$B$8))))))) -> FALSE | F122: =IF(D122="Grid",Simulation!$C$2,IF(D122="WU",Simulation!$C$3,IF(D122=1,Simulation!$C$4,IF(D122=2,Simulation!$C$5,IF(D122=3,Simulation!$C$6,IF(D122=4,Simulation!$C$7,IF(D122=5,Simulation!$C$8))))))) -> FALSE | G122: 0 | P122: 0 | R122: 0 | S122: 0 | T122: Inlap | W122: FL
A123: 1 | B123: 112 | C123: 112 | E123: =IF(D123="Grid",Simulation!$B$2,IF(D123="WU",Simulation!$B$3,IF(D123=1,Simulation!$B$4,IF(D123=2,Simulation!$B$5,IF(D123=3,Simulation!$B$6,IF(D123=4,Simulation!$B$7,IF(D123=5,Simulation!$B$8))))))) -> FALSE | F123: =IF(D123="Grid",Simulation!$C$2,IF(D123="WU",Simulation!$C$3,IF(D123=1,Simulation!$C$4,IF(D123=2,Simulation!$C$5,IF(D123=3,Simulation!$C$6,IF(D123=4,Simulation!$C$7,IF(D123=5,Simulation!$C$8))))))) -> FALSE | G123: 0 | P123: 0 | R123: 0 | S123: 0 | T123: Inlap | W123: FL
A124: 1 | B124: 113 | C124: 113 | E124: =IF(D124="Grid",Simulation!$B$2,IF(D124="WU",Simulation!$B$3,IF(D124=1,Simulation!$B$4,IF(D124=2,Simulation!$B$5,IF(D124=3,Simulation!$B$6,IF(D124=4,Simulation!$B$7,IF(D124=5,Simulation!$B$8))))))) -> FALSE | F124: =IF(D124="Grid",Simulation!$C$2,IF(D124="WU",Simulation!$C$3,IF(D124=1,Simulation!$C$4,IF(D124=2,Simulation!$C$5,IF(D124=3,Simulation!$C$6,IF(D124=4,Simulation!$C$7,IF(D124=5,Simulation!$C$8))))))) -> FALSE | G124: 0 | P124: 0 | R124: 0 | S124: 0 | T124: Inlap | W124: FL
A125: 1 | B125: 114 | C125: 114 | E125: =IF(D125="Grid",Simulation!$B$2,IF(D125="WU",Simulation!$B$3,IF(D125=1,Simulation!$B$4,IF(D125=2,Simulation!$B$5,IF(D125=3,Simulation!$B$6,IF(D125=4,Simulation!$B$7,IF(D125=5,Simulation!$B$8))))))) -> FALSE | F125: =IF(D125="Grid",Simulation!$C$2,IF(D125="WU",Simulation!$C$3,IF(D125=1,Simulation!$C$4,IF(D125=2,Simulation!$C$5,IF(D125=3,Simulation!$C$6,IF(D125=4,Simulation!$C$7,IF(D125=5,Simulation!$C$8))))))) -> FALSE | G125: 0 | P125: 0 | R125: 0 | S125: 0 | T125: Inlap | W125: FL
A126: 1 | B126: 115 | C126: 115 | E126: =IF(D126="Grid",Simulation!$B$2,IF(D126="WU",Simulation!$B$3,IF(D126=1,Simulation!$B$4,IF(D126=2,Simulation!$B$5,IF(D126=3,Simulation!$B$6,IF(D126=4,Simulation!$B$7,IF(D126=5,Simulation!$B$8))))))) -> FALSE | F126: =IF(D126="Grid",Simulation!$C$2,IF(D126="WU",Simulation!$C$3,IF(D126=1,Simulation!$C$4,IF(D126=2,Simulation!$C$5,IF(D126=3,Simulation!$C$6,IF(D126=4,Simulation!$C$7,IF(D126=5,Simulation!$C$8))))))) -> FALSE | G126: 0 | P126: 0 | R126: 0 | S126: 0 | T126: Inlap | W126: FL
A127: 1 | B127: 116 | C127: 116 | E127: =IF(D127="Grid",Simulation!$B$2,IF(D127="WU",Simulation!$B$3,IF(D127=1,Simulation!$B$4,IF(D127=2,Simulation!$B$5,IF(D127=3,Simulation!$B$6,IF(D127=4,Simulation!$B$7,IF(D127=5,Simulation!$B$8))))))) -> FALSE | F127: =IF(D127="Grid",Simulation!$C$2,IF(D127="WU",Simulation!$C$3,IF(D127=1,Simulation!$C$4,IF(D127=2,Simulation!$C$5,IF(D127=3,Simulation!$C$6,IF(D127=4,Simulation!$C$7,IF(D127=5,Simulation!$C$8))))))) -> FALSE | G127: 0 | P127: 0 | R127: 0 | S127: 0 | T127: Inlap | W127: FL
A128: 1 | B128: 117 | C128: 117 | E128: =IF(D128="Grid",Simulation!$B$2,IF(D128="WU",Simulation!$B$3,IF(D128=1,Simulation!$B$4,IF(D128=2,Simulation!$B$5,IF(D128=3,Simulation!$B$6,IF(D128=4,Simulation!$B$7,IF(D128=5,Simulation!$B$8))))))) -> FALSE | F128: =IF(D128="Grid",Simulation!$C$2,IF(D128="WU",Simulation!$C$3,IF(D128=1,Simulation!$C$4,IF(D128=2,Simulation!$C$5,IF(D128=3,Simulation!$C$6,IF(D128=4,Simulation!$C$7,IF(D128=5,Simulation!$C$8))))))) -> FALSE | G128: 0 | P128: 0 | R128: 0 | S128: 0 | T128: Inlap | W128: FL
A129: 1 | B129: 118 | C129: 118 | E129: =IF(D129="Grid",Simulation!$B$2,IF(D129="WU",Simulation!$B$3,IF(D129=1,Simulation!$B$4,IF(D129=2,Simulation!$B$5,IF(D129=3,Simulation!$B$6,IF(D129=4,Simulation!$B$7,IF(D129=5,Simulation!$B$8))))))) -> FALSE | F129: =IF(D129="Grid",Simulation!$C$2,IF(D129="WU",Simulation!$C$3,IF(D129=1,Simulation!$C$4,IF(D129=2,Simulation!$C$5,IF(D129=3,Simulation!$C$6,IF(D129=4,Simulation!$C$7,IF(D129=5,Simulation!$C$8))))))) -> FALSE | G129: 0 | P129: 0 | R129: 0 | S129: 0 | T129: Inlap | W129: FL
A130: 1 | B130: 119 | C130: 119 | E130: =IF(D130="Grid",Simulation!$B$2,IF(D130="WU",Simulation!$B$3,IF(D130=1,Simulation!$B$4,IF(D130=2,Simulation!$B$5,IF(D130=3,Simulation!$B$6,IF(D130=4,Simulation!$B$7,IF(D130=5,Simulation!$B$8))))))) -> FALSE | F130: =IF(D130="Grid",Simulation!$C$2,IF(D130="WU",Simulation!$C$3,IF(D130=1,Simulation!$C$4,IF(D130=2,Simulation!$C$5,IF(D130=3,Simulation!$C$6,IF(D130=4,Simulation!$C$7,IF(D130=5,Simulation!$C$8))))))) -> FALSE | G130: 0 | P130: 0 | R130: 0 | S130: 0 | T130: Inlap | W130: FL
A131: 1 | B131: 120 | C131: 120 | E131: =IF(D131="Grid",Simulation!$B$2,IF(D131="WU",Simulation!$B$3,IF(D131=1,Simulation!$B$4,IF(D131=2,Simulation!$B$5,IF(D131=3,Simulation!$B$6,IF(D131=4,Simulation!$B$7,IF(D131=5,Simulation!$B$8))))))) -> FALSE | F131: =IF(D131="Grid",Simulation!$C$2,IF(D131="WU",Simulation!$C$3,IF(D131=1,Simulation!$C$4,IF(D131=2,Simulation!$C$5,IF(D131=3,Simulation!$C$6,IF(D131=4,Simulation!$C$7,IF(D131=5,Simulation!$C$8))))))) -> FALSE | G131: 0 | P131: 0 | R131: 0 | S131: 0 | T131: Inlap | W131: FL
A132: 1 | B132: 121 | C132: 121 | E132: =IF(D132="Grid",Simulation!$B$2,IF(D132="WU",Simulation!$B$3,IF(D132=1,Simulation!$B$4,IF(D132=2,Simulation!$B$5,IF(D132=3,Simulation!$B$6,IF(D132=4,Simulation!$B$7,IF(D132=5,Simulation!$B$8))))))) -> FALSE | F132: =IF(D132="Grid",Simulation!$C$2,IF(D132="WU",Simulation!$C$3,IF(D132=1,Simulation!$C$4,IF(D132=2,Simulation!$C$5,IF(D132=3,Simulation!$C$6,IF(D132=4,Simulation!$C$7,IF(D132=5,Simulation!$C$8))))))) -> FALSE | G132: 0 | P132: 0 | R132: 0 | S132: 0 | T132: Inlap | W132: FL
A133: 1 | B133: 122 | C133: 122 | E133: =IF(D133="Grid",Simulation!$B$2,IF(D133="WU",Simulation!$B$3,IF(D133=1,Simulation!$B$4,IF(D133=2,Simulation!$B$5,IF(D133=3,Simulation!$B$6,IF(D133=4,Simulation!$B$7,IF(D133=5,Simulation!$B$8))))))) -> FALSE | F133: =IF(D133="Grid",Simulation!$C$2,IF(D133="WU",Simulation!$C$3,IF(D133=1,Simulation!$C$4,IF(D133=2,Simulation!$C$5,IF(D133=3,Simulation!$C$6,IF(D133=4,Simulation!$C$7,IF(D133=5,Simulation!$C$8))))))) -> FALSE | G133: 0 | P133: 0 | R133: 0 | S133: 0 | T133: Inlap | W133: FL
A134: 1 | B134: 123 | C134: 123 | E134: =IF(D134="Grid",Simulation!$B$2,IF(D134="WU",Simulation!$B$3,IF(D134=1,Simulation!$B$4,IF(D134=2,Simulation!$B$5,IF(D134=3,Simulation!$B$6,IF(D134=4,Simulation!$B$7,IF(D134=5,Simulation!$B$8))))))) -> FALSE | F134: =IF(D134="Grid",Simulation!$C$2,IF(D134="WU",Simulation!$C$3,IF(D134=1,Simulation!$C$4,IF(D134=2,Simulation!$C$5,IF(D134=3,Simulation!$C$6,IF(D134=4,Simulation!$C$7,IF(D134=5,Simulation!$C$8))))))) -> FALSE | G134: 0 | P134: 0 | R134: 0 | S134: 0 | T134: Inlap | W134: FL
A135: 1 | B135: 124 | C135: 124 | E135: =IF(D135="Grid",Simulation!$B$2,IF(D135="WU",Simulation!$B$3,IF(D135=1,Simulation!$B$4,IF(D135=2,Simulation!$B$5,IF(D135=3,Simulation!$B$6,IF(D135=4,Simulation!$B$7,IF(D135=5,Simulation!$B$8))))))) -> FALSE | F135: =IF(D135="Grid",Simulation!$C$2,IF(D135="WU",Simulation!$C$3,IF(D135=1,Simulation!$C$4,IF(D135=2,Simulation!$C$5,IF(D135=3,Simulation!$C$6,IF(D135=4,Simulation!$C$7,IF(D135=5,Simulation!$C$8))))))) -> FALSE | G135: 0 | P135: 0 | R135: 0 | S135: 0 | T135: Inlap | W135: FL
A136: 1 | B136: 125 | C136: 125 | E136: =IF(D136="Grid",Simulation!$B$2,IF(D136="WU",Simulation!$B$3,IF(D136=1,Simulation!$B$4,IF(D136=2,Simulation!$B$5,IF(D136=3,Simulation!$B$6,IF(D136=4,Simulation!$B$7,IF(D136=5,Simulation!$B$8))))))) -> FALSE | F136: =IF(D136="Grid",Simulation!$C$2,IF(D136="WU",Simulation!$C$3,IF(D136=1,Simulation!$C$4,IF(D136=2,Simulation!$C$5,IF(D136=3,Simulation!$C$6,IF(D136=4,Simulation!$C$7,IF(D136=5,Simulation!$C$8))))))) -> FALSE | G136: 0 | P136: 0 | R136: 0 | S136: 0 | T136: Inlap | W136: FL
A137: 1 | B137: 126 | C137: 126 | E137: =IF(D137="Grid",Simulation!$B$2,IF(D137="WU",Simulation!$B$3,IF(D137=1,Simulation!$B$4,IF(D137=2,Simulation!$B$5,IF(D137=3,Simulation!$B$6,IF(D137=4,Simulation!$B$7,IF(D137=5,Simulation!$B$8))))))) -> FALSE | F137: =IF(D137="Grid",Simulation!$C$2,IF(D137="WU",Simulation!$C$3,IF(D137=1,Simulation!$C$4,IF(D137=2,Simulation!$C$5,IF(D137=3,Simulation!$C$6,IF(D137=4,Simulation!$C$7,IF(D137=5,Simulation!$C$8))))))) -> FALSE | G137: 0 | P137: 0 | R137: 0 | S137: 0 | T137: Inlap | W137: FL
A138: 1 | B138: 127 | C138: 127 | E138: =IF(D138="Grid",Simulation!$B$2,IF(D138="WU",Simulation!$B$3,IF(D138=1,Simulation!$B$4,IF(D138=2,Simulation!$B$5,IF(D138=3,Simulation!$B$6,IF(D138=4,Simulation!$B$7,IF(D138=5,Simulation!$B$8))))))) -> FALSE | F138: =IF(D138="Grid",Simulation!$C$2,IF(D138="WU",Simulation!$C$3,IF(D138=1,Simulation!$C$4,IF(D138=2,Simulation!$C$5,IF(D138=3,Simulation!$C$6,IF(D138=4,Simulation!$C$7,IF(D138=5,Simulation!$C$8))))))) -> FALSE | G138: 0 | P138: 0 | R138: 0 | S138: 0 | T138: Inlap | W138: FL
A139: 1 | B139: 128 | C139: 128 | E139: =IF(D139="Grid",Simulation!$B$2,IF(D139="WU",Simulation!$B$3,IF(D139=1,Simulation!$B$4,IF(D139=2,Simulation!$B$5,IF(D139=3,Simulation!$B$6,IF(D139=4,Simulation!$B$7,IF(D139=5,Simulation!$B$8))))))) -> FALSE | F139: =IF(D139="Grid",Simulation!$C$2,IF(D139="WU",Simulation!$C$3,IF(D139=1,Simulation!$C$4,IF(D139=2,Simulation!$C$5,IF(D139=3,Simulation!$C$6,IF(D139=4,Simulation!$C$7,IF(D139=5,Simulation!$C$8))))))) -> FALSE | G139: 0 | P139: 0 | R139: 0 | S139: 0 | T139: Inlap | W139: FL
A140: =IF(O140>0,A139+1,A139) -> 1 | B140: 129 | C140: 129 | E140: =IF(D140="Grid",Simulation!$B$2,IF(D140="WU",Simulation!$B$3,IF(D140=1,Simulation!$B$4,IF(D140=2,Simulation!$B$5,IF(D140=3,Simulation!$B$6,IF(D140=4,Simulation!$B$7,IF(D140=5,Simulation!$B$8))))))) -> FALSE | F140: =IF(D140="Grid",Simulation!$C$2,IF(D140="WU",Simulation!$C$3,IF(D140=1,Simulation!$C$4,IF(D140=2,Simulation!$C$5,IF(D140=3,Simulation!$C$6,IF(D140=4,Simulation!$C$7,IF(D140=5,Simulation!$C$8))))))) -> FALSE | G140: =G139+O139-P139 -> 0 | P140: 0 | R140: 0 | S140: =IF(O140>0,O140+S139-Q140,S139-P140) -> 0 | T140: =IF(S140<=F140,"Inlap",IF(S140<=2*F140,"Call: In this lap!",IF(S140<=3*F140,"Show in but don't call!",""))) -> Inlap | W140: =IF(J140=$Q$2,"FL","") -> FL
A141: 1 | B141: 130 | C141: 130 | E141: =IF(D141="Grid",Simulation!$B$2,IF(D141="WU",Simulation!$B$3,IF(D141=1,Simulation!$B$4,IF(D141=2,Simulation!$B$5,IF(D141=3,Simulation!$B$6,IF(D141=4,Simulation!$B$7,IF(D141=5,Simulation!$B$8))))))) -> FALSE | F141: =IF(D141="Grid",Simulation!$C$2,IF(D141="WU",Simulation!$C$3,IF(D141=1,Simulation!$C$4,IF(D141=2,Simulation!$C$5,IF(D141=3,Simulation!$C$6,IF(D141=4,Simulation!$C$7,IF(D141=5,Simulation!$C$8))))))) -> FALSE | G141: 0 | K141: =IF(J141<>0,K140,"") ->  | P141: 0 | R141: 0 | S141: 0 | T141: Inlap | W141: FL
A142: 1 | B142: 131 | C142: =IF(O142="",C141+1,"1") -> 131 | E142: =IF(D142="Grid",Simulation!$B$2,IF(D142="WU",Simulation!$B$3,IF(D142=1,Simulation!$B$4,IF(D142=2,Simulation!$B$5,IF(D142=3,Simulation!$B$6,IF(D142=4,Simulation!$B$7,IF(D142=5,Simulation!$B$8))))))) -> FALSE | F142: =IF(D142="Grid",Simulation!$C$2,IF(D142="WU",Simulation!$C$3,IF(D142=1,Simulation!$C$4,IF(D142=2,Simulation!$C$5,IF(D142=3,Simulation!$C$6,IF(D142=4,Simulation!$C$7,IF(D142=5,Simulation!$C$8))))))) -> FALSE | G142: 0 | P142: 0 | R142: 0 | S142: 0 | T142: Inlap | W142: FL
A143: 1 | B143: 132 | C143: 132 | E143: =IF(D143="Grid",Simulation!$B$2,IF(D143="WU",Simulation!$B$3,IF(D143=1,Simulation!$B$4,IF(D143=2,Simulation!$B$5,IF(D143=3,Simulation!$B$6,IF(D143=4,Simulation!$B$7,IF(D143=5,Simulation!$B$8))))))) -> FALSE | F143: =IF(D143="Grid",Simulation!$C$2,IF(D143="WU",Simulation!$C$3,IF(D143=1,Simulation!$C$4,IF(D143=2,Simulation!$C$5,IF(D143=3,Simulation!$C$6,IF(D143=4,Simulation!$C$7,IF(D143=5,Simulation!$C$8))))))) -> FALSE | G143: 0 | P143: 0 | R143: 0 | S143: 0 | T143: Inlap | W143: FL
A144: 1 | B144: 133 | C144: 133 | E144: =IF(D144="Grid",Simulation!$B$2,IF(D144="WU",Simulation!$B$3,IF(D144=1,Simulation!$B$4,IF(D144=2,Simulation!$B$5,IF(D144=3,Simulation!$B$6,IF(D144=4,Simulation!$B$7,IF(D144=5,Simulation!$B$8))))))) -> FALSE | F144: =IF(D144="Grid",Simulation!$C$2,IF(D144="WU",Simulation!$C$3,IF(D144=1,Simulation!$C$4,IF(D144=2,Simulation!$C$5,IF(D144=3,Simulation!$C$6,IF(D144=4,Simulation!$C$7,IF(D144=5,Simulation!$C$8))))))) -> FALSE | G144: 0 | P144: 0 | R144: 0 | S144: 0 | T144: Inlap | W144: FL
A145: 1 | B145: 134 | C145: 134 | E145: =IF(D145="Grid",Simulation!$B$2,IF(D145="WU",Simulation!$B$3,IF(D145=1,Simulation!$B$4,IF(D145=2,Simulation!$B$5,IF(D145=3,Simulation!$B$6,IF(D145=4,Simulation!$B$7,IF(D145=5,Simulation!$B$8))))))) -> FALSE | F145: =IF(D145="Grid",Simulation!$C$2,IF(D145="WU",Simulation!$C$3,IF(D145=1,Simulation!$C$4,IF(D145=2,Simulation!$C$5,IF(D145=3,Simulation!$C$6,IF(D145=4,Simulation!$C$7,IF(D145=5,Simulation!$C$8))))))) -> FALSE | G145: 0 | P145: 0 | R145: 0 | S145: 0 | T145: Inlap | W145: FL
A146: 1 | B146: 135 | C146: 135 | E146: =IF(D146="Grid",Simulation!$B$2,IF(D146="WU",Simulation!$B$3,IF(D146=1,Simulation!$B$4,IF(D146=2,Simulation!$B$5,IF(D146=3,Simulation!$B$6,IF(D146=4,Simulation!$B$7,IF(D146=5,Simulation!$B$8))))))) -> FALSE | F146: =IF(D146="Grid",Simulation!$C$2,IF(D146="WU",Simulation!$C$3,IF(D146=1,Simulation!$C$4,IF(D146=2,Simulation!$C$5,IF(D146=3,Simulation!$C$6,IF(D146=4,Simulation!$C$7,IF(D146=5,Simulation!$C$8))))))) -> FALSE | G146: 0 | P146: 0 | R146: 0 | S146: 0 | T146: Inlap | W146: FL
A147: 1 | B147: 136 | C147: 136 | E147: =IF(D147="Grid",Simulation!$B$2,IF(D147="WU",Simulation!$B$3,IF(D147=1,Simulation!$B$4,IF(D147=2,Simulation!$B$5,IF(D147=3,Simulation!$B$6,IF(D147=4,Simulation!$B$7,IF(D147=5,Simulation!$B$8))))))) -> FALSE | F147: =IF(D147="Grid",Simulation!$C$2,IF(D147="WU",Simulation!$C$3,IF(D147=1,Simulation!$C$4,IF(D147=2,Simulation!$C$5,IF(D147=3,Simulation!$C$6,IF(D147=4,Simulation!$C$7,IF(D147=5,Simulation!$C$8))))))) -> FALSE | G147: 0 | P147: 0 | R147: 0 | S147: 0 | T147: Inlap | W147: FL
A148: 1 | B148: 137 | C148: 137 | E148: =IF(D148="Grid",Simulation!$B$2,IF(D148="WU",Simulation!$B$3,IF(D148=1,Simulation!$B$4,IF(D148=2,Simulation!$B$5,IF(D148=3,Simulation!$B$6,IF(D148=4,Simulation!$B$7,IF(D148=5,Simulation!$B$8))))))) -> FALSE | F148: =IF(D148="Grid",Simulation!$C$2,IF(D148="WU",Simulation!$C$3,IF(D148=1,Simulation!$C$4,IF(D148=2,Simulation!$C$5,IF(D148=3,Simulation!$C$6,IF(D148=4,Simulation!$C$7,IF(D148=5,Simulation!$C$8))))))) -> FALSE | G148: 0 | P148: 0 | R148: 0 | S148: 0 | T148: Inlap | W148: FL
A149: 1 | B149: 138 | C149: 138 | E149: =IF(D149="Grid",Simulation!$B$2,IF(D149="WU",Simulation!$B$3,IF(D149=1,Simulation!$B$4,IF(D149=2,Simulation!$B$5,IF(D149=3,Simulation!$B$6,IF(D149=4,Simulation!$B$7,IF(D149=5,Simulation!$B$8))))))) -> FALSE | F149: =IF(D149="Grid",Simulation!$C$2,IF(D149="WU",Simulation!$C$3,IF(D149=1,Simulation!$C$4,IF(D149=2,Simulation!$C$5,IF(D149=3,Simulation!$C$6,IF(D149=4,Simulation!$C$7,IF(D149=5,Simulation!$C$8))))))) -> FALSE | G149: 0 | P149: 0 | R149: 0 | S149: 0 | T149: Inlap | W149: FL
A150: 1 | B150: 139 | C150: 139 | E150: =IF(D150="Grid",Simulation!$B$2,IF(D150="WU",Simulation!$B$3,IF(D150=1,Simulation!$B$4,IF(D150=2,Simulation!$B$5,IF(D150=3,Simulation!$B$6,IF(D150=4,Simulation!$B$7,IF(D150=5,Simulation!$B$8))))))) -> FALSE | F150: =IF(D150="Grid",Simulation!$C$2,IF(D150="WU",Simulation!$C$3,IF(D150=1,Simulation!$C$4,IF(D150=2,Simulation!$C$5,IF(D150=3,Simulation!$C$6,IF(D150=4,Simulation!$C$7,IF(D150=5,Simulation!$C$8))))))) -> FALSE | G150: 0 | P150: 0 | R150: 0 | S150: 0 | T150: Inlap | W150: FL
A151: 1 | B151: 140 | C151: 140 | E151: =IF(D151="Grid",Simulation!$B$2,IF(D151="WU",Simulation!$B$3,IF(D151=1,Simulation!$B$4,IF(D151=2,Simulation!$B$5,IF(D151=3,Simulation!$B$6,IF(D151=4,Simulation!$B$7,IF(D151=5,Simulation!$B$8))))))) -> FALSE | F151: =IF(D151="Grid",Simulation!$C$2,IF(D151="WU",Simulation!$C$3,IF(D151=1,Simulation!$C$4,IF(D151=2,Simulation!$C$5,IF(D151=3,Simulation!$C$6,IF(D151=4,Simulation!$C$7,IF(D151=5,Simulation!$C$8))))))) -> FALSE | G151: 0 | P151: 0 | R151: 0 | S151: 0 | T151: Inlap | W151: FL
A152: 1 | B152: 141 | C152: 141 | E152: =IF(D152="Grid",Simulation!$B$2,IF(D152="WU",Simulation!$B$3,IF(D152=1,Simulation!$B$4,IF(D152=2,Simulation!$B$5,IF(D152=3,Simulation!$B$6,IF(D152=4,Simulation!$B$7,IF(D152=5,Simulation!$B$8))))))) -> FALSE | F152: =IF(D152="Grid",Simulation!$C$2,IF(D152="WU",Simulation!$C$3,IF(D152=1,Simulation!$C$4,IF(D152=2,Simulation!$C$5,IF(D152=3,Simulation!$C$6,IF(D152=4,Simulation!$C$7,IF(D152=5,Simulation!$C$8))))))) -> FALSE | G152: 0 | P152: 0 | R152: 0 | S152: 0 | T152: Inlap | W152: FL
A153: 1 | B153: 142 | C153: 142 | E153: =IF(D153="Grid",Simulation!$B$2,IF(D153="WU",Simulation!$B$3,IF(D153=1,Simulation!$B$4,IF(D153=2,Simulation!$B$5,IF(D153=3,Simulation!$B$6,IF(D153=4,Simulation!$B$7,IF(D153=5,Simulation!$B$8))))))) -> FALSE | F153: =IF(D153="Grid",Simulation!$C$2,IF(D153="WU",Simulation!$C$3,IF(D153=1,Simulation!$C$4,IF(D153=2,Simulation!$C$5,IF(D153=3,Simulation!$C$6,IF(D153=4,Simulation!$C$7,IF(D153=5,Simulation!$C$8))))))) -> FALSE | G153: 0 | P153: 0 | R153: 0 | S153: 0 | T153: Inlap | W153: FL
A154: 1 | B154: 143 | C154: 143 | E154: =IF(D154="Grid",Simulation!$B$2,IF(D154="WU",Simulation!$B$3,IF(D154=1,Simulation!$B$4,IF(D154=2,Simulation!$B$5,IF(D154=3,Simulation!$B$6,IF(D154=4,Simulation!$B$7,IF(D154=5,Simulation!$B$8))))))) -> FALSE | F154: =IF(D154="Grid",Simulation!$C$2,IF(D154="WU",Simulation!$C$3,IF(D154=1,Simulation!$C$4,IF(D154=2,Simulation!$C$5,IF(D154=3,Simulation!$C$6,IF(D154=4,Simulation!$C$7,IF(D154=5,Simulation!$C$8))))))) -> FALSE | G154: 0 | P154: 0 | R154: 0 | S154: 0 | T154: Inlap | W154: FL
A155: 1 | B155: 144 | C155: 144 | E155: =IF(D155="Grid",Simulation!$B$2,IF(D155="WU",Simulation!$B$3,IF(D155=1,Simulation!$B$4,IF(D155=2,Simulation!$B$5,IF(D155=3,Simulation!$B$6,IF(D155=4,Simulation!$B$7,IF(D155=5,Simulation!$B$8))))))) -> FALSE | F155: =IF(D155="Grid",Simulation!$C$2,IF(D155="WU",Simulation!$C$3,IF(D155=1,Simulation!$C$4,IF(D155=2,Simulation!$C$5,IF(D155=3,Simulation!$C$6,IF(D155=4,Simulation!$C$7,IF(D155=5,Simulation!$C$8))))))) -> FALSE | G155: 0 | P155: 0 | R155: 0 | S155: 0 | T155: Inlap | W155: FL
A156: 1 | B156: 145 | C156: 145 | E156: =IF(D156="Grid",Simulation!$B$2,IF(D156="WU",Simulation!$B$3,IF(D156=1,Simulation!$B$4,IF(D156=2,Simulation!$B$5,IF(D156=3,Simulation!$B$6,IF(D156=4,Simulation!$B$7,IF(D156=5,Simulation!$B$8))))))) -> FALSE | F156: =IF(D156="Grid",Simulation!$C$2,IF(D156="WU",Simulation!$C$3,IF(D156=1,Simulation!$C$4,IF(D156=2,Simulation!$C$5,IF(D156=3,Simulation!$C$6,IF(D156=4,Simulation!$C$7,IF(D156=5,Simulation!$C$8))))))) -> FALSE | G156: 0 | P156: 0 | R156: 0 | S156: 0 | T156: Inlap | W156: FL
A157: 1 | B157: 146 | C157: 146 | E157: =IF(D157="Grid",Simulation!$B$2,IF(D157="WU",Simulation!$B$3,IF(D157=1,Simulation!$B$4,IF(D157=2,Simulation!$B$5,IF(D157=3,Simulation!$B$6,IF(D157=4,Simulation!$B$7,IF(D157=5,Simulation!$B$8))))))) -> FALSE | F157: =IF(D157="Grid",Simulation!$C$2,IF(D157="WU",Simulation!$C$3,IF(D157=1,Simulation!$C$4,IF(D157=2,Simulation!$C$5,IF(D157=3,Simulation!$C$6,IF(D157=4,Simulation!$C$7,IF(D157=5,Simulation!$C$8))))))) -> FALSE | G157: 0 | P157: 0 | R157: 0 | S157: 0 | T157: Inlap | W157: FL
A158: 1 | B158: 147 | C158: 147 | E158: =IF(D158="Grid",Simulation!$B$2,IF(D158="WU",Simulation!$B$3,IF(D158=1,Simulation!$B$4,IF(D158=2,Simulation!$B$5,IF(D158=3,Simulation!$B$6,IF(D158=4,Simulation!$B$7,IF(D158=5,Simulation!$B$8))))))) -> FALSE | F158: =IF(D158="Grid",Simulation!$C$2,IF(D158="WU",Simulation!$C$3,IF(D158=1,Simulation!$C$4,IF(D158=2,Simulation!$C$5,IF(D158=3,Simulation!$C$6,IF(D158=4,Simulation!$C$7,IF(D158=5,Simulation!$C$8))))))) -> FALSE | G158: 0 | P158: 0 | R158: 0 | S158: 0 | T158: Inlap | W158: FL
A159: 1 | B159: 148 | C159: 148 | E159: =IF(D159="Grid",Simulation!$B$2,IF(D159="WU",Simulation!$B$3,IF(D159=1,Simulation!$B$4,IF(D159=2,Simulation!$B$5,IF(D159=3,Simulation!$B$6,IF(D159=4,Simulation!$B$7,IF(D159=5,Simulation!$B$8))))))) -> FALSE | F159: =IF(D159="Grid",Simulation!$C$2,IF(D159="WU",Simulation!$C$3,IF(D159=1,Simulation!$C$4,IF(D159=2,Simulation!$C$5,IF(D159=3,Simulation!$C$6,IF(D159=4,Simulation!$C$7,IF(D159=5,Simulation!$C$8))))))) -> FALSE | G159: 0 | P159: 0 | R159: 0 | S159: 0 | T159: Inlap | W159: FL
A160: 1 | B160: 149 | C160: 149 | E160: =IF(D160="Grid",Simulation!$B$2,IF(D160="WU",Simulation!$B$3,IF(D160=1,Simulation!$B$4,IF(D160=2,Simulation!$B$5,IF(D160=3,Simulation!$B$6,IF(D160=4,Simulation!$B$7,IF(D160=5,Simulation!$B$8))))))) -> FALSE | F160: =IF(D160="Grid",Simulation!$C$2,IF(D160="WU",Simulation!$C$3,IF(D160=1,Simulation!$C$4,IF(D160=2,Simulation!$C$5,IF(D160=3,Simulation!$C$6,IF(D160=4,Simulation!$C$7,IF(D160=5,Simulation!$C$8))))))) -> FALSE | G160: 0 | P160: 0 | R160: 0 | S160: 0 | T160: Inlap | W160: FL
A161: 1 | B161: 150 | C161: 150 | E161: =IF(D161="Grid",Simulation!$B$2,IF(D161="WU",Simulation!$B$3,IF(D161=1,Simulation!$B$4,IF(D161=2,Simulation!$B$5,IF(D161=3,Simulation!$B$6,IF(D161=4,Simulation!$B$7,IF(D161=5,Simulation!$B$8))))))) -> FALSE | F161: =IF(D161="Grid",Simulation!$C$2,IF(D161="WU",Simulation!$C$3,IF(D161=1,Simulation!$C$4,IF(D161=2,Simulation!$C$5,IF(D161=3,Simulation!$C$6,IF(D161=4,Simulation!$C$7,IF(D161=5,Simulation!$C$8))))))) -> FALSE | G161: 0 | P161: 0 | R161: 0 | S161: 0 | T161: Inlap | W161: FL
A162: 1 | B162: 151 | C162: 151 | E162: =IF(D162="Grid",Simulation!$B$2,IF(D162="WU",Simulation!$B$3,IF(D162=1,Simulation!$B$4,IF(D162=2,Simulation!$B$5,IF(D162=3,Simulation!$B$6,IF(D162=4,Simulation!$B$7,IF(D162=5,Simulation!$B$8))))))) -> FALSE | F162: =IF(D162="Grid",Simulation!$C$2,IF(D162="WU",Simulation!$C$3,IF(D162=1,Simulation!$C$4,IF(D162=2,Simulation!$C$5,IF(D162=3,Simulation!$C$6,IF(D162=4,Simulation!$C$7,IF(D162=5,Simulation!$C$8))))))) -> FALSE | G162: 0 | P162: 0 | R162: 0 | S162: 0 | T162: Inlap | W162: FL
A163: 1 | B163: 152 | C163: 152 | E163: =IF(D163="Grid",Simulation!$B$2,IF(D163="WU",Simulation!$B$3,IF(D163=1,Simulation!$B$4,IF(D163=2,Simulation!$B$5,IF(D163=3,Simulation!$B$6,IF(D163=4,Simulation!$B$7,IF(D163=5,Simulation!$B$8))))))) -> FALSE | F163: =IF(D163="Grid",Simulation!$C$2,IF(D163="WU",Simulation!$C$3,IF(D163=1,Simulation!$C$4,IF(D163=2,Simulation!$C$5,IF(D163=3,Simulation!$C$6,IF(D163=4,Simulation!$C$7,IF(D163=5,Simulation!$C$8))))))) -> FALSE | G163: 0 | P163: 0 | R163: 0 | S163: 0 | T163: Inlap | W163: FL
